Workbook

Sheet PI vs gap
A1: Measurement | B1: Hall
A2: Type | B2: Gap dependence
A4: Project | B4: ='10 mm'!B5 -> 504314
A5: PS serial no | B5: ='10 mm'!B7 -> 2410109
A7: Measurement date | B7: =LEFT('10 mm'!B4,10) -> 02-10-2024
A11: Nominal gap [mm] | B11: Encoder [counts] | C11: Encoder [mm] | D11: PI [T^2mm^3] | E11: PI spec [T^2mm^3] | F11: Encoder value at 10 mm gap:
A12: ='10 mm'!$B$53 -> 10 | B12: ='10 mm'!$B$55 -> 19.8325 | C12: =-1*($F$12-B12)+10 -> 10.00115 | D12: ='10 mm'!$K$3 -> 10402.81704 | F12: 19.83135
A13: ='15 mm'!$B$53 -> 15 | B13: ='15 mm'!$B$55 -> 24.8323 | C13: =-1*($F$12-B13)+10 -> 15.00095 | D13: ='15 mm'!$K$3 -> 7078.618416
A14: ='20 mm'!$B$53 -> 20 | B14: ='20 mm'!$B$55 -> 29.8318 | C14: 20.00045 | D14: ='20 mm'!$K$3 -> 4876.296873
A15: ='30 mm'!$B$53 -> 30 | B15: ='30 mm'!$B$55 -> 39.8388 | C15: 30.00745 | D15: ='30 mm'!$K$3 -> 2379.927824
A16: ='100 mm'!$B$53 -> 100 | B16: ='100 mm'!$B$55 -> 109.8388 | C16: 100.00745 | D16: ='100 mm'!$K$3 -> 35.82030231
A47: Measuring series at larger gaps:
A48: Reference magnet
A49: Tref | B49: 21.38 | C49: degC
A50: Hall ref field | B50: 0.505 | C50: T
A51: NMR ref field | B51: 0.50627 | C51: T
A53: Offset from Faro

Sheet 10 mm
A1: =IF('DF raw data'!A1="","",'DF raw data'!A1) -> Number of header lines | B1: =IF('DF raw data'!B1="","",'DF raw data'!B1) -> 54 | C1: =IF('DF raw data'!C1="","",'DF raw data'!C1) ->  | D1: =IF('DF raw data'!D1="","",'DF raw data'!D1) ->  | F1: T_coeff | G1: -0.001 | H1: /degC | J1: IBy total | K1: =J1267*1000 -> 3.141594469 | L1: muTm | M1: =L1267*1000 -> -16.65511236 | R1: DF ref | S1: 1
A2: =IF('DF raw data'!A2="","",'DF raw data'!A2) -> Measured by | B2: =IF('DF raw data'!B2="","",'DF raw data'!B2) -> Danfysik | C2: =IF('DF raw data'!C2="","",'DF raw data'!C2) ->  | D2: =IF('DF raw data'!D2="","",'DF raw data'!D2) ->  | F2: Tcorr | G2: 20 | H2: degC | J2: JBy total | K2: =K1267 -> -22.47597152 | L2: muTm^2 | M2: =M1267 -> -3.148309541
A3: =IF('DF raw data'!A3="","",'DF raw data'!A3) -> Operator | B3: =IF('DF raw data'!B3="","",'DF raw data'!B3) -> PMHA | C3: =IF('DF raw data'!C3="","",'DF raw data'!C3) ->  | D3: =IF('DF raw data'!D3="","",'DF raw data'!D3) ->  | F3: Step | G3: =A68-A67 -> 0.5 | H3: mm | J3: PI total | K3: =N1267 -> 10402.81704 | L3: T^2mm^3
A4: =IF('DF raw data'!A4="","",'DF raw data'!A4) -> Data-time | B4: =IF('DF raw data'!B4="","",'DF raw data'!B4) -> 02-10-2024, 14:47:45 | C4: =IF('DF raw data'!C4="","",'DF raw data'!C4) ->  | D4: =IF('DF raw data'!D4="","",'DF raw data'!D4) -> 
A5: =IF('DF raw data'!A5="","",'DF raw data'!A5) -> Project | B5: =IF('DF raw data'!B5="","",'DF raw data'!B5) -> 504314 | C5: =IF('DF raw data'!C5="","",'DF raw data'!C5) ->  | D5: Bamb avr | F5: =(AVERAGE(B67:B107) + AVERAGE(B1227:B1267))/2 -> -1.550101593e-05 | G5: =(AVERAGE(C67:C107) + AVERAGE(C1227:C1267))/2 -> 3.335003456e-05 | H5: =(AVERAGE(D67:D107) + AVERAGE(D1227:D1267))/2 -> -8.342320739e-06
A6: =IF('DF raw data'!A6="","",'DF raw data'!A6) -> Magnet type | B6: =IF('DF raw data'!B6="","",'DF raw data'!B6) -> Dipole | C6: =IF('DF raw data'!C6="","",'DF raw data'!C6) -> 
A7: =IF('DF raw data'!A7="","",'DF raw data'!A7) -> Magnet nr. | B7: =IF('DF raw data'!B7="","",'DF raw data'!B7) -> 2410109 | C7: =IF('DF raw data'!C7="","",'DF raw data'!C7) -> 
A8: =IF('DF raw data'!A8="","",'DF raw data'!A8) -> Meas. number | B8: =IF('DF raw data'!B8="","",'DF raw data'!B8) -> 951 | C8: =IF('DF raw data'!C8="","",'DF raw data'!C8) -> 
A9: =IF('DF raw data'!A9="","",'DF raw data'!A9) -> Add. info | B9: =IF('DF raw data'!B9="","",'DF raw data'!B9) -> X-alignment scan 3) | C9: =IF('DF raw data'!C9="","",'DF raw data'!C9) ->  | D9: =IF('DF raw data'!D9="","",'DF raw data'!D9) -> 
A10: =IF('DF raw data'!A10="","",'DF raw data'!A10) -> Device | B10: =IF('DF raw data'!B10="","",'DF raw data'!B10) -> (HAL) HALL-PROBE | C10: =IF('DF raw data'!C10="","",'DF raw data'!C10) ->  | D10: =IF('DF raw data'!D10="","",'DF raw data'!D10) -> 
A11: =IF('DF raw data'!A11="","",'DF raw data'!A11) -> Goal | B11: =IF('DF raw data'!B11="","",'DF raw data'!B11) -> (AXI) AXis Integral (Line, EFB) | C11: =IF('DF raw data'!C11="","",'DF raw data'!C11) ->  | D11: =IF('DF raw data'!D11="","",'DF raw data'!D11) -> 
A12: =IF('DF raw data'!A12="","",'DF raw data'!A12) -> Power supply mode | B12: =IF('DF raw data'!B12="","",'DF raw data'!B12) -> (PM) Permanent Magnet (no MPS in use) | C12: =IF('DF raw data'!C12="","",'DF raw data'!C12) ->  | D12: =IF('DF raw data'!D12="","",'DF raw data'!D12) -> 
A13: =IF('DF raw data'!A13="","",'DF raw data'!A13) -> Data format | B13: =IF('DF raw data'!B13="","",'DF raw data'!B13) -> Raw data text file | C13: =IF('DF raw data'!C13="","",'DF raw data'!C13) ->  | D13: =IF('DF raw data'!D13="","",'DF raw data'!D13) -> 
A14: =IF('DF raw data'!A14="","",'DF raw data'!A14) -> Direction of the pos. x-axis | B14: =IF('DF raw data'!B14="","",'DF raw data'!B14) -> See test program | C14: =IF('DF raw data'!C14="","",'DF raw data'!C14) ->  | D14: =IF('DF raw data'!D14="","",'DF raw data'!D14) -> 
A15: =IF('DF raw data'!A15="","",'DF raw data'!A15) -> Direction of the pos. y-axis | B15: =IF('DF raw data'!B15="","",'DF raw data'!B15) -> Vertical up | C15: =IF('DF raw data'!C15="","",'DF raw data'!C15) ->  | D15: =IF('DF raw data'!D15="","",'DF raw data'!D15) -> 
A16: =IF('DF raw data'!A16="","",'DF raw data'!A16) -> Direction of the pos. z-axis | B16: =IF('DF raw data'!B16="","",'DF raw data'!B16) -> See test program | C16: =IF('DF raw data'!C16="","",'DF raw data'!C16) ->  | D16: =IF('DF raw data'!D16="","",'DF raw data'!D16) -> 
A17: =IF('DF raw data'!A17="","",'DF raw data'!A17) -> Mapper type | B17: =IF('DF raw data'!B17="","",'DF raw data'!B17) -> Precision Hall Mapper | C17: =IF('DF raw data'!C17="","",'DF raw data'!C17) ->  | D17: =IF('DF raw data'!D17="","",'DF raw data'!D17) -> 
A18: =IF('DF raw data'!A18="","",'DF raw data'!A18) -> Mapper Danfysik Reg. Number | B18: =IF('DF raw data'!B18="","",'DF raw data'!B18) -> 2033-D (mapper 1) | C18: =IF('DF raw data'!C18="","",'DF raw data'!C18) ->  | D18: =IF('DF raw data'!D18="","",'DF raw data'!D18) -> 
A19: =IF('DF raw data'!A19="","",'DF raw data'!A19) -> Measurement consept | B19: =IF('DF raw data'!B19="","",'DF raw data'!B19) -> Square line grid | C19: =IF('DF raw data'!C19="","",'DF raw data'!C19) ->  | D19: =IF('DF raw data'!D19="","",'DF raw data'!D19) -> 
A20: =IF('DF raw data'!A20="","",'DF raw data'!A20) -> Mode | B20: =IF('DF raw data'!B20="","",'DF raw data'!B20) -> On-the-fly measurement | C20: =IF('DF raw data'!C20="","",'DF raw data'!C20) ->  | D20: =IF('DF raw data'!D20="","",'DF raw data'!D20) -> 
A21: =IF('DF raw data'!A21="","",'DF raw data'!A21) ->  | B21: =IF('DF raw data'!B21="","",'DF raw data'!B21) ->  | C21: =IF('DF raw data'!C21="","",'DF raw data'!C21) ->  | D21: =IF('DF raw data'!D21="","",'DF raw data'!D21) -> 
A22: =IF('DF raw data'!A22="","",'DF raw data'!A22) -> Probe Name | B22: =IF('DF raw data'!B22="","",'DF raw data'!B22) -> ID12_By | C22: =IF('DF raw data'!C22="","",'DF raw data'!C22) ->  | D22: =IF('DF raw data'!D22="","",'DF raw data'!D22) -> 
A23: =IF('DF raw data'!A23="","",'DF raw data'!A23) -> Probe Type | B23: =IF('DF raw data'!B23="","",'DF raw data'!B23) -> DF_ID_3D_Bxyz | C23: =IF('DF raw data'!C23="","",'DF raw data'!C23) ->  | D23: =IF('DF raw data'!D23="","",'DF raw data'!D23) -> 
A24: =IF('DF raw data'!A24="","",'DF raw data'!A24) -> Probe Danfysik Reg. Number | B24: =IF('DF raw data'!B24="","",'DF raw data'!B24) -> 2277 | C24: =IF('DF raw data'!C24="","",'DF raw data'!C24) ->  | D24: =IF('DF raw data'!D24="","",'DF raw data'!D24) -> 
A25: =IF('DF raw data'!A25="","",'DF raw data'!A25) -> Probe Axis | B25: =IF('DF raw data'!B25="","",'DF raw data'!B25) -> By | C25: =IF('DF raw data'!C25="","",'DF raw data'!C25) ->  | D25: =IF('DF raw data'!D25="","",'DF raw data'!D25) -> 
A26: =IF('DF raw data'!A26="","",'DF raw data'!A26) -> Probe Current Supply | B26: =IF('DF raw data'!B26="","",'DF raw data'!B26) -> 1825-D | C26: =IF('DF raw data'!C26="","",'DF raw data'!C26) ->  | D26: =IF('DF raw data'!D26="","",'DF raw data'!D26) -> 
A27: =IF('DF raw data'!A27="","",'DF raw data'!A27) -> Probe Gain Correction | B27: =IF('DF raw data'!B27="","",'DF raw data'!B27) -> 0.99618 | C27: =IF('DF raw data'!C27="","",'DF raw data'!C27) ->  | D27: =IF('DF raw data'!D27="","",'DF raw data'!D27) -> 
A28: =IF('DF raw data'!A28="","",'DF raw data'!A28) -> Probe Offset Correction | B28: =IF('DF raw data'!B28="","",'DF raw data'!B28) -> 0.002742 | C28: =IF('DF raw data'!C28="","",'DF raw data'!C28) ->  | D28: =IF('DF raw data'!D28="","",'DF raw data'!D28) -> 
A29: =IF('DF raw data'!A29="","",'DF raw data'!A29) -> DVM Number | B29: =IF('DF raw data'!B29="","",'DF raw data'!B29) -> 2 | C29: =IF('DF raw data'!C29="","",'DF raw data'!C29) ->  | D29: =IF('DF raw data'!D29="","",'DF raw data'!D29) -> 
A30: =IF('DF raw data'!A30="","",'DF raw data'!A30) -> DVM Type | B30: =IF('DF raw data'!B30="","",'DF raw data'!B30) -> K2701 | C30: =IF('DF raw data'!C30="","",'DF raw data'!C30) ->  | D30: =IF('DF raw data'!D30="","",'DF raw data'!D30) -> 
A31: =IF('DF raw data'!A31="","",'DF raw data'!A31) -> DVM Danfysik Reg. Number | B31: =IF('DF raw data'!B31="","",'DF raw data'!B31) -> 1743-D | C31: =IF('DF raw data'!C31="","",'DF raw data'!C31) ->  | D31: =IF('DF raw data'!D31="","",'DF raw data'!D31) -> 
A32: =IF('DF raw data'!A32="","",'DF raw data'!A32) -> Probe Name | B32: =IF('DF raw data'!B32="","",'DF raw data'!B32) -> ID12_Bx | C32: =IF('DF raw data'!C32="","",'DF raw data'!C32) ->  | D32: =IF('DF raw data'!D32="","",'DF raw data'!D32) -> 
A33: =IF('DF raw data'!A33="","",'DF raw data'!A33) -> Probe Type | B33: =IF('DF raw data'!B33="","",'DF raw data'!B33) -> DF_ID_3D_Bxyz | C33: =IF('DF raw data'!C33="","",'DF raw data'!C33) ->  | D33: =IF('DF raw data'!D33="","",'DF raw data'!D33) -> 
A34: =IF('DF raw data'!A34="","",'DF raw data'!A34) -> Probe Danfysik Reg. Number | B34: =IF('DF raw data'!B34="","",'DF raw data'!B34) -> 2277 | C34: =IF('DF raw data'!C34="","",'DF raw data'!C34) ->  | D34: =IF('DF raw data'!D34="","",'DF raw data'!D34) -> 
A35: =IF('DF raw data'!A35="","",'DF raw data'!A35) -> Probe Axis | B35: =IF('DF raw data'!B35="","",'DF raw data'!B35) -> Bx | C35: =IF('DF raw data'!C35="","",'DF raw data'!C35) ->  | D35: =IF('DF raw data'!D35="","",'DF raw data'!D35) -> 
A36: =IF('DF raw data'!A36="","",'DF raw data'!A36) -> Probe Current Supply | B36: =IF('DF raw data'!B36="","",'DF raw data'!B36) -> 1825-D | C36: =IF('DF raw data'!C36="","",'DF raw data'!C36) ->  | D36: =IF('DF raw data'!D36="","",'DF raw data'!D36) -> 
A37: =IF('DF raw data'!A37="","",'DF raw data'!A37) -> Probe Gain Correction | B37: =IF('DF raw data'!B37="","",'DF raw data'!B37) -> 1 | C37: =IF('DF raw data'!C37="","",'DF raw data'!C37) ->  | D37: =IF('DF raw data'!D37="","",'DF raw data'!D37) -> 
A38: =IF('DF raw data'!A38="","",'DF raw data'!A38) -> Probe Offset Correction | B38: =IF('DF raw data'!B38="","",'DF raw data'!B38) -> -0.17582 | C38: =IF('DF raw data'!C38="","",'DF raw data'!C38) ->  | D38: =IF('DF raw data'!D38="","",'DF raw data'!D38) -> 
A39: =IF('DF raw data'!A39="","",'DF raw data'!A39) -> DVM Number | B39: =IF('DF raw data'!B39="","",'DF raw data'!B39) -> 3 | C39: =IF('DF raw data'!C39="","",'DF raw data'!C39) ->  | D39: =IF('DF raw data'!D39="","",'DF raw data'!D39) -> 
A40: =IF('DF raw data'!A40="","",'DF raw data'!A40) -> DVM Type | B40: =IF('DF raw data'!B40="","",'DF raw data'!B40) -> K2701 | C40: =IF('DF raw data'!C40="","",'DF raw data'!C40) ->  | D40: =IF('DF raw data'!D40="","",'DF raw data'!D40) -> 
A41: =IF('DF raw data'!A41="","",'DF raw data'!A41) -> DVM Danfysik Reg. Number | B41: =IF('DF raw data'!B41="","",'DF raw data'!B41) -> 1744-D | C41: =IF('DF raw data'!C41="","",'DF raw data'!C41) ->  | D41: =IF('DF raw data'!D41="","",'DF raw data'!D41) -> 
A42: =IF('DF raw data'!A42="","",'DF raw data'!A42) -> Probe Name | B42: =IF('DF raw data'!B42="","",'DF raw data'!B42) -> ID12_Bz | C42: =IF('DF raw data'!C42="","",'DF raw data'!C42) ->  | D42: =IF('DF raw data'!D42="","",'DF raw data'!D42) -> 
A43: =IF('DF raw data'!A43="","",'DF raw data'!A43) -> Probe Type | B43: =IF('DF raw data'!B43="","",'DF raw data'!B43) -> DF_ID_3D_Bxyz | C43: =IF('DF raw data'!C43="","",'DF raw data'!C43) ->  | D43: =IF('DF raw data'!D43="","",'DF raw data'!D43) -> 
A44: =IF('DF raw data'!A44="","",'DF raw data'!A44) -> Probe Danfysik Reg. Number | B44: =IF('DF raw data'!B44="","",'DF raw data'!B44) -> 2277 | C44: =IF('DF raw data'!C44="","",'DF raw data'!C44) ->  | D44: =IF('DF raw data'!D44="","",'DF raw data'!D44) -> 
A45: =IF('DF raw data'!A45="","",'DF raw data'!A45) -> Probe Axis | B45: =IF('DF raw data'!B45="","",'DF raw data'!B45) -> Bz | C45: =IF('DF raw data'!C45="","",'DF raw data'!C45) ->  | D45: =IF('DF raw data'!D45="","",'DF raw data'!D45) -> 
A46: =IF('DF raw data'!A46="","",'DF raw data'!A46) -> Probe Current Supply | B46: =IF('DF raw data'!B46="","",'DF raw data'!B46) -> 1825-D | C46: =IF('DF raw data'!C46="","",'DF raw data'!C46) ->  | D46: =IF('DF raw data'!D46="","",'DF raw data'!D46) -> 
A47: =IF('DF raw data'!A47="","",'DF raw data'!A47) -> Probe Gain Correction | B47: =IF('DF raw data'!B47="","",'DF raw data'!B47) -> 1 | C47: =IF('DF raw data'!C47="","",'DF raw data'!C47) ->  | D47: =IF('DF raw data'!D47="","",'DF raw data'!D47) -> 
A48: =IF('DF raw data'!A48="","",'DF raw data'!A48) -> Probe Offset Correction | B48: =IF('DF raw data'!B48="","",'DF raw data'!B48) -> 0.0073653 | C48: =IF('DF raw data'!C48="","",'DF raw data'!C48) ->  | D48: =IF('DF raw data'!D48="","",'DF raw data'!D48) -> 
A49: =IF('DF raw data'!A49="","",'DF raw data'!A49) -> DVM Number | B49: =IF('DF raw data'!B49="","",'DF raw data'!B49) -> 8 | C49: =IF('DF raw data'!C49="","",'DF raw data'!C49) ->  | D49: =IF('DF raw data'!D49="","",'DF raw data'!D49) -> 
A50: =IF('DF raw data'!A50="","",'DF raw data'!A50) -> DVM Type | B50: =IF('DF raw data'!B50="","",'DF raw data'!B50) -> K2700 | C50: =IF('DF raw data'!C50="","",'DF raw data'!C50) ->  | D50: =IF('DF raw data'!D50="","",'DF raw data'!D50) -> 
A51: =IF('DF raw data'!A51="","",'DF raw data'!A51) -> DVM Danfysik Reg. Number | B51: =IF('DF raw data'!B51="","",'DF raw data'!B51) -> 1756-D | C51: =IF('DF raw data'!C51="","",'DF raw data'!C51) ->  | D51: =IF('DF raw data'!D51="","",'DF raw data'!D51) -> 
A52: =IF('DF raw data'!A52="","",'DF raw data'!A52) -> NTC voltage | B52: =IF('DF raw data'!B52="","",'DF raw data'!B52) -> 0.40108 | C52: =IF('DF raw data'!C52="","",'DF raw data'!C52) ->  | D52: =IF('DF raw data'!D52="","",'DF raw data'!D52) -> 
A53: =IF('DF raw data'!A53="","",'DF raw data'!A53) -> PS-Gap: | B53: =IF('DF raw data'!B53="","",'DF raw data'!B53) -> 10 | C53: =IF('DF raw data'!C53="","",'DF raw data'!C53) ->  | D53: =IF('DF raw data'!D53="","",'DF raw data'!D53) -> 
A54: =IF('DF raw data'!A54="","",'DF raw data'!A54) -> PS-Temperature: | B54: =IF('DF raw data'!B54="","",'DF raw data'!B54) -> 24.9 | C54: =IF('DF raw data'!C54="","",'DF raw data'!C54) ->  | D54: =IF('DF raw data'!D54="","",'DF raw data'!D54) -> 
A55: =IF('DF raw data'!A55="","",'DF raw data'!A55) -> PS-Encoder: | B55: =IF('DF raw data'!B55="","",'DF raw data'!B55) -> 19.8325 | C55: =IF('DF raw data'!C55="","",'DF raw data'!C55) ->  | D55: =IF('DF raw data'!D55="","",'DF raw data'!D55) -> 
A56: =IF('DF raw data'!A56="","",'DF raw data'!A56) ->  | B56: =IF('DF raw data'!B56="","",'DF raw data'!B56) -> 
A57: =IF('DF raw data'!A57="","",'DF raw data'!A57) -> Monitor-Index | B57: =IF('DF raw data'!B57="","",'DF raw data'!B57) -> [1,1,4]
A58: =IF('DF raw data'!A58="","",'DF raw data'!A58) ->  | B58: =IF('DF raw data'!B58="","",'DF raw data'!B58) -> 
A59: =IF('DF raw data'!A59="","",'DF raw data'!A59) -> Time [s] | B59: =IF('DF raw data'!B59="","",'DF raw data'!B59) -> Y [mm]
A60: =IF('DF raw data'!A60="","",'DF raw data'!A60) ->  | B60: =IF('DF raw data'!B60="","",'DF raw data'!B60) -> 
A61: =IF('DF raw data'!A61="","",'DF raw data'!A61) -> 208.5 | B61: =IF('DF raw data'!B61="","",'DF raw data'!B61) -> 31.5
A62: =IF('DF raw data'!A62="","",'DF raw data'!A62) ->  | B62: =IF('DF raw data'!B62="","",'DF raw data'!B62) -> 
A63: =IF('DF raw data'!A63="","",'DF raw data'!A63) -> Measurement-Index | B63: =IF('DF raw data'!B63="","",'DF raw data'!B63) -> [1,1,1201,2]
A64: =IF('DF raw data'!A64="","",'DF raw data'!A64) ->  | B64: =IF('DF raw data'!B64="","",'DF raw data'!B64) -> 
A65: =IF('DF raw data'!A65="","",'DF raw data'!A65) -> Z [mm] | B65: =IF('DF raw data'!B65="","",'DF raw data'!B65) -> By [T] | C65: =IF('DF raw data'!C65="","",'DF raw data'!C65) -> Bx [T] | D65: =IF('DF raw data'!D65="","",'DF raw data'!D65) -> Bz [T] | F65: By_corr | G65: Bx_corr | H65: Bz_corr | J65: Iy | K65: Jy | L65: Ix | M65: Jx | N65: PI
A66: =IF('DF raw data'!A66="","",'DF raw data'!A66) -> [1, 0, 0, 0] | B66: =IF('DF raw data'!B66="","",'DF raw data'!B66) ->  | C66: =IF('DF raw data'!C66="","",'DF raw data'!C66) ->  | D66: =IF('DF raw data'!D66="","",'DF raw data'!D66) -> 
A67: =IF('DF raw data'!A67="","",'DF raw data'!A67) -> -300 | B67: =IF('DF raw data'!B67="","",'DF raw data'!B67) -> -1.10755e-05 | C67: =IF('DF raw data'!C67="","",'DF raw data'!C67) -> 5.95528e-05 | D67: =IF('DF raw data'!D67="","",'DF raw data'!D67) -> -1.53984e-05 | F67: =(1-$G$1*($B$54-$G$2))*(B67-F$5) -> 4.447200955e-06 | G67: =(1-$G$1*($B$54-$G$2))*(C67-G$5) -> 2.633115899e-05 | H67: =(1-$G$1*($B$54-$G$2))*(D67-H$5) -> -7.090654049e-06 | J67: =F67*$G$3+J66 -> 2.223600477e-06 | K67: =J67*$G$3+K66 -> 1.111800239e-06 | L67: =G67*$G$3+L66 -> 1.316557949e-05 | M67: =L67*$G$3+M66 -> 6.582789747e-06 | N67: =(J67^2+L67^2)*$G$3+N66 -> 8.913844126e-11
A68: =IF('DF raw data'!A68="","",'DF raw data'!A68) -> -299.5 | B68: =IF('DF raw data'!B68="","",'DF raw data'!B68) -> -2.06918e-05 | C68: =IF('DF raw data'!C68="","",'DF raw data'!C68) -> 5.62754e-05 | D68: =IF('DF raw data'!D68="","",'DF raw data'!D68) -> -1.46403e-05 | F68: -5.216218915e-06 | G68: 2.303769973e-05 | H68: -6.328839359e-06 | J68: =F68*$G$3+J67 -> -3.845089801e-07 | K68: =J68*$G$3+K67 -> 9.195457487e-07 | L68: =G68*$G$3+L67 -> 2.468442936e-05 | M68: =L68*$G$3+M67 -> 1.892500443e-05 | N68: =(J68^2+L68^2)*$G$3+N67 -> 3.938728912e-10
A69: =IF('DF raw data'!A69="","",'DF raw data'!A69) -> -299 | B69: =IF('DF raw data'!B69="","",'DF raw data'!B69) -> -1.28714e-05 | C69: =IF('DF raw data'!C69="","",'DF raw data'!C69) -> 6.10541e-05 | D69: =IF('DF raw data'!D69="","",'DF raw data'!D69) -> -1.39547e-05 | F69: 2.642501045e-06 | G69: 2.783981536e-05 | H69: -5.639879919e-06 | J69: 9.367415423e-07 | K69: 1.38791652e-06 | L69: 3.860433704e-05 | M69: 3.822717295e-05 | N69: 1.139459053e-09
A70: =IF('DF raw data'!A70="","",'DF raw data'!A70) -> -298.5 | B70: =IF('DF raw data'!B70="","",'DF raw data'!B70) -> -2.42235e-07 | C70: =IF('DF raw data'!C70="","",'DF raw data'!C70) -> 6.25393e-05 | D70: =IF('DF raw data'!D70="","",'DF raw data'!D70) -> -1.45139e-05 | F70: 1.533354895e-05 | G70: 2.933229284e-05 | H70: -6.201819999e-06 | J70: 8.603516019e-06 | K70: 5.689674529e-06 | L70: 5.327048346e-05 | M70: 6.486241468e-05 | N70: 2.595341501e-09
A71: =IF('DF raw data'!A71="","",'DF raw data'!A71) -> -298 | B71: =IF('DF raw data'!B71="","",'DF raw data'!B71) -> -2.16534e-05 | C71: =IF('DF raw data'!C71="","",'DF raw data'!C71) -> 6.21215e-05 | D71: =IF('DF raw data'!D71="","",'DF raw data'!D71) -> -1.4876e-05 | F71: -6.182530755e-06 | G71: 2.891244562e-05 | H71: -6.565694289e-06 | J71: 5.512250641e-06 | K71: 8.44579985e-06 | L71: 6.772670627e-05 | M71: 9.872576781e-05 | N71: 4.903987325e-09
A72: =IF('DF raw data'!A72="","",'DF raw data'!A72) -> -297.5 | B72: =IF('DF raw data'!B72="","",'DF raw data'!B72) -> -7.29391e-06 | C72: =IF('DF raw data'!C72="","",'DF raw data'!C72) -> 6.4611e-05 | D72: =IF('DF raw data'!D72="","",'DF raw data'!D72) -> -1.44751e-05 | F72: 8.247320746e-06 | G72: 3.141414417e-05 | H72: -6.162829879e-06 | J72: 9.635911014e-06 | K72: 1.326375536e-05 | L72: 8.343377835e-05 | M72: 0.000140442657 | N72: 8.431010401e-09
A73: =IF('DF raw data'!A73="","",'DF raw data'!A73) -> -297 | B73: =IF('DF raw data'!B73="","",'DF raw data'!B73) -> -1.83204e-05 | C73: =IF('DF raw data'!C73="","",'DF raw data'!C73) -> 5.17476e-05 | D73: =IF('DF raw data'!D73="","",'DF raw data'!D73) -> -1.38719e-05 | F73: -2.833199055e-06 | G73: 1.848771351e-05 | H73: -5.556674199e-06 | J73: 8.219311487e-06 | K73: 1.73734111e-05 | L73: 9.267763511e-05 | M73: 0.0001867814745 | N73: 1.275936097e-08
A74: =IF('DF raw data'!A74="","",'DF raw data'!A74) -> -296.5 | B74: =IF('DF raw data'!B74="","",'DF raw data'!B74) -> -3.83256e-06 | C74: =IF('DF raw data'!C74="","",'DF raw data'!C74) -> 5.08551e-05 | D74: =IF('DF raw data'!D74="","",'DF raw data'!D74) -> -1.36888e-05 | F74: 1.172563136e-05 | G74: 1.759084026e-05 | H74: -5.372677009e-06 | J74: 1.408212717e-05 | K74: 2.441447468e-05 | L74: 0.0001014730552 | M74: 0.0002375180022 | N74: 1.800690459e-08
A75: =IF('DF raw data'!A75="","",'DF raw data'!A75) -> -296 | B75: =IF('DF raw data'!B75="","",'DF raw data'!B75) -> -1.10765e-05 | C75: =IF('DF raw data'!C75="","",'DF raw data'!C75) -> 5.93989e-05 | D75: =IF('DF raw data'!D75="","",'DF raw data'!D75) -> -1.38551e-05 | F75: 4.446196055e-06 | G75: 2.617650488e-05 | H75: -5.539791879e-06 | J75: 1.630522519e-05 | K75: 3.256708728e-05 | L75: 0.0001145613077 | M75: 0.000294798656 | N75: 2.470198138e-08
A76: =IF('DF raw data'!A76="","",'DF raw data'!A76) -> -295.5 | B76: =IF('DF raw data'!B76="","",'DF raw data'!B76) -> 7.83489e-07 | C76: =IF('DF raw data'!C76="","",'DF raw data'!C76) -> 6.75188e-05 | D76: =IF('DF raw data'!D76="","",'DF raw data'!D76) -> -1.46183e-05 | F76: 1.6364299e-05 | G76: 3.433619239e-05 | H76: -6.306731559e-06 | J76: 2.44873747e-05 | K76: 4.481077463e-05 | L76: 0.0001317294039 | M76: 0.0003606633579 | N76: 3.367811506e-08
A77: =IF('DF raw data'!A77="","",'DF raw data'!A77) -> -295 | B77: =IF('DF raw data'!B77="","",'DF raw data'!B77) -> -6.84447e-06 | C77: =IF('DF raw data'!C77="","",'DF raw data'!C77) -> 6.08196e-05 | D77: =IF('DF raw data'!D77="","",'DF raw data'!D77) -> -1.53613e-05 | F77: 8.698963002e-06 | G77: 2.760416631e-05 | H77: -7.053372259e-06 | J77: 2.88368562e-05 | K77: 5.922920273e-05 | L77: 0.000145531487 | M77: 0.0004334291015 | N77: 4.468360406e-08
A78: =IF('DF raw data'!A78="","",'DF raw data'!A78) -> -294.5 | B78: =IF('DF raw data'!B78="","",'DF raw data'!B78) -> -1.17167e-05 | C78: =IF('DF raw data'!C78="","",'DF raw data'!C78) -> 5.86373e-05 | D78: =IF('DF raw data'!D78="","",'DF raw data'!D78) -> -1.52552e-05 | F78: 3.802859075e-06 | G78: 2.541117304e-05 | H78: -6.946752369e-06 | J78: 3.073828573e-05 | K78: 7.459834559e-05 | L78: 0.0001582370735 | M78: 0.0005125476382 | N78: 5.767551089e-08
A79: =IF('DF raw data'!A79="","",'DF raw data'!A79) -> -294 | B79: =IF('DF raw data'!B79="","",'DF raw data'!B79) -> -1.55634e-05 | C79: =IF('DF raw data'!C79="","",'DF raw data'!C79) -> 5.88869e-05 | D79: =IF('DF raw data'!D79="","",'DF raw data'!D79) -> -1.44609e-05 | F79: -6.268975513e-08 | G79: 2.566199608e-05 | H79: -6.148560299e-06 | J79: 3.070694086e-05 | K79: 8.995181602e-05 | L79: 0.0001710680716 | M79: 0.000598081674 | N79: 7.277911155e-08
A80: =IF('DF raw data'!A80="","",'DF raw data'!A80) -> -293.5 | B80: =IF('DF raw data'!B80="","",'DF raw data'!B80) -> -7.22992e-06 | C80: =IF('DF raw data'!C80="","",'DF raw data'!C80) -> 5.19462e-05 | D80: =IF('DF raw data'!D80="","",'DF raw data'!D80) -> -1.40845e-05 | F80: 8.311624297e-06 | G80: 1.868728665e-05 | H80: -5.770315939e-06 | J80: 3.4862753e-05 | K80: 0.0001073831925 | L80: 0.0001804117149 | M80: 0.0006882875315 | N80: 8.966101077e-08
A81: =IF('DF raw data'!A81="","",'DF raw data'!A81) -> -293 | B81: =IF('DF raw data'!B81="","",'DF raw data'!B81) -> -1.02427e-05 | C81: =IF('DF raw data'!C81="","",'DF raw data'!C81) -> 5.11107e-05 | D81: =IF('DF raw data'!D81="","",'DF raw data'!D81) -> -1.44169e-05 | F81: 5.284081675e-06 | G81: 1.78476927e-05 | H81: -6.104344699e-06 | J81: 3.750479384e-05 | K81: 0.0001261355894 | L81: 0.0001893355613 | M81: 0.0007829553121 | N81: 1.082882929e-07
A82: =IF('DF raw data'!A82="","",'DF raw data'!A82) -> -292.5 | B82: =IF('DF raw data'!B82="","",'DF raw data'!B82) -> -5.11411e-06 | C82: =IF('DF raw data'!C82="","",'DF raw data'!C82) -> 6.54653e-05 | D82: =IF('DF raw data'!D82="","",'DF raw data'!D82) -> -1.4903e-05 | F82: 1.043780177e-05 | G82: 3.227263024e-05 | H82: -6.592826589e-06 | J82: 4.272369472e-05 | K82: 0.0001474974368 | L82: 0.0002054718764 | M82: 0.0008856912503 | N82: 1.30310296e-07
A83: =IF('DF raw data'!A83="","",'DF raw data'!A83) -> -292 | B83: =IF('DF raw data'!B83="","",'DF raw data'!B83) -> -1.69094e-05 | C83: =IF('DF raw data'!C83="","",'DF raw data'!C83) -> 6.04337e-05 | D83: =IF('DF raw data'!D83="","",'DF raw data'!D83) -> -1.48746e-05 | F83: -1.415285155e-06 | G83: 2.72163754e-05 | H83: -6.564287429e-06 | J83: 4.201605215e-05 | K83: 0.0001685054629 | L83: 0.0002190800641 | M83: 0.0009952312823 | N83: 1.551910075e-07
A84: =IF('DF raw data'!A84="","",'DF raw data'!A84) -> -291.5 | B84: =IF('DF raw data'!B84="","",'DF raw data'!B84) -> -7.93608e-06 | C84: =IF('DF raw data'!C84="","",'DF raw data'!C84) -> 6.66504e-05 | D84: =IF('DF raw data'!D84="","",'DF raw data'!D84) -> -1.27223e-05 | F84: 7.602004113e-06 | G84: 3.346353723e-05 | H84: -4.401441159e-06 | J84: 4.58170542e-05 | K84: 0.00019141399 | L84: 0.0002358118327 | M84: 0.001113137199 | N84: 1.84044219e-07
A85: =IF('DF raw data'!A85="","",'DF raw data'!A85) -> -291 | B85: =IF('DF raw data'!B85="","",'DF raw data'!B85) -> -1.71727e-05 | C85: =IF('DF raw data'!C85="","",'DF raw data'!C85) -> 6.57108e-05 | D85: =IF('DF raw data'!D85="","",'DF raw data'!D85) -> -4.27579e-06 | F85: -1.679875325e-06 | G85: 3.251933319e-05 | H85: 4.08645674e-06 | J85: 4.497711654e-05 | K85: 0.0002139025483 | L85: 0.0002520714993 | M85: 0.001239172948 | N85: 2.168257099e-07
A86: =IF('DF raw data'!A86="","",'DF raw data'!A86) -> -290.5 | B86: =IF('DF raw data'!B86="","",'DF raw data'!B86) -> -4.02839e-06 | C86: =IF('DF raw data'!C86="","",'DF raw data'!C86) -> 6.06467e-05 | D86: =IF('DF raw data'!D86="","",'DF raw data'!D86) -> -8.47393e-06 | F86: 1.152884179e-05 | G86: 2.74304191e-05 | H86: -1.322541464e-07 | J86: 5.074153744e-05 | K86: 0.000239273317 | L86: 0.0002657867088 | M86: 0.001372066303 | N86: 2.53434349e-07
A87: =IF('DF raw data'!A87="","",'DF raw data'!A87) -> -290 | B87: =IF('DF raw data'!B87="","",'DF raw data'!B87) -> -3.64145e-06 | C87: =IF('DF raw data'!C87="","",'DF raw data'!C87) -> 5.86899e-05 | D87: =IF('DF raw data'!D87="","",'DF raw data'!D87) -> -1.20531e-05 | F87: 1.19176778e-05 | G87: 2.546403078e-05 | H87: -3.728962079e-06 | J87: 5.670037634e-05 | K87: 0.0002676235051 | L87: 0.0002785187242 | M87: 0.001511325665 | N87: 2.938281552e-07
A88: =IF('DF raw data'!A88="","",'DF raw data'!A88) -> -289.5 | B88: =IF('DF raw data'!B88="","",'DF raw data'!B88) -> -3.71167e-06 | C88: =IF('DF raw data'!C88="","",'DF raw data'!C88) -> 6.2485e-05 | D88: =IF('DF raw data'!D88="","",'DF raw data'!D88) -> -2.40987e-06 | F88: 1.184711372e-05 | G88: 2.927772677e-05 | H88: 5.961519748e-06 | J88: 6.26239332e-05 | K88: 0.0002989354717 | L88: 0.0002931575876 | M88: 0.001657904459 | N88: 3.387597193e-07
A89: =IF('DF raw data'!A89="","",'DF raw data'!A89) -> -289 | B89: =IF('DF raw data'!B89="","",'DF raw data'!B89) -> -4.80128e-06 | C89: =IF('DF raw data'!C89="","",'DF raw data'!C89) -> 6.30679e-05 | D89: =IF('DF raw data'!D89="","",'DF raw data'!D89) -> -2.84167e-06 | F89: 1.075216463e-05 | G89: 2.986348298e-05 | H89: 5.527603928e-06 | J89: 6.800001552e-05 | K89: 0.0003329354795 | L89: 0.0003080893291 | M89: 0.001811949123 | N89: 3.885312377e-07
A90: =IF('DF raw data'!A90="","",'DF raw data'!A90) -> -288.5 | B90: =IF('DF raw data'!B90="","",'DF raw data'!B90) -> -1.74847e-05 | C90: =IF('DF raw data'!C90="","",'DF raw data'!C90) -> 6.10351e-05 | D90: =IF('DF raw data'!D90="","",'DF raw data'!D90) -> -1.76528e-05 | F90: -1.993404125e-06 | G90: 2.782072226e-05 | H90: -9.356100609e-06 | J90: 6.700331345e-05 | K90: 0.0003664371362 | L90: 0.0003219996902 | M90: 0.001972948968 | N90: 4.426178599e-07
A91: =IF('DF raw data'!A91="","",'DF raw data'!A91) -> -288 | B91: =IF('DF raw data'!B91="","",'DF raw data'!B91) -> -1.95323e-05 | C91: =IF('DF raw data'!C91="","",'DF raw data'!C91) -> 5.77513e-05 | D91: =IF('DF raw data'!D91="","",'DF raw data'!D91) -> -2.34359e-05 | F91: -4.051037365e-06 | G91: 2.452083164e-05 | H91: -1.51675378e-05 | J91: 6.497779477e-05 | K91: 0.0003989260336 | L91: 0.0003342601061 | M91: 0.002140079021 | N91: 5.005938261e-07
A92: =IF('DF raw data'!A92="","",'DF raw data'!A92) -> -287.5 | B92: =IF('DF raw data'!B92="","",'DF raw data'!B92) -> -9.98642e-06 | C92: =IF('DF raw data'!C92="","",'DF raw data'!C92) -> 6.86233e-05 | D92: =IF('DF raw data'!D92="","",'DF raw data'!D92) -> -1.42135e-05 | F92: 5.541617447e-06 | G92: 3.544610444e-05 | H92: -5.899948039e-06 | J92: 6.774860349e-05 | K92: 0.0004328003354 | L92: 0.0003519831583 | M92: 0.002316070601 | N92: 5.648348346e-07
A93: =IF('DF raw data'!A93="","",'DF raw data'!A93) -> -287 | B93: =IF('DF raw data'!B93="","",'DF raw data'!B93) -> -1.81281e-05 | C93: =IF('DF raw data'!C93="","",'DF raw data'!C93) -> 7.28229e-05 | D93: =IF('DF raw data'!D93="","",'DF raw data'!D93) -> -1.40326e-05 | F93: -2.639956785e-06 | G93: 3.966628248e-05 | H93: -5.718161629e-06 | J93: 6.64286251e-05 | K93: 0.0004660146479 | L93: 0.0003718162995 | M93: 0.00250197875 | N93: 6.36164896e-07
A94: =IF('DF raw data'!A94="","",'DF raw data'!A94) -> -286.5 | B94: =IF('DF raw data'!B94="","",'DF raw data'!B94) -> -5.04773e-06 | C94: =IF('DF raw data'!C94="","",'DF raw data'!C94) -> 7.15513e-05 | D94: =IF('DF raw data'!D94="","",'DF raw data'!D94) -> -1.82059e-05 | F94: 1.050450703e-05 | G94: 3.838845164e-05 | H94: -9.911910799e-06 | J94: 7.168087861e-05 | K94: 0.0005018550872 | L94: 0.0003910105253 | M94: 0.002697484013 | N94: 7.151785856e-07
A95: =IF('DF raw data'!A95="","",'DF raw data'!A95) -> -286 | B95: =IF('DF raw data'!B95="","",'DF raw data'!B95) -> -8.84065e-06 | C95: =IF('DF raw data'!C95="","",'DF raw data'!C95) -> 7.05403e-05 | D95: =IF('DF raw data'!D95="","",'DF raw data'!D95) -> -1.73314e-06 | F95: 6.69300172e-06 | G95: 3.737249774e-05 | H95: 6.641565725e-06 | J95: 7.502737947e-05 | K95: 0.000539368777 | L95: 0.0004096967742 | M95: 0.0029023324 | N95: 8.019188629e-07
A96: =IF('DF raw data'!A96="","",'DF raw data'!A96) -> -285.5 | B96: =IF('DF raw data'!B96="","",'DF raw data'!B96) -> -7.81581e-06 | C96: =IF('DF raw data'!C96="","",'DF raw data'!C96) -> 7.82224e-05 | D96: =IF('DF raw data'!D96="","",'DF raw data'!D96) -> -4.76299e-07 | F96: 7.722863436e-06 | G96: 4.509224003e-05 | H96: 7.904565246e-06 | J96: 7.888881119e-05 | K96: 0.0005788131825 | L96: 0.0004322428942 | M96: 0.003118453847 | N96: 8.984475449e-07
A97: =IF('DF raw data'!A97="","",'DF raw data'!A97) -> -285 | B97: =IF('DF raw data'!B97="","",'DF raw data'!B97) -> -8.64389e-06 | C97: =IF('DF raw data'!C97="","",'DF raw data'!C97) -> 6.87533e-05 | D97: =IF('DF raw data'!D97="","",'DF raw data'!D97) -> -8.80496e-06 | F97: 6.890725844e-06 | G97: 3.557674144e-05 | H97: -4.649061934e-07 | J97: 8.233417411e-05 | K97: 0.0006199802696 | L97: 0.0004500312649 | M97: 0.00334346948 | N97: 1.003101073e-06
A98: =IF('DF raw data'!A98="","",'DF raw data'!A98) -> -284.5 | B98: =IF('DF raw data'!B98="","",'DF raw data'!B98) -> -6.58713e-06 | C98: =IF('DF raw data'!C98="","",'DF raw data'!C98) -> 6.36937e-05 | D98: =IF('DF raw data'!D98="","",'DF raw data'!D98) -> -1.67943e-05 | F98: 8.957563968e-06 | G98: 3.04923494e-05 | H98: -8.493393959e-06 | J98: 8.68129561e-05 | K98: 0.0006633867477 | L98: 0.0004652774396 | M98: 0.003576108199 | N98: 1.115110865e-06
A99: =IF('DF raw data'!A99="","",'DF raw data'!A99) -> -284 | B99: =IF('DF raw data'!B99="","",'DF raw data'!B99) -> -2.29349e-05 | C99: =IF('DF raw data'!C99="","",'DF raw data'!C99) -> 6.18039e-05 | D99: =IF('DF raw data'!D99="","",'DF raw data'!D99) -> -1.57662e-05 | F99: -7.470310105e-06 | G99: 2.859328938e-05 | H99: -7.460256269e-06 | J99: 8.307780105e-05 | K99: 0.0007049256482 | L99: 0.0004795740843 | M99: 0.003815895242 | N99: 1.233557477e-06
A100: =IF('DF raw data'!A100="","",'DF raw data'!A100) -> -283.5 | B100: =IF('DF raw data'!B100="","",'DF raw data'!B100) -> 5.45938e-06 | C100: =IF('DF raw data'!C100="","",'DF raw data'!C100) -> 6.67581e-05 | D100: =IF('DF raw data'!D100="","",'DF raw data'!D100) -> -8.77706e-06 | F100: 2.106310187e-05 | G100: 3.357176496e-05 | H100: -4.368694834e-07 | J100: 9.360935198e-05 | K100: 0.0007517303242 | L100: 0.0004963599668 | M100: 0.004064075225 | N100: 1.361125441e-06
A101: =IF('DF raw data'!A101="","",'DF raw data'!A101) -> -283 | B101: =IF('DF raw data'!B101="","",'DF raw data'!B101) -> -1.96771e-05 | C101: =IF('DF raw data'!C101="","",'DF raw data'!C101) -> 5.79578e-05 | D101: =IF('DF raw data'!D101="","",'DF raw data'!D101) -> 2.25926e-06 | F101: -4.196546885e-06 | G101: 2.472834349e-05 | H101: 1.065352848e-05 | J101: 9.151107854e-05 | K101: 0.0007974858634 | L101: 0.0005087241386 | M101: 0.004318437294 | N101: 1.494712704e-06
A102: =IF('DF raw data'!A102="","",'DF raw data'!A102) -> -282.5 | B102: =IF('DF raw data'!B102="","",'DF raw data'!B102) -> -9.4137e-06 | C102: =IF('DF raw data'!C102="","",'DF raw data'!C102) -> 5.39116e-05 | D102: =IF('DF raw data'!D102="","",'DF raw data'!D102) -> -7.92135e-06 | F102: 6.117143775e-06 | G102: 2.066231711e-05 | H102: 4.230334956e-07 | J102: 9.456965042e-05 | K102: 0.0008447706886 | L102: 0.0005190552971 | M102: 0.004577964943 | N102: 1.633893614e-06
A103: =IF('DF raw data'!A103="","",'DF raw data'!A103) -> -282 | B103: =IF('DF raw data'!B103="","",'DF raw data'!B103) -> -1.71811e-05 | C103: =IF('DF raw data'!C103="","",'DF raw data'!C103) -> 5.22855e-05 | D103: =IF('DF raw data'!D103="","",'DF raw data'!D103) -> 8.57985e-06 | F103: -1.688316485e-06 | G103: 1.902824922e-05 | H103: 1.700508938e-05 | J103: 9.372549218e-05 | K103: 0.0008916334347 | L103: 0.0005285694217 | M103: 0.004842249654 | N103: 1.777978665e-06
A104: =IF('DF raw data'!A104="","",'DF raw data'!A104) -> -281.5 | B104: =IF('DF raw data'!B104="","",'DF raw data'!B104) -> -4.47754e-06 | C104: =IF('DF raw data'!C104="","",'DF raw data'!C104) -> 4.92798e-05 | D104: =IF('DF raw data'!D104="","",'DF raw data'!D104) -> -8.01584e-06 | F104: 1.107749096e-05 | G104: 1.600782129e-05 | H104: 3.280804946e-07 | J104: 9.926423766e-05 | K104: 0.0009412655536 | L104: 0.0005365733324 | M104: 0.00511053632 | N104: 1.92686083e-06
A105: =IF('DF raw data'!A105="","",'DF raw data'!A105) -> -281 | B105: =IF('DF raw data'!B105="","",'DF raw data'!B105) -> -6.98034e-06 | C105: =IF('DF raw data'!C105="","",'DF raw data'!C105) -> 5.77101e-05 | D105: =IF('DF raw data'!D105="","",'DF raw data'!D105) -> -3.55709e-06 | F105: 8.562427239e-06 | G105: 2.447942976e-05 | H105: 4.80867837e-06 | J105: 0.0001035454513 | K105: 0.0009930382792 | L105: 0.0005488130472 | M105: 0.005384942844 | N105: 2.082819541e-06
A106: =IF('DF raw data'!A106="","",'DF raw data'!A106) -> -280.5 | B106: =IF('DF raw data'!B106="","",'DF raw data'!B106) -> -1.05076e-05 | C106: =IF('DF raw data'!C106="","",'DF raw data'!C106) -> 5.95712e-05 | D106: =IF('DF raw data'!D106="","",'DF raw data'!D106) -> -1.37637e-06 | F106: 5.017883665e-06 | G106: 2.634964915e-05 | H106: 7.000083898e-06 | J106: 0.0001060543931 | K106: 0.001046065476 | L106: 0.0005619878718 | M106: 0.005665936779 | N106: 2.246358492e-06
A107: =IF('DF raw data'!A107="","",'DF raw data'!A107) -> -280 | B107: =IF('DF raw data'!B107="","",'DF raw data'!B107) -> -1.65987e-05 | C107: =IF('DF raw data'!C107="","",'DF raw data'!C107) -> 6.10261e-05 | D107: =IF('DF raw data'!D107="","",'DF raw data'!D107) -> 2.78429e-08 | F107: -1.103062725e-06 | G107: 2.781167816e-05 | H107: 8.411177441e-06 | J107: 0.0001055028618 | K107: 0.001098816907 | L107: 0.0005758937109 | M107: 0.005953883635 | N107: 2.417750702e-06
A108: =IF('DF raw data'!A108="","",'DF raw data'!A108) -> -279.5 | B108: =IF('DF raw data'!B108="","",'DF raw data'!B108) -> 2.77221e-06 | C108: =IF('DF raw data'!C108="","",'DF raw data'!C108) -> 6.15309e-05 | D108: =IF('DF raw data'!D108="","",'DF raw data'!D108) -> -1.67572e-05 | F108: 1.836276473e-05 | G108: 2.831895168e-05 | H108: -8.456112169e-06 | J108: 0.0001146842441 | K108: 0.001156159029 | L108: 0.0005900531867 | M108: 0.006248910228 | N108: 2.598408321e-06
A109: =IF('DF raw data'!A109="","",'DF raw data'!A109) -> -279 | B109: =IF('DF raw data'!B109="","",'DF raw data'!B109) -> -1.51836e-05 | C109: =IF('DF raw data'!C109="","",'DF raw data'!C109) -> 6.33513e-05 | D109: =IF('DF raw data'!D109="","",'DF raw data'!D109) -> -7.09901e-06 | F109: 3.189712649e-07 | G109: 3.014827164e-05 | H109: 1.249402962e-06 | J109: 0.0001148437298 | K109: 0.001213580894 | L109: 0.0006051273226 | M109: 0.00655147389 | N109: 2.788092401e-06
A110: =IF('DF raw data'!A110="","",'DF raw data'!A110) -> -278.5 | B110: =IF('DF raw data'!B110="","",'DF raw data'!B110) -> 9.74627e-07 | C110: =IF('DF raw data'!C110="","",'DF raw data'!C110) -> 6.34531e-05 | D110: =IF('DF raw data'!D110="","",'DF raw data'!D110) -> -1.26085e-05 | F110: 1.655637358e-05 | G110: 3.025057046e-05 | H110: -4.287083539e-06 | J110: 0.0001231219165 | K110: 0.001275141852 | L110: 0.0006202526078 | M110: 0.006861600193 | N110: 2.988028553e-06
A111: =IF('DF raw data'!A111="","",'DF raw data'!A111) -> -278 | B111: =IF('DF raw data'!B111="","",'DF raw data'!B111) -> -2.70453e-05 | C111: =IF('DF raw data'!C111="","",'DF raw data'!C111) -> 6.37504e-05 | D111: =IF('DF raw data'!D111="","",'DF raw data'!D111) -> -3.74345e-06 | F111: -1.160085107e-05 | G111: 3.054932723e-05 | H111: 4.621405206e-06 | J111: 0.000117321491 | K111: 0.001333802597 | L111: 0.0006355272714 | M111: 0.007179363829 | N111: 3.196858175e-06
A112: =IF('DF raw data'!A112="","",'DF raw data'!A112) -> -277.5 | B112: =IF('DF raw data'!B112="","",'DF raw data'!B112) -> -3.0062e-06 | C112: =IF('DF raw data'!C112="","",'DF raw data'!C112) -> 6.63425e-05 | D112: =IF('DF raw data'!D112="","",'DF raw data'!D112) -> -3.12765e-06 | F112: 1.255604052e-05 | G112: 3.315412852e-05 | H112: 5.240222626e-06 | J112: 0.0001235995113 | K112: 0.001395602353 | L112: 0.0006521043357 | M112: 0.007505415997 | N112: 3.417116627e-06
A113: =IF('DF raw data'!A113="","",'DF raw data'!A113) -> -277 | B113: =IF('DF raw data'!B113="","",'DF raw data'!B113) -> -1.17213e-05 | C113: =IF('DF raw data'!C113="","",'DF raw data'!C113) -> 6.75999e-05 | D113: =IF('DF raw data'!D113="","",'DF raw data'!D113) -> -8.08134e-06 | F113: 3.798236535e-06 | G113: 3.441768978e-05 | H113: 2.622595446e-07 | J113: 0.0001254986295 | K113: 0.001458351668 | L113: 0.0006693131806 | M113: 0.007840072587 | N113: 3.648981647e-06
A114: =IF('DF raw data'!A114="","",'DF raw data'!A114) -> -276.5 | B114: =IF('DF raw data'!B114="","",'DF raw data'!B114) -> -4.09386e-06 | C114: =IF('DF raw data'!C114="","",'DF raw data'!C114) -> 6.37934e-05 | D114: =IF('DF raw data'!D114="","",'DF raw data'!D114) -> -6.15611e-06 | F114: 1.146305099e-05 | G114: 3.059253793e-05 | H114: 2.196923172e-06 | J114: 0.000131230155 | K114: 0.001523966745 | L114: 0.0006846094495 | M114: 0.008182377312 | N114: 3.891937373e-06
A115: =IF('DF raw data'!A115="","",'DF raw data'!A115) -> -276 | B115: =IF('DF raw data'!B115="","",'DF raw data'!B115) -> -9.86019e-06 | C115: =IF('DF raw data'!C115="","",'DF raw data'!C115) -> 6.11165e-05 | D115: =IF('DF raw data'!D115="","",'DF raw data'!D115) -> -1.11755e-05 | F115: 5.668465974e-06 | G115: 2.790252112e-05 | H115: -2.847061839e-06 | J115: 0.000134064388 | K115: 0.001590998939 | L115: 0.0006985607101 | M115: 0.008531657667 | N115: 4.144917536e-06
A116: =IF('DF raw data'!A116="","",'DF raw data'!A116) -> -275.5 | B116: =IF('DF raw data'!B116="","",'DF raw data'!B116) -> 2.3227e-06 | C116: =IF('DF raw data'!C116="","",'DF raw data'!C116) -> 6.01285e-05 | D116: =IF('DF raw data'!D116="","",'DF raw data'!D116) -> -1.57458e-05 | F116: 1.791105213e-05 | G116: 2.690967992e-05 | H116: -7.439756309e-06 | J116: 0.0001430199141 | K116: 0.001662508896 | L116: 0.00071201555 | M116: 0.008887665442 | N116: 4.408627955e-06
A117: =IF('DF raw data'!A117="","",'DF raw data'!A117) -> -275 | B117: =IF('DF raw data'!B117="","",'DF raw data'!B117) -> -3.63962e-06 | C117: =IF('DF raw data'!C117="","",'DF raw data'!C117) -> 5.83703e-05 | D117: =IF('DF raw data'!D117="","",'DF raw data'!D117) -> -1.48651e-05 | F117: 1.191951677e-05 | G117: 2.514286474e-05 | H117: -6.554740879e-06 | J117: 0.0001489796725 | K117: 0.001736998733 | L117: 0.0007245869824 | M117: 0.009249958933 | N117: 4.682238574e-06
A118: =IF('DF raw data'!A118="","",'DF raw data'!A118) -> -274.5 | B118: =IF('DF raw data'!B118="","",'DF raw data'!B118) -> -7.61511e-06 | C118: =IF('DF raw data'!C118="","",'DF raw data'!C118) -> 6.29788e-05 | D118: =IF('DF raw data'!D118="","",'DF raw data'!D118) -> -1.32e-05 | F118: 7.924546866e-06 | G118: 2.977394639e-05 | H118: -4.881481889e-06 | J118: 0.0001529419459 | K118: 0.001813469706 | L118: 0.0007394739556 | M118: 0.009619695911 | N118: 4.967345059e-06
A119: =IF('DF raw data'!A119="","",'DF raw data'!A119) -> -274 | B119: =IF('DF raw data'!B119="","",'DF raw data'!B119) -> -1.20468e-05 | C119: =IF('DF raw data'!C119="","",'DF raw data'!C119) -> 6.29242e-05 | D119: =IF('DF raw data'!D119="","",'DF raw data'!D119) -> -5.98642e-07 | F119: 3.471141585e-06 | G119: 2.971907885e-05 | H119: 7.781622765e-06 | J119: 0.0001546775167 | K119: 0.001890808464 | L119: 0.000754333495 | M119: 0.009996862659 | N119: 5.263817137e-06
A120: =IF('DF raw data'!A120="","",'DF raw data'!A120) -> -273.5 | B120: =IF('DF raw data'!B120="","",'DF raw data'!B120) -> -2.1206e-05 | C120: =IF('DF raw data'!C120="","",'DF raw data'!C120) -> 6.62459e-05 | D120: =IF('DF raw data'!D120="","",'DF raw data'!D120) -> -1.25586e-05 | F120: -5.732938495e-06 | G120: 3.305705518e-05 | H120: -4.236939029e-06 | J120: 0.0001518110474 | K120: 0.001966713988 | L120: 0.0007708620226 | M120: 0.01038229367 | N120: 5.572454563e-06
A121: =IF('DF raw data'!A121="","",'DF raw data'!A121) -> -273 | B121: =IF('DF raw data'!B121="","",'DF raw data'!B121) -> -8.00327e-06 | C121: =IF('DF raw data'!C121="","",'DF raw data'!C121) -> 6.21634e-05 | D121: =IF('DF raw data'!D121="","",'DF raw data'!D121) -> -7.75671e-06 | F121: 7.534484882e-06 | G121: 2.895455093e-05 | H121: 5.884802316e-07 | J121: 0.0001555782899 | K121: 0.002044503133 | L121: 0.0007853392981 | M121: 0.01077496332 | N121: 5.892935772e-06
A122: =IF('DF raw data'!A122="","",'DF raw data'!A122) -> -272.5 | B122: =IF('DF raw data'!B122="","",'DF raw data'!B122) -> -6.07436e-06 | C122: =IF('DF raw data'!C122="","",'DF raw data'!C122) -> 5.69969e-05 | D122: =IF('DF raw data'!D122="","",'DF raw data'!D122) -> -1.67083e-05 | F122: 9.472846541e-06 | G122: 2.376273508e-05 | H122: -8.406972559e-06 | J122: 0.0001603147132 | K122: 0.002124660489 | L122: 0.0007972206656 | M122: 0.01117357365 | N122: 6.22356657e-06
A123: =IF('DF raw data'!A123="","",'DF raw data'!A123) -> -272 | B123: =IF('DF raw data'!B123="","",'DF raw data'!B123) -> -1.49238e-05 | C123: =IF('DF raw data'!C123="","",'DF raw data'!C123) -> 6.29021e-05 | D123: =IF('DF raw data'!D123="","",'DF raw data'!D123) -> -1.22946e-05 | F123: 5.800442849e-07 | G123: 2.969687056e-05 | H123: -3.971645429e-06 | J123: 0.0001606047353 | K123: 0.002204962857 | L123: 0.0008120691009 | M123: 0.0115796082 | N123: 6.566191623e-06
A124: =IF('DF raw data'!A124="","",'DF raw data'!A124) -> -271.5 | B124: =IF('DF raw data'!B124="","",'DF raw data'!B124) -> -3.44707e-06 | C124: =IF('DF raw data'!C124="","",'DF raw data'!C124) -> 6.10518e-05 | D124: =IF('DF raw data'!D124="","",'DF raw data'!D124) -> -1.50392e-05 | F124: 1.211301026e-05 | G124: 2.783750409e-05 | H124: -6.729693969e-06 | J124: 0.0001666612404 | K124: 0.002288293477 | L124: 0.0008259878529 | M124: 0.01199260213 | N124: 6.921207574e-06
A125: =IF('DF raw data'!A125="","",'DF raw data'!A125) -> -271 | B125: =IF('DF raw data'!B125="","",'DF raw data'!B125) -> -1.64644e-05 | C125: =IF('DF raw data'!C125="","",'DF raw data'!C125) -> 5.90358e-05 | D125: =IF('DF raw data'!D125="","",'DF raw data'!D125) -> -9.30884e-06 | F125: -9.681046551e-07 | G125: 2.581162569e-05 | H125: -9.712552054e-07 | J125: 0.0001661771881 | K125: 0.002371382071 | L125: 0.0008388936658 | M125: 0.01241204896 | N125: 7.286886294e-06
A126: =IF('DF raw data'!A126="","",'DF raw data'!A126) -> -270.5 | B126: =IF('DF raw data'!B126="","",'DF raw data'!B126) -> -1.19057e-05 | C126: =IF('DF raw data'!C126="","",'DF raw data'!C126) -> 5.64408e-05 | D126: =IF('DF raw data'!D126="","",'DF raw data'!D126) -> -2.01071e-05 | F126: 3.612932975e-06 | G126: 2.320391019e-05 | H126: -1.182242668e-05 | J126: 0.0001679836546 | K126: 0.002455373898 | L126: 0.0008504956209 | M126: 0.01283729677 | N126: 7.662666949e-06
A127: =IF('DF raw data'!A127="","",'DF raw data'!A127) -> -270 | B127: =IF('DF raw data'!B127="","",'DF raw data'!B127) -> -9.98409e-06 | C127: =IF('DF raw data'!C127="","",'DF raw data'!C127) -> 6.48527e-05 | D127: =IF('DF raw data'!D127="","",'DF raw data'!D127) -> -1.78032e-05 | F127: 5.543958864e-06 | G127: 3.16570285e-05 | H127: -9.507237569e-06 | J127: 0.000170755634 | K127: 0.002540751715 | L127: 0.0008663241351 | M127: 0.01327045884 | N127: 8.052504446e-06
A128: =IF('DF raw data'!A128="","",'DF raw data'!A128) -> -269.5 | B128: =IF('DF raw data'!B128="","",'DF raw data'!B128) -> -6.52231e-06 | C128: =IF('DF raw data'!C128="","",'DF raw data'!C128) -> 6.81068e-05 | D128: =IF('DF raw data'!D128="","",'DF raw data'!D128) -> -1.80993e-05 | F128: 9.022701586e-06 | G128: 3.492707359e-05 | H128: -9.804788459e-06 | J128: =F128*$G$3+J127 -> 0.0001752669848 | K128: =J128*$G$3+K127 -> 0.002628385208 | L128: =G128*$G$3+L127 -> 0.0008837876719 | M128: =L128*$G$3+M127 -> 0.01371235268 | N128: =(J128^2+L128^2)*$G$3+N127 -> 8.458404028e-06
A129: =IF('DF raw data'!A129="","",'DF raw data'!A129) -> -269 | B129: =IF('DF raw data'!B129="","",'DF raw data'!B129) -> -1.34593e-05 | C129: =IF('DF raw data'!C129="","",'DF raw data'!C129) -> 6.13072e-05 | D129: =IF('DF raw data'!D129="","",'DF raw data'!D129) -> 2.83307e-06 | F129: 2.051720335e-06 | G129: 2.809415555e-05 | H129: 1.123015015e-05 | J129: 0.000176292845 | K129: 0.00271653163 | L129: 0.0008978347497 | M129: 0.01416127005 | N129: 8.876997231e-06
A130: =IF('DF raw data'!A130="","",'DF raw data'!A130) -> -268.5 | B130: =IF('DF raw data'!B130="","",'DF raw data'!B130) -> -8.44872e-06 | C130: =IF('DF raw data'!C130="","",'DF raw data'!C130) -> 6.53349e-05 | D130: =IF('DF raw data'!D130="","",'DF raw data'!D130) -> -1.29926e-05 | F130: 7.086852177e-06 | G130: 3.214159128e-05 | H130: -4.673065629e-06 | J130: 0.0001798362711 | K130: 0.002806449766 | L130: 0.0009139055453 | M130: 0.01461822282 | N130: 9.310779446e-06
A131: =IF('DF raw data'!A131="","",'DF raw data'!A131) -> -268 | B131: =IF('DF raw data'!B131="","",'DF raw data'!B131) -> -4.41642e-06 | C131: =IF('DF raw data'!C131="","",'DF raw data'!C131) -> 6.55359e-05 | D131: =IF('DF raw data'!D131="","",'DF raw data'!D131) -> -3.21525e-06 | F131: =(1-$G$1*($B$54-$G$2))*(B131-F$5) -> 1.113891045e-05 | G131: =(1-$G$1*($B$54-$G$2))*(C131-G$5) -> 3.234357618e-05 | H131: =(1-$G$1*($B$54-$G$2))*(D131-H$5) -> 5.152193386e-06 | J131: 0.0001854057263 | K131: 0.002899152629 | L131: 0.0009300773334 | M131: 0.01508326149 | N131: 9.760489011e-06
A132: =IF('DF raw data'!A132="","",'DF raw data'!A132) -> -267.5 | B132: =IF('DF raw data'!B132="","",'DF raw data'!B132) -> -3.57876e-06 | C132: =IF('DF raw data'!C132="","",'DF raw data'!C132) -> 7.49041e-05 | D132: =IF('DF raw data'!D132="","",'DF raw data'!D132) -> -9.6553e-06 | F132: 1.198067498e-05 | G132: 4.175768036e-05 | H132: -1.319412859e-06 | J132: 0.0001913960638 | K132: 0.002994850661 | L132: 0.0009509561736 | M132: 0.01555873958 | N132: 1.023096406e-05
A133: =IF('DF raw data'!A133="","",'DF raw data'!A133) -> -267 | B133: =IF('DF raw data'!B133="","",'DF raw data'!B133) -> -4.79823e-06 | C133: =IF('DF raw data'!C133="","",'DF raw data'!C133) -> 7.22633e-05 | D133: =IF('DF raw data'!D133="","",'DF raw data'!D133) -> -7.54177e-06 | F133: 1.075522958e-05 | G133: 3.910394044e-05 | H133: 8.044734376e-07 | J133: 0.0001967736786 | K133: 0.0030932375 | L133: 0.0009705081438 | M133: 0.01604399365 | N133: 1.072126703e-05
A134: =IF('DF raw data'!A134="","",'DF raw data'!A134) -> -266.5 | B134: =IF('DF raw data'!B134="","",'DF raw data'!B134) -> -7.99715e-06 | C134: =IF('DF raw data'!C134="","",'DF raw data'!C134) -> 6.22128e-05 | D134: =IF('DF raw data'!D134="","",'DF raw data'!D134) -> -1.71785e-05 | F134: 7.54063487e-06 | G134: 2.900419299e-05 | H134: -8.879476539e-06 | J134: 0.000200543996 | K134: 0.003193509498 | L134: 0.0009850102403 | M134: 0.01653649877 | N134: 1.122649856e-05
A135: =IF('DF raw data'!A135="","",'DF raw data'!A135) -> -266 | B135: =IF('DF raw data'!B135="","",'DF raw data'!B135) -> -2.02504e-05 | C135: =IF('DF raw data'!C135="","",'DF raw data'!C135) -> 6.64368e-05 | D135: =IF('DF raw data'!D135="","",'DF raw data'!D135) -> -3.60657e-06 | F135: -4.772656055e-06 | G135: 3.324889059e-05 | H135: 4.758955918e-06 | J135: 0.000198157668 | K135: 0.003292588332 | L135: 0.001001634686 | M135: 0.01703731611 | N135: 1.174776781e-05
A136: =IF('DF raw data'!A136="","",'DF raw data'!A136) -> -265.5 | B136: =IF('DF raw data'!B136="","",'DF raw data'!B136) -> -1.01689e-06 | C136: =IF('DF raw data'!C136="","",'DF raw data'!C136) -> 6.41466e-05 | D136: =IF('DF raw data'!D136="","",'DF raw data'!D136) -> -6.16456e-06 | F136: 1.455509814e-05 | G136: 3.094746861e-05 | H136: 2.188431767e-06 | J136: 0.0002054352171 | K136: 0.003395305941 | L136: 0.00101710842 | M136: 0.01754587032 | N136: 1.22861244e-05
A137: =IF('DF raw data'!A137="","",'DF raw data'!A137) -> -265 | B137: =IF('DF raw data'!B137="","",'DF raw data'!B137) -> -9.15558e-06 | C137: =IF('DF raw data'!C137="","",'DF raw data'!C137) -> 5.67797e-05 | D137: =IF('DF raw data'!D137="","",'DF raw data'!D137) -> -1.05452e-05 | F137: 6.376528563e-06 | G137: 2.35444708e-05 | H137: -2.213673369e-06 | J137: 0.0002086234813 | K137: 0.003499617681 | L137: 0.001028880655 | M137: 0.01806031065 | N137: 1.283718398e-05
A138: =IF('DF raw data'!A138="","",'DF raw data'!A138) -> -264.5 | B138: =IF('DF raw data'!B138="","",'DF raw data'!B138) -> -2.17185e-05 | C138: =IF('DF raw data'!C138="","",'DF raw data'!C138) -> 5.42619e-05 | D138: =IF('DF raw data'!D138="","",'DF raw data'!D138) -> -1.29932e-05 | F138: -6.247949745e-06 | G138: 2.101433358e-05 | H138: -4.673668569e-06 | J138: 0.0002054995065 | K138: 0.003602367435 | L138: 0.001039387822 | M138: 0.01858000456 | N138: 1.339846252e-05
A139: =IF('DF raw data'!A139="","",'DF raw data'!A139) -> -264 | B139: =IF('DF raw data'!B139="","",'DF raw data'!B139) -> -2.08271e-05 | C139: =IF('DF raw data'!C139="","",'DF raw data'!C139) -> 6.07803e-05 | D139: =IF('DF raw data'!D139="","",'DF raw data'!D139) -> -3.77055e-06 | F139: -5.352181885e-06 | G139: 2.756467374e-05 | H139: 4.594172416e-06 | J139: 0.0002028234155 | K139: 0.003703779142 | L139: 0.001053170159 | M139: 0.01910658964 | N139: 1.397361488e-05
A140: =IF('DF raw data'!A140="","",'DF raw data'!A140) -> -263.5 | B140: =IF('DF raw data'!B140="","",'DF raw data'!B140) -> -1.96754e-05 | C140: =IF('DF raw data'!C140="","",'DF raw data'!C140) -> 7.50181e-05 | D140: =IF('DF raw data'!D140="","",'DF raw data'!D140) -> -3.19577e-07 | F140: -4.194838555e-06 | G140: 4.187223896e-05 | H140: 8.062055183e-06 | J140: 0.0002007259962 | K140: 0.00380414214 | L140: 0.001074106278 | M140: 0.01964364278 | N140: 1.45706125e-05
A141: =IF('DF raw data'!A141="","",'DF raw data'!A141) -> -263 | B141: =IF('DF raw data'!B141="","",'DF raw data'!B141) -> -9.86702e-06 | C141: =IF('DF raw data'!C141="","",'DF raw data'!C141) -> 6.81414e-05 | D141: =IF('DF raw data'!D141="","",'DF raw data'!D141) -> -6.27542e-07 | F141: 5.661602507e-06 | G141: 3.496184313e-05 | H141: 7.752581155e-06 | J141: 0.0002035567975 | K141: 0.003905920539 | L141: 0.0010915872 | M141: 0.02018943638 | N141: 1.518711149e-05
A142: =IF('DF raw data'!A142="","",'DF raw data'!A142) -> -262.5 | B142: =IF('DF raw data'!B142="","",'DF raw data'!B142) -> -6.27633e-06 | C142: =IF('DF raw data'!C142="","",'DF raw data'!C142) -> 5.63802e-05 | D142: =IF('DF raw data'!D142="","",'DF raw data'!D142) -> -2.00992e-06 | F142: 9.269886888e-06 | G142: 2.314301325e-05 | H142: 6.363429503e-06 | J142: 0.0002081917409 | K142: 0.00401001641 | L142: 0.001103158707 | M142: 0.02074101573 | N142: 1.581726296e-05
A143: =IF('DF raw data'!A143="","",'DF raw data'!A143) -> -262 | B143: =IF('DF raw data'!B143="","",'DF raw data'!B143) -> -2.12737e-05 | C143: =IF('DF raw data'!C143="","",'DF raw data'!C143) -> 6.25745e-05 | D143: =IF('DF raw data'!D143="","",'DF raw data'!D143) -> -7.19297e-06 | F143: -5.800970225e-06 | G143: 2.936766532e-05 | H143: 1.154982558e-06 | J143: 0.0002052912558 | K143: 0.004112662038 | L143: 0.001117842539 | M143: 0.021299937 | N143: 1.646312118e-05
A144: =IF('DF raw data'!A144="","",'DF raw data'!A144) -> -261.5 | B144: =IF('DF raw data'!B144="","",'DF raw data'!B144) -> 5.2728e-07 | C144: =IF('DF raw data'!C144="","",'DF raw data'!C144) -> 6.87652e-05 | D144: =IF('DF raw data'!D144="","",'DF raw data'!D144) -> -1.49346e-05 | F144: 1.610683458e-05 | G144: 3.558869975e-05 | H144: -6.624581429e-06 | J144: 0.0002133446731 | K144: 0.004219334374 | L144: 0.001135636889 | M144: 0.02186775545 | N144: 1.713071472e-05
A145: =IF('DF raw data'!A145="","",'DF raw data'!A145) -> -261 | B145: =IF('DF raw data'!B145="","",'DF raw data'!B145) -> -1.62702e-05 | C145: =IF('DF raw data'!C145="","",'DF raw data'!C145) -> 6.01233e-05 | D145: =IF('DF raw data'!D145="","",'DF raw data'!D145) -> -1.2008e-05 | F145: -7.729530751e-07 | G145: 2.690445444e-05 | H145: -3.683641089e-06 | J145: 0.0002129581966 | K145: 0.004325813472 | L145: 0.001149089116 | M145: 0.0224423 | N145: 1.781359322e-05
A146: =IF('DF raw data'!A146="","",'DF raw data'!A146) -> -260.5 | B146: =IF('DF raw data'!B146="","",'DF raw data'!B146) -> -1.49192e-05 | C146: =IF('DF raw data'!C146="","",'DF raw data'!C146) -> 6.25061e-05 | D146: =IF('DF raw data'!D146="","",'DF raw data'!D146) -> -1.92896e-05 | F146: 5.846668249e-07 | G146: 2.929893016e-05 | H146: -1.100092093e-05 | J146: 0.00021325053 | K146: 0.004432438737 | L146: 0.001163738581 | M146: 0.0230241693 | N146: 1.851347486e-05
A147: =IF('DF raw data'!A147="","",'DF raw data'!A147) -> -260 | B147: =IF('DF raw data'!B147="","",'DF raw data'!B147) -> -1.3005e-05 | C147: =IF('DF raw data'!C147="","",'DF raw data'!C147) -> 5.99148e-05 | D147: =IF('DF raw data'!D147="","",'DF raw data'!D147) -> -5.64355e-06 | F147: 2.508246405e-06 | G147: 2.669493279e-05 | H147: 2.711994716e-06 | J147: 0.0002145046532 | K147: 0.004539691064 | L147: 0.001177086048 | M147: 0.02361271232 | N147: 1.922924676e-05
A148: =IF('DF raw data'!A148="","",'DF raw data'!A148) -> -259.5 | B148: =IF('DF raw data'!B148="","",'DF raw data'!B148) -> -7.04117e-06 | C148: =IF('DF raw data'!C148="","",'DF raw data'!C148) -> 5.75078e-05 | D148: =IF('DF raw data'!D148="","",'DF raw data'!D148) -> -8.79311e-06 | F148: 8.501299172e-06 | G148: 2.427613849e-05 | H148: -4.529981284e-07 | J148: 0.0002187553028 | K148: 0.004649068715 | L148: 0.001189224117 | M148: 0.02420732438 | N148: 1.99603007e-05
A149: =IF('DF raw data'!A149="","",'DF raw data'!A149) -> -259 | B149: =IF('DF raw data'!B149="","",'DF raw data'!B149) -> -1.07577e-05 | C149: =IF('DF raw data'!C149="","",'DF raw data'!C149) -> 5.98154e-05 | D149: =IF('DF raw data'!D149="","",'DF raw data'!D149) -> -1.10231e-05 | F149: 4.766558175e-06 | G149: 2.659504573e-05 | H149: -2.693915079e-06 | J149: 0.0002211385819 | K149: 0.004759638006 | L149: 0.00120252164 | M149: 0.0248085852 | N149: 2.070778099e-05
A150: =IF('DF raw data'!A150="","",'DF raw data'!A150) -> -258.5 | B150: =IF('DF raw data'!B150="","",'DF raw data'!B150) -> -1.24287e-05 | C150: =IF('DF raw data'!C150="","",'DF raw data'!C150) -> 5.86708e-05 | D150: =IF('DF raw data'!D150="","",'DF raw data'!D150) -> -4.73856e-06 | F150: 3.087370275e-06 | G150: 2.544483719e-05 | H150: 3.621419167e-06 | J150: 0.000222682267 | K150: 0.00487097914 | L150: 0.001215244059 | M150: 0.02541620723 | N150: 2.147098374e-05
A151: =IF('DF raw data'!A151="","",'DF raw data'!A151) -> -258 | B151: =IF('DF raw data'!B151="","",'DF raw data'!B151) -> -1.55707e-05 | C151: =IF('DF raw data'!C151="","",'DF raw data'!C151) -> 5.87869e-05 | D151: =IF('DF raw data'!D151="","",'DF raw data'!D151) -> -3.13223e-06 | F151: -7.002552513e-08 | G151: 2.556150608e-05 | H151: 5.235620184e-06 | J151: 0.0002226472542 | K151: 0.004982302767 | L151: 0.001228024812 | M151: 0.02603021963 | N151: 2.224979211e-05
A152: =IF('DF raw data'!A152="","",'DF raw data'!A152) -> -257.5 | B152: =IF('DF raw data'!B152="","",'DF raw data'!B152) -> -1.34463e-05 | C152: =IF('DF raw data'!C152="","",'DF raw data'!C152) -> 6.35447e-05 | D152: =IF('DF raw data'!D152="","",'DF raw data'!D152) -> -1.71774e-05 | F152: 2.064784035e-06 | G152: 3.03426193e-05 | H152: -8.878371149e-06 | J152: 0.0002236796463 | K152: 0.00509414259 | L152: 0.001243196121 | M152: 0.02665181769 | N152: 2.30475767e-05
A153: =IF('DF raw data'!A153="","",'DF raw data'!A153) -> -257 | B153: =IF('DF raw data'!B153="","",'DF raw data'!B153) -> -2.16493e-05 | C153: =IF('DF raw data'!C153="","",'DF raw data'!C153) -> 6.57965e-05 | D153: =IF('DF raw data'!D153="","",'DF raw data'!D153) -> -2.10715e-05 | F153: -6.178410665e-06 | G153: 3.260545312e-05 | H153: -1.279155224e-05 | J153: 0.0002205904409 | K153: 0.005204437811 | L153: 0.001259498848 | M153: 0.02728156712 | N153: 2.386507545e-05
A154: =IF('DF raw data'!A154="","",'DF raw data'!A154) -> -256.5 | B154: =IF('DF raw data'!B154="","",'DF raw data'!B154) -> -7.36067e-06 | C154: =IF('DF raw data'!C154="","",'DF raw data'!C154) -> 6.81891e-05 | D154: =IF('DF raw data'!D154="","",'DF raw data'!D154) -> -1.01518e-05 | F154: 8.180233622e-06 | G154: 3.500977686e-05 | H154: -1.818345709e-06 | J154: 0.0002246805577 | K154: 0.005316778089 | L154: 0.001277003736 | M154: 0.02792006899 | N154: 2.47056854e-05
A155: =IF('DF raw data'!A155="","",'DF raw data'!A155) -> -256 | B155: =IF('DF raw data'!B155="","",'DF raw data'!B155) -> -1.79532e-07 | C155: =IF('DF raw data'!C155="","",'DF raw data'!C155) -> 6.73487e-05 | D155: =IF('DF raw data'!D155="","",'DF raw data'!D155) -> -1.21493e-05 | F155: 1.53965592e-05 | G155: 3.41652589e-05 | H155: -3.825633459e-06 | J155: 0.0002323788373 | K155: 0.005432967508 | L155: 0.001294086366 | M155: 0.02856711217 | N155: 2.557001512e-05
A156: =IF('DF raw data'!A156="","",'DF raw data'!A156) -> -255.5 | B156: =IF('DF raw data'!B156="","",'DF raw data'!B156) -> -1.10147e-05 | C156: =IF('DF raw data'!C156="","",'DF raw data'!C156) -> 6.87177e-05 | D156: =IF('DF raw data'!D156="","",'DF raw data'!D156) -> -1.02063e-05 | F156: 4.508298875e-06 | G156: 3.5540967e-05 | H156: -1.873112759e-06 | J156: 0.0002346329868 | K156: 0.005550284001 | L156: 0.001311856849 | M156: 0.02922304059 | N156: 2.645802563e-05
A157: =IF('DF raw data'!A157="","",'DF raw data'!A157) -> -255 | B157: =IF('DF raw data'!B157="","",'DF raw data'!B157) -> -9.35304e-06 | C157: =IF('DF raw data'!C157="","",'DF raw data'!C157) -> 6.3572e-05 | D157: =IF('DF raw data'!D157="","",'DF raw data'!D157) -> -2.39774e-06 | F157: 6.178101009e-06 | G157: 3.037005307e-05 | H157: 5.973709185e-06 | J157: 0.0002377220373 | K157: 0.00566914502 | L157: 0.001327041876 | M157: 0.02988656153 | N157: 2.736680159e-05
A158: =IF('DF raw data'!A158="","",'DF raw data'!A158) -> -254.5 | B158: =IF('DF raw data'!B158="","",'DF raw data'!B158) -> 9.76404e-10 | C158: =IF('DF raw data'!C158="","",'DF raw data'!C158) -> 6.66112e-05 | D158: =IF('DF raw data'!D158="","",'DF raw data'!D158) -> 5.84659e-06 | F158: 1.557795209e-05 | G158: 3.342414515e-05 | H158: 1.42584364e-05 | J158: 0.0002455110133 | K158: 0.005791900527 | L158: 0.001343753948 | M158: 0.03055843851 | N158: 2.829977675e-05
A159: =IF('DF raw data'!A159="","",'DF raw data'!A159) -> -254 | B159: =IF('DF raw data'!B159="","",'DF raw data'!B159) -> -7.74646e-06 | C159: =IF('DF raw data'!C159="","",'DF raw data'!C159) -> 7.1206e-05 | D159: =IF('DF raw data'!D159="","",'DF raw data'!D159) -> -8.35319e-06 | F159: 7.792553251e-06 | G159: 3.804145967e-05 | H159: -1.092252035e-08 | J159: 0.00024940729 | K159: 0.005916604172 | L159: 0.001362774678 | M159: 0.03123982584 | N159: 2.925945616e-05
A160: =IF('DF raw data'!A160="","",'DF raw data'!A160) -> -253.5 | B160: =IF('DF raw data'!B160="","",'DF raw data'!B160) -> -1.26865e-05 | C160: =IF('DF raw data'!C160="","",'DF raw data'!C160) -> 6.2526e-05 | D160: =IF('DF raw data'!D160="","",'DF raw data'!D160) -> -2.70957e-06 | F160: 2.828307055e-06 | G160: 2.931892767e-05 | H160: 5.660351218e-06 | J160: 0.0002508214435 | K160: 0.006042014893 | L160: 0.001377434142 | M160: 0.03192854292 | N160: 3.023957427e-05
A161: =IF('DF raw data'!A161="","",'DF raw data'!A161) -> -253 | B161: =IF('DF raw data'!B161="","",'DF raw data'!B161) -> -5.76001e-06 | C161: =IF('DF raw data'!C161="","",'DF raw data'!C161) -> 6.95242e-05 | D161: =IF('DF raw data'!D161="","",'DF raw data'!D161) -> -7.39014e-06 | F161: 9.788736856e-06 | G161: 3.635141885e-05 | H161: 9.568464246e-07 | J161: 0.0002557158119 | K161: 0.006169872799 | L161: 0.001395609851 | M161: 0.03262634784 | N161: 3.124613299e-05
A162: =IF('DF raw data'!A162="","",'DF raw data'!A162) -> -252.5 | B162: =IF('DF raw data'!B162="","",'DF raw data'!B162) -> -5.63426e-06 | C162: =IF('DF raw data'!C162="","",'DF raw data'!C162) -> 7.5929e-05 | D162: =IF('DF raw data'!D162="","",'DF raw data'!D162) -> -3.59892e-06 | F162: 9.915103031e-06 | G162: 4.278760237e-05 | H162: 4.766643403e-06 | J162: 0.0002606733634 | K162: 0.006300209481 | L162: 0.001417003653 | M162: 0.03333484967 | N162: 3.228405796e-05
A163: =IF('DF raw data'!A163="","",'DF raw data'!A163) -> -252 | B163: =IF('DF raw data'!B163="","",'DF raw data'!B163) -> -4.73251e-06 | C163: =IF('DF raw data'!C163="","",'DF raw data'!C163) -> 7.47503e-05 | D163: =IF('DF raw data'!D163="","",'DF raw data'!D163) -> -1.02352e-05 | F163: 1.082127161e-05 | G163: 4.160312674e-05 | H163: -1.902154369e-06 | J163: 0.0002660839992 | K163: 0.006433251481 | L163: 0.001437805216 | M163: 0.03405375228 | N163: 3.335310023e-05
A164: =IF('DF raw data'!A164="","",'DF raw data'!A164) -> -251.5 | B164: =IF('DF raw data'!B164="","",'DF raw data'!B164) -> -9.15763e-06 | C164: =IF('DF raw data'!C164="","",'DF raw data'!C164) -> 6.74849e-05 | D164: =IF('DF raw data'!D164="","",'DF raw data'!D164) -> -7.37402e-06 | F164: 6.374468518e-06 | G164: 3.430212628e-05 | H164: 9.730454126e-07 | J164: 0.0002692712335 | K164: 0.006567887097 | L164: 0.001454956279 | M164: 0.03478123041 | N164: 3.444780262e-05
A165: =IF('DF raw data'!A165="","",'DF raw data'!A165) -> -251 | B165: =IF('DF raw data'!B165="","",'DF raw data'!B165) -> -4.03473e-06 | C165: =IF('DF raw data'!C165="","",'DF raw data'!C165) -> 7.30541e-05 | D165: =IF('DF raw data'!D165="","",'DF raw data'!D165) -> 1.31182e-06 | F165: 1.152247073e-05 | G165: 3.989861536e-05 | H165: 9.701446029e-06 | J165: 0.0002750324688 | K165: 0.006705403332 | L165: 0.001474905587 | M165: 0.03551868321 | N165: 3.557329729e-05
A166: =IF('DF raw data'!A166="","",'DF raw data'!A166) -> -250.5 | B166: =IF('DF raw data'!B166="","",'DF raw data'!B166) -> -1.14614e-05 | C166: =IF('DF raw data'!C166="","",'DF raw data'!C166) -> 7.30071e-05 | D166: =IF('DF raw data'!D166="","",'DF raw data'!D166) -> -1.35279e-05 | F166: 4.059410045e-06 | G166: 3.985138506e-05 | H166: -5.210988599e-06 | J166: 0.0002770621739 | K166: 0.006843934419 | L166: 0.001494831279 | M166: 0.03626609885 | N166: 3.672893929e-05
A167: =IF('DF raw data'!A167="","",'DF raw data'!A167) -> -250 | B167: =IF('DF raw data'!B167="","",'DF raw data'!B167) -> -1.0177e-05 | C167: =IF('DF raw data'!C167="","",'DF raw data'!C167) -> 7.15379e-05 | D167: =IF('DF raw data'!D167="","",'DF raw data'!D167) -> -1.70169e-05 | F167: 5.350103605e-06 | G167: 3.837498598e-05 | H167: -8.717084699e-06 | J167: 0.0002797372257 | K167: 0.006983803032 | L167: 0.001514018772 | M167: 0.03702310823 | N167: 3.791419217e-05
A168: =IF('DF raw data'!A168="","",'DF raw data'!A168) -> -249.5 | B168: =IF('DF raw data'!B168="","",'DF raw data'!B168) -> -1.46036e-05 | C168: =IF('DF raw data'!C168="","",'DF raw data'!C168) -> 6.32496e-05 | D168: =IF('DF raw data'!D168="","",'DF raw data'!D168) -> -1.19467e-05 | F168: 9.018132649e-07 | G168: 3.004607331e-05 | H168: -3.622040719e-06 | J168: 0.0002801881323 | K168: 0.007123897098 | L168: 0.001529041809 | M168: 0.03778762914 | N168: 3.912242929e-05
A169: =IF('DF raw data'!A169="","",'DF raw data'!A169) -> -249 | B169: =IF('DF raw data'!B169="","",'DF raw data'!B169) -> -3.12811e-06 | C169: =IF('DF raw data'!C169="","",'DF raw data'!C169) -> 6.7221e-05 | D169: =IF('DF raw data'!D169="","",'DF raw data'!D169) -> -1.28244e-05 | F169: 1.243353317e-05 | G169: 3.403693317e-05 | H169: -4.504041449e-06 | J169: 0.0002864048989 | K169: 0.007267099547 | L169: 0.001546060276 | M169: 0.03856065928 | N169: 4.035859436e-05
A170: =IF('DF raw data'!A170="","",'DF raw data'!A170) -> -248.5 | B170: =IF('DF raw data'!B170="","",'DF raw data'!B170) -> -1.11421e-05 | C170: =IF('DF raw data'!C170="","",'DF raw data'!C170) -> 6.49602e-05 | D170: =IF('DF raw data'!D170="","",'DF raw data'!D170) -> -1.13876e-05 | F170: 4.380274615e-06 | G170: 3.176505525e-05 | H170: -3.060201129e-06 | J170: 0.0002885950362 | K170: 0.007411397065 | L170: 0.001561942803 | M170: 0.03934163068 | N170: 4.162007057e-05
A171: =IF('DF raw data'!A171="","",'DF raw data'!A171) -> -248 | B171: =IF('DF raw data'!B171="","",'DF raw data'!B171) -> -3.45259e-06 | C171: =IF('DF raw data'!C171="","",'DF raw data'!C171) -> 6.21975e-05 | D171: =IF('DF raw data'!D171="","",'DF raw data'!D171) -> -6.52135e-06 | F171: 1.210746321e-05 | G171: 2.898881802e-05 | H171: 1.829893496e-06 | J171: 0.0002946487678 | K171: 0.007558721449 | L171: 0.001576437212 | M171: 0.04012984928 | N171: 4.290605666e-05
A172: =IF('DF raw data'!A172="","",'DF raw data'!A172) -> -247.5 | B172: =IF('DF raw data'!B172="","",'DF raw data'!B172) -> -1.24937e-05 | C172: =IF('DF raw data'!C172="","",'DF raw data'!C172) -> 6.09211e-05 | D172: =IF('DF raw data'!D172="","",'DF raw data'!D172) -> -3.24853e-06 | F172: 3.022051775e-06 | G172: 2.770616366e-05 | H172: 5.118750314e-06 | J172: 0.0002961597937 | K172: 0.007706801346 | L172: 0.001590290294 | M172: 0.04092499443 | N172: 4.421442358e-05
A173: =IF('DF raw data'!A173="","",'DF raw data'!A173) -> -247 | B173: =IF('DF raw data'!B173="","",'DF raw data'!B173) -> 5.85942e-07 | C173: =IF('DF raw data'!C173="","",'DF raw data'!C173) -> 5.80437e-05 | D173: =IF('DF raw data'!D173="","",'DF raw data'!D173) -> -6.34129e-06 | F173: 1.616578402e-05 | G173: 2.48146644e-05 | H173: 2.01083579e-06 | J173: 0.0003042426857 | K173: 0.007858922689 | L173: 0.001602697626 | M173: 0.04172634324 | N173: 4.554502523e-05
A174: =IF('DF raw data'!A174="","",'DF raw data'!A174) -> -246.5 | B174: =IF('DF raw data'!B174="","",'DF raw data'!B174) -> -1.39774e-06 | C174: =IF('DF raw data'!C174="","",'DF raw data'!C174) -> 5.27146e-05 | D174: =IF('DF raw data'!D174="","",'DF raw data'!D174) -> -1.19832e-05 | F174: 1.417238198e-05 | G174: 1.945945181e-05 | H174: -3.658719569e-06 | J174: 0.0003113288767 | K174: 0.008014587127 | L174: 0.001612427352 | M174: 0.04253255692 | N174: 4.689344905e-05
A175: =IF('DF raw data'!A175="","",'DF raw data'!A175) -> -246 | B175: =IF('DF raw data'!B175="","",'DF raw data'!B175) -> 5.45561e-06 | C175: =IF('DF raw data'!C175="","",'DF raw data'!C175) -> 5.67326e-05 | D175: =IF('DF raw data'!D175="","",'DF raw data'!D175) -> -2.96938e-06 | F175: 2.105931339e-05 | G175: 2.349714001e-05 | H175: 5.399268149e-06 | J175: 0.0003218585334 | K175: 0.008175516394 | L175: 0.001624175922 | M175: 0.04334464488 | N175: 4.826421922e-05
A176: =IF('DF raw data'!A176="","",'DF raw data'!A176) -> -245.5 | B176: =IF('DF raw data'!B176="","",'DF raw data'!B176) -> -6.01662e-06 | C176: =IF('DF raw data'!C176="","",'DF raw data'!C176) -> 5.85718e-05 | D176: =IF('DF raw data'!D176="","",'DF raw data'!D176) -> -7.08252e-06 | F176: 9.530869467e-06 | G176: 2.534535209e-05 | H176: 1.265973763e-06 | J176: 0.0003266239681 | K176: 0.008338828378 | L176: 0.001636848598 | M176: 0.04416306918 | N176: 4.965719749e-05
A177: =IF('DF raw data'!A177="","",'DF raw data'!A177) -> -245 | B177: =IF('DF raw data'!B177="","",'DF raw data'!B177) -> -1.39445e-06 | C177: =IF('DF raw data'!C177="","",'DF raw data'!C177) -> 6.11711e-05 | D177: =IF('DF raw data'!D177="","",'DF raw data'!D177) -> -1.70482e-05 | F177: 1.41756881e-05 | G177: 2.795738866e-05 | H177: -8.748538069e-06 | J177: 0.0003337118122 | K177: 0.008505684284 | L177: 0.001650827293 | M177: 0.04498848283 | N177: 5.107549465e-05
A178: =IF('DF raw data'!A178="","",'DF raw data'!A178) -> -244.5 | B178: =IF('DF raw data'!B178="","",'DF raw data'!B178) -> 3.73801e-06 | C178: =IF('DF raw data'!C178="","",'DF raw data'!C178) -> 6.34544e-05 | D178: =IF('DF raw data'!D178="","",'DF raw data'!D178) -> -2.30982e-05 | F178: 1.933329715e-05 | G178: 3.025187683e-05 | H178: -1.482818307e-05 | J178: 0.0003433784607 | K178: 0.008677373515 | L178: 0.001665953231 | M178: 0.04582145944 | N178: 5.252214912e-05
A179: =IF('DF raw data'!A179="","",'DF raw data'!A179) -> -244 | B179: =IF('DF raw data'!B179="","",'DF raw data'!B179) -> -1.06935e-05 | C179: =IF('DF raw data'!C179="","",'DF raw data'!C179) -> 6.49618e-05 | D179: =IF('DF raw data'!D179="","",'DF raw data'!D179) -> -1.14019e-05 | F179: 4.831072755e-06 | G179: 3.176666309e-05 | H179: -3.074571199e-06 | J179: 0.0003457939971 | K179: 0.008850270513 | L179: 0.001681836562 | M179: 0.04666237772 | N179: 5.399622298e-05
A180: =IF('DF raw data'!A180="","",'DF raw data'!A180) -> -243.5 | B180: =IF('DF raw data'!B180="","",'DF raw data'!B180) -> 2.38621e-06 | C180: =IF('DF raw data'!C180="","",'DF raw data'!C180) -> 5.83049e-05 | D180: =IF('DF raw data'!D180="","",'DF raw data'!D180) -> -1.46306e-05 | F180: 1.797487333e-05 | G180: 2.507714428e-05 | H180: -6.319091829e-06 | J180: 0.0003547814338 | K180: 0.00902766123 | L180: 0.001694375135 | M180: 0.04750956529 | N180: 5.549461146e-05
A181: =IF('DF raw data'!A181="","",'DF raw data'!A181) -> -243 | B181: =IF('DF raw data'!B181="","",'DF raw data'!B181) -> 1.28697e-06 | C181: =IF('DF raw data'!C181="","",'DF raw data'!C181) -> 5.92204e-05 | D181: =IF('DF raw data'!D181="","",'DF raw data'!D181) -> -2.05723e-07 | F181: 1.687024706e-05 | G181: 2.599713023e-05 | H181: 8.176467068e-06 | J181: 0.0003632165573 | K181: 0.009209269509 | L181: 0.0017073737 | M181: 0.04836325214 | N181: 5.701813707e-05
A182: =IF('DF raw data'!A182="","",'DF raw data'!A182) -> -242.5 | B182: =IF('DF raw data'!B182="","",'DF raw data'!B182) -> -2.50348e-07 | C182: =IF('DF raw data'!C182="","",'DF raw data'!C182) -> 6.1454e-05 | D182: =IF('DF raw data'!D182="","",'DF raw data'!D182) -> -2.00161e-06 | F182: 1.53253962e-05 | G182: 2.824167487e-05 | H182: 6.371780222e-06 | J182: 0.0003708792554 | K182: 0.009394709136 | L182: 0.001721494537 | M182: 0.04922399941 | N182: 5.85686845e-05
A183: =IF('DF raw data'!A183="","",'DF raw data'!A183) -> -242 | B183: =IF('DF raw data'!B183="","",'DF raw data'!B183) -> 3.28401e-06 | C183: =IF('DF raw data'!C183="","",'DF raw data'!C183) -> 5.70271e-05 | D183: =IF('DF raw data'!D183="","",'DF raw data'!D183) -> -1.51618e-05 | F183: 1.887707255e-05 | G183: 2.379308306e-05 | H183: -6.852894709e-06 | J183: 0.0003803177917 | K183: 0.009584868032 | L183: 0.001733391079 | M183: 0.05009069495 | N183: 6.014332763e-05
A184: =IF('DF raw data'!A184="","",'DF raw data'!A184) -> -241.5 | B184: =IF('DF raw data'!B184="","",'DF raw data'!B184) -> 3.5317e-06 | C184: =IF('DF raw data'!C184="","",'DF raw data'!C184) -> 5.62919e-05 | D184: =IF('DF raw data'!D184="","",'DF raw data'!D184) -> -1.71792e-06 | F184: 1.912597623e-05 | G184: 2.305428058e-05 | H184: 6.656860303e-06 | J184: 0.0003898807798 | K184: 0.009779808422 | L184: 0.001744918219 | M184: 0.05096315406 | N184: 6.174170093e-05
A185: =IF('DF raw data'!A185="","",'DF raw data'!A185) -> -241 | B185: =IF('DF raw data'!B185="","",'DF raw data'!B185) -> -6.59126e-06 | C185: =IF('DF raw data'!C185="","",'DF raw data'!C185) -> 5.85511e-05 | D185: =IF('DF raw data'!D185="","",'DF raw data'!D185) -> -1.04161e-05 | F185: 8.953413731e-06 | G185: 2.532455066e-05 | H185: -2.083940779e-06 | J185: 0.0003943574867 | K185: 0.009976987165 | L185: 0.001757580494 | M185: 0.05184194431 | N185: 6.336400444e-05
A186: =IF('DF raw data'!A186="","",'DF raw data'!A186) -> -240.5 | B186: =IF('DF raw data'!B186="","",'DF raw data'!B186) -> -7.16503e-06 | C186: =IF('DF raw data'!C186="","",'DF raw data'!C186) -> 5.85354e-05 | D186: =IF('DF raw data'!D186="","",'DF raw data'!D186) -> -1.54977e-05 | F186: 8.376832258e-06 | G186: 2.530877373e-05 | H186: -7.190440619e-06 | J186: 0.0003985459028 | K186: 0.01017626012 | L186: 0.001770234881 | M186: 0.05272706175 | N186: 6.501028963e-05
A187: =IF('DF raw data'!A187="","",'DF raw data'!A187) -> -240 | B187: =IF('DF raw data'!B187="","",'DF raw data'!B187) -> -8.89867e-06 | C187: =IF('DF raw data'!C187="","",'DF raw data'!C187) -> 5.83925e-05 | D187: =IF('DF raw data'!D187="","",'DF raw data'!D187) -> -1.13084e-05 | F187: 6.634697422e-06 | G187: 2.516517352e-05 | H187: -2.980613049e-06 | J187: 0.0004018632515 | K187: 0.01037719174 | L187: 0.001782817468 | M187: 0.05361847048 | N187: 6.668025573e-05
A188: =IF('DF raw data'!A188="","",'DF raw data'!A188) -> -239.5 | B188: =IF('DF raw data'!B188="","",'DF raw data'!B188) -> -7.93917e-06 | C188: =IF('DF raw data'!C188="","",'DF raw data'!C188) -> 6.72318e-05 | D188: =IF('DF raw data'!D188="","",'DF raw data'!D188) -> -7.93675e-06 | F188: 7.598898972e-06 | G188: 3.404778609e-05 | H188: 4.075580356e-07 | J188: 0.000405662701 | K188: 0.01058002309 | L188: 0.001799841361 | M188: 0.05451839116 | N188: 6.83822513e-05
A189: =IF('DF raw data'!A189="","",'DF raw data'!A189) -> -239 | B189: =IF('DF raw data'!B189="","",'DF raw data'!B189) -> -1.35125e-05 | C189: =IF('DF raw data'!C189="","",'DF raw data'!C189) -> 6.9868e-05 | D189: =IF('DF raw data'!D189="","",'DF raw data'!D189) -> -1.37398e-05 | F189: 1.998259655e-06 | G189: 3.669690347e-05 | H189: -5.423926909e-06 | J189: 0.0004066618308 | K189: 0.01078335401 | L189: 0.001818189813 | M189: 0.05542748607 | N189: 7.011784532e-05
A190: =IF('DF raw data'!A190="","",'DF raw data'!A190) -> -238.5 | B190: =IF('DF raw data'!B190="","",'DF raw data'!B190) -> -8.90138e-06 | C190: =IF('DF raw data'!C190="","",'DF raw data'!C190) -> 6.60292e-05 | D190: =IF('DF raw data'!D190="","",'DF raw data'!D190) -> -7.13227e-06 | F190: 6.631974143e-06 | G190: 3.283929335e-05 | H190: 1.215979988e-06 | J190: 0.0004099778179 | K190: 0.01098834292 | L190: 0.001834609459 | M190: 0.0563447908 | N190: 7.188478216e-05
A191: =IF('DF raw data'!A191="","",'DF raw data'!A191) -> -238 | B191: =IF('DF raw data'!B191="","",'DF raw data'!B191) -> -9.92693e-06 | C191: =IF('DF raw data'!C191="","",'DF raw data'!C191) -> 6.29475e-05 | D191: =IF('DF raw data'!D191="","",'DF raw data'!D191) -> -7.28536e-06 | F191: 5.601398948e-06 | G191: 2.974249302e-05 | H191: 1.062139847e-06 | J191: 0.0004127785174 | K191: 0.01119473218 | L191: 0.001849480706 | M191: 0.05726953115 | N191: 7.368026466e-05
A192: =IF('DF raw data'!A192="","",'DF raw data'!A192) -> -237.5 | B192: =IF('DF raw data'!B192="","",'DF raw data'!B192) -> -8.96443e-06 | C192: =IF('DF raw data'!C192="","",'DF raw data'!C192) -> 6.00649e-05 | D192: =IF('DF raw data'!D192="","",'DF raw data'!D192) -> -8.556e-06 | F192: 6.568615198e-06 | G192: 2.684576828e-05 | H192: -2.147262894e-07 | J192: =F192*$G$3+J191 -> 0.000416062825 | K192: =J192*$G$3+K191 -> 0.01140276359 | L192: =G192*$G$3+L191 -> 0.00186290359 | M192: =L192*$G$3+M191 -> 0.05820098294 | N192: =(J192^2+L192^2)*$G$3+N191 -> 7.550202369e-05
A193: =IF('DF raw data'!A193="","",'DF raw data'!A193) -> -237 | B193: =IF('DF raw data'!B193="","",'DF raw data'!B193) -> -6.30628e-07 | C193: =IF('DF raw data'!C193="","",'DF raw data'!C193) -> 6.76264e-05 | D193: =IF('DF raw data'!D193="","",'DF raw data'!D193) -> -8.69537e-06 | F193: 1.494325283e-05 | G193: 3.444431963e-05 | H193: -3.547792024e-07 | J193: 0.0004235344514 | K193: 0.01161453081 | L193: 0.00188012575 | M193: 0.05914104582 | N193: 7.735915082e-05
A194: =IF('DF raw data'!A194="","",'DF raw data'!A194) -> -236.5 | B194: =IF('DF raw data'!B194="","",'DF raw data'!B194) -> -1.11423e-05 | C194: =IF('DF raw data'!C194="","",'DF raw data'!C194) -> 6.58281e-05 | D194: =IF('DF raw data'!D194="","",'DF raw data'!D194) -> -1.11267e-05 | F194: 4.380073635e-06 | G194: 3.263720796e-05 | H194: -2.798022719e-06 | J194: 0.0004257244882 | K194: 0.01182739306 | L194: 0.001896444354 | M194: 0.060089268 | N194: 7.924802208e-05
A195: =IF('DF raw data'!A195="","",'DF raw data'!A195) -> -236 | B195: =IF('DF raw data'!B195="","",'DF raw data'!B195) -> -6.91753e-06 | C195: =IF('DF raw data'!C195="","",'DF raw data'!C195) -> 6.26364e-05 | D195: =IF('DF raw data'!D195="","",'DF raw data'!D195) -> -1.75717e-06 | F195: =(1-$G$1*($B$54-$G$2))*(B195-F$5) -> 8.625545008e-06 | G195: =(1-$G$1*($B$54-$G$2))*(C195-G$5) -> 2.942986863e-05 | H195: =(1-$G$1*($B$54-$G$2))*(D195-H$5) -> 6.617417978e-06 | J195: 0.0004300372607 | K195: 0.01204241169 | L195: 0.001911159288 | M195: 0.06104484764 | N195: 8.116675302e-05
A196: =IF('DF raw data'!A196="","",'DF raw data'!A196) -> -235.5 | B196: =IF('DF raw data'!B196="","",'DF raw data'!B196) -> -9.92764e-06 | C196: =IF('DF raw data'!C196="","",'DF raw data'!C196) -> 6.11588e-05 | D196: =IF('DF raw data'!D196="","",'DF raw data'!D196) -> -6.19678e-06 | F196: 5.600685469e-06 | G196: 2.794502839e-05 | H196: 2.156053889e-06 | J196: 0.0004328376034 | K196: 0.01225883049 | L196: 0.001925131802 | M196: 0.06200741354 | N196: 8.311349344e-05
A197: =IF('DF raw data'!A197="","",'DF raw data'!A197) -> -235 | B197: =IF('DF raw data'!B197="","",'DF raw data'!B197) -> 1.00687e-05 | C197: =IF('DF raw data'!C197="","",'DF raw data'!C197) -> 6.03754e-05 | D197: =IF('DF raw data'!D197="","",'DF raw data'!D197) -> 1.13515e-06 | F197: 2.569500753e-05 | G197: 2.715778973e-05 | H197: 9.523910346e-06 | J197: 0.0004456851072 | K197: 0.01248167304 | L197: 0.001938710697 | M197: 0.06297676889 | N197: 8.509211063e-05
A198: =IF('DF raw data'!A198="","",'DF raw data'!A198) -> -234.5 | B198: =IF('DF raw data'!B198="","",'DF raw data'!B198) -> -1.59645e-06 | C198: =IF('DF raw data'!C198="","",'DF raw data'!C198) -> 6.97808e-05 | D198: =IF('DF raw data'!D198="","",'DF raw data'!D198) -> -2.3087e-06 | F198: 1.39726983e-05 | G198: 3.660927619e-05 | H198: 6.063185481e-06 | J198: 0.0004526714564 | K198: 0.01270800877 | L198: 0.001957015335 | M198: 0.06395527656 | N198: 8.710952087e-05
A199: =IF('DF raw data'!A199="","",'DF raw data'!A199) -> -234 | B199: =IF('DF raw data'!B199="","",'DF raw data'!B199) -> -1.7932e-05 | C199: =IF('DF raw data'!C199="","",'DF raw data'!C199) -> 6.61364e-05 | D199: =IF('DF raw data'!D199="","",'DF raw data'!D199) -> -1.96561e-05 | F199: -2.442895895e-06 | G199: 3.294701863e-05 | H199: -1.136921678e-05 | J199: 0.0004514500084 | K199: 0.01293373378 | L199: 0.001973488845 | M199: 0.06494202098 | N199: 8.915875353e-05
A200: =IF('DF raw data'!A200="","",'DF raw data'!A200) -> -233.5 | B200: =IF('DF raw data'!B200="","",'DF raw data'!B200) -> 4.43944e-06 | C200: =IF('DF raw data'!C200="","",'DF raw data'!C200) -> 6.88151e-05 | D200: =IF('DF raw data'!D200="","",'DF raw data'!D200) -> -1.75847e-05 | F200: 2.003816416e-05 | G200: 3.563884426e-05 | H200: -9.287666919e-06 | J200: 0.0004614690905 | K200: 0.01316446832 | L200: 0.001991308267 | M200: 0.06593767511 | N200: 9.12478847e-05
... 1079 more rows

Sheet 15 mm
A1: =IF('DF raw data'!E1="","",'DF raw data'!E1) -> Number of header lines | B1: =IF('DF raw data'!F1="","",'DF raw data'!F1) -> 54 | C1: =IF('DF raw data'!C1="","",'DF raw data'!C1) ->  | D1: =IF('DF raw data'!D1="","",'DF raw data'!D1) ->  | F1: T_coeff | G1: -0.001 | H1: /degC | J1: IBy total | K1: =J1267*1000 -> -0.4594103565 | L1: muTm | M1: =L1267*1000 -> -26.59243126 | R1: DF ref | S1: 1
A2: =IF('DF raw data'!E2="","",'DF raw data'!E2) -> Measured by | B2: =IF('DF raw data'!F2="","",'DF raw data'!F2) -> Danfysik | C2: =IF('DF raw data'!C2="","",'DF raw data'!C2) ->  | D2: =IF('DF raw data'!D2="","",'DF raw data'!D2) ->  | F2: Tcorr | G2: 20 | H2: degC | J2: JBy total | K2: =K1267 -> -21.88473558 | L2: muTm^2 | M2: =M1267 -> -5.938162759
A3: =IF('DF raw data'!E3="","",'DF raw data'!E3) -> Operator | B3: =IF('DF raw data'!F3="","",'DF raw data'!F3) -> PMHA | C3: =IF('DF raw data'!C3="","",'DF raw data'!C3) ->  | D3: =IF('DF raw data'!D3="","",'DF raw data'!D3) ->  | F3: Step | G3: =A68-A67 -> 0.5 | H3: mm | J3: PI total | K3: =N1267 -> 7078.618416 | L3: T^2mm^3
A4: =IF('DF raw data'!E4="","",'DF raw data'!E4) -> Data-time | B4: =IF('DF raw data'!F4="","",'DF raw data'!F4) -> 02-10-2024, 15:53:46 | C4: =IF('DF raw data'!C4="","",'DF raw data'!C4) ->  | D4: =IF('DF raw data'!D4="","",'DF raw data'!D4) -> 
A5: =IF('DF raw data'!E5="","",'DF raw data'!E5) -> Project | B5: =IF('DF raw data'!F5="","",'DF raw data'!F5) -> 504314 | C5: =IF('DF raw data'!C5="","",'DF raw data'!C5) ->  | D5: Bamb avr | F5: =(AVERAGE(B67:B107) + AVERAGE(B1227:B1267))/2 -> -1.387580043e-05 | G5: =(AVERAGE(C67:C107) + AVERAGE(C1227:C1267))/2 -> 1.7094885e-05 | H5: =(AVERAGE(D67:D107) + AVERAGE(D1227:D1267))/2 -> -1.006080582e-05
A6: =IF('DF raw data'!E6="","",'DF raw data'!E6) -> Magnet type | B6: =IF('DF raw data'!F6="","",'DF raw data'!F6) -> Dipole | C6: =IF('DF raw data'!C6="","",'DF raw data'!C6) -> 
A7: =IF('DF raw data'!E7="","",'DF raw data'!E7) -> Magnet nr. | B7: =IF('DF raw data'!F7="","",'DF raw data'!F7) -> 2410109 | C7: =IF('DF raw data'!C7="","",'DF raw data'!C7) -> 
A8: =IF('DF raw data'!E8="","",'DF raw data'!E8) -> Meas. number | B8: =IF('DF raw data'!F8="","",'DF raw data'!F8) -> 964 | C8: =IF('DF raw data'!C8="","",'DF raw data'!C8) -> 
A9: =IF('DF raw data'!E9="","",'DF raw data'!E9) -> Add. info | B9: =IF('DF raw data'!F9="","",'DF raw data'!F9) ->  | C9: =IF('DF raw data'!C9="","",'DF raw data'!C9) ->  | D9: =IF('DF raw data'!D9="","",'DF raw data'!D9) -> 
A10: =IF('DF raw data'!E10="","",'DF raw data'!E10) -> Device | B10: =IF('DF raw data'!F10="","",'DF raw data'!F10) -> (HAL) HALL-PROBE | C10: =IF('DF raw data'!C10="","",'DF raw data'!C10) ->  | D10: =IF('DF raw data'!D10="","",'DF raw data'!D10) -> 
A11: =IF('DF raw data'!E11="","",'DF raw data'!E11) -> Goal | B11: =IF('DF raw data'!F11="","",'DF raw data'!F11) -> (AXI) AXis Integral (Line, EFB) | C11: =IF('DF raw data'!C11="","",'DF raw data'!C11) ->  | D11: =IF('DF raw data'!D11="","",'DF raw data'!D11) -> 
A12: =IF('DF raw data'!E12="","",'DF raw data'!E12) -> Power supply mode | B12: =IF('DF raw data'!F12="","",'DF raw data'!F12) -> (PM) Permanent Magnet (no MPS in use) | C12: =IF('DF raw data'!C12="","",'DF raw data'!C12) ->  | D12: =IF('DF raw data'!D12="","",'DF raw data'!D12) -> 
A13: =IF('DF raw data'!E13="","",'DF raw data'!E13) -> Data format | B13: =IF('DF raw data'!F13="","",'DF raw data'!F13) -> Raw data text file | C13: =IF('DF raw data'!C13="","",'DF raw data'!C13) ->  | D13: =IF('DF raw data'!D13="","",'DF raw data'!D13) -> 
A14: =IF('DF raw data'!E14="","",'DF raw data'!E14) -> Direction of the pos. x-axis | B14: =IF('DF raw data'!F14="","",'DF raw data'!F14) -> See test program | C14: =IF('DF raw data'!C14="","",'DF raw data'!C14) ->  | D14: =IF('DF raw data'!D14="","",'DF raw data'!D14) -> 
A15: =IF('DF raw data'!E15="","",'DF raw data'!E15) -> Direction of the pos. y-axis | B15: =IF('DF raw data'!F15="","",'DF raw data'!F15) -> Vertical up | C15: =IF('DF raw data'!C15="","",'DF raw data'!C15) ->  | D15: =IF('DF raw data'!D15="","",'DF raw data'!D15) -> 
A16: =IF('DF raw data'!E16="","",'DF raw data'!E16) -> Direction of the pos. z-axis | B16: =IF('DF raw data'!F16="","",'DF raw data'!F16) -> See test program | C16: =IF('DF raw data'!C16="","",'DF raw data'!C16) ->  | D16: =IF('DF raw data'!D16="","",'DF raw data'!D16) -> 
A17: =IF('DF raw data'!E17="","",'DF raw data'!E17) -> Mapper type | B17: =IF('DF raw data'!F17="","",'DF raw data'!F17) -> Precision Hall Mapper | C17: =IF('DF raw data'!C17="","",'DF raw data'!C17) ->  | D17: =IF('DF raw data'!D17="","",'DF raw data'!D17) -> 
A18: =IF('DF raw data'!E18="","",'DF raw data'!E18) -> Mapper Danfysik Reg. Number | B18: =IF('DF raw data'!F18="","",'DF raw data'!F18) -> 2033-D (mapper 1) | C18: =IF('DF raw data'!C18="","",'DF raw data'!C18) ->  | D18: =IF('DF raw data'!D18="","",'DF raw data'!D18) -> 
A19: =IF('DF raw data'!E19="","",'DF raw data'!E19) -> Measurement consept | B19: =IF('DF raw data'!F19="","",'DF raw data'!F19) -> Square line grid | C19: =IF('DF raw data'!C19="","",'DF raw data'!C19) ->  | D19: =IF('DF raw data'!D19="","",'DF raw data'!D19) -> 
A20: =IF('DF raw data'!E20="","",'DF raw data'!E20) -> Mode | B20: =IF('DF raw data'!F20="","",'DF raw data'!F20) -> On-the-fly measurement | C20: =IF('DF raw data'!C20="","",'DF raw data'!C20) ->  | D20: =IF('DF raw data'!D20="","",'DF raw data'!D20) -> 
A21: =IF('DF raw data'!E21="","",'DF raw data'!E21) ->  | B21: =IF('DF raw data'!F21="","",'DF raw data'!F21) ->  | C21: =IF('DF raw data'!C21="","",'DF raw data'!C21) ->  | D21: =IF('DF raw data'!D21="","",'DF raw data'!D21) -> 
A22: =IF('DF raw data'!E22="","",'DF raw data'!E22) -> Probe Name | B22: =IF('DF raw data'!F22="","",'DF raw data'!F22) -> ID12_By | C22: =IF('DF raw data'!C22="","",'DF raw data'!C22) ->  | D22: =IF('DF raw data'!D22="","",'DF raw data'!D22) -> 
A23: =IF('DF raw data'!E23="","",'DF raw data'!E23) -> Probe Type | B23: =IF('DF raw data'!F23="","",'DF raw data'!F23) -> DF_ID_3D_Bxyz | C23: =IF('DF raw data'!C23="","",'DF raw data'!C23) ->  | D23: =IF('DF raw data'!D23="","",'DF raw data'!D23) -> 
A24: =IF('DF raw data'!E24="","",'DF raw data'!E24) -> Probe Danfysik Reg. Number | B24: =IF('DF raw data'!F24="","",'DF raw data'!F24) -> 2277 | C24: =IF('DF raw data'!C24="","",'DF raw data'!C24) ->  | D24: =IF('DF raw data'!D24="","",'DF raw data'!D24) -> 
A25: =IF('DF raw data'!E25="","",'DF raw data'!E25) -> Probe Axis | B25: =IF('DF raw data'!F25="","",'DF raw data'!F25) -> By | C25: =IF('DF raw data'!C25="","",'DF raw data'!C25) ->  | D25: =IF('DF raw data'!D25="","",'DF raw data'!D25) -> 
A26: =IF('DF raw data'!E26="","",'DF raw data'!E26) -> Probe Current Supply | B26: =IF('DF raw data'!F26="","",'DF raw data'!F26) -> 1825-D | C26: =IF('DF raw data'!C26="","",'DF raw data'!C26) ->  | D26: =IF('DF raw data'!D26="","",'DF raw data'!D26) -> 
A27: =IF('DF raw data'!E27="","",'DF raw data'!E27) -> Probe Gain Correction | B27: =IF('DF raw data'!F27="","",'DF raw data'!F27) -> 0.99618 | C27: =IF('DF raw data'!C27="","",'DF raw data'!C27) ->  | D27: =IF('DF raw data'!D27="","",'DF raw data'!D27) -> 
A28: =IF('DF raw data'!E28="","",'DF raw data'!E28) -> Probe Offset Correction | B28: =IF('DF raw data'!F28="","",'DF raw data'!F28) -> 0.002742 | C28: =IF('DF raw data'!C28="","",'DF raw data'!C28) ->  | D28: =IF('DF raw data'!D28="","",'DF raw data'!D28) -> 
A29: =IF('DF raw data'!E29="","",'DF raw data'!E29) -> DVM Number | B29: =IF('DF raw data'!F29="","",'DF raw data'!F29) -> 2 | C29: =IF('DF raw data'!C29="","",'DF raw data'!C29) ->  | D29: =IF('DF raw data'!D29="","",'DF raw data'!D29) -> 
A30: =IF('DF raw data'!E30="","",'DF raw data'!E30) -> DVM Type | B30: =IF('DF raw data'!F30="","",'DF raw data'!F30) -> K2701 | C30: =IF('DF raw data'!C30="","",'DF raw data'!C30) ->  | D30: =IF('DF raw data'!D30="","",'DF raw data'!D30) -> 
A31: =IF('DF raw data'!E31="","",'DF raw data'!E31) -> DVM Danfysik Reg. Number | B31: =IF('DF raw data'!F31="","",'DF raw data'!F31) -> 1743-D | C31: =IF('DF raw data'!C31="","",'DF raw data'!C31) ->  | D31: =IF('DF raw data'!D31="","",'DF raw data'!D31) -> 
A32: =IF('DF raw data'!E32="","",'DF raw data'!E32) -> Probe Name | B32: =IF('DF raw data'!F32="","",'DF raw data'!F32) -> ID12_Bx | C32: =IF('DF raw data'!C32="","",'DF raw data'!C32) ->  | D32: =IF('DF raw data'!D32="","",'DF raw data'!D32) -> 
A33: =IF('DF raw data'!E33="","",'DF raw data'!E33) -> Probe Type | B33: =IF('DF raw data'!F33="","",'DF raw data'!F33) -> DF_ID_3D_Bxyz | C33: =IF('DF raw data'!C33="","",'DF raw data'!C33) ->  | D33: =IF('DF raw data'!D33="","",'DF raw data'!D33) -> 
A34: =IF('DF raw data'!E34="","",'DF raw data'!E34) -> Probe Danfysik Reg. Number | B34: =IF('DF raw data'!F34="","",'DF raw data'!F34) -> 2277 | C34: =IF('DF raw data'!C34="","",'DF raw data'!C34) ->  | D34: =IF('DF raw data'!D34="","",'DF raw data'!D34) -> 
A35: =IF('DF raw data'!E35="","",'DF raw data'!E35) -> Probe Axis | B35: =IF('DF raw data'!F35="","",'DF raw data'!F35) -> Bx | C35: =IF('DF raw data'!C35="","",'DF raw data'!C35) ->  | D35: =IF('DF raw data'!D35="","",'DF raw data'!D35) -> 
A36: =IF('DF raw data'!E36="","",'DF raw data'!E36) -> Probe Current Supply | B36: =IF('DF raw data'!F36="","",'DF raw data'!F36) -> 1825-D | C36: =IF('DF raw data'!C36="","",'DF raw data'!C36) ->  | D36: =IF('DF raw data'!D36="","",'DF raw data'!D36) -> 
A37: =IF('DF raw data'!E37="","",'DF raw data'!E37) -> Probe Gain Correction | B37: =IF('DF raw data'!F37="","",'DF raw data'!F37) -> 1 | C37: =IF('DF raw data'!C37="","",'DF raw data'!C37) ->  | D37: =IF('DF raw data'!D37="","",'DF raw data'!D37) -> 
A38: =IF('DF raw data'!E38="","",'DF raw data'!E38) -> Probe Offset Correction | B38: =IF('DF raw data'!F38="","",'DF raw data'!F38) -> -0.17582 | C38: =IF('DF raw data'!C38="","",'DF raw data'!C38) ->  | D38: =IF('DF raw data'!D38="","",'DF raw data'!D38) -> 
A39: =IF('DF raw data'!E39="","",'DF raw data'!E39) -> DVM Number | B39: =IF('DF raw data'!F39="","",'DF raw data'!F39) -> 3 | C39: =IF('DF raw data'!C39="","",'DF raw data'!C39) ->  | D39: =IF('DF raw data'!D39="","",'DF raw data'!D39) -> 
A40: =IF('DF raw data'!E40="","",'DF raw data'!E40) -> DVM Type | B40: =IF('DF raw data'!F40="","",'DF raw data'!F40) -> K2701 | C40: =IF('DF raw data'!C40="","",'DF raw data'!C40) ->  | D40: =IF('DF raw data'!D40="","",'DF raw data'!D40) -> 
A41: =IF('DF raw data'!E41="","",'DF raw data'!E41) -> DVM Danfysik Reg. Number | B41: =IF('DF raw data'!F41="","",'DF raw data'!F41) -> 1744-D | C41: =IF('DF raw data'!C41="","",'DF raw data'!C41) ->  | D41: =IF('DF raw data'!D41="","",'DF raw data'!D41) -> 
A42: =IF('DF raw data'!E42="","",'DF raw data'!E42) -> Probe Name | B42: =IF('DF raw data'!F42="","",'DF raw data'!F42) -> ID12_Bz | C42: =IF('DF raw data'!C42="","",'DF raw data'!C42) ->  | D42: =IF('DF raw data'!D42="","",'DF raw data'!D42) -> 
A43: =IF('DF raw data'!E43="","",'DF raw data'!E43) -> Probe Type | B43: =IF('DF raw data'!F43="","",'DF raw data'!F43) -> DF_ID_3D_Bxyz | C43: =IF('DF raw data'!C43="","",'DF raw data'!C43) ->  | D43: =IF('DF raw data'!D43="","",'DF raw data'!D43) -> 
A44: =IF('DF raw data'!E44="","",'DF raw data'!E44) -> Probe Danfysik Reg. Number | B44: =IF('DF raw data'!F44="","",'DF raw data'!F44) -> 2277 | C44: =IF('DF raw data'!C44="","",'DF raw data'!C44) ->  | D44: =IF('DF raw data'!D44="","",'DF raw data'!D44) -> 
A45: =IF('DF raw data'!E45="","",'DF raw data'!E45) -> Probe Axis | B45: =IF('DF raw data'!F45="","",'DF raw data'!F45) -> Bz | C45: =IF('DF raw data'!C45="","",'DF raw data'!C45) ->  | D45: =IF('DF raw data'!D45="","",'DF raw data'!D45) -> 
A46: =IF('DF raw data'!E46="","",'DF raw data'!E46) -> Probe Current Supply | B46: =IF('DF raw data'!F46="","",'DF raw data'!F46) -> 1825-D | C46: =IF('DF raw data'!C46="","",'DF raw data'!C46) ->  | D46: =IF('DF raw data'!D46="","",'DF raw data'!D46) -> 
A47: =IF('DF raw data'!E47="","",'DF raw data'!E47) -> Probe Gain Correction | B47: =IF('DF raw data'!F47="","",'DF raw data'!F47) -> 1 | C47: =IF('DF raw data'!C47="","",'DF raw data'!C47) ->  | D47: =IF('DF raw data'!D47="","",'DF raw data'!D47) -> 
A48: =IF('DF raw data'!E48="","",'DF raw data'!E48) -> Probe Offset Correction | B48: =IF('DF raw data'!F48="","",'DF raw data'!F48) -> 0.0073653 | C48: =IF('DF raw data'!C48="","",'DF raw data'!C48) ->  | D48: =IF('DF raw data'!D48="","",'DF raw data'!D48) -> 
A49: =IF('DF raw data'!E49="","",'DF raw data'!E49) -> DVM Number | B49: =IF('DF raw data'!F49="","",'DF raw data'!F49) -> 8 | C49: =IF('DF raw data'!C49="","",'DF raw data'!C49) ->  | D49: =IF('DF raw data'!D49="","",'DF raw data'!D49) -> 
A50: =IF('DF raw data'!E50="","",'DF raw data'!E50) -> DVM Type | B50: =IF('DF raw data'!F50="","",'DF raw data'!F50) -> K2700 | C50: =IF('DF raw data'!C50="","",'DF raw data'!C50) ->  | D50: =IF('DF raw data'!D50="","",'DF raw data'!D50) -> 
A51: =IF('DF raw data'!E51="","",'DF raw data'!E51) -> DVM Danfysik Reg. Number | B51: =IF('DF raw data'!F51="","",'DF raw data'!F51) -> 1756-D | C51: =IF('DF raw data'!C51="","",'DF raw data'!C51) ->  | D51: =IF('DF raw data'!D51="","",'DF raw data'!D51) -> 
A52: =IF('DF raw data'!E52="","",'DF raw data'!E52) -> NTC voltage | B52: =IF('DF raw data'!F52="","",'DF raw data'!F52) -> 0.40108 | C52: =IF('DF raw data'!C52="","",'DF raw data'!C52) ->  | D52: =IF('DF raw data'!D52="","",'DF raw data'!D52) -> 
A53: =IF('DF raw data'!E53="","",'DF raw data'!E53) -> PS-Gap: | B53: =IF('DF raw data'!F53="","",'DF raw data'!F53) -> 15 | C53: =IF('DF raw data'!C53="","",'DF raw data'!C53) ->  | D53: =IF('DF raw data'!D53="","",'DF raw data'!D53) -> 
A54: =IF('DF raw data'!E54="","",'DF raw data'!E54) -> PS-Temperature: | B54: =IF('DF raw data'!F54="","",'DF raw data'!F54) -> 25.5 | C54: =IF('DF raw data'!C54="","",'DF raw data'!C54) ->  | D54: =IF('DF raw data'!D54="","",'DF raw data'!D54) -> 
A55: =IF('DF raw data'!E55="","",'DF raw data'!E55) -> PS-Encoder: | B55: =IF('DF raw data'!F55="","",'DF raw data'!F55) -> 24.8323 | C55: =IF('DF raw data'!C55="","",'DF raw data'!C55) ->  | D55: =IF('DF raw data'!D55="","",'DF raw data'!D55) -> 
A56: =IF('DF raw data'!E56="","",'DF raw data'!E56) ->  | B56: =IF('DF raw data'!F56="","",'DF raw data'!F56) -> 
A57: =IF('DF raw data'!E57="","",'DF raw data'!E57) -> Monitor-Index | B57: =IF('DF raw data'!F57="","",'DF raw data'!F57) -> [1,1,4]
A58: =IF('DF raw data'!E58="","",'DF raw data'!E58) ->  | B58: =IF('DF raw data'!F58="","",'DF raw data'!F58) -> 
A59: =IF('DF raw data'!E59="","",'DF raw data'!E59) -> Time [s] | B59: =IF('DF raw data'!F59="","",'DF raw data'!F59) -> Y [mm]
A60: =IF('DF raw data'!E60="","",'DF raw data'!E60) ->  | B60: =IF('DF raw data'!F60="","",'DF raw data'!F60) -> 
A61: =IF('DF raw data'!E61="","",'DF raw data'!E61) -> 208.8 | B61: =IF('DF raw data'!F61="","",'DF raw data'!F61) -> 31.5
A62: =IF('DF raw data'!E62="","",'DF raw data'!E62) ->  | B62: =IF('DF raw data'!F62="","",'DF raw data'!F62) -> 
A63: =IF('DF raw data'!E63="","",'DF raw data'!E63) -> Measurement-Index | B63: =IF('DF raw data'!F63="","",'DF raw data'!F63) -> [1,1,1201,2]
A64: =IF('DF raw data'!E64="","",'DF raw data'!E64) ->  | B64: =IF('DF raw data'!F64="","",'DF raw data'!F64) -> 
A65: =IF('DF raw data'!E65="","",'DF raw data'!E65) -> Z [mm] | B65: =IF('DF raw data'!F65="","",'DF raw data'!F65) -> By [T] | C65: =IF('DF raw data'!G65="","",'DF raw data'!G65) -> Bx [T] | D65: =IF('DF raw data'!H65="","",'DF raw data'!H65) -> Bz [T] | F65: By_corr | G65: Bx_corr | H65: Bz_corr | J65: Iy | K65: Jy | L65: Ix | M65: Jx | N65: PI
B66: =IF('DF raw data'!F66="","",'DF raw data'!F66) ->  | C66: =IF('DF raw data'!G66="","",'DF raw data'!G66) ->  | D66: =IF('DF raw data'!H66="","",'DF raw data'!H66) -> 
A67: =IF('DF raw data'!E67="","",'DF raw data'!E67) -> -300 | B67: =IF('DF raw data'!F67="","",'DF raw data'!F67) -> -1.68631e-05 | C67: =IF('DF raw data'!G67="","",'DF raw data'!G67) -> 4.70674e-05 | D67: =IF('DF raw data'!H67="","",'DF raw data'!H67) -> -9.24049e-06 | F67: =(1-$G$1*($B$54-$G$2))*(B67-F$5) -> -3.003729721e-06 | G67: =(1-$G$1*($B$54-$G$2))*(C67-G$5) -> 3.013736383e-05 | H67: =(1-$G$1*($B$54-$G$2))*(D67-H$5) -> 8.248275541e-07 | J67: =F67*$G$3+J66 -> -1.50186486e-06 | K67: =J67*$G$3+K66 -> -7.509324302e-07 | L67: =G67*$G$3+L66 -> 1.506868192e-05 | M67: =L67*$G$3+M66 -> 7.534340958e-06 | N67: =(J67^2+L67^2)*$G$3+N66 -> 1.146603864e-10
A68: =IF('DF raw data'!E68="","",'DF raw data'!E68) -> -299.5 | B68: =IF('DF raw data'!F68="","",'DF raw data'!F68) -> -6.41358e-06 | C68: =IF('DF raw data'!G68="","",'DF raw data'!G68) -> 4.6295e-05 | D68: =IF('DF raw data'!H68="","",'DF raw data'!H68) -> -9.94573e-06 | F68: 7.503262639e-06 | G68: 2.936071563e-05 | H68: 1.157087341e-07 | J68: =F68*$G$3+J67 -> 2.249766459e-06 | K68: =J68*$G$3+K67 -> 3.739507994e-07 | L68: =G68*$G$3+L67 -> 2.974903973e-05 | M68: =L68*$G$3+M67 -> 2.240886082e-05 | N68: =(J68^2+L68^2)*$G$3+N67 -> 5.596937934e-10
A69: =IF('DF raw data'!E69="","",'DF raw data'!E69) -> -299 | B69: =IF('DF raw data'!F69="","",'DF raw data'!F69) -> -3.01509e-06 | C69: =IF('DF raw data'!G69="","",'DF raw data'!G69) -> 4.37109e-05 | D69: =IF('DF raw data'!H69="","",'DF raw data'!H69) -> -1.13565e-05 | F69: 1.092044433e-05 | G69: 2.676240308e-05 | H69: -1.302820501e-06 | J69: 7.709988626e-06 | K69: 4.228945113e-06 | L69: 4.313024127e-05 | M69: 4.397398146e-05 | N69: 1.519524612e-09
A70: =IF('DF raw data'!E70="","",'DF raw data'!E70) -> -298.5 | B70: =IF('DF raw data'!F70="","",'DF raw data'!F70) -> -7.82227e-06 | C70: =IF('DF raw data'!G70="","",'DF raw data'!G70) -> 4.23882e-05 | D70: =IF('DF raw data'!H70="","",'DF raw data'!H70) -> -1.23521e-05 | F70: 6.086824844e-06 | G70: 2.543242823e-05 | H70: -2.303896301e-06 | J70: 1.075340105e-05 | K70: 9.605645637e-06 | L70: 5.584645539e-05 | M70: 7.189720916e-05 | N70: 3.136755719e-09
A71: =IF('DF raw data'!E71="","",'DF raw data'!E71) -> -298 | B71: =IF('DF raw data'!F71="","",'DF raw data'!F71) -> -1.14122e-05 | C71: =IF('DF raw data'!G71="","",'DF raw data'!G71) -> 4.18481e-05 | D71: =IF('DF raw data'!H71="","",'DF raw data'!H71) -> -1.24873e-05 | F71: 2.477150229e-06 | G71: 2.488935768e-05 | H71: -2.439839901e-06 | J71: 1.199197616e-05 | K71: 1.560163372e-05 | L71: 6.829113423e-05 | M71: 0.0001060427763 | N71: 5.540498972e-09
A72: =IF('DF raw data'!E72="","",'DF raw data'!E72) -> -297.5 | B72: =IF('DF raw data'!F72="","",'DF raw data'!F72) -> -1.47458e-05 | C72: =IF('DF raw data'!G72="","",'DF raw data'!G72) -> 5.13765e-05 | D72: =IF('DF raw data'!H72="","",'DF raw data'!H72) -> -1.20538e-05 | F72: -8.747845708e-07 | G72: 3.447016388e-05 | H72: -2.003955651e-06 | J72: 1.155458388e-05 | K72: 2.137892566e-05 | L72: 8.552621617e-05 | M72: 0.0001488058844 | N72: 9.264620003e-09
A73: =IF('DF raw data'!E73="","",'DF raw data'!E73) -> -297 | B73: =IF('DF raw data'!F73="","",'DF raw data'!F73) -> -1.46819e-05 | C73: =IF('DF raw data'!G73="","",'DF raw data'!G73) -> 5.61049e-05 | D73: =IF('DF raw data'!H73="","",'DF raw data'!H73) -> -1.15368e-05 | F73: -8.105331208e-07 | G73: 3.922457008e-05 | H73: -1.484112151e-06 | J73: 1.114931732e-05 | K73: 2.695358432e-05 | L73: 0.0001051385012 | M73: 0.000201375135 | N73: 1.485382586e-08
A74: =IF('DF raw data'!E74="","",'DF raw data'!E74) -> -296.5 | B74: =IF('DF raw data'!F74="","",'DF raw data'!F74) -> -1.28233e-05 | C74: =IF('DF raw data'!G74="","",'DF raw data'!G74) -> 5.58429e-05 | D74: =IF('DF raw data'!H74="","",'DF raw data'!H74) -> -1.11724e-05 | F74: 1.058289179e-06 | G74: 3.896112908e-05 | H74: -1.117707951e-06 | J74: 1.167846191e-05 | K74: 3.279281527e-05 | L74: 0.0001246190658 | M74: 0.0002636846678 | N74: 2.268697487e-08
A75: =IF('DF raw data'!E75="","",'DF raw data'!E75) -> -296 | B75: =IF('DF raw data'!F75="","",'DF raw data'!F75) -> -1.23106e-05 | C75: =IF('DF raw data'!G75="","",'DF raw data'!G75) -> 5.85583e-05 | D75: =IF('DF raw data'!H75="","",'DF raw data'!H75) -> -1.10108e-05 | F75: 1.573809029e-06 | G75: 4.169146378e-05 | H75: -9.552191509e-07 | J75: 1.246536642e-05 | K75: 3.902549848e-05 | L75: 0.0001454647976 | M75: 0.0003364170667 | N75: 3.334467123e-08
A76: =IF('DF raw data'!E76="","",'DF raw data'!E76) -> -295.5 | B76: =IF('DF raw data'!F76="","",'DF raw data'!F76) -> -8.0795e-06 | C76: =IF('DF raw data'!G76="","",'DF raw data'!G76) -> 5.94992e-05 | D76: =IF('DF raw data'!H76="","",'DF raw data'!H76) -> -1.10917e-05 | F76: 5.828180079e-06 | G76: 4.263753873e-05 | H76: -1.036564101e-06 | J76: 1.537945646e-05 | K76: 4.671522671e-05 | L76: 0.000166783567 | M76: 0.0004198088502 | N76: 4.737131418e-08
A77: =IF('DF raw data'!E77="","",'DF raw data'!E77) -> -295 | B77: =IF('DF raw data'!F77="","",'DF raw data'!F77) -> -7.37441e-06 | C77: =IF('DF raw data'!G77="","",'DF raw data'!G77) -> 6.1149e-05 | D77: =IF('DF raw data'!H77="","",'DF raw data'!H77) -> -1.12281e-05 | F77: 6.537148074e-06 | G77: 4.429641263e-05 | H77: -1.173714301e-06 | J77: 1.86480305e-05 | K77: 5.603924196e-05 | L77: 0.0001889317733 | M77: 0.0005142747368 | N77: 6.539279619e-08
A78: =IF('DF raw data'!E78="","",'DF raw data'!E78) -> -294.5 | B78: =IF('DF raw data'!F78="","",'DF raw data'!F78) -> -8.91275e-06 | C78: =IF('DF raw data'!G78="","",'DF raw data'!G78) -> 5.97662e-05 | D78: =IF('DF raw data'!H78="","",'DF raw data'!H78) -> -1.14206e-05 | F78: 4.990347204e-06 | G78: 4.290600723e-05 | H78: -1.367273051e-06 | J78: 2.11432041e-05 | K78: 6.661084401e-05 | L78: 0.0002103847769 | M78: 0.0006194671253 | N78: 8.774719091e-08
A79: =IF('DF raw data'!E79="","",'DF raw data'!E79) -> -294 | B79: =IF('DF raw data'!F79="","",'DF raw data'!F79) -> -2.95074e-06 | C79: =IF('DF raw data'!G79="","",'DF raw data'!G79) -> 5.45755e-05 | D79: =IF('DF raw data'!H79="","",'DF raw data'!H79) -> -1.19435e-05 | F79: 1.098514826e-05 | G79: 3.768675838e-05 | H79: -1.893049001e-06 | J79: 2.663577823e-05 | K79: 7.992873312e-05 | L79: 0.0002292281561 | M79: 0.0007340812034 | N79: 1.14374697e-07
A80: =IF('DF raw data'!E80="","",'DF raw data'!E80) -> -293.5 | B80: =IF('DF raw data'!F80="","",'DF raw data'!F80) -> -7.37375e-06 | C80: =IF('DF raw data'!G80="","",'DF raw data'!G80) -> 4.77079e-05 | D80: =IF('DF raw data'!H80="","",'DF raw data'!H80) -> -1.22438e-05 | F80: 6.537811704e-06 | G80: 3.078138658e-05 | H80: -2.195000651e-06 | J80: 2.990468408e-05 | K80: 9.488107516e-05 | L80: 0.0002446188494 | M80: 0.0008563906281 | N80: 1.447410329e-07
A81: =IF('DF raw data'!E81="","",'DF raw data'!E81) -> -293 | B81: =IF('DF raw data'!F81="","",'DF raw data'!F81) -> -1.81435e-05 | C81: =IF('DF raw data'!G81="","",'DF raw data'!G81) -> 5.09446e-05 | D81: =IF('DF raw data'!H81="","",'DF raw data'!H81) -> -1.18304e-05 | F81: -4.291171921e-06 | G81: 3.403588843e-05 | H81: -1.779326951e-06 | J81: 2.775909812e-05 | K81: 0.0001087606242 | L81: 0.0002616367936 | M81: 0.0009872090249 | N81: 1.793532225e-07
A82: =IF('DF raw data'!E82="","",'DF raw data'!E82) -> -292.5 | B82: =IF('DF raw data'!F82="","",'DF raw data'!F82) -> -3.72034e-06 | C82: =IF('DF raw data'!G82="","",'DF raw data'!G82) -> 4.73616e-05 | D82: =IF('DF raw data'!H82="","",'DF raw data'!H82) -> -1.13781e-05 | F82: 1.021131546e-05 | G82: 3.043318193e-05 | H82: -1.324539301e-06 | J82: 3.286475585e-05 | K82: 0.0001251930022 | L82: 0.0002768533846 | M82: 0.001125635717 | N82: 2.182171669e-07
A83: =IF('DF raw data'!E83="","",'DF raw data'!E83) -> -292 | B83: =IF('DF raw data'!F83="","",'DF raw data'!F83) -> -1.44258e-05 | C83: =IF('DF raw data'!G83="","",'DF raw data'!G83) -> 4.72452e-05 | D83: =IF('DF raw data'!H83="","",'DF raw data'!H83) -> -1.10655e-05 | F83: -5.530245708e-07 | G83: 3.031614173e-05 | H83: -1.010220001e-06 | J83: 3.258824357e-05 | K83: 0.0001414871239 | L83: 0.0002920114555 | M83: 0.001271641445 | N83: 2.613835088e-07
A84: =IF('DF raw data'!E84="","",'DF raw data'!E84) -> -291.5 | B84: =IF('DF raw data'!F84="","",'DF raw data'!F84) -> -5.76768e-06 | C84: =IF('DF raw data'!G84="","",'DF raw data'!G84) -> 5.35267e-05 | D84: =IF('DF raw data'!H84="","",'DF raw data'!H84) -> -1.74579e-05 | F84: 8.152715089e-06 | G84: 3.663218998e-05 | H84: -7.437778201e-06 | J84: 3.666460111e-05 | K84: 0.0001598194245 | L84: 0.0003103275505 | M84: 0.00142680522 | N84: 3.102072495e-07
A85: =IF('DF raw data'!E85="","",'DF raw data'!E85) -> -291 | B85: =IF('DF raw data'!F85="","",'DF raw data'!F85) -> -3.0133e-06 | C85: =IF('DF raw data'!G85="","",'DF raw data'!G85) -> 5.118e-05 | D85: =IF('DF raw data'!H85="","",'DF raw data'!H85) -> -1.41292e-05 | F85: 1.092224418e-05 | G85: 3.427258313e-05 | H85: -4.090770351e-06 | J85: 4.21257232e-05 | K85: 0.0001808822861 | L85: 0.000327463842 | M85: 0.001590537141 | N85: 3.647108217e-07
A86: =IF('DF raw data'!E86="","",'DF raw data'!E86) -> -290.5 | B86: =IF('DF raw data'!F86="","",'DF raw data'!F86) -> -4.93739e-06 | C86: =IF('DF raw data'!G86="","",'DF raw data'!G86) -> 4.81138e-05 | D86: =IF('DF raw data'!H86="","",'DF raw data'!H86) -> -1.25611e-05 | F86: 8.987571684e-06 | G86: 3.118951903e-05 | H86: -2.514045801e-06 | J86: 4.661950904e-05 | K86: 0.0002041920406 | L86: 0.0003430586015 | M86: 0.001762066442 | N86: 4.246421131e-07
A87: =IF('DF raw data'!E87="","",'DF raw data'!E87) -> -290 | B87: =IF('DF raw data'!F87="","",'DF raw data'!F87) -> -5.70009e-06 | C87: =IF('DF raw data'!G87="","",'DF raw data'!G87) -> 4.67151e-05 | D87: =IF('DF raw data'!H87="","",'DF raw data'!H87) -> -2.26337e-05 | F87: 8.220676834e-06 | G87: 2.978312618e-05 | H87: -1.26420451e-05 | J87: 5.072984746e-05 | K87: 0.0002295569643 | L87: 0.0003579501646 | M87: 0.001941041524 | N87: 4.89993032e-07
A88: =IF('DF raw data'!E88="","",'DF raw data'!E88) -> -289.5 | B88: =IF('DF raw data'!F88="","",'DF raw data'!F88) -> 2.7575e-06 | C88: =IF('DF raw data'!G88="","",'DF raw data'!G88) -> 4.44246e-05 | D88: =IF('DF raw data'!H88="","",'DF raw data'!H88) -> -1.61386e-05 | F88: 1.672478358e-05 | G88: 2.748002843e-05 | H88: -6.111222051e-06 | J88: 5.909223925e-05 | K88: 0.000259103084 | L88: 0.0003716901789 | M88: 0.002126886614 | N88: 5.608157729e-07
A89: =IF('DF raw data'!E89="","",'DF raw data'!E89) -> -289 | B89: =IF('DF raw data'!F89="","",'DF raw data'!F89) -> -1.23102e-05 | C89: =IF('DF raw data'!G89="","",'DF raw data'!G89) -> 4.62434e-05 | D89: =IF('DF raw data'!H89="","",'DF raw data'!H89) -> -1.16423e-05 | F89: 1.574211229e-06 | G89: 2.930883183e-05 | H89: -1.590192401e-06 | J89: 5.987934486e-05 | K89: 0.0002890427564 | L89: 0.0003863445948 | M89: 0.002320058911 | N89: 6.372396138e-07
A90: =IF('DF raw data'!E90="","",'DF raw data'!E90) -> -288.5 | B90: =IF('DF raw data'!F90="","",'DF raw data'!F90) -> -8.7155e-06 | C90: =IF('DF raw data'!G90="","",'DF raw data'!G90) -> 5.46801e-05 | D90: =IF('DF raw data'!H90="","",'DF raw data'!H90) -> -1.88293e-05 | F90: 5.188682079e-06 | G90: 3.779193368e-05 | H90: -8.816720901e-06 | J90: 6.24736859e-05 | K90: 0.0003202795993 | L90: 0.0004052405616 | M90: 0.002522679192 | N90: 7.213010509e-07
A91: =IF('DF raw data'!E91="","",'DF raw data'!E91) -> -288 | B91: =IF('DF raw data'!F91="","",'DF raw data'!F91) -> -7.44431e-06 | C91: =IF('DF raw data'!G91="","",'DF raw data'!G91) -> 6.09452e-05 | D91: =IF('DF raw data'!H91="","",'DF raw data'!H91) -> -2.09249e-06 | F91: 6.466863624e-06 | G91: 4.409149173e-05 | H91: 8.012141554e-06 | J91: 6.570711771e-05 | K91: 0.0003531331582 | L91: 0.0004272863075 | M91: 0.002736322346 | N91: 8.147465579e-07
A92: =IF('DF raw data'!E92="","",'DF raw data'!E92) -> -287.5 | B92: =IF('DF raw data'!F92="","",'DF raw data'!F92) -> -9.94963e-06 | C92: =IF('DF raw data'!G92="","",'DF raw data'!G92) -> 4.93266e-05 | D92: =IF('DF raw data'!H92="","",'DF raw data'!H92) -> 5.9168e-06 | F92: 3.947764364e-06 | G92: 3.240898943e-05 | H92: 1.606548265e-05 | J92: 6.76809999e-05 | K92: 0.0003869736582 | L92: 0.0004434908022 | M92: 0.002958067747 | N92: 9.153789625e-07
A93: =IF('DF raw data'!E93="","",'DF raw data'!E93) -> -287 | B93: =IF('DF raw data'!F93="","",'DF raw data'!F93) -> 2.58225e-07 | C93: =IF('DF raw data'!G93="","",'DF raw data'!G93) -> 4.72738e-05 | D93: =IF('DF raw data'!H93="","",'DF raw data'!H93) -> -1.74595e-05 | F93: 1.421176257e-05 | G93: 3.034489903e-05 | H93: -7.439387001e-06 | J93: 7.478688118e-05 | K93: 0.0004243670987 | L93: 0.0004586632517 | M93: 0.003187399373 | N93: 1.023361491e-06
A94: =IF('DF raw data'!E94="","",'DF raw data'!E94) -> -286.5 | B94: =IF('DF raw data'!F94="","",'DF raw data'!F94) -> -1.07026e-05 | C94: =IF('DF raw data'!G94="","",'DF raw data'!G94) -> 6.09542e-05 | D94: =IF('DF raw data'!H94="","",'DF raw data'!H94) -> -1.91899e-05 | F94: 3.190653029e-06 | G94: 4.410054123e-05 | H94: -9.179304201e-06 | J94: 7.638220769e-05 | K94: 0.0004625582026 | L94: 0.0004807135223 | M94: 0.003427756134 | N94: 1.141821357e-06
A95: =IF('DF raw data'!E95="","",'DF raw data'!E95) -> -286 | B95: =IF('DF raw data'!F95="","",'DF raw data'!F95) -> -1.60868e-05 | C95: =IF('DF raw data'!G95="","",'DF raw data'!G95) -> 5.78567e-05 | D95: =IF('DF raw data'!H95="","",'DF raw data'!H95) -> -2.01699e-05 | F95: -2.223160071e-06 | G95: 4.098600498e-05 | H95: -1.01646942e-05 | J95: 7.527062766e-05 | K95: 0.0005001935164 | L95: 0.0005012065248 | M95: 0.003678359396 | N95: 1.270258181e-06
A96: =IF('DF raw data'!E96="","",'DF raw data'!E96) -> -285.5 | B96: =IF('DF raw data'!F96="","",'DF raw data'!F96) -> -1.09007e-05 | C96: =IF('DF raw data'!G96="","",'DF raw data'!G96) -> 4.94525e-05 | D96: =IF('DF raw data'!H96="","",'DF raw data'!H96) -> -1.04778e-05 | F96: 2.991463479e-06 | G96: 3.253558188e-05 | H96: -4.192876509e-07 | J96: 7.67663594e-05 | K96: 0.0005385766961 | L96: 0.0005174743158 | M96: 0.003937096554 | N96: 1.407094551e-06
A97: =IF('DF raw data'!E97="","",'DF raw data'!E97) -> -285 | B97: =IF('DF raw data'!F97="","",'DF raw data'!F97) -> -9.67726e-06 | C97: =IF('DF raw data'!G97="","",'DF raw data'!G97) -> 5.67084e-05 | D97: =IF('DF raw data'!H97="","",'DF raw data'!H97) -> -1.87021e-05 | F97: 4.221632399e-06 | G97: 3.983138933e-05 | H97: -8.688821301e-06 | J97: 7.88771756e-05 | K97: 0.0005780152839 | L97: 0.0005373900104 | M97: 0.004205791559 | N97: 1.554599367e-06
A98: =IF('DF raw data'!E98="","",'DF raw data'!E98) -> -284.5 | B98: =IF('DF raw data'!F98="","",'DF raw data'!F98) -> -1.27815e-06 | C98: =IF('DF raw data'!G98="","",'DF raw data'!G98) -> 5.75522e-05 | D98: =IF('DF raw data'!H98="","",'DF raw data'!H98) -> -2.06771e-05 | F98: 1.26669375e-05 | G98: 4.067983023e-05 | H98: -1.06746838e-05 | J98: 8.521064435e-05 | K98: 0.0006206206061 | L98: 0.0005577299255 | M98: 0.004484656522 | N98: 1.713761129e-06
A99: =IF('DF raw data'!E99="","",'DF raw data'!E99) -> -284 | B99: =IF('DF raw data'!F99="","",'DF raw data'!F99) -> -2.02551e-05 | C99: =IF('DF raw data'!G99="","",'DF raw data'!G99) -> 4.40514e-05 | D99: =IF('DF raw data'!H99="","",'DF raw data'!H99) -> -1.78145e-05 | F99: -6.414385721e-06 | G99: 2.710477583e-05 | H99: -7.796339501e-06 | J99: 8.200345149e-05 | K99: 0.0006616223318 | L99: 0.0005712823135 | M99: 0.004770297679 | N99: 1.880305153e-06
A100: =IF('DF raw data'!E100="","",'DF raw data'!E100) -> -283.5 | B100: =IF('DF raw data'!F100="","",'DF raw data'!F100) -> -1.73747e-05 | C100: =IF('DF raw data'!G100="","",'DF raw data'!G100) -> 4.64662e-05 | D100: =IF('DF raw data'!H100="","",'DF raw data'!H100) -> -1.12392e-05 | F100: -3.518143521e-06 | G100: 2.953285723e-05 | H100: -1.184875351e-06 | J100: 8.024437973e-05 | K100: 0.0007017445217 | L100: 0.0005860487421 | M100: 0.00506332205 | N100: 2.055251297e-06
A101: =IF('DF raw data'!E101="","",'DF raw data'!E101) -> -283 | B101: =IF('DF raw data'!F101="","",'DF raw data'!F101) -> -7.24625e-06 | C101: =IF('DF raw data'!G101="","",'DF raw data'!G101) -> 5.13222e-05 | D101: =IF('DF raw data'!H101="","",'DF raw data'!H101) -> -1.11589e-05 | F101: 6.666012954e-06 | G101: 3.441556523e-05 | H101: -1.104133701e-06 | J101: 8.357738621e-05 | K101: 0.0007435332148 | L101: 0.0006032565247 | M101: 0.005364950312 | N101: 2.240703104e-06
A102: =IF('DF raw data'!E102="","",'DF raw data'!E102) -> -282.5 | B102: =IF('DF raw data'!F102="","",'DF raw data'!F102) -> -1.32694e-05 | C102: =IF('DF raw data'!G102="","",'DF raw data'!G102) -> 4.162e-05 | D102: =IF('DF raw data'!H102="","",'DF raw data'!H102) -> -1.50288e-05 | F102: 6.097356292e-07 | G102: 2.466000313e-05 | H102: -4.995318151e-06 | J102: 8.388225402e-05 | K102: 0.0007854743418 | L102: 0.0006155865263 | M102: 0.005672743575 | N102: 2.433694606e-06
A103: =IF('DF raw data'!E103="","",'DF raw data'!E103) -> -282 | B103: =IF('DF raw data'!F103="","",'DF raw data'!F103) -> -1.08439e-05 | C103: =IF('DF raw data'!G103="","",'DF raw data'!G103) -> 4.65875e-05 | D103: =IF('DF raw data'!H103="","",'DF raw data'!H103) -> 9.76564e-07 | F103: 3.048575879e-06 | G103: 2.965482438e-05 | H103: 1.109807535e-05 | J103: 8.540654196e-05 | K103: 0.0008281776128 | L103: 0.0006304139385 | M103: 0.005987950545 | N103: 2.636052612e-06
A104: =IF('DF raw data'!E104="","",'DF raw data'!E104) -> -281.5 | B104: =IF('DF raw data'!F104="","",'DF raw data'!F104) -> -1.74422e-05 | C104: =IF('DF raw data'!G104="","",'DF raw data'!G104) -> 5.43596e-05 | D104: =IF('DF raw data'!H104="","",'DF raw data'!H104) -> -5.72099e-06 | F104: -3.586014771e-06 | G104: 3.746967093e-05 | H104: 4.363684804e-06 | J104: 8.361353458e-05 | K104: 0.0008699843801 | L104: 0.0006491487739 | M104: 0.006312524931 | N104: 2.850245289e-06
A105: =IF('DF raw data'!E105="","",'DF raw data'!E105) -> -281 | B105: =IF('DF raw data'!F105="","",'DF raw data'!F105) -> -1.19266e-05 | C105: =IF('DF raw data'!G105="","",'DF raw data'!G105) -> 4.89333e-05 | D105: =IF('DF raw data'!H105="","",'DF raw data'!H105) -> -1.01037e-05 | F105: 1.959921029e-06 | G105: 3.201352628e-05 | H105: -4.313010093e-08 | J105: 8.459349509e-05 | K105: 0.0009122811276 | L105: 0.0006651555371 | M105: 0.0066451027 | N105: 3.075039263e-06
A106: =IF('DF raw data'!E106="","",'DF raw data'!E106) -> -280.5 | B106: =IF('DF raw data'!F106="","",'DF raw data'!F106) -> -1.12209e-05 | C106: =IF('DF raw data'!G106="","",'DF raw data'!G106) -> 4.36882e-05 | D106: =IF('DF raw data'!H106="","",'DF raw data'!H106) -> -1.07808e-05 | F106: 2.669502379e-06 | G106: 2.673957823e-05 | H106: -7.239541509e-07 | J106: 8.592824628e-05 | K106: 0.0009552452508 | L106: 0.0006785253262 | M106: 0.006984365363 | N106: 3.308929404e-06
A107: =IF('DF raw data'!E107="","",'DF raw data'!E107) -> -280 | B107: =IF('DF raw data'!F107="","",'DF raw data'!F107) -> -1.58399e-05 | C107: =IF('DF raw data'!G107="","",'DF raw data'!G107) -> 5.15606e-05 | D107: =IF('DF raw data'!H107="","",'DF raw data'!H107) -> -5.61101e-06 | F107: -1.974902121e-06 | G107: 3.465527643e-05 | H107: 4.474269694e-06 | J107: 8.494079522e-05 | K107: 0.0009977156484 | L107: 0.0006958529644 | M107: 0.007332291845 | N107: 3.554642547e-06
A108: =IF('DF raw data'!E108="","",'DF raw data'!E108) -> -279.5 | B108: =IF('DF raw data'!F108="","",'DF raw data'!F108) -> -8.21054e-06 | C108: =IF('DF raw data'!G108="","",'DF raw data'!G108) -> 5.26825e-05 | D108: =IF('DF raw data'!H108="","",'DF raw data'!H108) -> -6.71592e-06 | F108: 5.696419359e-06 | G108: 3.578334688e-05 | H108: 3.363282689e-06 | J108: 8.77890049e-05 | K108: 0.001041610151 | L108: 0.0007137446378 | M108: 0.007689164164 | N108: 3.813211706e-06
A109: =IF('DF raw data'!E109="","",'DF raw data'!E109) -> -279 | B109: =IF('DF raw data'!F109="","",'DF raw data'!F109) -> -1.109e-05 | C109: =IF('DF raw data'!G109="","",'DF raw data'!G109) -> 5.00954e-05 | D109: =IF('DF raw data'!H109="","",'DF raw data'!H109) -> -1.48581e-05 | F109: 2.801122329e-06 | G109: 3.318201783e-05 | H109: -4.823679301e-06 | J109: 8.918956606e-05 | K109: 0.001086204934 | L109: 0.0007303356467 | M109: 0.008054331988 | N109: 4.083884174e-06
A110: =IF('DF raw data'!E110="","",'DF raw data'!E110) -> -278.5 | B110: =IF('DF raw data'!F110="","",'DF raw data'!F110) -> -8.78442e-06 | C110: =IF('DF raw data'!G110="","",'DF raw data'!G110) -> 5.23571e-05 | D110: =IF('DF raw data'!H110="","",'DF raw data'!H110) -> -1.16104e-05 | F110: 5.119383019e-06 | G110: 3.545615718e-05 | H110: -1.558116951e-06 | J110: 9.174925757e-05 | K110: 0.001132079563 | L110: 0.0007480637253 | M110: 0.00842836385 | N110: 4.367892805e-06
A111: =IF('DF raw data'!E111="","",'DF raw data'!E111) -> -278 | B111: =IF('DF raw data'!F111="","",'DF raw data'!F111) -> -1.51263e-05 | C111: =IF('DF raw data'!G111="","",'DF raw data'!G111) -> 4.83651e-05 | D111: =IF('DF raw data'!H111="","",'DF raw data'!H111) -> -1.8334e-05 | F111: -1.257377321e-06 | G111: 3.144220118e-05 | H111: -8.318696751e-06 | J111: 9.112056891e-05 | K111: 0.001177639847 | L111: 0.0007637848259 | M111: 0.008810256263 | N111: 4.663727915e-06
A112: =IF('DF raw data'!E112="","",'DF raw data'!E112) -> -277.5 | B112: =IF('DF raw data'!F112="","",'DF raw data'!F112) -> -1.45504e-05 | C112: =IF('DF raw data'!G112="","",'DF raw data'!G112) -> 5.01033e-05 | D112: =IF('DF raw data'!H112="","",'DF raw data'!H112) -> -1.66853e-05 | F112: -6.783098708e-07 | G112: 3.318996128e-05 | H112: -6.660928901e-06 | J112: 9.078141398e-05 | K112: 0.001223030554 | L112: 0.0007803798066 | M112: 0.009200446167 | N112: 4.972344868e-06
A113: =IF('DF raw data'!E113="","",'DF raw data'!E113) -> -277 | B113: =IF('DF raw data'!F113="","",'DF raw data'!F113) -> 1.53413e-06 | C113: =IF('DF raw data'!G113="","",'DF raw data'!G113) -> 4.756e-05 | D113: =IF('DF raw data'!H113="","",'DF raw data'!H113) -> -7.98771e-06 | F113: 1.549468504e-05 | G113: 3.063267313e-05 | H113: 2.084497844e-06 | J113: 9.85287565e-05 | K113: 0.001272294932 | L113: 0.0007956961431 | M113: 0.009598294238 | N113: 5.293765002e-06
A114: =IF('DF raw data'!E114="","",'DF raw data'!E114) -> -276.5 | B114: =IF('DF raw data'!F114="","",'DF raw data'!F114) -> -1.23121e-05 | C114: =IF('DF raw data'!G114="","",'DF raw data'!G114) -> 4.39492e-05 | D114: =IF('DF raw data'!H114="","",'DF raw data'!H114) -> -8.72512e-06 | F114: 1.572300779e-06 | G114: 2.700201373e-05 | H114: 1.343032089e-06 | J114: 9.931490689e-05 | K114: 0.001321952386 | L114: 0.00080919715 | M114: 0.01000289281 | N114: 5.626096742e-06
A115: =IF('DF raw data'!E115="","",'DF raw data'!E115) -> -276 | B115: =IF('DF raw data'!F115="","",'DF raw data'!F115) -> -2.2117e-05 | C115: =IF('DF raw data'!G115="","",'DF raw data'!G115) -> 4.02434e-05 | D115: =IF('DF raw data'!H115="","",'DF raw data'!H115) -> -1.31984e-05 | F115: -8.286526171e-06 | G115: 2.327583183e-05 | H115: -3.154850951e-06 | J115: 9.51716438e-05 | K115: 0.001369538208 | L115: 0.0008208350659 | M115: 0.01041331035 | N115: 5.967510665e-06
A116: =IF('DF raw data'!E116="","",'DF raw data'!E116) -> -275.5 | B116: =IF('DF raw data'!F116="","",'DF raw data'!F116) -> -5.50607e-06 | C116: =IF('DF raw data'!G116="","",'DF raw data'!G116) -> 4.32574e-05 | D116: =IF('DF raw data'!H116="","",'DF raw data'!H116) -> -2.54794e-05 | F116: 8.415763944e-06 | G116: 2.630640883e-05 | H116: -1.550339645e-05 | J116: 9.937952578e-05 | K116: 0.001419227971 | L116: 0.0008339882703 | M116: 0.01083030448 | N116: 6.320217028e-06
A117: =IF('DF raw data'!E117="","",'DF raw data'!E117) -> -275 | B117: =IF('DF raw data'!F117="","",'DF raw data'!F117) -> -1.21231e-05 | C117: =IF('DF raw data'!G117="","",'DF raw data'!G117) -> 3.98005e-05 | D117: =IF('DF raw data'!H117="","",'DF raw data'!H117) -> -3.36021e-06 | F117: 1.762340279e-06 | G117: 2.283049588e-05 | H117: 6.737449094e-06 | J117: 0.0001002606959 | K117: 0.001469358319 | L117: 0.0008454035183 | M117: 0.01125300624 | N117: 6.682596686e-06
A118: =IF('DF raw data'!E118="","",'DF raw data'!E118) -> -274.5 | B118: =IF('DF raw data'!F118="","",'DF raw data'!F118) -> -2.1863e-05 | C118: =IF('DF raw data'!G118="","",'DF raw data'!G118) -> 3.79045e-05 | D118: =IF('DF raw data'!H118="","",'DF raw data'!H118) -> -9.46748e-06 | F118: -8.031129171e-06 | G118: 2.092406788e-05 | H118: 5.965891091e-07 | J118: 9.624513133e-05 | K118: 0.001517480884 | L118: 0.0008558655522 | M118: 0.01168093902 | N118: 7.05348117e-06
A119: =IF('DF raw data'!E119="","",'DF raw data'!E119) -> -274 | B119: =IF('DF raw data'!F119="","",'DF raw data'!F119) -> -1.19869e-05 | C119: =IF('DF raw data'!G119="","",'DF raw data'!G119) -> 4.7327e-05 | D119: =IF('DF raw data'!H119="","",'DF raw data'!H119) -> -1.57576e-05 | F119: 1.899289379e-06 | G119: 3.039839163e-05 | H119: -5.728126551e-06 | J119: 9.719477602e-05 | K119: 0.001566078272 | L119: 0.000871064748 | M119: 0.01211647139 | N119: 7.43758148e-06
A120: =IF('DF raw data'!E120="","",'DF raw data'!E120) -> -273.5 | B120: =IF('DF raw data'!F120="","",'DF raw data'!F120) -> -1.09645e-05 | C120: =IF('DF raw data'!G120="","",'DF raw data'!G120) -> 4.40052e-05 | D120: =IF('DF raw data'!H120="","",'DF raw data'!H120) -> -1.06814e-05 | F120: 2.927312579e-06 | G120: 2.705832173e-05 | H120: -6.240074509e-07 | J120: 9.865843231e-05 | K120: 0.001615407488 | L120: 0.0008845939089 | M120: 0.01255876834 | N120: 7.833701415e-06
A121: =IF('DF raw data'!E121="","",'DF raw data'!E121) -> -273 | B121: =IF('DF raw data'!F121="","",'DF raw data'!F121) -> -7.8899e-06 | C121: =IF('DF raw data'!G121="","",'DF raw data'!G121) -> 3.74526e-05 | D121: =IF('DF raw data'!H121="","",'DF raw data'!H121) -> -7.11258e-06 | F121: 6.018822879e-06 | G121: 2.046968243e-05 | H121: 2.964441059e-06 | J121: 0.0001016678437 | K121: 0.00166624141 | L121: 0.0008948287501 | M121: 0.01300618272 | N121: 8.239228836e-06
A122: =IF('DF raw data'!E122="","",'DF raw data'!E122) -> -272.5 | B122: =IF('DF raw data'!F122="","",'DF raw data'!F122) -> -1.81545e-05 | C122: =IF('DF raw data'!G122="","",'DF raw data'!G122) -> 3.72947e-05 | D122: =IF('DF raw data'!H122="","",'DF raw data'!H122) -> 5.15427e-06 | F122: -4.302232421e-06 | G122: 2.031091398e-05 | H122: 1.529875873e-05 | J122: 9.951672754e-05 | K122: 0.001715999774 | L122: 0.0009049842071 | M122: 0.01345867482 | N122: 8.653678833e-06
A123: =IF('DF raw data'!E123="","",'DF raw data'!E123) -> -272 | B123: =IF('DF raw data'!F123="","",'DF raw data'!F123) -> -9.75104e-06 | C123: =IF('DF raw data'!G123="","",'DF raw data'!G123) -> 4.17444e-05 | D123: =IF('DF raw data'!H123="","",'DF raw data'!H123) -> -3.57982e-06 | F123: 4.147446609e-06 | G123: 2.478508733e-05 | H123: 6.516631239e-06 | J123: 0.0001015904508 | K123: 0.001766794999 | L123: 0.0009173767508 | M123: 0.0139173632 | N123: 9.079629195e-06
A124: =IF('DF raw data'!E124="","",'DF raw data'!E124) -> -271.5 | B124: =IF('DF raw data'!F124="","",'DF raw data'!F124) -> -6.28451e-06 | C124: =IF('DF raw data'!G124="","",'DF raw data'!G124) -> 3.94729e-05 | D124: =IF('DF raw data'!H124="","",'DF raw data'!H124) -> -1.1281e-05 | F124: 7.633042524e-06 | G124: 2.250109408e-05 | H124: -1.226905251e-06 | J124: 0.0001054069721 | K124: 0.001819498485 | L124: 0.0009286272978 | M124: 0.01438167685 | N124: 9.516358839e-06
A125: =IF('DF raw data'!E125="","",'DF raw data'!E125) -> -271 | B125: =IF('DF raw data'!F125="","",'DF raw data'!F125) -> -9.04324e-06 | C125: =IF('DF raw data'!G125="","",'DF raw data'!G125) -> 4.19745e-05 | D125: =IF('DF raw data'!H125="","",'DF raw data'!H125) -> -7.90078e-06 | F125: 4.859139509e-06 | G125: 2.501645288e-05 | H125: 2.171905959e-06 | J125: 0.0001078365419 | K125: 0.001873416756 | L125: 0.0009411355243 | M125: 0.01485224461 | N125: 9.965041236e-06
A126: =IF('DF raw data'!E126="","",'DF raw data'!E126) -> -270.5 | B126: =IF('DF raw data'!F126="","",'DF raw data'!F126) -> -1.7124e-05 | C126: =IF('DF raw data'!G126="","",'DF raw data'!G126) -> 4.02747e-05 | D126: =IF('DF raw data'!H126="","",'DF raw data'!H126) -> -2.39547e-06 | F126: -3.266064671e-06 | G126: 2.330730398e-05 | H126: 7.707495164e-06 | J126: 0.0001062035095 | K126: 0.001926518511 | L126: 0.0009527891763 | M126: 0.0153286392 | N126: 1.042458444e-05
A127: =IF('DF raw data'!E127="","",'DF raw data'!E127) -> -270 | B127: =IF('DF raw data'!F127="","",'DF raw data'!F127) -> -2.18031e-06 | C127: =IF('DF raw data'!G127="","",'DF raw data'!G127) -> 4.25927e-05 | D127: =IF('DF raw data'!H127="","",'DF raw data'!H127) -> -1.38032e-05 | F127: 1.175981562e-05 | G127: 2.563805298e-05 | H127: -3.762977351e-06 | J127: 0.0001120834173 | K127: 0.00198256022 | L127: 0.0009656082027 | M127: 0.0158114433 | N127: 1.089706538e-05
A128: =IF('DF raw data'!E128="","",'DF raw data'!E128) -> -269.5 | B128: =IF('DF raw data'!F128="","",'DF raw data'!F128) -> -7.05514e-06 | C128: =IF('DF raw data'!G128="","",'DF raw data'!G128) -> 4.14169e-05 | D128: =IF('DF raw data'!H128="","",'DF raw data'!H128) -> -9.11322e-06 | F128: 6.858174059e-06 | G128: 2.445578608e-05 | H128: 9.527975391e-07 | J128: 0.0001155125044 | K128: 0.002040316472 | L128: 0.0009778360958 | M128: 0.01630036135 | N128: 1.138181867e-05
A129: =IF('DF raw data'!E129="","",'DF raw data'!E129) -> -269 | B129: =IF('DF raw data'!F129="","",'DF raw data'!F129) -> -7.31396e-06 | C129: =IF('DF raw data'!G129="","",'DF raw data'!G129) -> 3.737e-05 | D129: =IF('DF raw data'!H129="","",'DF raw data'!H129) -> -5.4047e-06 | F129: 6.597930549e-06 | G129: 2.038662813e-05 | H129: 4.681714399e-06 | J129: 0.0001188114696 | K129: 0.002099722207 | L129: 0.0009880294098 | M129: 0.01679437605 | N129: 1.187697781e-05
A130: =IF('DF raw data'!E130="","",'DF raw data'!E130) -> -268.5 | B130: =IF('DF raw data'!F130="","",'DF raw data'!F130) -> -7.02732e-07 | C130: =IF('DF raw data'!G130="","",'DF raw data'!G130) -> 3.75357e-05 | D130: =IF('DF raw data'!H130="","",'DF raw data'!H130) -> -1.85592e-05 | F130: 1.32455203e-05 | G130: 2.055323948e-05 | H130: -8.545135351e-06 | J130: 0.0001254342298 | K130: 0.002162439322 | L130: 0.0009983060296 | M130: 0.01729352907 | N130: 1.238315214e-05
A131: =IF('DF raw data'!E131="","",'DF raw data'!E131) -> -268 | B131: =IF('DF raw data'!F131="","",'DF raw data'!F131) -> -9.30055e-06 | C131: =IF('DF raw data'!G131="","",'DF raw data'!G131) -> 3.67216e-05 | D131: =IF('DF raw data'!H131="","",'DF raw data'!H131) -> -6.51718e-06 | F131: =(1-$G$1*($B$54-$G$2))*(B131-F$5) -> 4.600414304e-06 | G131: =(1-$G$1*($B$54-$G$2))*(C131-G$5) -> 1.973466193e-05 | H131: =(1-$G$1*($B$54-$G$2))*(D131-H$5) -> 3.563115759e-06 | J131: 0.0001277344369 | K131: 0.00222630654 | L131: 0.001008173361 | M131: 0.01779761575 | N131: 1.289951695e-05
A132: =IF('DF raw data'!E132="","",'DF raw data'!E132) -> -267.5 | B132: =IF('DF raw data'!F132="","",'DF raw data'!F132) -> -5.32356e-06 | C132: =IF('DF raw data'!G132="","",'DF raw data'!G132) -> 4.19719e-05 | D132: =IF('DF raw data'!H132="","",'DF raw data'!H132) -> -1.01694e-05 | F132: 8.599277749e-06 | G132: 2.501383858e-05 | H132: -1.091914509e-07 | J132: =F132*$G$3+J131 -> 0.0001320340758 | K132: =J132*$G$3+K131 -> 0.002292323578 | L132: =G132*$G$3+L131 -> 0.00102068028 | M132: =L132*$G$3+M131 -> 0.01830795589 | N132: =(J132^2+L132^2)*$G$3+N131 -> 1.342912757e-05
A133: =IF('DF raw data'!E133="","",'DF raw data'!E133) -> -267 | B133: =IF('DF raw data'!F133="","",'DF raw data'!F133) -> -1.28171e-05 | C133: =IF('DF raw data'!G133="","",'DF raw data'!G133) -> 4.11891e-05 | D133: =IF('DF raw data'!H133="","",'DF raw data'!H133) -> -2.06739e-05 | F133: 1.064523279e-06 | G133: 2.422673318e-05 | H133: -1.06714662e-05 | J133: 0.0001325663375 | K133: 0.002358606747 | L133: 0.001032793646 | M133: 0.01882435271 | N133: 1.397124584e-05
A134: =IF('DF raw data'!E134="","",'DF raw data'!E134) -> -266.5 | B134: =IF('DF raw data'!F134="","",'DF raw data'!F134) -> -4.92614e-06 | C134: =IF('DF raw data'!G134="","",'DF raw data'!G134) -> 4.53238e-05 | D134: =IF('DF raw data'!H134="","",'DF raw data'!H134) -> -2.99131e-05 | F134: 8.998883559e-06 | G134: 2.838417403e-05 | H134: -1.99614818e-05 | J134: 0.0001370657792 | K134: 0.002427139636 | L134: 0.001046985733 | M134: 0.01934784558 | N134: 1.452872892e-05
A135: =IF('DF raw data'!E135="","",'DF raw data'!E135) -> -266 | B135: =IF('DF raw data'!F135="","",'DF raw data'!F135) -> -1.42877e-05 | C135: =IF('DF raw data'!G135="","",'DF raw data'!G135) -> 4.73346e-05 | D135: =IF('DF raw data'!H135="","",'DF raw data'!H135) -> -2.62978e-05 | F135: -4.141650208e-07 | G135: 3.040603343e-05 | H135: -1.632629765e-05 | J135: 0.0001368586967 | K135: 0.002495568985 | L135: 0.00106218875 | M135: 0.01987893995 | N135: 1.510221654e-05
A136: =IF('DF raw data'!E136="","",'DF raw data'!E136) -> -265.5 | B136: =IF('DF raw data'!F136="","",'DF raw data'!F136) -> -1.1666e-05 | C136: =IF('DF raw data'!G136="","",'DF raw data'!G136) -> 3.53899e-05 | D136: =IF('DF raw data'!H136="","",'DF raw data'!H136) -> -1.64421e-05 | F136: 2.221954329e-06 | G136: 1.839563758e-05 | H136: -6.416391301e-06 | J136: 0.0001379696739 | K136: 0.002564553822 | L136: 0.001071386569 | M136: 0.02041463324 | N136: 1.568566894e-05
A137: =IF('DF raw data'!E137="","",'DF raw data'!E137) -> -265 | B137: =IF('DF raw data'!F137="","",'DF raw data'!F137) -> -9.03554e-06 | C137: =IF('DF raw data'!G137="","",'DF raw data'!G137) -> 3.43554e-05 | D137: =IF('DF raw data'!H137="","",'DF raw data'!H137) -> -1.97733e-05 | F137: 4.866881859e-06 | G137: 1.735544783e-05 | H137: -9.765912901e-06 | J137: 0.0001404031148 | K137: 0.002634755379 | L137: 0.001080064293 | M137: 0.02095466538 | N137: 1.62787949e-05
A138: =IF('DF raw data'!E138="","",'DF raw data'!E138) -> -264.5 | B138: =IF('DF raw data'!F138="","",'DF raw data'!F138) -> -1.76356e-05 | C138: =IF('DF raw data'!G138="","",'DF raw data'!G138) -> 3.83843e-05 | D138: =IF('DF raw data'!H138="","",'DF raw data'!H138) -> -4.30652e-06 | F138: -3.780478471e-06 | G138: 2.140650678e-05 | H138: 5.785934389e-06 | J138: 0.0001385128756 | K138: 0.002704011817 | L138: 0.001090767546 | M138: 0.02150004916 | N138: 1.688327473e-05
A139: =IF('DF raw data'!E139="","",'DF raw data'!E139) -> -264 | B139: =IF('DF raw data'!F139="","",'DF raw data'!F139) -> -1.35954e-05 | C139: =IF('DF raw data'!G139="","",'DF raw data'!G139) -> 4.47828e-05 | D139: =IF('DF raw data'!H139="","",'DF raw data'!H139) -> -6.80392e-06 | F139: 2.819426292e-07 | G139: 2.784019853e-05 | H139: 3.274798689e-06 | J139: 0.0001386538469 | K139: 0.00277333874 | L139: 0.001104687646 | M139: 0.02205239298 | N139: 1.750305457e-05
A140: =IF('DF raw data'!E140="","",'DF raw data'!E140) -> -263.5 | B140: =IF('DF raw data'!F140="","",'DF raw data'!F140) -> -2.07145e-05 | C140: =IF('DF raw data'!G140="","",'DF raw data'!G140) -> 4.01981e-05 | D140: =IF('DF raw data'!H140="","",'DF raw data'!H140) -> -1.28587e-06 | F140: -6.876312421e-06 | G140: 2.323028268e-05 | H140: 8.823197964e-06 | J140: 0.0001352156907 | K140: 0.002840946586 | L140: 0.001116302787 | M140: 0.02261054437 | N140: 1.813526217e-05
A141: =IF('DF raw data'!E141="","",'DF raw data'!E141) -> -263 | B141: =IF('DF raw data'!F141="","",'DF raw data'!F141) -> -5.77881e-06 | C141: =IF('DF raw data'!G141="","",'DF raw data'!G141) -> 4.21955e-05 | D141: =IF('DF raw data'!H141="","",'DF raw data'!H141) -> -2.97099e-07 | F141: 8.141523874e-06 | G141: 2.523866838e-05 | H141: 9.817407205e-06 | J141: 0.0001392864526 | K141: 0.002910589812 | L141: 0.001128922121 | M141: 0.02317500543 | N141: 1.87821951e-05
A142: =IF('DF raw data'!E142="","",'DF raw data'!E142) -> -262.5 | B142: =IF('DF raw data'!F142="","",'DF raw data'!F142) -> -2.48153e-05 | C142: =IF('DF raw data'!G142="","",'DF raw data'!G142) -> 4.28063e-05 | D142: =IF('DF raw data'!H142="","",'DF raw data'!H142) -> -4.41499e-06 | F142: -1.099966682e-05 | G142: 2.585282778e-05 | H142: 5.676867804e-06 | J142: 0.0001337866192 | K142: 0.002977483122 | L142: 0.001141848535 | M142: 0.0237459297 | N142: 1.944305357e-05
A143: =IF('DF raw data'!E143="","",'DF raw data'!E143) -> -262 | B143: =IF('DF raw data'!F143="","",'DF raw data'!F143) -> -1.37222e-05 | C143: =IF('DF raw data'!G143="","",'DF raw data'!G143) -> 3.92165e-05 | D143: =IF('DF raw data'!H143="","",'DF raw data'!H143) -> -8.87172e-06 | F143: 1.544452292e-07 | G143: 2.224328388e-05 | H143: 1.195625789e-06 | J143: 0.0001338638418 | K143: 0.003044415043 | L143: 0.001152970177 | M143: 0.02432241479 | N143: 2.011668345e-05
A144: =IF('DF raw data'!E144="","",'DF raw data'!E144) -> -261.5 | B144: =IF('DF raw data'!F144="","",'DF raw data'!F144) -> -7.05377e-06 | C144: =IF('DF raw data'!G144="","",'DF raw data'!G144) -> 4.21081e-05 | D144: =IF('DF raw data'!H144="","",'DF raw data'!H144) -> -1.1234e-05 | F144: 6.859551594e-06 | G144: 2.515078768e-05 | H144: -1.179646751e-06 | J144: 0.0001372936176 | K144: 0.003113061851 | L144: 0.001165545571 | M144: 0.02490518757 | N144: 2.080535646e-05
A145: =IF('DF raw data'!E145="","",'DF raw data'!E145) -> -261 | B145: =IF('DF raw data'!F145="","",'DF raw data'!F145) -> -6.67105e-06 | C145: =IF('DF raw data'!G145="","",'DF raw data'!G145) -> 4.06695e-05 | D145: =IF('DF raw data'!H145="","",'DF raw data'!H145) -> -8.31027e-06 | F145: 7.244376554e-06 | G145: 2.370427538e-05 | H145: 1.760163764e-06 | J145: 0.0001409158059 | K145: 0.003183519754 | L145: 0.001177397708 | M145: 0.02549388643 | N145: 2.150841777e-05
A146: =IF('DF raw data'!E146="","",'DF raw data'!E146) -> -260.5 | B146: =IF('DF raw data'!F146="","",'DF raw data'!F146) -> -2.22521e-05 | C146: =IF('DF raw data'!G146="","",'DF raw data'!G146) -> 4.21695e-05 | D146: =IF('DF raw data'!H146="","",'DF raw data'!H146) -> -2.52417e-06 | F146: -8.422369221e-06 | G146: 2.521252538e-05 | H146: 7.578087314e-06 | J146: 0.0001367046213 | K146: 0.003251872065 | L146: 0.001190003971 | M146: 0.02608888841 | N146: 2.222581657e-05
A147: =IF('DF raw data'!E147="","",'DF raw data'!E147) -> -260 | B147: =IF('DF raw data'!F147="","",'DF raw data'!F147) -> -1.7182e-05 | C147: =IF('DF raw data'!G147="","",'DF raw data'!G147) -> 4.17137e-05 | D147: =IF('DF raw data'!H147="","",'DF raw data'!H147) -> -1.1646e-05 | F147: -3.324383671e-06 | G147: 2.475421848e-05 | H147: -1.593912751e-06 | J147: 0.0001350424295 | K147: 0.00331939328 | L147: 0.00120238108 | M147: 0.02669007895 | N147: 2.295779493e-05
A148: =IF('DF raw data'!E148="","",'DF raw data'!E148) -> -259.5 | B148: =IF('DF raw data'!F148="","",'DF raw data'!F148) -> -1.80184e-05 | C148: =IF('DF raw data'!G148="","",'DF raw data'!G148) -> 4.46843e-05 | D148: =IF('DF raw data'!H148="","",'DF raw data'!H148) -> -7.16488e-06 | F148: -4.165383871e-06 | G148: 2.774115678e-05 | H148: 2.911853409e-06 | J148: 0.0001329597375 | K148: 0.003385873149 | L148: 0.001216251659 | M148: 0.02729820478 | N148: 2.370626813e-05
A149: =IF('DF raw data'!E149="","",'DF raw data'!E149) -> -259 | B149: =IF('DF raw data'!F149="","",'DF raw data'!F149) -> -1.61597e-05 | C149: =IF('DF raw data'!G149="","",'DF raw data'!G149) -> 4.89094e-05 | D149: =IF('DF raw data'!H149="","",'DF raw data'!H149) -> -6.37685e-06 | F149: -2.296461021e-06 | G149: 3.198949483e-05 | H149: 3.704217574e-06 | J149: 0.000131811507 | K149: 0.003451778902 | L149: 0.001232246406 | M149: 0.02791432799 | N149: 2.447417087e-05
A150: =IF('DF raw data'!E150="","",'DF raw data'!E150) -> -258.5 | B150: =IF('DF raw data'!F150="","",'DF raw data'!F150) -> -2.17987e-05 | C150: =IF('DF raw data'!G150="","",'DF raw data'!G150) -> 4.54284e-05 | D150: =IF('DF raw data'!H150="","",'DF raw data'!H150) -> -9.94414e-06 | F150: -7.966475521e-06 | G150: 2.848934933e-05 | H150: 1.173074791e-07 | J150: 0.0001278282693 | K150: 0.003515693037 | L150: 0.001246491081 | M150: 0.02853757353 | N150: 2.525921091e-05
A151: =IF('DF raw data'!E151="","",'DF raw data'!E151) -> -258 | B151: =IF('DF raw data'!F151="","",'DF raw data'!F151) -> -7.11435e-06 | C151: =IF('DF raw data'!G151="","",'DF raw data'!G151) -> 4.69115e-05 | D151: =IF('DF raw data'!H151="","",'DF raw data'!H151) -> -1.68717e-05 | F151: 6.798638404e-06 | G151: 2.998060638e-05 | H151: -6.848354101e-06 | J151: 0.0001312275885 | K151: 0.003581306831 | L151: 0.001261481384 | M151: 0.02916831422 | N151: 2.606348889e-05
A152: =IF('DF raw data'!E152="","",'DF raw data'!E152) -> -257.5 | B152: =IF('DF raw data'!F152="","",'DF raw data'!F152) -> -1.98088e-05 | C152: =IF('DF raw data'!G152="","",'DF raw data'!G152) -> 4.75687e-05 | D152: =IF('DF raw data'!H152="","",'DF raw data'!H152) -> -1.3957e-05 | F152: -5.965631071e-06 | G152: 3.064142098e-05 | H152: -3.917623251e-06 | J152: 0.0001282447729 | K152: 0.003645429217 | L152: 0.001276802095 | M152: 0.02980671527 | N152: 2.688682405e-05
A153: =IF('DF raw data'!E153="","",'DF raw data'!E153) -> -257 | B153: =IF('DF raw data'!F153="","",'DF raw data'!F153) -> -1.22401e-05 | C153: =IF('DF raw data'!G153="","",'DF raw data'!G153) -> 4.45947e-05 | D153: =IF('DF raw data'!H153="","",'DF raw data'!H153) -> -2.0583e-05 | F153: 1.644696779e-06 | G153: 2.765106398e-05 | H153: -1.058006625e-05 | J153: 0.0001290671213 | K153: 0.003709962778 | L153: 0.001290627627 | M153: 0.03045202908 | N153: 2.772801304e-05
A154: =IF('DF raw data'!E154="","",'DF raw data'!E154) -> -256.5 | B154: =IF('DF raw data'!F154="","",'DF raw data'!F154) -> -2.56691e-06 | C154: =IF('DF raw data'!G154="","",'DF raw data'!G154) -> 4.04704e-05 | D154: =IF('DF raw data'!H154="","",'DF raw data'!H154) -> -1.07407e-05 | F154: 1.137108932e-05 | G154: 2.350408033e-05 | H154: -6.836336009e-07 | J154: 0.000134752666 | K154: 0.003777339111 | L154: 0.001302379667 | M154: 0.03110321891 | N154: 2.858518858e-05
A155: =IF('DF raw data'!E155="","",'DF raw data'!E155) -> -256 | B155: =IF('DF raw data'!F155="","",'DF raw data'!F155) -> 2.23849e-06 | C155: =IF('DF raw data'!G155="","",'DF raw data'!G155) -> 3.78065e-05 | D155: =IF('DF raw data'!H155="","",'DF raw data'!H155) -> -7.00552e-06 | F155: 1.620291902e-05 | G155: 2.082552888e-05 | H155: 3.072089889e-06 | J155: 0.0001428541255 | K155: 0.003848766174 | L155: 0.001312792431 | M155: 0.03175961513 | N155: 2.945710421e-05
A156: =IF('DF raw data'!E156="","",'DF raw data'!E156) -> -255.5 | B156: =IF('DF raw data'!F156="","",'DF raw data'!F156) -> -2.09007e-05 | C156: =IF('DF raw data'!G156="","",'DF raw data'!G156) -> 4.01379e-05 | D156: =IF('DF raw data'!H156="","",'DF raw data'!H156) -> -1.08524e-05 | F156: -7.063536521e-06 | G156: 2.316975158e-05 | H156: -7.959479509e-07 | J156: 0.0001393223572 | K156: 0.003918427352 | L156: 0.001324377307 | M156: 0.03242180378 | N156: 3.03437972e-05
A157: =IF('DF raw data'!E157="","",'DF raw data'!E157) -> -255 | B157: =IF('DF raw data'!F157="","",'DF raw data'!F157) -> -5.38074e-06 | C157: =IF('DF raw data'!G157="","",'DF raw data'!G157) -> 3.93206e-05 | D157: =IF('DF raw data'!H157="","",'DF raw data'!H157) -> -2.10481e-05 | F157: 8.541783259e-06 | G157: 2.234795643e-05 | H157: -1.10477243e-05 | J157: 0.0001435932489 | K157: 0.003990223977 | L157: 0.001335551285 | M157: 0.03308957942 | N157: 3.124595533e-05
A158: =IF('DF raw data'!E158="","",'DF raw data'!E158) -> -254.5 | B158: =IF('DF raw data'!F158="","",'DF raw data'!F158) -> -2.2821e-05 | C158: =IF('DF raw data'!G158="","",'DF raw data'!G158) -> 4.34724e-05 | D158: =IF('DF raw data'!H158="","",'DF raw data'!H158) -> -1.51654e-05 | F158: -8.994398171e-06 | G158: 2.652259133e-05 | H158: -5.132669451e-06 | J158: 0.0001390960498 | K158: 0.004059772002 | L158: 0.001348812581 | M158: 0.03376398572 | N158: 3.216527687e-05
A159: =IF('DF raw data'!E159="","",'DF raw data'!E159) -> -254 | B159: =IF('DF raw data'!F159="","",'DF raw data'!F159) -> -1.37764e-05 | C159: =IF('DF raw data'!G159="","",'DF raw data'!G159) -> 4.88356e-05 | D159: =IF('DF raw data'!H159="","",'DF raw data'!H159) -> -2.40007e-05 | F159: 9.994712918e-08 | G159: 3.191528893e-05 | H159: -1.40165636e-05 | J159: 0.0001391460233 | K159: 0.004129345013 | L159: 0.001364770225 | M159: 0.03444637083 | N159: 3.310625656e-05
A160: =IF('DF raw data'!E160="","",'DF raw data'!E160) -> -253.5 | B160: =IF('DF raw data'!F160="","",'DF raw data'!F160) -> -1.68023e-05 | C160: =IF('DF raw data'!G160="","",'DF raw data'!G160) -> 4.66207e-05 | D160: =IF('DF raw data'!H160="","",'DF raw data'!H160) -> -4.03871e-06 | F160: -2.942595321e-06 | G160: 2.968820698e-05 | H160: 6.055217344e-06 | J160: 0.0001376747257 | K160: 0.004198182376 | L160: 0.001379614329 | M160: 0.03513617799 | N160: 3.406740158e-05
A161: =IF('DF raw data'!E161="","",'DF raw data'!E161) -> -253 | B161: =IF('DF raw data'!F161="","",'DF raw data'!F161) -> -9.48491e-06 | C161: =IF('DF raw data'!G161="","",'DF raw data'!G161) -> 4.70463e-05 | D161: =IF('DF raw data'!H161="","",'DF raw data'!H161) -> -1.85743e-05 | F161: 4.415040324e-06 | G161: 3.011614778e-05 | H161: -8.560318401e-06 | J161: 0.0001398822458 | K161: 0.004268123499 | L161: 0.001394672403 | M161: 0.03583351419 | N161: 3.504974065e-05
A162: =IF('DF raw data'!E162="","",'DF raw data'!E162) -> -252.5 | B162: =IF('DF raw data'!F162="","",'DF raw data'!F162) -> -1.8331e-05 | C162: =IF('DF raw data'!G162="","",'DF raw data'!G162) -> 4.70546e-05 | D162: =IF('DF raw data'!H162="","",'DF raw data'!H162) -> -1.91112e-05 | F162: -4.479703171e-06 | G162: 3.012449343e-05 | H162: -9.100171351e-06 | J162: 0.0001376423942 | K162: 0.004336944696 | L162: 0.001409734649 | M162: 0.03653838152 | N162: 3.605288926e-05
A163: =IF('DF raw data'!E163="","",'DF raw data'!E163) -> -252 | B163: =IF('DF raw data'!F163="","",'DF raw data'!F163) -> -1.17253e-05 | C163: =IF('DF raw data'!G163="","",'DF raw data'!G163) -> 4.89228e-05 | D163: =IF('DF raw data'!H163="","",'DF raw data'!H163) -> -2.3723e-05 | F163: 2.162328179e-06 | G163: 3.200296853e-05 | H163: -1.373733625e-05 | J163: 0.0001387235583 | K163: 0.004406306475 | L163: 0.001425736134 | M163: 0.03725124958 | N163: 3.707887313e-05
A164: =IF('DF raw data'!E164="","",'DF raw data'!E164) -> -251.5 | B164: =IF('DF raw data'!F164="","",'DF raw data'!F164) -> -1.52618e-05 | C164: =IF('DF raw data'!G164="","",'DF raw data'!G164) -> 3.57685e-05 | D164: =IF('DF raw data'!H164="","",'DF raw data'!H164) -> -7.18714e-06 | F164: -1.393622571e-06 | G164: 1.877631988e-05 | H164: 2.889470979e-06 | J164: 0.0001380267471 | K164: 0.004475319849 | L164: 0.001435124294 | M164: 0.03796881173 | N164: 3.811818969e-05
A165: =IF('DF raw data'!E165="","",'DF raw data'!E165) -> -251 | B165: =IF('DF raw data'!F165="","",'DF raw data'!F165) -> -1.99996e-05 | C165: =IF('DF raw data'!G165="","",'DF raw data'!G165) -> 2.99756e-05 | D165: =IF('DF raw data'!H165="","",'DF raw data'!H165) -> -1.65418e-05 | F165: -6.157480471e-06 | G165: 1.295155893e-05 | H165: -6.516639651e-06 | J165: 0.0001349480068 | K165: 0.004542793852 | L165: 0.001441600073 | M165: 0.03868961177 | N165: 3.916640056e-05
A166: =IF('DF raw data'!E166="","",'DF raw data'!E166) -> -250.5 | B166: =IF('DF raw data'!F166="","",'DF raw data'!F166) -> -2.6992e-05 | C166: =IF('DF raw data'!G166="","",'DF raw data'!G166) -> 4.10552e-05 | D166: =IF('DF raw data'!H166="","",'DF raw data'!H166) -> -8.747e-06 | F166: -1.318833867e-05 | G166: 2.409209673e-05 | H166: 1.321031749e-06 | J166: 0.0001283538375 | K166: 0.004606970771 | L166: 0.001453646121 | M166: 0.03941643483 | N166: 4.023118144e-05
A167: =IF('DF raw data'!E167="","",'DF raw data'!E167) -> -250 | B167: =IF('DF raw data'!F167="","",'DF raw data'!F167) -> -1.71841e-05 | C167: =IF('DF raw data'!G167="","",'DF raw data'!G167) -> 3.80881e-05 | D167: =IF('DF raw data'!H167="","",'DF raw data'!H167) -> -8.30753e-06 | F167: -3.326495221e-06 | G167: 2.110867768e-05 | H167: 1.762918834e-06 | J167: 0.0001266905899 | K167: 0.004670316066 | L167: 0.00146420046 | M167: 0.04014853506 | N167: 4.131114818e-05
A168: =IF('DF raw data'!E168="","",'DF raw data'!E168) -> -249.5 | B168: =IF('DF raw data'!F168="","",'DF raw data'!F168) -> -1.33363e-05 | C168: =IF('DF raw data'!G168="","",'DF raw data'!G168) -> 4.03288e-05 | D168: =IF('DF raw data'!H168="","",'DF raw data'!H168) -> -1.09739e-05 | F168: 5.424676792e-07 | G168: 2.336170153e-05 | H168: -9.181162009e-07 | J168: 0.0001269618237 | K168: 0.004733796978 | L168: 0.001475881311 | M168: 0.04088647571 | N168: 4.240832066e-05
A169: =IF('DF raw data'!E169="","",'DF raw data'!E169) -> -249 | B169: =IF('DF raw data'!F169="","",'DF raw data'!F169) -> -1.33317e-05 | C169: =IF('DF raw data'!G169="","",'DF raw data'!G169) -> 4.25707e-05 | D169: =IF('DF raw data'!H169="","",'DF raw data'!H169) -> -1.79485e-05 | F169: 5.470929792e-07 | G169: 2.561593198e-05 | H169: -7.931076501e-06 | J169: 0.0001272353702 | K169: 0.004797414663 | L169: 0.001488689277 | M169: 0.04163082035 | N169: 4.352451296e-05
A170: =IF('DF raw data'!E170="","",'DF raw data'!E170) -> -248.5 | B170: =IF('DF raw data'!F170="","",'DF raw data'!F170) -> -1.89779e-05 | C170: =IF('DF raw data'!G170="","",'DF raw data'!G170) -> 3.8446e-05 | D170: =IF('DF raw data'!H170="","",'DF raw data'!H170) -> -1.00312e-05 | F170: -5.130161121e-06 | G170: 2.146854613e-05 | H170: 2.976864907e-08 | J170: 0.0001246702896 | K170: 0.004859749808 | L170: 0.00149942355 | M170: 0.04238053213 | N170: 4.465641979e-05
A171: =IF('DF raw data'!E171="","",'DF raw data'!E171) -> -248 | B171: =IF('DF raw data'!F171="","",'DF raw data'!F171) -> -2.38476e-05 | C171: =IF('DF raw data'!G171="","",'DF raw data'!G171) -> 3.35026e-05 | D171: =IF('DF raw data'!H171="","",'DF raw data'!H171) -> -1.3687e-05 | F171: -1.002664447e-05 | G171: 1.649795743e-05 | H171: -3.646138251e-06 | J171: 0.0001196569674 | K171: 0.004919578291 | L171: 0.001507672529 | M171: 0.04313436839 | N171: 4.580011691e-05
A172: =IF('DF raw data'!E172="","",'DF raw data'!E172) -> -247.5 | B172: =IF('DF raw data'!F172="","",'DF raw data'!F172) -> -1.66654e-05 | C172: =IF('DF raw data'!G172="","",'DF raw data'!G172) -> 3.06084e-05 | D172: =IF('DF raw data'!H172="","",'DF raw data'!H172) -> -1.74477e-05 | F172: -2.804942371e-06 | G172: 1.358783933e-05 | H172: -7.427522101e-06 | J172: 0.0001182544962 | K172: 0.00497870554 | L172: 0.001514466448 | M172: 0.04389160162 | N172: 4.695391329e-05
A173: =IF('DF raw data'!E173="","",'DF raw data'!E173) -> -247 | B173: =IF('DF raw data'!F173="","",'DF raw data'!F173) -> -1.26327e-05 | C173: =IF('DF raw data'!G173="","",'DF raw data'!G173) -> 4.01245e-05 | D173: =IF('DF raw data'!H173="","",'DF raw data'!H173) -> -8.30117e-06 | F173: 1.249937479e-06 | G173: 2.315627788e-05 | H173: 1.769313814e-06 | J173: 0.000118879465 | K173: 0.005038145272 | L173: 0.001526044587 | M173: 0.04465462391 | N173: 4.812538549e-05
A174: =IF('DF raw data'!E174="","",'DF raw data'!E174) -> -246.5 | B174: =IF('DF raw data'!F174="","",'DF raw data'!F174) -> -2.36652e-05 | C174: =IF('DF raw data'!G174="","",'DF raw data'!G174) -> 3.56288e-05 | D174: =IF('DF raw data'!H174="","",'DF raw data'!H174) -> 1.73147e-06 | F174: -9.843241271e-06 | G174: 1.863585153e-05 | H174: 1.185713333e-05 | J174: 0.0001139578443 | K174: 0.005095124194 | L174: 0.001535362513 | M174: 0.04542230517 | N174: 4.931054771e-05
A175: =IF('DF raw data'!E175="","",'DF raw data'!E175) -> -246 | B175: =IF('DF raw data'!F175="","",'DF raw data'!F175) -> -1.32099e-05 | C175: =IF('DF raw data'!G175="","",'DF raw data'!G175) -> 3.58167e-05 | D175: =IF('DF raw data'!H175="","",'DF raw data'!H175) -> -8.12239e-06 | F175: 6.695628792e-07 | G175: 1.882478498e-05 | H175: 1.949077104e-06 | J175: 0.0001142926258 | K175: 0.005152270507 | L175: 0.001544774906 | M175: 0.04619469262 | N175: 5.051024387e-05
A176: =IF('DF raw data'!E176="","",'DF raw data'!E176) -> -245.5 | B176: =IF('DF raw data'!F176="","",'DF raw data'!F176) -> -2.3218e-05 | C176: =IF('DF raw data'!G176="","",'DF raw data'!G176) -> 3.39467e-05 | D176: =IF('DF raw data'!H176="","",'DF raw data'!H176) -> 3.90846e-06 | F176: -9.393581671e-06 | G176: 1.694449998e-05 | H176: 1.404609678e-05 | J176: 0.0001095958349 | K176: 0.005207068425 | L176: 0.001553247156 | M176: 0.0469713162 | N176: 5.172253786e-05
A177: =IF('DF raw data'!E177="","",'DF raw data'!E177) -> -245 | B177: =IF('DF raw data'!F177="","",'DF raw data'!F177) -> -1.6413e-05 | C177: =IF('DF raw data'!G177="","",'DF raw data'!G177) -> 3.44886e-05 | D177: =IF('DF raw data'!H177="","",'DF raw data'!H177) -> -1.12542e-05 | F177: -2.551154171e-06 | G177: 1.748938043e-05 | H177: -1.199957851e-06 | J177: 0.0001083202578 | K177: 0.005261228553 | L177: 0.001561991846 | M177: 0.04775231212 | N177: 5.294831376e-05
A178: =IF('DF raw data'!E178="","",'DF raw data'!E178) -> -244.5 | B178: =IF('DF raw data'!F178="","",'DF raw data'!F178) -> -2.1279e-05 | C178: =IF('DF raw data'!G178="","",'DF raw data'!G178) -> 3.401e-05 | D178: =IF('DF raw data'!H178="","",'DF raw data'!H178) -> -2.0617e-05 | F178: -7.443917171e-06 | G178: 1.700814813e-05 | H178: -1.061425325e-05 | J178: 0.0001045982993 | K178: 0.005313527703 | L178: 0.00157049592 | M178: 0.04853756008 | N178: 5.418701288e-05
A179: =IF('DF raw data'!E179="","",'DF raw data'!E179) -> -244 | B179: =IF('DF raw data'!F179="","",'DF raw data'!F179) -> -2.55179e-05 | C179: =IF('DF raw data'!G179="","",'DF raw data'!G179) -> 3.95373e-05 | D179: =IF('DF raw data'!H179="","",'DF raw data'!H179) -> -8.04479e-06 | F179: -1.170613112e-05 | G179: 2.256584828e-05 | H179: 2.027103904e-06 | J179: 9.87452337e-05 | K179: 0.00536290032 | L179: 0.001581778844 | M179: 0.0493284495 | N179: 5.544290034e-05
A180: =IF('DF raw data'!E180="","",'DF raw data'!E180) -> -243.5 | B180: =IF('DF raw data'!F180="","",'DF raw data'!F180) -> -2.69308e-05 | C180: =IF('DF raw data'!G180="","",'DF raw data'!G180) -> 3.53039e-05 | D180: =IF('DF raw data'!H180="","",'DF raw data'!H180) -> -4.02852e-06 | F180: -1.312680207e-05 | G180: 1.830916458e-05 | H180: 6.065463389e-06 | J180: 9.218183266e-05 | K180: 0.005408991236 | L180: 0.001590933426 | M180: 0.05012391622 | N180: 5.671268367e-05
A181: =IF('DF raw data'!E181="","",'DF raw data'!E181) -> -243 | B181: =IF('DF raw data'!F181="","",'DF raw data'!F181) -> -1.9161e-05 | C181: =IF('DF raw data'!G181="","",'DF raw data'!G181) -> 3.0417e-05 | D181: =IF('DF raw data'!H181="","",'DF raw data'!H181) -> -2.44172e-05 | F181: -5.314268171e-06 | G181: 1.339538663e-05 | H181: -1.443535435e-05 | J181: 8.952469858e-05 | K181: 0.005453753586 | L181: 0.00159763112 | M181: 0.05092273178 | N181: 5.799290361e-05
A182: =IF('DF raw data'!E182="","",'DF raw data'!E182) -> -242.5 | B182: =IF('DF raw data'!F182="","",'DF raw data'!F182) -> -1.66511e-06 | C182: =IF('DF raw data'!G182="","",'DF raw data'!G182) -> 3.38053e-05 | D182: =IF('DF raw data'!H182="","",'DF raw data'!H182) -> -1.70627e-05 | F182: 1.227784922e-05 | G182: 1.680232228e-05 | H182: -7.040404601e-06 | J182: 9.566362319e-05 | K182: 0.005501585397 | L182: 0.001606032281 | M182: 0.05172574792 | N182: 5.928714921e-05
A183: =IF('DF raw data'!E183="","",'DF raw data'!E183) -> -242 | B183: =IF('DF raw data'!F183="","",'DF raw data'!F183) -> 2.54281e-07 | C183: =IF('DF raw data'!G183="","",'DF raw data'!G183) -> 3.95164e-05 | D183: =IF('DF raw data'!H183="","",'DF raw data'!H183) -> -1.13765e-05 | F183: 1.420779687e-05 | G183: 2.254483333e-05 | H183: -1.322930501e-06 | J183: 0.0001027675216 | K183: 0.005552969158 | L183: 0.001617304697 | M183: 0.05253440026 | N183: 6.060026704e-05
A184: =IF('DF raw data'!E184="","",'DF raw data'!E184) -> -241.5 | B184: =IF('DF raw data'!F184="","",'DF raw data'!F184) -> -1.05775e-05 | C184: =IF('DF raw data'!G184="","",'DF raw data'!G184) -> 3.81672e-05 | D184: =IF('DF raw data'!H184="","",'DF raw data'!H184) -> -1.43469e-05 | F184: 3.316441079e-06 | G184: 2.118821273e-05 | H184: -4.309667701e-06 | J184: 0.0001044257422 | K184: 0.005605182029 | L184: 0.001627898804 | M184: 0.05334834967 | N184: 6.193074666e-05
A185: =IF('DF raw data'!E185="","",'DF raw data'!E185) -> -241 | B185: =IF('DF raw data'!F185="","",'DF raw data'!F185) -> -5.44906e-06 | C185: =IF('DF raw data'!G185="","",'DF raw data'!G185) -> 4.38971e-05 | D185: =IF('DF raw data'!H185="","",'DF raw data'!H185) -> -1.43407e-05 | F185: 8.473087499e-06 | G185: 2.694962718e-05 | H185: -4.303433601e-06 | J185: 0.0001086622859 | K185: 0.005659513172 | L185: 0.001641373617 | M185: 0.05416903648 | N185: 6.328370409e-05
A186: =IF('DF raw data'!E186="","",'DF raw data'!E186) -> -240.5 | B186: =IF('DF raw data'!F186="","",'DF raw data'!F186) -> -1.53198e-05 | C186: =IF('DF raw data'!G186="","",'DF raw data'!G186) -> 4.06596e-05 | D186: =IF('DF raw data'!H186="","",'DF raw data'!H186) -> -1.68263e-05 | F186: -1.451941571e-06 | G186: 2.369432093e-05 | H186: -6.802704401e-06 | J186: 0.0001079363151 | K186: 0.00571348133 | L186: 0.001653220778 | M186: 0.05499564686 | N186: 6.465609868e-05
A187: =IF('DF raw data'!E187="","",'DF raw data'!E187) -> -240 | B187: =IF('DF raw data'!F187="","",'DF raw data'!F187) -> -8.20726e-06 | C187: =IF('DF raw data'!G187="","",'DF raw data'!G187) -> 4.1827e-05 | D187: =IF('DF raw data'!H187="","",'DF raw data'!H187) -> -1.17902e-05 | F187: 5.699717399e-06 | G187: 2.486814163e-05 | H187: -1.738905851e-06 | J187: 0.0001107861738 | K187: 0.005768874416 | L187: 0.001665654849 | M187: 0.05582847429 | N187: 6.604943851e-05
A188: =IF('DF raw data'!E188="","",'DF raw data'!E188) -> -239.5 | B188: =IF('DF raw data'!F188="","",'DF raw data'!F188) -> -8.65539e-06 | C188: =IF('DF raw data'!G188="","",'DF raw data'!G188) -> 4.55946e-05 | D188: =IF('DF raw data'!H188="","",'DF raw data'!H188) -> -1.29114e-05 | F188: 5.249122684e-06 | G188: 2.865646343e-05 | H188: -2.866272451e-06 | J188: 0.0001134107352 | K188: 0.005825579784 | L188: 0.00167998308 | M188: 0.05666846583 | N188: 6.746704108e-05
A189: =IF('DF raw data'!E189="","",'DF raw data'!E189) -> -239 | B189: =IF('DF raw data'!F189="","",'DF raw data'!F189) -> -1.27601e-06 | C189: =IF('DF raw data'!G189="","",'DF raw data'!G189) -> 4.11242e-05 | D189: =IF('DF raw data'!H189="","",'DF raw data'!H189) -> -2.39724e-05 | F189: 1.266908927e-05 | G189: 2.416147623e-05 | H189: -1.398810795e-05 | J189: 0.0001197452798 | K189: 0.005885452424 | L189: 0.001692063819 | M189: 0.05751449774 | N189: 6.890575053e-05
A190: =IF('DF raw data'!E190="","",'DF raw data'!E190) -> -238.5 | B190: =IF('DF raw data'!F190="","",'DF raw data'!F190) -> -1.48088e-05 | C190: =IF('DF raw data'!G190="","",'DF raw data'!G190) -> 2.98326e-05 | D190: =IF('DF raw data'!H190="","",'DF raw data'!H190) -> -1.35568e-05 | F190: -9.381310708e-07 | G190: 1.280777243e-05 | H190: -3.515222151e-06 | J190: 0.0001192762143 | K190: 0.005945090531 | L190: 0.001698467705 | M190: 0.05836373159 | N190: 7.035526021e-05
A191: =IF('DF raw data'!E191="","",'DF raw data'!E191) -> -238 | B191: =IF('DF raw data'!F191="","",'DF raw data'!F191) -> -6.54355e-06 | C191: =IF('DF raw data'!G191="","",'DF raw data'!G191) -> 4.06608e-05 | D191: =IF('DF raw data'!H191="","",'DF raw data'!H191) -> -7.23223e-06 | F191: 7.372577804e-06 | G191: 2.369552753e-05 | H191: 2.844132984e-06 | J191: 0.0001229625032 | K191: 0.006006571783 | L191: 0.001710315469 | M191: 0.05921888932 | N191: 7.18254096e-05
A192: =IF('DF raw data'!E192="","",'DF raw data'!E192) -> -237.5 | B192: =IF('DF raw data'!F192="","",'DF raw data'!F192) -> -1.56401e-05 | C192: =IF('DF raw data'!G192="","",'DF raw data'!G192) -> 4.31936e-05 | D192: =IF('DF raw data'!H192="","",'DF raw data'!H192) -> -1.70209e-05 | F192: -1.774003221e-06 | G192: 2.624225793e-05 | H192: -6.998374701e-06 | J192: 0.0001220755016 | K192: 0.006067609533 | L192: 0.001723436597 | M192: 0.06008060762 | N192: 7.331797766e-05
A193: =IF('DF raw data'!E193="","",'DF raw data'!E193) -> -237 | B193: =IF('DF raw data'!F193="","",'DF raw data'!F193) -> -9.5527e-06 | C193: =IF('DF raw data'!G193="","",'DF raw data'!G193) -> 4.12156e-05 | D193: =IF('DF raw data'!H193="","",'DF raw data'!H193) -> -1.30913e-05 | F193: 4.346877479e-06 | G193: 2.425337893e-05 | H193: -3.047161901e-06 | J193: 0.0001242489403 | K193: 0.006129734004 | L193: 0.001735563287 | M193: 0.06094838927 | N193: 7.483178652e-05
A194: =IF('DF raw data'!E194="","",'DF raw data'!E194) -> -236.5 | B194: =IF('DF raw data'!F194="","",'DF raw data'!F194) -> -1.33415e-05 | C194: =IF('DF raw data'!G194="","",'DF raw data'!G194) -> 4.02207e-05 | D194: =IF('DF raw data'!H194="","",'DF raw data'!H194) -> -2.9165e-06 | F194: 5.372390792e-07 | G194: 2.325300698e-05 | H194: 7.183599499e-06 | J194: 0.0001245175598 | K194: 0.006191992784 | L194: 0.00174718979 | M194: 0.06182198416 | N194: 7.636587492e-05
A195: =IF('DF raw data'!E195="","",'DF raw data'!E195) -> -236 | B195: =IF('DF raw data'!F195="","",'DF raw data'!F195) -> -7.18213e-06 | C195: =IF('DF raw data'!G195="","",'DF raw data'!G195) -> 3.02135e-05 | D195: =IF('DF raw data'!H195="","",'DF raw data'!H195) -> -1.10056e-05 | F195: =(1-$G$1*($B$54-$G$2))*(B195-F$5) -> 6.730485614e-06 | G195: =(1-$G$1*($B$54-$G$2))*(C195-G$5) -> 1.319076738e-05 | H195: =(1-$G$1*($B$54-$G$2))*(D195-H$5) -> -9.499905509e-07 | J195: 0.0001278828027 | K195: 0.006255934185 | L195: 0.001753785174 | M195: 0.06269887675 | N195: 7.791193314e-05
A196: =IF('DF raw data'!E196="","",'DF raw data'!E196) -> -235.5 | B196: =IF('DF raw data'!F196="","",'DF raw data'!F196) -> 6.53749e-06 | C196: =IF('DF raw data'!G196="","",'DF raw data'!G196) -> 2.69882e-05 | D196: =IF('DF raw data'!H196="","",'DF raw data'!H196) -> -1.31569e-05 | F196: 2.052556352e-05 | G196: 9.947728233e-06 | H196: -3.113122701e-06 | J196: =F196*$G$3+J195 -> 0.0001381455844 | K196: =J196*$G$3+K195 -> 0.006325006977 | L196: =G196*$G$3+L195 -> 0.001758759038 | M196: =L196*$G$3+M195 -> 0.06357825627 | N196: =(J196^2+L196^2)*$G$3+N195 -> 7.946809192e-05
A197: =IF('DF raw data'!E197="","",'DF raw data'!E197) -> -235 | B197: =IF('DF raw data'!F197="","",'DF raw data'!F197) -> 4.6154e-06 | C197: =IF('DF raw data'!G197="","",'DF raw data'!G197) -> 2.8207e-05 | D197: =IF('DF raw data'!H197="","",'DF raw data'!H197) -> -1.46724e-05 | F197: 1.859290203e-05 | G197: 1.117323163e-05 | H197: -4.636957951e-06 | J197: 0.0001474420354 | K197: 0.006398727995 | L197: 0.001764345654 | M197: 0.0644604291 | N197: 8.103541929e-05
A198: =IF('DF raw data'!E198="","",'DF raw data'!E198) -> -234.5 | B198: =IF('DF raw data'!F198="","",'DF raw data'!F198) -> -1.7635e-05 | C198: =IF('DF raw data'!G198="","",'DF raw data'!G198) -> 2.23689e-05 | D198: =IF('DF raw data'!H198="","",'DF raw data'!H198) -> -5.20937e-06 | F198: -3.779875171e-06 | G198: 5.303022082e-06 | H198: 4.878118714e-06 | J198: 0.0001455520978 | K198: 0.006471504044 | L198: 0.001766997165 | M198: 0.06534392768 | N198: 8.260715149e-05
A199: =IF('DF raw data'!E199="","",'DF raw data'!E199) -> -234 | B199: =IF('DF raw data'!F199="","",'DF raw data'!F199) -> -4.2935e-06 | C199: =IF('DF raw data'!G199="","",'DF raw data'!G199) -> 2.68449e-05 | D199: =IF('DF raw data'!H199="","",'DF raw data'!H199) -> -1.69834e-05 | F199: 9.635003079e-06 | G199: 9.803640083e-06 | H199: -6.960668451e-06 | J199: 0.0001503695994 | K199: 0.006546688843 | L199: 0.001771898985 | M199: 0.06622987717 | N199: 8.418827e-05
A200: =IF('DF raw data'!E200="","",'DF raw data'!E200) -> -233.5 | B200: =IF('DF raw data'!F200="","",'DF raw data'!F200) -> -1.70592e-05 | C200: =IF('DF raw data'!G200="","",'DF raw data'!G200) -> 3.3791e-05 | D200: =IF('DF raw data'!H200="","",'DF raw data'!H200) -> -3.26853e-06 | F200: -3.200908271e-06 | G200: 1.678794363e-05 | H200: 6.829633334e-06 | J200: 0.0001487691452 | K200: 0.006621073416 | L200: 0.001780292957 | M200: 0.06712002365 | N200: 8.578405764e-05
... 1079 more rows

Sheet 20 mm
A1: =IF('DF raw data'!I1="","",'DF raw data'!I1) -> Number of header lines | B1: =IF('DF raw data'!J1="","",'DF raw data'!J1) -> 54 | C1: =IF('DF raw data'!C1="","",'DF raw data'!C1) ->  | D1: =IF('DF raw data'!D1="","",'DF raw data'!D1) ->  | F1: T_coeff | G1: -0.001 | H1: /degC | J1: IBy total | K1: =J1267*1000 -> -0.05636465303 | L1: muTm | M1: =L1267*1000 -> -21.06806686 | R1: DF ref | S1: 1
A2: =IF('DF raw data'!I2="","",'DF raw data'!I2) -> Measured by | B2: =IF('DF raw data'!J2="","",'DF raw data'!J2) -> Danfysik | C2: =IF('DF raw data'!C2="","",'DF raw data'!C2) ->  | D2: =IF('DF raw data'!D2="","",'DF raw data'!D2) ->  | F2: Tcorr | G2: 20 | H2: degC | J2: JBy total | K2: =K1267 -> -20.40080959 | L2: muTm^2 | M2: =M1267 -> -5.577021417
A3: =IF('DF raw data'!I3="","",'DF raw data'!I3) -> Operator | B3: =IF('DF raw data'!J3="","",'DF raw data'!J3) -> PMHA | C3: =IF('DF raw data'!C3="","",'DF raw data'!C3) ->  | D3: =IF('DF raw data'!D3="","",'DF raw data'!D3) ->  | F3: Step | G3: =A68-A67 -> 0.5 | H3: mm | J3: PI total | K3: =N1267 -> 4876.296873 | L3: T^2mm^3
A4: =IF('DF raw data'!I4="","",'DF raw data'!I4) -> Data-time | B4: =IF('DF raw data'!J4="","",'DF raw data'!J4) -> 02-10-2024, 15:58:46 | C4: =IF('DF raw data'!C4="","",'DF raw data'!C4) ->  | D4: =IF('DF raw data'!D4="","",'DF raw data'!D4) -> 
A5: =IF('DF raw data'!I5="","",'DF raw data'!I5) -> Project | B5: =IF('DF raw data'!J5="","",'DF raw data'!J5) -> 504314 | C5: =IF('DF raw data'!C5="","",'DF raw data'!C5) ->  | D5: Bamb avr | F5: =(AVERAGE(B67:B107) + AVERAGE(B1227:B1267))/2 -> -1.19728088e-05 | G5: =(AVERAGE(C67:C107) + AVERAGE(C1227:C1267))/2 -> 7.990123634e-06 | H5: =(AVERAGE(D67:D107) + AVERAGE(D1227:D1267))/2 -> -1.577470607e-05
A6: =IF('DF raw data'!I6="","",'DF raw data'!I6) -> Magnet type | B6: =IF('DF raw data'!J6="","",'DF raw data'!J6) -> Dipole | C6: =IF('DF raw data'!C6="","",'DF raw data'!C6) -> 
A7: =IF('DF raw data'!I7="","",'DF raw data'!I7) -> Magnet nr. | B7: =IF('DF raw data'!J7="","",'DF raw data'!J7) -> 2410109 | C7: =IF('DF raw data'!C7="","",'DF raw data'!C7) -> 
A8: =IF('DF raw data'!I8="","",'DF raw data'!I8) -> Meas. number | B8: =IF('DF raw data'!J8="","",'DF raw data'!J8) -> 965 | C8: =IF('DF raw data'!C8="","",'DF raw data'!C8) -> 
A9: =IF('DF raw data'!I9="","",'DF raw data'!I9) -> Add. info | B9: =IF('DF raw data'!J9="","",'DF raw data'!J9) ->  | C9: =IF('DF raw data'!C9="","",'DF raw data'!C9) ->  | D9: =IF('DF raw data'!D9="","",'DF raw data'!D9) -> 
A10: =IF('DF raw data'!I10="","",'DF raw data'!I10) -> Device | B10: =IF('DF raw data'!J10="","",'DF raw data'!J10) -> (HAL) HALL-PROBE | C10: =IF('DF raw data'!C10="","",'DF raw data'!C10) ->  | D10: =IF('DF raw data'!D10="","",'DF raw data'!D10) -> 
A11: =IF('DF raw data'!I11="","",'DF raw data'!I11) -> Goal | B11: =IF('DF raw data'!J11="","",'DF raw data'!J11) -> (AXI) AXis Integral (Line, EFB) | C11: =IF('DF raw data'!C11="","",'DF raw data'!C11) ->  | D11: =IF('DF raw data'!D11="","",'DF raw data'!D11) -> 
A12: =IF('DF raw data'!I12="","",'DF raw data'!I12) -> Power supply mode | B12: =IF('DF raw data'!J12="","",'DF raw data'!J12) -> (PM) Permanent Magnet (no MPS in use) | C12: =IF('DF raw data'!C12="","",'DF raw data'!C12) ->  | D12: =IF('DF raw data'!D12="","",'DF raw data'!D12) -> 
A13: =IF('DF raw data'!I13="","",'DF raw data'!I13) -> Data format | B13: =IF('DF raw data'!J13="","",'DF raw data'!J13) -> Raw data text file | C13: =IF('DF raw data'!C13="","",'DF raw data'!C13) ->  | D13: =IF('DF raw data'!D13="","",'DF raw data'!D13) -> 
A14: =IF('DF raw data'!I14="","",'DF raw data'!I14) -> Direction of the pos. x-axis | B14: =IF('DF raw data'!J14="","",'DF raw data'!J14) -> See test program | C14: =IF('DF raw data'!C14="","",'DF raw data'!C14) ->  | D14: =IF('DF raw data'!D14="","",'DF raw data'!D14) -> 
A15: =IF('DF raw data'!I15="","",'DF raw data'!I15) -> Direction of the pos. y-axis | B15: =IF('DF raw data'!J15="","",'DF raw data'!J15) -> Vertical up | C15: =IF('DF raw data'!C15="","",'DF raw data'!C15) ->  | D15: =IF('DF raw data'!D15="","",'DF raw data'!D15) -> 
A16: =IF('DF raw data'!I16="","",'DF raw data'!I16) -> Direction of the pos. z-axis | B16: =IF('DF raw data'!J16="","",'DF raw data'!J16) -> See test program | C16: =IF('DF raw data'!C16="","",'DF raw data'!C16) ->  | D16: =IF('DF raw data'!D16="","",'DF raw data'!D16) -> 
A17: =IF('DF raw data'!I17="","",'DF raw data'!I17) -> Mapper type | B17: =IF('DF raw data'!J17="","",'DF raw data'!J17) -> Precision Hall Mapper | C17: =IF('DF raw data'!C17="","",'DF raw data'!C17) ->  | D17: =IF('DF raw data'!D17="","",'DF raw data'!D17) -> 
A18: =IF('DF raw data'!I18="","",'DF raw data'!I18) -> Mapper Danfysik Reg. Number | B18: =IF('DF raw data'!J18="","",'DF raw data'!J18) -> 2033-D (mapper 1) | C18: =IF('DF raw data'!C18="","",'DF raw data'!C18) ->  | D18: =IF('DF raw data'!D18="","",'DF raw data'!D18) -> 
A19: =IF('DF raw data'!I19="","",'DF raw data'!I19) -> Measurement consept | B19: =IF('DF raw data'!J19="","",'DF raw data'!J19) -> Square line grid | C19: =IF('DF raw data'!C19="","",'DF raw data'!C19) ->  | D19: =IF('DF raw data'!D19="","",'DF raw data'!D19) -> 
A20: =IF('DF raw data'!I20="","",'DF raw data'!I20) -> Mode | B20: =IF('DF raw data'!J20="","",'DF raw data'!J20) -> On-the-fly measurement | C20: =IF('DF raw data'!C20="","",'DF raw data'!C20) ->  | D20: =IF('DF raw data'!D20="","",'DF raw data'!D20) -> 
A21: =IF('DF raw data'!I21="","",'DF raw data'!I21) ->  | B21: =IF('DF raw data'!J21="","",'DF raw data'!J21) ->  | C21: =IF('DF raw data'!C21="","",'DF raw data'!C21) ->  | D21: =IF('DF raw data'!D21="","",'DF raw data'!D21) -> 
A22: =IF('DF raw data'!I22="","",'DF raw data'!I22) -> Probe Name | B22: =IF('DF raw data'!J22="","",'DF raw data'!J22) -> ID12_By | C22: =IF('DF raw data'!C22="","",'DF raw data'!C22) ->  | D22: =IF('DF raw data'!D22="","",'DF raw data'!D22) -> 
A23: =IF('DF raw data'!I23="","",'DF raw data'!I23) -> Probe Type | B23: =IF('DF raw data'!J23="","",'DF raw data'!J23) -> DF_ID_3D_Bxyz | C23: =IF('DF raw data'!C23="","",'DF raw data'!C23) ->  | D23: =IF('DF raw data'!D23="","",'DF raw data'!D23) -> 
A24: =IF('DF raw data'!I24="","",'DF raw data'!I24) -> Probe Danfysik Reg. Number | B24: =IF('DF raw data'!J24="","",'DF raw data'!J24) -> 2277 | C24: =IF('DF raw data'!C24="","",'DF raw data'!C24) ->  | D24: =IF('DF raw data'!D24="","",'DF raw data'!D24) -> 
A25: =IF('DF raw data'!I25="","",'DF raw data'!I25) -> Probe Axis | B25: =IF('DF raw data'!J25="","",'DF raw data'!J25) -> By | C25: =IF('DF raw data'!C25="","",'DF raw data'!C25) ->  | D25: =IF('DF raw data'!D25="","",'DF raw data'!D25) -> 
A26: =IF('DF raw data'!I26="","",'DF raw data'!I26) -> Probe Current Supply | B26: =IF('DF raw data'!J26="","",'DF raw data'!J26) -> 1825-D | C26: =IF('DF raw data'!C26="","",'DF raw data'!C26) ->  | D26: =IF('DF raw data'!D26="","",'DF raw data'!D26) -> 
A27: =IF('DF raw data'!I27="","",'DF raw data'!I27) -> Probe Gain Correction | B27: =IF('DF raw data'!J27="","",'DF raw data'!J27) -> 0.99618 | C27: =IF('DF raw data'!C27="","",'DF raw data'!C27) ->  | D27: =IF('DF raw data'!D27="","",'DF raw data'!D27) -> 
A28: =IF('DF raw data'!I28="","",'DF raw data'!I28) -> Probe Offset Correction | B28: =IF('DF raw data'!J28="","",'DF raw data'!J28) -> 0.002742 | C28: =IF('DF raw data'!C28="","",'DF raw data'!C28) ->  | D28: =IF('DF raw data'!D28="","",'DF raw data'!D28) -> 
A29: =IF('DF raw data'!I29="","",'DF raw data'!I29) -> DVM Number | B29: =IF('DF raw data'!J29="","",'DF raw data'!J29) -> 2 | C29: =IF('DF raw data'!C29="","",'DF raw data'!C29) ->  | D29: =IF('DF raw data'!D29="","",'DF raw data'!D29) -> 
A30: =IF('DF raw data'!I30="","",'DF raw data'!I30) -> DVM Type | B30: =IF('DF raw data'!J30="","",'DF raw data'!J30) -> K2701 | C30: =IF('DF raw data'!C30="","",'DF raw data'!C30) ->  | D30: =IF('DF raw data'!D30="","",'DF raw data'!D30) -> 
A31: =IF('DF raw data'!I31="","",'DF raw data'!I31) -> DVM Danfysik Reg. Number | B31: =IF('DF raw data'!J31="","",'DF raw data'!J31) -> 1743-D | C31: =IF('DF raw data'!C31="","",'DF raw data'!C31) ->  | D31: =IF('DF raw data'!D31="","",'DF raw data'!D31) -> 
A32: =IF('DF raw data'!I32="","",'DF raw data'!I32) -> Probe Name | B32: =IF('DF raw data'!J32="","",'DF raw data'!J32) -> ID12_Bx | C32: =IF('DF raw data'!C32="","",'DF raw data'!C32) ->  | D32: =IF('DF raw data'!D32="","",'DF raw data'!D32) -> 
A33: =IF('DF raw data'!I33="","",'DF raw data'!I33) -> Probe Type | B33: =IF('DF raw data'!J33="","",'DF raw data'!J33) -> DF_ID_3D_Bxyz | C33: =IF('DF raw data'!C33="","",'DF raw data'!C33) ->  | D33: =IF('DF raw data'!D33="","",'DF raw data'!D33) -> 
A34: =IF('DF raw data'!I34="","",'DF raw data'!I34) -> Probe Danfysik Reg. Number | B34: =IF('DF raw data'!J34="","",'DF raw data'!J34) -> 2277 | C34: =IF('DF raw data'!C34="","",'DF raw data'!C34) ->  | D34: =IF('DF raw data'!D34="","",'DF raw data'!D34) -> 
A35: =IF('DF raw data'!I35="","",'DF raw data'!I35) -> Probe Axis | B35: =IF('DF raw data'!J35="","",'DF raw data'!J35) -> Bx | C35: =IF('DF raw data'!C35="","",'DF raw data'!C35) ->  | D35: =IF('DF raw data'!D35="","",'DF raw data'!D35) -> 
A36: =IF('DF raw data'!I36="","",'DF raw data'!I36) -> Probe Current Supply | B36: =IF('DF raw data'!J36="","",'DF raw data'!J36) -> 1825-D | C36: =IF('DF raw data'!C36="","",'DF raw data'!C36) ->  | D36: =IF('DF raw data'!D36="","",'DF raw data'!D36) -> 
A37: =IF('DF raw data'!I37="","",'DF raw data'!I37) -> Probe Gain Correction | B37: =IF('DF raw data'!J37="","",'DF raw data'!J37) -> 1 | C37: =IF('DF raw data'!C37="","",'DF raw data'!C37) ->  | D37: =IF('DF raw data'!D37="","",'DF raw data'!D37) -> 
A38: =IF('DF raw data'!I38="","",'DF raw data'!I38) -> Probe Offset Correction | B38: =IF('DF raw data'!J38="","",'DF raw data'!J38) -> -0.17582 | C38: =IF('DF raw data'!C38="","",'DF raw data'!C38) ->  | D38: =IF('DF raw data'!D38="","",'DF raw data'!D38) -> 
A39: =IF('DF raw data'!I39="","",'DF raw data'!I39) -> DVM Number | B39: =IF('DF raw data'!J39="","",'DF raw data'!J39) -> 3 | C39: =IF('DF raw data'!C39="","",'DF raw data'!C39) ->  | D39: =IF('DF raw data'!D39="","",'DF raw data'!D39) -> 
A40: =IF('DF raw data'!I40="","",'DF raw data'!I40) -> DVM Type | B40: =IF('DF raw data'!J40="","",'DF raw data'!J40) -> K2701 | C40: =IF('DF raw data'!C40="","",'DF raw data'!C40) ->  | D40: =IF('DF raw data'!D40="","",'DF raw data'!D40) -> 
A41: =IF('DF raw data'!I41="","",'DF raw data'!I41) -> DVM Danfysik Reg. Number | B41: =IF('DF raw data'!J41="","",'DF raw data'!J41) -> 1744-D | C41: =IF('DF raw data'!C41="","",'DF raw data'!C41) ->  | D41: =IF('DF raw data'!D41="","",'DF raw data'!D41) -> 
A42: =IF('DF raw data'!I42="","",'DF raw data'!I42) -> Probe Name | B42: =IF('DF raw data'!J42="","",'DF raw data'!J42) -> ID12_Bz | C42: =IF('DF raw data'!C42="","",'DF raw data'!C42) ->  | D42: =IF('DF raw data'!D42="","",'DF raw data'!D42) -> 
A43: =IF('DF raw data'!I43="","",'DF raw data'!I43) -> Probe Type | B43: =IF('DF raw data'!J43="","",'DF raw data'!J43) -> DF_ID_3D_Bxyz | C43: =IF('DF raw data'!C43="","",'DF raw data'!C43) ->  | D43: =IF('DF raw data'!D43="","",'DF raw data'!D43) -> 
A44: =IF('DF raw data'!I44="","",'DF raw data'!I44) -> Probe Danfysik Reg. Number | B44: =IF('DF raw data'!J44="","",'DF raw data'!J44) -> 2277 | C44: =IF('DF raw data'!C44="","",'DF raw data'!C44) ->  | D44: =IF('DF raw data'!D44="","",'DF raw data'!D44) -> 
A45: =IF('DF raw data'!I45="","",'DF raw data'!I45) -> Probe Axis | B45: =IF('DF raw data'!J45="","",'DF raw data'!J45) -> Bz | C45: =IF('DF raw data'!C45="","",'DF raw data'!C45) ->  | D45: =IF('DF raw data'!D45="","",'DF raw data'!D45) -> 
A46: =IF('DF raw data'!I46="","",'DF raw data'!I46) -> Probe Current Supply | B46: =IF('DF raw data'!J46="","",'DF raw data'!J46) -> 1825-D | C46: =IF('DF raw data'!C46="","",'DF raw data'!C46) ->  | D46: =IF('DF raw data'!D46="","",'DF raw data'!D46) -> 
A47: =IF('DF raw data'!I47="","",'DF raw data'!I47) -> Probe Gain Correction | B47: =IF('DF raw data'!J47="","",'DF raw data'!J47) -> 1 | C47: =IF('DF raw data'!C47="","",'DF raw data'!C47) ->  | D47: =IF('DF raw data'!D47="","",'DF raw data'!D47) -> 
A48: =IF('DF raw data'!I48="","",'DF raw data'!I48) -> Probe Offset Correction | B48: =IF('DF raw data'!J48="","",'DF raw data'!J48) -> 0.0073653 | C48: =IF('DF raw data'!C48="","",'DF raw data'!C48) ->  | D48: =IF('DF raw data'!D48="","",'DF raw data'!D48) -> 
A49: =IF('DF raw data'!I49="","",'DF raw data'!I49) -> DVM Number | B49: =IF('DF raw data'!J49="","",'DF raw data'!J49) -> 8 | C49: =IF('DF raw data'!C49="","",'DF raw data'!C49) ->  | D49: =IF('DF raw data'!D49="","",'DF raw data'!D49) -> 
A50: =IF('DF raw data'!I50="","",'DF raw data'!I50) -> DVM Type | B50: =IF('DF raw data'!J50="","",'DF raw data'!J50) -> K2700 | C50: =IF('DF raw data'!C50="","",'DF raw data'!C50) ->  | D50: =IF('DF raw data'!D50="","",'DF raw data'!D50) -> 
A51: =IF('DF raw data'!I51="","",'DF raw data'!I51) -> DVM Danfysik Reg. Number | B51: =IF('DF raw data'!J51="","",'DF raw data'!J51) -> 1756-D | C51: =IF('DF raw data'!C51="","",'DF raw data'!C51) ->  | D51: =IF('DF raw data'!D51="","",'DF raw data'!D51) -> 
A52: =IF('DF raw data'!I52="","",'DF raw data'!I52) -> NTC voltage | B52: =IF('DF raw data'!J52="","",'DF raw data'!J52) -> 0.40108 | C52: =IF('DF raw data'!C52="","",'DF raw data'!C52) ->  | D52: =IF('DF raw data'!D52="","",'DF raw data'!D52) -> 
A53: =IF('DF raw data'!I53="","",'DF raw data'!I53) -> PS-Gap: | B53: =IF('DF raw data'!J53="","",'DF raw data'!J53) -> 20 | C53: =IF('DF raw data'!C53="","",'DF raw data'!C53) ->  | D53: =IF('DF raw data'!D53="","",'DF raw data'!D53) -> 
A54: =IF('DF raw data'!I54="","",'DF raw data'!I54) -> PS-Temperature: | B54: =IF('DF raw data'!J54="","",'DF raw data'!J54) -> 25.4 | C54: =IF('DF raw data'!C54="","",'DF raw data'!C54) ->  | D54: =IF('DF raw data'!D54="","",'DF raw data'!D54) -> 
A55: =IF('DF raw data'!I55="","",'DF raw data'!I55) -> PS-Encoder: | B55: =IF('DF raw data'!J55="","",'DF raw data'!J55) -> 29.8318 | C55: =IF('DF raw data'!C55="","",'DF raw data'!C55) ->  | D55: =IF('DF raw data'!D55="","",'DF raw data'!D55) -> 
A56: =IF('DF raw data'!I56="","",'DF raw data'!I56) ->  | B56: =IF('DF raw data'!J56="","",'DF raw data'!J56) -> 
A57: =IF('DF raw data'!I57="","",'DF raw data'!I57) -> Monitor-Index | B57: =IF('DF raw data'!J57="","",'DF raw data'!J57) -> [1,1,4]
A58: =IF('DF raw data'!I58="","",'DF raw data'!I58) ->  | B58: =IF('DF raw data'!J58="","",'DF raw data'!J58) -> 
A59: =IF('DF raw data'!I59="","",'DF raw data'!I59) -> Time [s] | B59: =IF('DF raw data'!J59="","",'DF raw data'!J59) -> Y [mm]
A60: =IF('DF raw data'!I60="","",'DF raw data'!I60) ->  | B60: =IF('DF raw data'!J60="","",'DF raw data'!J60) -> 
A61: =IF('DF raw data'!I61="","",'DF raw data'!I61) -> 206.7 | B61: =IF('DF raw data'!J61="","",'DF raw data'!J61) -> 31.5
A62: =IF('DF raw data'!I62="","",'DF raw data'!I62) ->  | B62: =IF('DF raw data'!J62="","",'DF raw data'!J62) -> 
A63: =IF('DF raw data'!I63="","",'DF raw data'!I63) -> Measurement-Index | B63: =IF('DF raw data'!J63="","",'DF raw data'!J63) -> [1,1,1201,2]
A64: =IF('DF raw data'!I64="","",'DF raw data'!I64) ->  | B64: =IF('DF raw data'!J64="","",'DF raw data'!J64) -> 
A65: =IF('DF raw data'!I65="","",'DF raw data'!I65) -> Z [mm] | B65: =IF('DF raw data'!J65="","",'DF raw data'!J65) -> By [T] | C65: =IF('DF raw data'!K65="","",'DF raw data'!K65) -> Bx [T] | D65: =IF('DF raw data'!L65="","",'DF raw data'!L65) -> Bz [T] | F65: By_corr | G65: Bx_corr | H65: Bz_corr | J65: Iy | K65: Jy | L65: Ix | M65: Jx | N65: PI
A66: =IF('DF raw data'!I66="","",'DF raw data'!I66) -> [1, 0, 0, 0] | B66: =IF('DF raw data'!J66="","",'DF raw data'!J66) ->  | C66: =IF('DF raw data'!K66="","",'DF raw data'!K66) ->  | D66: =IF('DF raw data'!L66="","",'DF raw data'!L66) -> 
A67: =IF('DF raw data'!I67="","",'DF raw data'!I67) -> -300 | B67: =IF('DF raw data'!J67="","",'DF raw data'!J67) -> 3.74684e-06 | C67: =IF('DF raw data'!K67="","",'DF raw data'!K67) -> 1.7627e-05 | D67: =IF('DF raw data'!L67="","",'DF raw data'!L67) -> -2.19639e-05 | F67: =(1-$G$1*($B$54-$G$2))*(B67-F$5) -> 1.580453491e-05 | G67: =(1-$G$1*($B$54-$G$2))*(C67-G$5) -> 9.688915498e-06 | H67: =(1-$G$1*($B$54-$G$2))*(D67-H$5) -> -6.222615574e-06 | J67: =F67*$G$3+J66 -> 7.902267454e-06 | K67: =J67*$G$3+K66 -> 3.951133727e-06 | L67: =G67*$G$3+L66 -> 4.844457749e-06 | M67: =L67*$G$3+M66 -> 2.422228875e-06 | N67: =(J67^2+L67^2)*$G$3+N66 -> 4.29573009e-11
A68: =IF('DF raw data'!I68="","",'DF raw data'!I68) -> -299.5 | B68: =IF('DF raw data'!J68="","",'DF raw data'!J68) -> -5.93364e-06 | C68: =IF('DF raw data'!K68="","",'DF raw data'!K68) -> 1.99111e-05 | D68: =IF('DF raw data'!L68="","",'DF raw data'!L68) -> -2.14262e-05 | F68: 6.071780316e-06 | G68: 1.198534964e-05 | H68: -5.682011994e-06 | J68: =F68*$G$3+J67 -> 1.093815761e-05 | K68: =J68*$G$3+K67 -> 9.420212533e-06 | L68: =G68*$G$3+L67 -> 1.083713257e-05 | M68: =L68*$G$3+M67 -> 7.840795159e-06 | N68: =(J68^2+L68^2)*$G$3+N67 -> 1.61500668e-10
A69: =IF('DF raw data'!I69="","",'DF raw data'!I69) -> -299 | B69: =IF('DF raw data'!J69="","",'DF raw data'!J69) -> -1.16396e-05 | C69: =IF('DF raw data'!K69="","",'DF raw data'!K69) -> 1.96864e-05 | D69: =IF('DF raw data'!L69="","",'DF raw data'!L69) -> -2.05274e-05 | F69: 3.350081324e-07 | G69: 1.175943626e-05 | H69: -4.778358474e-06 | J69: 1.110566168e-05 | K69: 1.497304337e-05 | L69: 1.67168507e-05 | M69: 1.619922051e-05 | N69: 3.628950773e-10
A70: =IF('DF raw data'!I70="","",'DF raw data'!I70) -> -298.5 | B70: =IF('DF raw data'!J70="","",'DF raw data'!J70) -> -4.78073e-06 | C70: =IF('DF raw data'!K70="","",'DF raw data'!K70) -> 2.38709e-05 | D70: =IF('DF raw data'!L70="","",'DF raw data'!L70) -> -1.9938e-05 | F70: 7.23091603e-06 | G70: 1.596653256e-05 | H70: -4.185775714e-06 | J70: 1.472111969e-05 | K70: 2.233360322e-05 | L70: 2.470011698e-05 | M70: 2.8549279e-05 | N70: 7.762986492e-10
A71: =IF('DF raw data'!I71="","",'DF raw data'!I71) -> -298 | B71: =IF('DF raw data'!J71="","",'DF raw data'!J71) -> -1.76026e-05 | C71: =IF('DF raw data'!K71="","",'DF raw data'!K71) -> 2.21071e-05 | D71: =IF('DF raw data'!L71="","",'DF raw data'!L71) -> -1.92131e-05 | F71: -5.660192068e-06 | G71: 1.419320804e-05 | H71: -3.456961254e-06 | J71: 1.189102366e-05 | K71: 2.827911505e-05 | L71: 3.1796721e-05 | M71: 4.444763949e-05 | N71: 1.352512604e-09
A72: =IF('DF raw data'!I72="","",'DF raw data'!I72) -> -297.5 | B72: =IF('DF raw data'!J72="","",'DF raw data'!J72) -> -5.87148e-06 | C72: =IF('DF raw data'!K72="","",'DF raw data'!K72) -> 1.6881e-05 | D72: =IF('DF raw data'!L72="","",'DF raw data'!L72) -> -1.86293e-05 | F72: 6.13427598e-06 | G72: 8.938887098e-06 | H72: -2.870008734e-06 | J72: 1.495816165e-05 | K72: 3.575819587e-05 | L72: 3.626616454e-05 | M72: 6.258072177e-05 | N72: 2.122003249e-09
A73: =IF('DF raw data'!I73="","",'DF raw data'!I73) -> -297 | B73: =IF('DF raw data'!J73="","",'DF raw data'!J73) -> -4.90958e-06 | C73: =IF('DF raw data'!K73="","",'DF raw data'!K73) -> 2.0151e-05 | D73: =IF('DF raw data'!L73="","",'DF raw data'!L73) -> -1.89393e-05 | F73: 7.10137024e-06 | G73: 1.22265451e-05 | H73: -3.181682734e-06 | J73: 1.850884677e-05 | K73: 4.501261926e-05 | L73: 4.237943709e-05 | M73: 8.377044031e-05 | N73: 3.191300298e-09
A74: =IF('DF raw data'!I74="","",'DF raw data'!I74) -> -296.5 | B74: =IF('DF raw data'!J74="","",'DF raw data'!J74) -> 2.4634e-06 | C74: =IF('DF raw data'!K74="","",'DF raw data'!K74) -> 1.6814e-05 | D74: =IF('DF raw data'!L74="","",'DF raw data'!L74) -> -1.98781e-05 | F74: 1.451416433e-05 | G74: 8.871525298e-06 | H74: -4.125552254e-06 | J74: 2.576592894e-05 | K74: 5.789558373e-05 | L74: 4.681519974e-05 | M74: 0.0001071780402 | N74: 4.619073308e-09
A75: =IF('DF raw data'!I75="","",'DF raw data'!I75) -> -296 | B75: =IF('DF raw data'!J75="","",'DF raw data'!J75) -> -1.25375e-05 | C75: =IF('DF raw data'!K75="","",'DF raw data'!K75) -> 1.34361e-05 | D75: =IF('DF raw data'!L75="","",'DF raw data'!L75) -> -2.02183e-05 | F75: -5.677405276e-07 | G75: 5.475384638e-06 | H75: -4.467589334e-06 | J75: 2.548205867e-05 | K75: 7.063661306e-05 | L75: 4.955289206e-05 | M75: 0.0001319544862 | N75: 6.171485521e-09
A76: =IF('DF raw data'!I76="","",'DF raw data'!I76) -> -295.5 | B76: =IF('DF raw data'!J76="","",'DF raw data'!J76) -> -5.67809e-06 | C76: =IF('DF raw data'!K76="","",'DF raw data'!K76) -> 7.75653e-06 | D76: =IF('DF raw data'!L76="","",'DF raw data'!L76) -> -2.00784e-05 | F76: 6.328710286e-06 | G76: -2.348550398e-07 | H76: -4.326933874e-06 | J76: 2.864641382e-05 | K76: 8.495981997e-05 | L76: 4.943546454e-05 | M76: 0.0001566722185 | N76: 7.803726611e-09
A77: =IF('DF raw data'!I77="","",'DF raw data'!I77) -> -295 | B77: =IF('DF raw data'!J77="","",'DF raw data'!J77) -> -1.02298e-05 | C77: =IF('DF raw data'!K77="","",'DF raw data'!K77) -> 1.64876e-05 | D77: =IF('DF raw data'!L77="","",'DF raw data'!L77) -> -1.98062e-05 | F77: 1.752421052e-06 | G77: 8.543362738e-06 | H77: -4.053263994e-06 | J77: 2.952262434e-05 | K77: 9.972113214e-05 | L77: 5.370714591e-05 | M77: 0.0001835257914 | N77: 9.681748046e-09
A78: =IF('DF raw data'!I78="","",'DF raw data'!I78) -> -294.5 | B78: =IF('DF raw data'!J78="","",'DF raw data'!J78) -> -1.23456e-05 | C78: =IF('DF raw data'!K78="","",'DF raw data'!K78) -> 1.68872e-05 | D78: =IF('DF raw data'!L78="","",'DF raw data'!L78) -> -1.94043e-05 | F78: -3.748042676e-07 | G78: 8.945120578e-06 | H78: -3.649193734e-06 | J78: 2.933522221e-05 | K78: 0.0001143887432 | L78: 5.81797062e-05 | M78: 0.0002126156445 | N78: 1.180446478e-08
A79: =IF('DF raw data'!I79="","",'DF raw data'!I79) -> -294 | B79: =IF('DF raw data'!J79="","",'DF raw data'!J79) -> -9.65332e-06 | C79: =IF('DF raw data'!K79="","",'DF raw data'!K79) -> 1.74779e-05 | D79: =IF('DF raw data'!L79="","",'DF raw data'!L79) -> -1.9285e-05 | F79: 2.332014044e-06 | G79: 9.539010358e-06 | H79: -3.529249514e-06 | J79: 3.050122923e-05 | K79: 0.0001296393579 | L79: 6.294921138e-05 | M79: 0.0002440902502 | N79: 1.425092888e-08
A80: =IF('DF raw data'!I80="","",'DF raw data'!I80) -> -293.5 | B80: =IF('DF raw data'!J80="","",'DF raw data'!J80) -> -2.53716e-06 | C80: =IF('DF raw data'!K80="","",'DF raw data'!K80) -> 1.90115e-05 | D80: =IF('DF raw data'!L80="","",'DF raw data'!L80) -> -1.96077e-05 | F80: 9.486601308e-06 | G80: 1.10808918e-05 | H80: -3.853692094e-06 | J80: 3.524452988e-05 | K80: 0.0001472616228 | L80: 6.848965728e-05 | M80: 0.0002783350789 | N80: 1.72174339e-08
A81: =IF('DF raw data'!I81="","",'DF raw data'!I81) -> -293 | B81: =IF('DF raw data'!J81="","",'DF raw data'!J81) -> -1.54868e-05 | C81: =IF('DF raw data'!K81="","",'DF raw data'!K81) -> 1.77471e-05 | D81: =IF('DF raw data'!L81="","",'DF raw data'!L81) -> -1.94319e-05 | F81: -3.532966748e-06 | G81: 9.809664038e-06 | H81: -3.676942774e-06 | J81: 3.347804651e-05 | K81: 0.0001640006461 | L81: 7.33944893e-05 | M81: 0.0003150323235 | N81: 2.047119923e-08
A82: =IF('DF raw data'!I82="","",'DF raw data'!I82) -> -292.5 | B82: =IF('DF raw data'!J82="","",'DF raw data'!J82) -> -8.49937e-06 | C82: =IF('DF raw data'!K82="","",'DF raw data'!K82) -> 1.824e-05 | D82: =IF('DF raw data'!L82="","",'DF raw data'!L82) -> -1.89932e-05 | F82: 3.492195374e-06 | G82: 1.03052257e-05 | H82: -3.235873794e-06 | J82: 3.52241442e-05 | K82: 0.0001816127182 | L82: 7.854710215e-05 | M82: 0.0003543058746 | N82: 2.417639303e-08
A83: =IF('DF raw data'!I83="","",'DF raw data'!I83) -> -292 | B83: =IF('DF raw data'!J83="","",'DF raw data'!J83) -> -1.12713e-06 | C83: =IF('DF raw data'!K83="","",'DF raw data'!K83) -> 1.4427e-05 | D83: =IF('DF raw data'!L83="","",'DF raw data'!L83) -> -1.92097e-05 | F83: 1.090424547e-05 | G83: 6.471635498e-06 | H83: -3.453542894e-06 | J83: 4.067626693e-05 | K83: 0.0002019508516 | L83: 8.17829199e-05 | M83: 0.0003951973345 | N83: 2.834789537e-08
A84: =IF('DF raw data'!I84="","",'DF raw data'!I84) -> -291.5 | B84: =IF('DF raw data'!J84="","",'DF raw data'!J84) -> -7.86112e-06 | C84: =IF('DF raw data'!K84="","",'DF raw data'!K84) -> 2.38211e-05 | D84: =IF('DF raw data'!L84="","",'DF raw data'!L84) -> -1.46958e-05 | F84: 4.133891924e-06 | G84: 1.591646364e-05 | H84: 1.084732166e-06 | J84: 4.27432129e-05 | K84: 0.0002233224581 | L84: 8.974115172e-05 | M84: 0.0004400679104 | N84: 3.328812365e-08
A85: =IF('DF raw data'!I85="","",'DF raw data'!I85) -> -291 | B85: =IF('DF raw data'!J85="","",'DF raw data'!J85) -> -5.61687e-06 | C85: =IF('DF raw data'!K85="","",'DF raw data'!K85) -> 2.18801e-05 | D85: =IF('DF raw data'!L85="","",'DF raw data'!L85) -> -1.58339e-05 | F85: 6.390260874e-06 | G85: 1.396498224e-05 | H85: -5.951357403e-08 | J85: 4.593834333e-05 | K85: 0.0002462916297 | L85: 9.672364283e-05 | M85: 0.0004884297318 | N85: 3.902102088e-08
A86: =IF('DF raw data'!I86="","",'DF raw data'!I86) -> -290.5 | B86: =IF('DF raw data'!J86="","",'DF raw data'!J86) -> -9.91551e-06 | C86: =IF('DF raw data'!K86="","",'DF raw data'!K86) -> 1.49904e-05 | D86: =IF('DF raw data'!L86="","",'DF raw data'!L86) -> -1.03803e-05 | F86: 2.068408218e-06 | G86: 7.038077858e-06 | H86: 5.423535866e-06 | J86: 4.697254744e-05 | K86: 0.0002697779035 | L86: 0.0001002426818 | M86: 0.0005385510727 | N86: 4.514852861e-08
A87: =IF('DF raw data'!I87="","",'DF raw data'!I87) -> -290 | B87: =IF('DF raw data'!J87="","",'DF raw data'!J87) -> -5.04297e-06 | C87: =IF('DF raw data'!K87="","",'DF raw data'!K87) -> 1.68276e-05 | D87: =IF('DF raw data'!L87="","",'DF raw data'!L87) -> -1.09439e-05 | F87: 6.967259934e-06 | G87: 8.885198738e-06 | H87: 4.856892426e-06 | J87: 5.045617741e-05 | K87: 0.0002950059922 | L87: 0.0001046852811 | M87: 0.0005908937133 | N87: 5.190094557e-08
A88: =IF('DF raw data'!I88="","",'DF raw data'!I88) -> -289.5 | B88: =IF('DF raw data'!J88="","",'DF raw data'!J88) -> -1.90142e-05 | C88: =IF('DF raw data'!K88="","",'DF raw data'!K88) -> 1.61197e-05 | D88: =IF('DF raw data'!L88="","",'DF raw data'!L88) -> -1.71366e-05 | F88: -7.079414708e-06 | G88: 8.173476078e-06 | H88: -1.369248154e-06 | J88: 4.691647006e-05 | K88: 0.0003184642272 | L88: 0.0001087720192 | M88: 0.0006452797228 | N88: 5.891719923e-08
A89: =IF('DF raw data'!I89="","",'DF raw data'!I89) -> -289 | B89: =IF('DF raw data'!J89="","",'DF raw data'!J89) -> -1.5479e-05 | C89: =IF('DF raw data'!K89="","",'DF raw data'!K89) -> 1.77283e-05 | D89: =IF('DF raw data'!L89="","",'DF raw data'!L89) -> -3.15465e-05 | F89: -3.525124628e-06 | G89: 9.790762518e-06 | H89: -1.585696161e-05 | J89: 4.515390774e-05 | K89: 0.0003410411811 | L89: 0.0001136674004 | M89: 0.0007021134231 | N89: 6.639677589e-08
A90: =IF('DF raw data'!I90="","",'DF raw data'!I90) -> -288.5 | B90: =IF('DF raw data'!J90="","",'DF raw data'!J90) -> -8.50249e-06 | C90: =IF('DF raw data'!K90="","",'DF raw data'!K90) -> 1.64981e-05 | D90: =IF('DF raw data'!L90="","",'DF raw data'!L90) -> -1.41781e-05 | F90: 3.489058526e-06 | G90: 8.553919438e-06 | H90: 1.605227746e-06 | J90: 4.689843701e-05 | K90: 0.0003644903996 | L90: 0.0001179443601 | M90: 0.0007610856031 | N90: 7.445194363e-08
A91: =IF('DF raw data'!I91="","",'DF raw data'!I91) -> -288 | B91: =IF('DF raw data'!J91="","",'DF raw data'!J91) -> -9.65557e-06 | C91: =IF('DF raw data'!K91="","",'DF raw data'!K91) -> 1.47787e-05 | D91: =IF('DF raw data'!L91="","",'DF raw data'!L91) -> -1.58039e-05 | F91: 2.329751894e-06 | G91: 6.825234678e-06 | H91: -2.935157403e-08 | J91: 4.806331295e-05 | K91: 0.000388522056 | L91: 0.0001213569775 | M91: 0.0008217640919 | N91: 8.297074265e-08
A92: =IF('DF raw data'!I92="","",'DF raw data'!I92) -> -287.5 | B92: =IF('DF raw data'!J92="","",'DF raw data'!J92) -> -1.77991e-05 | C92: =IF('DF raw data'!K92="","",'DF raw data'!K92) -> 2.29977e-05 | D92: =IF('DF raw data'!L92="","",'DF raw data'!L92) -> -1.24269e-05 | F92: -5.857753168e-06 | G92: 1.508861728e-05 | H92: 3.365884226e-06 | J92: 4.513443637e-05 | K92: 0.0004110892742 | L92: 0.0001289012861 | M92: 0.0008862147349 | N92: 9.22970721e-08
A93: =IF('DF raw data'!I93="","",'DF raw data'!I93) -> -287 | B93: =IF('DF raw data'!J93="","",'DF raw data'!J93) -> -2.15678e-06 | C93: =IF('DF raw data'!K93="","",'DF raw data'!K93) -> 2.36153e-05 | D93: =IF('DF raw data'!L93="","",'DF raw data'!L93) -> -1.30624e-05 | F93: 9.86903536e-06 | G93: 1.570955232e-05 | H93: 2.726952526e-06 | J93: 5.006895405e-05 | K93: 0.0004361237513 | L93: 0.0001367560623 | M93: 0.0009545927661 | N93: 1.029016325e-07
A94: =IF('DF raw data'!I94="","",'DF raw data'!I94) -> -286.5 | B94: =IF('DF raw data'!J94="","",'DF raw data'!J94) -> -8.05435e-06 | C94: =IF('DF raw data'!K94="","",'DF raw data'!K94) -> 2.36248e-05 | D94: =IF('DF raw data'!L94="","",'DF raw data'!L94) -> -1.34743e-05 | F94: 3.939618482e-06 | G94: 1.571910362e-05 | H94: 2.312828266e-06 | J94: 5.203876329e-05 | K94: 0.0004621431329 | L94: 0.0001446156141 | M94: 0.001026900573 | N94: 1.147124868e-07
A95: =IF('DF raw data'!I95="","",'DF raw data'!I95) -> -286 | B95: =IF('DF raw data'!J95="","",'DF raw data'!J95) -> -4.97313e-06 | C95: =IF('DF raw data'!K95="","",'DF raw data'!K95) -> 2.5314e-05 | D95: =IF('DF raw data'!L95="","",'DF raw data'!L95) -> -1.95719e-05 | F95: 7.03747707e-06 | G95: 1.74174253e-05 | H95: -3.817698774e-06 | J95: 5.555750183e-05 | K95: 0.0004899218838 | L95: 0.0001533243267 | M95: 0.001103562737 | N95: 1.280099794e-07
A96: =IF('DF raw data'!I96="","",'DF raw data'!I96) -> -285.5 | B96: =IF('DF raw data'!J96="","",'DF raw data'!J96) -> -1.7744e-06 | C96: =IF('DF raw data'!K96="","",'DF raw data'!K96) -> 1.82758e-05 | D96: =IF('DF raw data'!L96="","",'DF raw data'!L96) -> -9.60504e-06 | F96: 1.025348021e-05 | G96: 1.034121902e-05 | H96: 6.20298227e-06 | J96: 6.068424193e-05 | K96: 0.0005202640048 | L96: 0.0001584949363 | M96: 0.001182810205 | N96: 1.424115904e-07
A97: =IF('DF raw data'!I97="","",'DF raw data'!I97) -> -285 | B97: =IF('DF raw data'!J97="","",'DF raw data'!J97) -> -1.52994e-05 | C97: =IF('DF raw data'!K97="","",'DF raw data'!K97) -> 2.57374e-05 | D97: =IF('DF raw data'!L97="","",'DF raw data'!L97) -> -1.17379e-05 | F97: -3.344554788e-06 | G97: 1.784311166e-05 | H97: 4.058604826e-06 | J97: 5.901196454e-05 | K97: 0.000549769987 | L97: 0.0001674164921 | M97: 0.001266518451 | N97: 1.581669373e-07
A98: =IF('DF raw data'!I98="","",'DF raw data'!I98) -> -284.5 | B98: =IF('DF raw data'!J98="","",'DF raw data'!J98) -> -5.2319e-06 | C98: =IF('DF raw data'!K98="","",'DF raw data'!K98) -> 1.44724e-05 | D98: =IF('DF raw data'!L98="","",'DF raw data'!L98) -> -1.59451e-05 | F98: 6.777309712e-06 | G98: 6.517280658e-06 | H98: -1.71314054e-07 | J98: 6.240061939e-05 | K98: 0.0005809702967 | L98: 0.0001706751324 | M98: 0.001351856017 | N98: 1.746788564e-07
A99: =IF('DF raw data'!I99="","",'DF raw data'!I99) -> -284 | B99: =IF('DF raw data'!J99="","",'DF raw data'!J99) -> -2.13251e-05 | C99: =IF('DF raw data'!K99="","",'DF raw data'!K99) -> 1.9758e-05 | D99: =IF('DF raw data'!L99="","",'DF raw data'!L99) -> -1.21596e-05 | F99: -9.402793568e-06 | G99: 1.18314229e-05 | H99: 3.634627646e-06 | J99: 5.769922261e-05 | K99: 0.000609819908 | L99: 0.0001765908439 | M99: 0.001440151439 | N99: 1.919356196e-07
A100: =IF('DF raw data'!I100="","",'DF raw data'!I100) -> -283.5 | B100: =IF('DF raw data'!J100="","",'DF raw data'!J100) -> 3.86676e-06 | C100: =IF('DF raw data'!K100="","",'DF raw data'!K100) -> 2.24829e-05 | D100: =IF('DF raw data'!L100="","",'DF raw data'!L100) -> -9.21275e-06 | F100: 1.592510248e-05 | G100: 1.457103736e-05 | H100: 6.597390636e-06 | J100: 6.566177385e-05 | K100: 0.000642650795 | L100: 0.0001838763625 | M100: 0.00153208962 | N100: 2.109966122e-07
A101: =IF('DF raw data'!I101="","",'DF raw data'!I101) -> -283 | B101: =IF('DF raw data'!J101="","",'DF raw data'!J101) -> -5.36164e-06 | C101: =IF('DF raw data'!K101="","",'DF raw data'!K101) -> 1.89492e-05 | D101: =IF('DF raw data'!L101="","",'DF raw data'!L101) -> -1.39899e-05 | F101: 6.646869116e-06 | G101: 1.101825538e-05 | H101: 1.794444026e-06 | J101: 6.898520841e-05 | K101: 0.0006771433992 | L101: 0.0001893854902 | M101: 0.001626782365 | N101: 2.313095237e-07
A102: =IF('DF raw data'!I102="","",'DF raw data'!I102) -> -282.5 | B102: =IF('DF raw data'!J102="","",'DF raw data'!J102) -> -5.94052e-06 | C102: =IF('DF raw data'!K102="","",'DF raw data'!K102) -> 1.70538e-05 | D102: =IF('DF raw data'!L102="","",'DF raw data'!L102) -> -1.07876e-05 | F102: 6.064863164e-06 | G102: 9.112620218e-06 | H102: 5.014036446e-06 | J102: 7.201763999e-05 | K102: 0.0007131522192 | L102: 0.0001939418003 | M102: 0.001723753265 | N102: 2.527095049e-07
A103: =IF('DF raw data'!I103="","",'DF raw data'!I103) -> -282 | B103: =IF('DF raw data'!J103="","",'DF raw data'!J103) -> 9.19089e-07 | C103: =IF('DF raw data'!K103="","",'DF raw data'!K103) -> 1.91223e-05 | D103: =IF('DF raw data'!L103="","",'DF raw data'!L103) -> -1.13348e-05 | F103: 1.296151405e-05 | G103: 1.119229012e-05 | H103: 4.463881566e-06 | J103: 7.849839702e-05 | K103: 0.0007524014177 | L103: 0.0001995379454 | M103: 0.001823522238 | N103: 2.756981999e-07
A104: =IF('DF raw data'!I104="","",'DF raw data'!I104) -> -281.5 | B104: =IF('DF raw data'!J104="","",'DF raw data'!J104) -> -6.51397e-06 | C104: =IF('DF raw data'!K104="","",'DF raw data'!K104) -> 1.77324e-05 | D104: =IF('DF raw data'!L104="","",'DF raw data'!L104) -> -1.63689e-05 | F104: 5.488316534e-06 | G104: 9.794884658e-06 | H104: -5.97402574e-07 | J104: 8.124255528e-05 | K104: 0.0007930226953 | L104: 0.0002044353877 | M104: 0.001925739932 | N104: 2.998952901e-07
A105: =IF('DF raw data'!I105="","",'DF raw data'!I105) -> -281 | B105: =IF('DF raw data'!J105="","",'DF raw data'!J105) -> -1.76932e-06 | C105: =IF('DF raw data'!K105="","",'DF raw data'!K105) -> 1.08781e-05 | D105: =IF('DF raw data'!L105="","",'DF raw data'!L105) -> -1.74403e-05 | F105: 1.025858764e-05 | G105: 2.903571438e-06 | H105: -1.674588134e-06 | J105: 8.63718491e-05 | K105: 0.0008362086199 | L105: 0.0002058871734 | M105: 0.002028683519 | N105: 3.248201024e-07
A106: =IF('DF raw data'!I106="","",'DF raw data'!I106) -> -280.5 | B106: =IF('DF raw data'!J106="","",'DF raw data'!J106) -> -6.57839e-06 | C106: =IF('DF raw data'!K106="","",'DF raw data'!K106) -> 1.35042e-05 | D106: =IF('DF raw data'!L106="","",'DF raw data'!L106) -> -1.56657e-05 | F106: 5.423548666e-06 | G106: 5.543852378e-06 | H106: 1.09594706e-07 | J106: 8.908362344e-05 | K106: 0.0008807504316 | L106: 0.0002086590996 | M106: 0.002133013068 | N106: 3.505573583e-07
A107: =IF('DF raw data'!I107="","",'DF raw data'!I107) -> -280 | B107: =IF('DF raw data'!J107="","",'DF raw data'!J107) -> -9.97389e-06 | C107: =IF('DF raw data'!K107="","",'DF raw data'!K107) -> 1.52096e-05 | D107: =IF('DF raw data'!L107="","",'DF raw data'!L107) -> -1.89658e-05 | F107: 2.009712966e-06 | G107: 7.258461538e-06 | H107: -3.208325834e-06 | J107: 9.008847992e-05 | K107: 0.0009257946716 | L107: 0.0002122883304 | M107: 0.002239157234 | N107: 3.77148493e-07
A108: =IF('DF raw data'!I108="","",'DF raw data'!I108) -> -279.5 | B108: =IF('DF raw data'!J108="","",'DF raw data'!J108) -> -8.63167e-06 | C108: =IF('DF raw data'!K108="","",'DF raw data'!K108) -> 2.13831e-05 | D108: =IF('DF raw data'!L108="","",'DF raw data'!L108) -> -1.26484e-05 | F108: 3.359180954e-06 | G108: 1.346529844e-05 | H108: 3.143188126e-06 | J108: 9.17680704e-05 | K108: 0.0009716787067 | L108: 0.0002190209796 | M108: 0.002348667723 | N108: 4.053442771e-07
A109: =IF('DF raw data'!I109="","",'DF raw data'!I109) -> -279 | B109: =IF('DF raw data'!J109="","",'DF raw data'!J109) -> -9.7914e-06 | C109: =IF('DF raw data'!K109="","",'DF raw data'!K109) -> 2.54402e-05 | D109: =IF('DF raw data'!L109="","",'DF raw data'!L109) -> -4.02625e-06 | F109: 2.193188412e-06 | G109: 1.754430678e-05 | H109: 1.181189774e-05 | J109: 9.28646646e-05 | K109: 0.001018111039 | L109: 0.000227793133 | M109: 0.00246256429 | N109: 4.356010558e-07
A110: =IF('DF raw data'!I110="","",'DF raw data'!I110) -> -278.5 | B110: =IF('DF raw data'!J110="","",'DF raw data'!J110) -> -1.812e-05 | C110: =IF('DF raw data'!K110="","",'DF raw data'!K110) -> 2.01757e-05 | D110: =IF('DF raw data'!L110="","",'DF raw data'!L110) -> -1.19226e-05 | F110: -6.180386028e-06 | G110: 1.225137848e-05 | H110: 3.872907446e-06 | J110: 8.977447159e-05 | K110: 0.001062998275 | L110: 0.0002339188223 | M110: 0.002579523701 | N110: 4.669897914e-07
A111: =IF('DF raw data'!I111="","",'DF raw data'!I111) -> -278 | B111: =IF('DF raw data'!J111="","",'DF raw data'!J111) -> -8.82651e-06 | C111: =IF('DF raw data'!K111="","",'DF raw data'!K111) -> 1.49692e-05 | D111: =IF('DF raw data'!L111="","",'DF raw data'!L111) -> -8.95435e-06 | F111: 3.163288818e-06 | G111: 7.016763378e-06 | H111: 6.857185996e-06 | J111: 9.1356116e-05 | K111: 0.001108676333 | L111: 0.0002374272039 | M111: 0.002698237303 | N111: 4.993486e-07
A112: =IF('DF raw data'!I112="","",'DF raw data'!I112) -> -277.5 | B112: =IF('DF raw data'!J112="","",'DF raw data'!J112) -> -5.29976e-06 | C112: =IF('DF raw data'!K112="","",'DF raw data'!K112) -> 2.19102e-05 | D112: =IF('DF raw data'!L112="","",'DF raw data'!L112) -> -1.0361e-05 | F112: 6.709083268e-06 | G112: 1.399524478e-05 | H112: 5.442940086e-06 | J112: 9.471065763e-05 | K112: 0.001156031662 | L112: 0.0002444248263 | M112: 0.002820449716 | N112: 5.337054022e-07
A113: =IF('DF raw data'!I113="","",'DF raw data'!I113) -> -277 | B113: =IF('DF raw data'!J113="","",'DF raw data'!J113) -> -5.87422e-06 | C113: =IF('DF raw data'!K113="","",'DF raw data'!K113) -> 2.3587e-05 | D113: =IF('DF raw data'!L113="","",'DF raw data'!L113) -> -1.43679e-05 | F113: 6.131521184e-06 | G113: 1.56810995e-05 | H113: 1.414402826e-06 | J113: 9.777641823e-05 | K113: 0.001204919871 | L113: 0.0002522653761 | M113: 0.002946582404 | N113: 5.703044261e-07
A114: =IF('DF raw data'!I114="","",'DF raw data'!I114) -> -276.5 | B114: =IF('DF raw data'!J114="","",'DF raw data'!J114) -> -2.56811e-05 | C114: =IF('DF raw data'!K114="","",'DF raw data'!K114) -> 2.88627e-05 | D114: =IF('DF raw data'!L114="","",'DF raw data'!L114) -> -1.72846e-05 | F114: -1.378231597e-05 | G114: 2.098528828e-05 | H114: -1.518047354e-06 | J114: 9.088526024e-05 | K114: 0.001250362501 | L114: 0.0002627580202 | M114: 0.003077961414 | N114: 6.0895538e-07
A115: =IF('DF raw data'!I115="","",'DF raw data'!I115) -> -276 | B115: =IF('DF raw data'!J115="","",'DF raw data'!J115) -> -5.04875e-06 | C115: =IF('DF raw data'!K115="","",'DF raw data'!K115) -> 2.54074e-05 | D115: =IF('DF raw data'!L115="","",'DF raw data'!L115) -> -2.01886e-06 | F115: 6.961448722e-06 | G115: 1.751132966e-05 | H115: 1.383012764e-05 | J115: 9.43659846e-05 | K115: 0.001297545493 | L115: 0.000271513685 | M115: 0.003213718257 | N115: 6.502676901e-07
A116: =IF('DF raw data'!I116="","",'DF raw data'!I116) -> -275.5 | B116: =IF('DF raw data'!J116="","",'DF raw data'!J116) -> -1.51679e-05 | C116: =IF('DF raw data'!K116="","",'DF raw data'!K116) -> 1.56547e-05 | D116: =IF('DF raw data'!L116="","",'DF raw data'!L116) -> -1.67362e-05 | F116: -3.212344688e-06 | G116: 7.705965078e-06 | H116: -9.66685994e-07 | J116: 9.275981226e-05 | K116: 0.001343925399 | L116: 0.0002753666676 | M116: 0.003351401591 | N116: 6.924832823e-07
A117: =IF('DF raw data'!I117="","",'DF raw data'!I117) -> -275 | B117: =IF('DF raw data'!J117="","",'DF raw data'!J117) -> -1.20954e-05 | C117: =IF('DF raw data'!K117="","",'DF raw data'!K117) -> 1.31792e-05 | D117: =IF('DF raw data'!L117="","",'DF raw data'!L117) -> -9.79483e-06 | F117: -1.232531876e-07 | G117: 5.217097378e-06 | H117: 6.012167404e-06 | J117: 9.269818567e-05 | K117: 0.001390274492 | L117: 0.0002779752163 | M117: 0.003490389199 | N117: 7.354148695e-07
A118: =IF('DF raw data'!I118="","",'DF raw data'!I118) -> -274.5 | B118: =IF('DF raw data'!J118="","",'DF raw data'!J118) -> -7.02875e-06 | C118: =IF('DF raw data'!K118="","",'DF raw data'!K118) -> 1.33618e-05 | D118: =IF('DF raw data'!L118="","",'DF raw data'!L118) -> -1.33493e-05 | F118: 4.970756722e-06 | G118: 5.400683418e-06 | H118: 2.438503266e-06 | J118: 9.518356403e-05 | K118: 0.001437866274 | L118: 0.000280675558 | M118: 0.003630726978 | N118: 7.793342094e-07
A119: =IF('DF raw data'!I119="","",'DF raw data'!I119) -> -274 | B119: =IF('DF raw data'!J119="","",'DF raw data'!J119) -> -1.83759e-05 | C119: =IF('DF raw data'!K119="","",'DF raw data'!K119) -> 2.64898e-05 | D119: =IF('DF raw data'!L119="","",'DF raw data'!L119) -> -1.28366e-05 | F119: -6.437667888e-06 | G119: 1.859957462e-05 | H119: 2.953971846e-06 | J119: 9.196473008e-05 | K119: 0.001483848639 | L119: 0.0002899753453 | M119: 0.003775714651 | N119: 8.256058156e-07
A120: =IF('DF raw data'!I120="","",'DF raw data'!I120) -> -273.5 | B120: =IF('DF raw data'!J120="","",'DF raw data'!J120) -> -6.96508e-06 | C120: =IF('DF raw data'!K120="","",'DF raw data'!K120) -> 3.65661e-05 | D120: =IF('DF raw data'!L120="","",'DF raw data'!L120) -> -1.24788e-05 | F120: 5.03477054e-06 | G120: 2.873028664e-05 | H120: 3.313703966e-06 | J120: 9.448211535e-05 | K120: 0.001531089697 | L120: 0.0003043404886 | M120: 0.003927884895 | N120: 8.763808172e-07
A121: =IF('DF raw data'!I121="","",'DF raw data'!I121) -> -273 | B121: =IF('DF raw data'!J121="","",'DF raw data'!J121) -> -1.31809e-05 | C121: =IF('DF raw data'!K121="","",'DF raw data'!K121) -> 2.62512e-05 | D121: =IF('DF raw data'!L121="","",'DF raw data'!L121) -> -1.65984e-05 | F121: -1.214614888e-06 | G121: 1.835968618e-05 | H121: -8.28141874e-07 | J121: 9.387480791e-05 | K121: 0.001578027101 | L121: 0.0003135203317 | M121: 0.004084645061 | N121: 9.299345562e-07
A122: =IF('DF raw data'!I122="","",'DF raw data'!I122) -> -272.5 | B122: =IF('DF raw data'!J122="","",'DF raw data'!J122) -> 4.31841e-06 | C122: =IF('DF raw data'!K122="","",'DF raw data'!K122) -> 3.02336e-05 | D122: =IF('DF raw data'!L122="","",'DF raw data'!L122) -> -1.39279e-05 | F122: 1.637919139e-05 | G122: 2.236359114e-05 | H122: 1.856778826e-06 | J122: 0.0001020644036 | K122: 0.001629059303 | L122: 0.0003247021273 | M122: 0.004246996124 | N122: 9.878588631e-07
A123: =IF('DF raw data'!I123="","",'DF raw data'!I123) -> -272 | B123: =IF('DF raw data'!J123="","",'DF raw data'!J123) -> -1.50403e-05 | C123: =IF('DF raw data'!K123="","",'DF raw data'!K123) -> 2.54441e-05 | D123: =IF('DF raw data'!L123="","",'DF raw data'!L123) -> -1.57386e-05 | F123: -3.084055648e-06 | G123: 1.754822784e-05 | H123: 3.630104597e-08 | J123: 0.0001005223758 | K123: 0.001679320491 | L123: 0.0003334762412 | M123: 0.004413734245 | N123: 1.048514439e-06
A124: =IF('DF raw data'!I124="","",'DF raw data'!I124) -> -271.5 | B124: =IF('DF raw data'!J124="","",'DF raw data'!J124) -> -2.3625e-05 | C124: =IF('DF raw data'!K124="","",'DF raw data'!K124) -> 2.51526e-05 | D124: =IF('DF raw data'!L124="","",'DF raw data'!L124) -> -2.46825e-05 | F124: -1.171511303e-05 | G124: 1.725515374e-05 | H124: -8.955896014e-06 | J124: 9.466481927e-05 | K124: 0.0017266529 | L124: 0.0003421038181 | M124: 0.004584786154 | N124: 1.111512664e-06
A125: =IF('DF raw data'!I125="","",'DF raw data'!I125) -> -271 | B125: =IF('DF raw data'!J125="","",'DF raw data'!J125) -> 7.8483e-06 | C125: =IF('DF raw data'!K125="","",'DF raw data'!K125) -> 2.12017e-05 | D125: =IF('DF raw data'!L125="","",'DF raw data'!L125) -> -2.01814e-05 | F125: 1.992814279e-05 | G125: 1.328291888e-05 | H125: -4.430490074e-06 | J125: 0.0001046288907 | K125: 0.001778967346 | L125: 0.0003487452775 | M125: 0.004759158793 | N125: 1.177797901e-06
A126: =IF('DF raw data'!I126="","",'DF raw data'!I126) -> -270.5 | B126: =IF('DF raw data'!J126="","",'DF raw data'!J126) -> -5.35333e-06 | C126: =IF('DF raw data'!K126="","",'DF raw data'!K126) -> 1.61018e-05 | D126: =IF('DF raw data'!L126="","",'DF raw data'!L126) -> -2.67867e-05 | F126: 6.65522399e-06 | G126: 8.155479418e-06 | H126: -1.107145869e-05 | J126: 0.0001079565027 | K126: 0.001832945597 | L126: 0.0003528230172 | M126: 0.004935570301 | N126: 1.245867245e-06
A127: =IF('DF raw data'!I127="","",'DF raw data'!I127) -> -270 | B127: =IF('DF raw data'!J127="","",'DF raw data'!J127) -> -9.72415e-06 | C127: =IF('DF raw data'!K127="","",'DF raw data'!K127) -> 1.66578e-05 | D127: =IF('DF raw data'!L127="","",'DF raw data'!L127) -> -8.6605e-06 | F127: 2.260801562e-06 | G127: 8.714481818e-06 | H127: 7.152622786e-06 | J127: 0.0001090869034 | K127: 0.001887489049 | L127: 0.0003571802581 | M127: 0.00511416043 | N127: 1.315606089e-06
A128: =IF('DF raw data'!I128="","",'DF raw data'!I128) -> -269.5 | B128: =IF('DF raw data'!J128="","",'DF raw data'!J128) -> -8.191e-06 | C128: =IF('DF raw data'!K128="","",'DF raw data'!K128) -> 2.18471e-05 | D128: =IF('DF raw data'!L128="","",'DF raw data'!L128) -> -4.14716e-07 | F128: 3.802230572e-06 | G128: 1.393180404e-05 | H128: 1.544293402e-05 | J128: 0.0001109880187 | K128: 0.001942983058 | L128: 0.0003641461601 | M128: 0.00529623351 | N128: 1.388066472e-06
A129: =IF('DF raw data'!I129="","",'DF raw data'!I129) -> -269 | B129: =IF('DF raw data'!J129="","",'DF raw data'!J129) -> -1.49135e-05 | C129: =IF('DF raw data'!K129="","",'DF raw data'!K129) -> 2.37871e-05 | D129: =IF('DF raw data'!L129="","",'DF raw data'!L129) -> -1.35522e-05 | F129: -2.956570928e-06 | G129: 1.588228004e-05 | H129: 2.234507606e-06 | J129: 0.0001095097333 | K129: 0.001997737925 | L129: 0.0003720873002 | M129: 0.00548227716 | N129: 1.463287143e-06
A130: =IF('DF raw data'!I130="","",'DF raw data'!I130) -> -268.5 | B130: =IF('DF raw data'!J130="","",'DF raw data'!J130) -> -4.33385e-06 | C130: =IF('DF raw data'!K130="","",'DF raw data'!K130) -> 1.48716e-05 | D130: =IF('DF raw data'!L130="","",'DF raw data'!L130) -> -1.68462e-05 | F130: 7.680209182e-06 | G130: 6.918636338e-06 | H130: -1.077279994e-06 | J130: 0.0001133498379 | K130: 0.002054412843 | L130: 0.0003755466183 | M130: 0.00567005047 | N130: 1.540228867e-06
A131: =IF('DF raw data'!I131="","",'DF raw data'!I131) -> -268 | B131: =IF('DF raw data'!J131="","",'DF raw data'!J131) -> -1.05526e-05 | C131: =IF('DF raw data'!K131="","",'DF raw data'!K131) -> 1.66515e-05 | D131: =IF('DF raw data'!L131="","",'DF raw data'!L131) -> -1.63295e-05 | F131: =(1-$G$1*($B$54-$G$2))*(B131-F$5) -> 1.427877932e-06 | G131: =(1-$G$1*($B$54-$G$2))*(C131-G$5) -> 8.708147798e-06 | H131: =(1-$G$1*($B$54-$G$2))*(D131-H$5) -> -5.57789814e-07 | J131: 0.0001140637768 | K131: 0.002111444732 | L131: 0.0003799006922 | M131: 0.005860000816 | N131: 1.618896407e-06
A132: =IF('DF raw data'!I132="","",'DF raw data'!I132) -> -267.5 | B132: =IF('DF raw data'!J132="","",'DF raw data'!J132) -> -7.99056e-06 | C132: =IF('DF raw data'!K132="","",'DF raw data'!K132) -> 1.73828e-05 | D132: =IF('DF raw data'!L132="","",'DF raw data'!L132) -> -1.27455e-05 | F132: 4.003752948e-06 | G132: 9.443396818e-06 | H132: 3.045563786e-06 | J132: =F132*$G$3+J131 -> 0.0001160656533 | K132: =J132*$G$3+K131 -> 0.002169477559 | L132: =G132*$G$3+L131 -> 0.0003846223906 | M132: =L132*$G$3+M131 -> 0.006052312011 | N132: =(J132^2+L132^2)*$G$3+N131 -> 1.699599217e-06
A133: =IF('DF raw data'!I133="","",'DF raw data'!I133) -> -267 | B133: =IF('DF raw data'!J133="","",'DF raw data'!J133) -> -1.47164e-05 | C133: =IF('DF raw data'!K133="","",'DF raw data'!K133) -> 2.14805e-05 | D133: =IF('DF raw data'!L133="","",'DF raw data'!L133) -> -2.11409e-05 | F133: -2.758406588e-06 | G133: 1.35632244e-05 | H133: -5.395171374e-06 | J133: 0.00011468645 | K133: 0.002226820784 | L133: 0.0003914040028 | M133: 0.006248014012 | N133: 1.782774255e-06
A134: =IF('DF raw data'!I134="","",'DF raw data'!I134) -> -266.5 | B134: =IF('DF raw data'!J134="","",'DF raw data'!J134) -> -1.81763e-05 | C134: =IF('DF raw data'!K134="","",'DF raw data'!K134) -> 2.06069e-05 | D134: =IF('DF raw data'!L134="","",'DF raw data'!L134) -> -2.37866e-05 | F134: -6.236990048e-06 | G134: 1.268490696e-05 | H134: -8.055158154e-06 | J134: 0.000111567955 | K134: 0.002282604761 | L134: 0.0003977464563 | M134: 0.006446887241 | N134: 1.868099081e-06
A135: =IF('DF raw data'!I135="","",'DF raw data'!I135) -> -266 | B135: =IF('DF raw data'!J135="","",'DF raw data'!J135) -> -5.80696e-06 | C135: =IF('DF raw data'!K135="","",'DF raw data'!K135) -> 2.46871e-05 | D135: =IF('DF raw data'!L135="","",'DF raw data'!L135) -> -1.90152e-05 | F135: 6.199144388e-06 | G135: 1.678714004e-05 | H135: -3.257992594e-06 | J135: 0.0001146675272 | K135: 0.002339938525 | L135: 0.0004061400263 | M135: 0.006649957254 | N135: 1.957148262e-06
A136: =IF('DF raw data'!I136="","",'DF raw data'!I136) -> -265.5 | B136: =IF('DF raw data'!J136="","",'DF raw data'!J136) -> -8.24006e-06 | C136: =IF('DF raw data'!K136="","",'DF raw data'!K136) -> 1.72781e-05 | D136: =IF('DF raw data'!L136="","",'DF raw data'!L136) -> -2.34067e-05 | F136: 3.752905648e-06 | G136: 9.338131438e-06 | H136: -7.673206694e-06 | J136: 0.00011654398 | K136: 0.002398210515 | L136: 0.000410809092 | M136: 0.0068553618 | N136: 2.048321567e-06
A137: =IF('DF raw data'!I137="","",'DF raw data'!I137) -> -265 | B137: =IF('DF raw data'!J137="","",'DF raw data'!J137) -> -1.99131e-05 | C137: =IF('DF raw data'!K137="","",'DF raw data'!K137) -> 9.34507e-06 | D137: =IF('DF raw data'!L137="","",'DF raw data'!L137) -> -1.4764e-05 | F137: -7.983168768e-06 | G137: 1.362263076e-06 | H137: 1.016163886e-06 | J137: 0.0001125523956 | K137: 0.002454486712 | L137: 0.0004114902236 | M137: 0.007061106912 | N137: 2.13931769e-06
A138: =IF('DF raw data'!I138="","",'DF raw data'!I138) -> -264.5 | B138: =IF('DF raw data'!J138="","",'DF raw data'!J138) -> -2.28636e-05 | C138: =IF('DF raw data'!K138="","",'DF raw data'!K138) -> 1.88436e-05 | D138: =IF('DF raw data'!L138="","",'DF raw data'!L138) -> -1.24908e-05 | F138: -1.094960147e-05 | G138: 1.091208514e-05 | H138: 3.301639166e-06 | J138: 0.0001070775949 | K138: 0.00250802551 | L138: 0.0004169462662 | M138: 0.007269580045 | N138: 2.23197259e-06
A139: =IF('DF raw data'!I139="","",'DF raw data'!I139) -> -264 | B139: =IF('DF raw data'!J139="","",'DF raw data'!J139) -> -6.51913e-06 | C139: =IF('DF raw data'!K139="","",'DF raw data'!K139) -> 1.92007e-05 | D139: =IF('DF raw data'!L139="","",'DF raw data'!L139) -> -8.37936e-06 | F139: 5.48312867e-06 | G139: 1.127111348e-05 | H139: 7.435280942e-06 | J139: 0.0001098191592 | K139: 0.002562935089 | L139: 0.0004225818229 | M139: 0.007480870956 | N139: 2.327290412e-06
A140: =IF('DF raw data'!I140="","",'DF raw data'!I140) -> -263.5 | B140: =IF('DF raw data'!J140="","",'DF raw data'!J140) -> -1.64525e-06 | C140: =IF('DF raw data'!K140="","",'DF raw data'!K140) -> 1.77699e-05 | D140: =IF('DF raw data'!L140="","",'DF raw data'!L140) -> -1.10472e-05 | F140: 1.038332762e-05 | G140: 9.832587158e-06 | H140: 4.753034606e-06 | J140: 0.000115010823 | K140: 0.002620440501 | L140: 0.0004274981165 | M140: 0.007694620014 | N140: 2.425281477e-06
A141: =IF('DF raw data'!I141="","",'DF raw data'!I141) -> -263 | B141: =IF('DF raw data'!J141="","",'DF raw data'!J141) -> 1.87958e-06 | C141: =IF('DF raw data'!K141="","",'DF raw data'!K141) -> 1.32653e-05 | D141: =IF('DF raw data'!L141="","",'DF raw data'!L141) -> -9.4978e-06 | F141: 1.39271917e-05 | G141: 5.303662318e-06 | H141: 6.310801366e-06 | J141: 0.0001219744189 | K141: 0.00268142771 | L141: 0.0004301499476 | M141: 0.007909694988 | N141: 2.525234845e-06
A142: =IF('DF raw data'!I142="","",'DF raw data'!I142) -> -262.5 | B142: =IF('DF raw data'!J142="","",'DF raw data'!J142) -> -6.52047e-06 | C142: =IF('DF raw data'!K142="","",'DF raw data'!K142) -> 7.40737e-06 | D142: =IF('DF raw data'!L142="","",'DF raw data'!L142) -> -6.30743e-06 | F142: 5.481781434e-06 | G142: -5.859005038e-07 | H142: 9.518399364e-06 | J142: 0.0001247153096 | K142: 0.002743785365 | L142: 0.0004298569974 | M142: 0.008124623487 | N142: 2.625400318e-06
A143: =IF('DF raw data'!I143="","",'DF raw data'!I143) -> -262 | B143: =IF('DF raw data'!J143="","",'DF raw data'!J143) -> -8.69841e-06 | C143: =IF('DF raw data'!K143="","",'DF raw data'!K143) -> 6.77127e-06 | D143: =IF('DF raw data'!L143="","",'DF raw data'!L143) -> -8.7528e-06 | F143: 3.292080558e-06 | G143: -1.225435444e-06 | H143: 7.059824366e-06 | J143: 0.0001263613499 | K143: 0.00280696604 | L143: 0.0004292442797 | M143: 0.008339245627 | N143: 2.725509239e-06
A144: =IF('DF raw data'!I144="","",'DF raw data'!I144) -> -261.5 | B144: =IF('DF raw data'!J144="","",'DF raw data'!J144) -> 2.00702e-06 | C144: =IF('DF raw data'!K144="","",'DF raw data'!K144) -> 1.54874e-05 | D144: =IF('DF raw data'!L144="","",'DF raw data'!L144) -> -8.31579e-06 | F144: 1.405531988e-05 | G144: 7.537761658e-06 | H144: 7.49919422e-06 | J144: 0.0001333890098 | K144: 0.002873660545 | L144: 0.0004330131605 | M144: 0.008555752207 | N144: 2.828155752e-06
A145: =IF('DF raw data'!I145="","",'DF raw data'!I145) -> -261 | B145: =IF('DF raw data'!J145="","",'DF raw data'!J145) -> -1.90874e-05 | C145: =IF('DF raw data'!K145="","",'DF raw data'!K145) -> 2.3869e-05 | D145: =IF('DF raw data'!L145="","",'DF raw data'!L145) -> -2.71443e-06 | F145: -7.153009988e-06 | G145: 1.59646223e-05 | H145: 1.313080156e-05 | J145: 0.0001298125048 | K145: 0.002938566797 | L145: 0.0004409954716 | M145: 0.008776249943 | N145: 2.933819898e-06
A146: =IF('DF raw data'!I146="","",'DF raw data'!I146) -> -260.5 | B146: =IF('DF raw data'!J146="","",'DF raw data'!J146) -> -1.08759e-05 | C146: =IF('DF raw data'!K146="","",'DF raw data'!K146) -> 2.45494e-05 | D146: =IF('DF raw data'!L146="","",'DF raw data'!L146) -> -1.19008e-05 | F146: 1.102832112e-06 | G146: 1.664869646e-05 | H146: 3.894825166e-06 | J146: 0.0001303639209 | K146: 0.003003748758 | L146: 0.0004493198199 | M146: 0.009000909853 | N146: 3.043261424e-06
A147: =IF('DF raw data'!I147="","",'DF raw data'!I147) -> -260 | B147: =IF('DF raw data'!J147="","",'DF raw data'!J147) -> -7.0908e-06 | C147: =IF('DF raw data'!K147="","",'DF raw data'!K147) -> 1.715e-05 | D147: =IF('DF raw data'!L147="","",'DF raw data'!L147) -> -1.62964e-05 | F147: 4.908371652e-06 | G147: 9.209339698e-06 | H147: -5.24511074e-07 | J147: 0.0001328181067 | K147: 0.003070157811 | L147: 0.0004539244897 | M147: 0.009227872098 | N147: 3.15510547e-06
A148: =IF('DF raw data'!I148="","",'DF raw data'!I148) -> -259.5 | B148: =IF('DF raw data'!J148="","",'DF raw data'!J148) -> -1.72854e-05 | C148: =IF('DF raw data'!K148="","",'DF raw data'!K148) -> 1.45902e-05 | D148: =IF('DF raw data'!L148="","",'DF raw data'!L148) -> -1.3666e-05 | F148: -5.341279188e-06 | G148: 6.635716778e-06 | H148: 2.120093086e-06 | J148: 0.0001301474671 | K148: 0.003135231545 | L148: 0.0004572423481 | M148: 0.009456493272 | N148: 3.268109934e-06
A149: =IF('DF raw data'!I149="","",'DF raw data'!I149) -> -259 | B149: =IF('DF raw data'!J149="","",'DF raw data'!J149) -> -8.37938e-06 | C149: =IF('DF raw data'!K149="","",'DF raw data'!K149) -> 1.87393e-05 | D149: =IF('DF raw data'!L149="","",'DF raw data'!L149) -> -6.25535e-06 | F149: 3.61283332e-06 | G149: 1.080722192e-05 | H149: 9.570760596e-06 | J149: 0.0001319538838 | K149: 0.003201208487 | L149: 0.0004626459591 | M149: 0.009687816251 | N149: 3.38383649e-06
A150: =IF('DF raw data'!I150="","",'DF raw data'!I150) -> -258.5 | B150: =IF('DF raw data'!J150="","",'DF raw data'!J150) -> -4.01638e-06 | C150: =IF('DF raw data'!K150="","",'DF raw data'!K150) -> 1.59076e-05 | D150: =IF('DF raw data'!L150="","",'DF raw data'!L150) -> -1.23438e-05 | F150: 7.99939352e-06 | G150: 7.960230738e-06 | H150: 3.449432966e-06 | J150: 0.0001359535805 | K150: 0.003269185277 | L150: 0.0004666260744 | M150: 0.009921129288 | N150: 3.501948124e-06
A151: =IF('DF raw data'!I151="","",'DF raw data'!I151) -> -258 | B151: =IF('DF raw data'!J151="","",'DF raw data'!J151) -> -6.00326e-06 | C151: =IF('DF raw data'!K151="","",'DF raw data'!K151) -> 1.93115e-05 | D151: =IF('DF raw data'!L151="","",'DF raw data'!L151) -> -1.30698e-05 | F151: 6.001784368e-06 | G151: 1.13825118e-05 | H151: 2.719512566e-06 | J151: 0.0001389544727 | K151: 0.003338662513 | L151: 0.0004723173303 | M151: 0.01015728795 | N151: 3.623144127e-06
A152: =IF('DF raw data'!I152="","",'DF raw data'!I152) -> -257.5 | B152: =IF('DF raw data'!J152="","",'DF raw data'!J152) -> 7.23762e-07 | C152: =IF('DF raw data'!K152="","",'DF raw data'!K152) -> 1.44343e-05 | D152: =IF('DF raw data'!L152="","",'DF raw data'!L152) -> -6.48403e-06 | F152: 1.276513229e-05 | G152: 6.478974918e-06 | H152: 9.340845724e-06 | J152: 0.0001453370389 | K152: 0.003411331033 | L152: 0.0004755568178 | M152: 0.01039506636 | N152: 3.746782698e-06
A153: =IF('DF raw data'!I153="","",'DF raw data'!I153) -> -257 | B153: =IF('DF raw data'!J153="","",'DF raw data'!J153) -> 3.48257e-06 | C153: =IF('DF raw data'!K153="","",'DF raw data'!K153) -> 1.63723e-05 | D153: =IF('DF raw data'!L153="","",'DF raw data'!L153) -> -9.90097e-06 | F153: 1.553883785e-05 | G153: 8.427440118e-06 | H153: 5.905454248e-06 | J153: 0.0001531064578 | K153: 0.003487884262 | L153: 0.0004797705379 | M153: 0.01063495163 | N153: 3.873593377e-06
A154: =IF('DF raw data'!I154="","",'DF raw data'!I154) -> -256.5 | B154: =IF('DF raw data'!J154="","",'DF raw data'!J154) -> -9.85162e-06 | C154: =IF('DF raw data'!K154="","",'DF raw data'!K154) -> 1.67884e-05 | D154: =IF('DF raw data'!L154="","",'DF raw data'!L154) -> -9.76e-06 | F154: 2.132643224e-06 | G154: 8.845787058e-06 | H154: 6.047185486e-06 | J154: 0.0001541727794 | K154: 0.003564970651 | L154: 0.0004841934314 | M154: 0.01087704835 | N154: 4.002699639e-06
A155: =IF('DF raw data'!I155="","",'DF raw data'!I155) -> -256 | B155: =IF('DF raw data'!J155="","",'DF raw data'!J155) -> -1.65762e-05 | C155: =IF('DF raw data'!K155="","",'DF raw data'!K155) -> 1.0094e-05 | D155: =IF('DF raw data'!L155="","",'DF raw data'!L155) -> -2.01779e-05 | F155: -4.628249508e-06 | G155: 2.115237298e-06 | H155: -4.426971174e-06 | J155: 0.0001518586546 | K155: 0.003640899979 | L155: 0.00048525105 | M155: 0.01111967387 | N155: 4.131964455e-06
A156: =IF('DF raw data'!I156="","",'DF raw data'!I156) -> -255.5 | B156: =IF('DF raw data'!J156="","",'DF raw data'!J156) -> -1.95903e-05 | C156: =IF('DF raw data'!K156="","",'DF raw data'!K156) -> 8.3978e-06 | D156: =IF('DF raw data'!L156="","",'DF raw data'!L156) -> -1.83819e-05 | F156: -7.658625648e-06 | G156: 4.098778182e-07 | H156: -2.621272774e-06 | J156: 0.0001480293418 | K156: 0.00371491465 | L156: 0.0004854559889 | M156: 0.01136240187 | N156: 4.260754557e-06
A157: =IF('DF raw data'!I157="","",'DF raw data'!I157) -> -255 | B157: =IF('DF raw data'!J157="","",'DF raw data'!J157) -> -6.12715e-06 | C157: =IF('DF raw data'!K157="","",'DF raw data'!K157) -> 8.77817e-06 | D157: =IF('DF raw data'!L157="","",'DF raw data'!L157) -> -1.97097e-05 | F157: 5.877225362e-06 | G157: 7.923018162e-07 | H157: -3.956242894e-06 | J157: 0.0001509679545 | K157: 0.003790398627 | L157: 0.0004858521398 | M157: 0.01160532794 | N157: 4.390176369e-06
A158: =IF('DF raw data'!I158="","",'DF raw data'!I158) -> -254.5 | B158: =IF('DF raw data'!J158="","",'DF raw data'!J158) -> -5.61606e-06 | C158: =IF('DF raw data'!K158="","",'DF raw data'!K158) -> 1.53869e-05 | D158: =IF('DF raw data'!L158="","",'DF raw data'!L158) -> -1.70384e-05 | F158: 6.391075248e-06 | G158: 7.436718958e-06 | H158: -1.270517874e-06 | J158: 0.0001541634921 | K158: 0.003867480373 | L158: 0.0004895704993 | M158: 0.01185011319 | N158: 4.521899197e-06
A159: =IF('DF raw data'!I159="","",'DF raw data'!I159) -> -254 | B159: =IF('DF raw data'!J159="","",'DF raw data'!J159) -> -8.75865e-06 | C159: =IF('DF raw data'!K159="","",'DF raw data'!K159) -> 1.46926e-05 | D159: =IF('DF raw data'!L159="","",'DF raw data'!L159) -> -1.44941e-05 | F159: 3.231515262e-06 | G159: 6.738669738e-06 | H159: 1.287521346e-06 | J159: 0.0001557792498 | K159: 0.003945369998 | L159: 0.0004929398342 | M159: 0.0120965831 | N159: 4.655527625e-06
A160: =IF('DF raw data'!I160="","",'DF raw data'!I160) -> -253.5 | B160: =IF('DF raw data'!J160="","",'DF raw data'!J160) -> -1.47836e-05 | C160: =IF('DF raw data'!K160="","",'DF raw data'!K160) -> 1.09918e-05 | D160: =IF('DF raw data'!L160="","",'DF raw data'!L160) -> -1.60512e-05 | F160: -2.825969468e-06 | G160: 3.017885418e-06 | H160: -2.77986994e-07 | J160: 0.000154366265 | K160: 0.00402255313 | L160: 0.0004944487769 | M160: 0.01234380749 | N160: 4.789681893e-06
A161: =IF('DF raw data'!I161="","",'DF raw data'!I161) -> -253 | B161: =IF('DF raw data'!J161="","",'DF raw data'!J161) -> -1.47795e-05 | C161: =IF('DF raw data'!K161="","",'DF raw data'!K161) -> 1.22988e-05 | D161: =IF('DF raw data'!L161="","",'DF raw data'!L161) -> -2.24506e-05 | F161: -2.821847328e-06 | G161: 4.331943218e-06 | H161: -6.711943754e-06 | J161: 0.0001529553414 | K161: 0.004099030801 | L161: 0.0004966147485 | M161: 0.01259211487 | N161: 4.924692666e-06
A162: =IF('DF raw data'!I162="","",'DF raw data'!I162) -> -252.5 | B162: =IF('DF raw data'!J162="","",'DF raw data'!J162) -> -1.21531e-05 | C162: =IF('DF raw data'!K162="","",'DF raw data'!K162) -> 7.79278e-06 | D162: =IF('DF raw data'!L162="","",'DF raw data'!L162) -> -1.94425e-05 | F162: -1.812647676e-07 | G162: -1.984092898e-07 | H162: -3.687600014e-06 | J162: 0.000152864709 | K162: 0.004175463155 | L162: 0.0004965155439 | M162: 0.01284037264 | N162: 5.059640318e-06
A163: =IF('DF raw data'!I163="","",'DF raw data'!I163) -> -252 | B163: =IF('DF raw data'!J163="","",'DF raw data'!J163) -> -2.0482e-05 | C163: =IF('DF raw data'!K163="","",'DF raw data'!K163) -> 6.86471e-06 | D163: =IF('DF raw data'!L163="","",'DF raw data'!L163) -> -2.72298e-05 | F163: -8.555140828e-06 | G163: -1.131490868e-06 | H163: -1.151695143e-05 | J163: 0.0001485871386 | K163: 0.004249756725 | L163: 0.0004959497984 | M163: 0.01308834754 | N163: 5.193662488e-06
A164: =IF('DF raw data'!I164="","",'DF raw data'!I164) -> -251.5 | B164: =IF('DF raw data'!J164="","",'DF raw data'!J164) -> -1.57397e-05 | C164: =IF('DF raw data'!K164="","",'DF raw data'!K164) -> 9.54526e-06 | D164: =IF('DF raw data'!L164="","",'DF raw data'!L164) -> -2.46821e-05 | F164: -3.787232408e-06 | G164: 1.563534102e-06 | H164: -8.955493854e-06 | J164: 0.0001466935224 | K164: 0.004323103486 | L164: 0.0004967315655 | M164: 0.01333671332 | N164: 5.327793107e-06
A165: =IF('DF raw data'!I165="","",'DF raw data'!I165) -> -251 | B165: =IF('DF raw data'!J165="","",'DF raw data'!J165) -> -7.09387e-06 | C165: =IF('DF raw data'!K165="","",'DF raw data'!K165) -> 1.67485e-05 | D165: =IF('DF raw data'!L165="","",'DF raw data'!L165) -> -1.15445e-05 | F165: 4.905285074e-06 | G165: 8.805671598e-06 | H165: 4.253049186e-06 | J165: 0.0001491461649 | K165: 0.004397676568 | L165: 0.0005011344013 | M165: 0.01358728052 | N165: 5.46448324e-06
A166: =IF('DF raw data'!I166="","",'DF raw data'!I166) -> -250.5 | B166: =IF('DF raw data'!J166="","",'DF raw data'!J166) -> -9.58888e-06 | C166: =IF('DF raw data'!K166="","",'DF raw data'!K166) -> 1.46189e-05 | D166: =IF('DF raw data'!L166="","",'DF raw data'!L166) -> -1.95081e-05 | F166: 2.39680202e-06 | G166: 6.664571758e-06 | H166: -3.753554254e-06 | J166: 0.0001503445659 | K166: 0.004472848851 | L166: 0.0005044666872 | M166: 0.01383951386 | N166: 5.603028304e-06
A167: =IF('DF raw data'!I167="","",'DF raw data'!I167) -> -250 | B167: =IF('DF raw data'!J167="","",'DF raw data'!J167) -> -1.10698e-05 | C167: =IF('DF raw data'!K167="","",'DF raw data'!K167) -> 1.67828e-05 | D167: =IF('DF raw data'!L167="","",'DF raw data'!L167) -> -9.67828e-06 | F167: 9.078850524e-07 | G167: 8.840156818e-06 | H167: 6.129346774e-06 | J167: 0.0001507985084 | K167: 0.004548248105 | L167: 0.0005088867656 | M167: 0.01409395725 | N167: 5.743881269e-06
A168: =IF('DF raw data'!I168="","",'DF raw data'!I168) -> -249.5 | B168: =IF('DF raw data'!J168="","",'DF raw data'!J168) -> -9.20751e-06 | C168: =IF('DF raw data'!K168="","",'DF raw data'!K168) -> 1.77498e-05 | D168: =IF('DF raw data'!L168="","",'DF raw data'!L168) -> -1.44919e-05 | F168: 2.780231418e-06 | G168: 9.812378618e-06 | H168: 1.289733226e-06 | J168: 0.0001521886241 | K168: 0.004624342417 | L168: 0.0005137929549 | M168: 0.01435085372 | N168: 5.887453558e-06
A169: =IF('DF raw data'!I169="","",'DF raw data'!I169) -> -249 | B169: =IF('DF raw data'!J169="","",'DF raw data'!J169) -> -1.18964e-05 | C169: =IF('DF raw data'!K169="","",'DF raw data'!K169) -> 1.81425e-05 | D169: =IF('DF raw data'!L169="","",'DF raw data'!L169) -> -1.98651e-05 | F169: 7.682141242e-08 | G169: 1.02071992e-05 | H169: -4.112482054e-06 | J169: 0.0001522270348 | K169: 0.004700455935 | L169: 0.0005188965545 | M169: 0.014610302 | N169: 6.03366691e-06
A170: =IF('DF raw data'!I170="","",'DF raw data'!I170) -> -248.5 | B170: =IF('DF raw data'!J170="","",'DF raw data'!J170) -> -1.82879e-06 | C170: =IF('DF raw data'!K170="","",'DF raw data'!K170) -> 1.98263e-05 | D170: =IF('DF raw data'!L170="","",'DF raw data'!L170) -> -2.47693e-05 | F170: 1.019879651e-05 | G170: 1.190009172e-05 | H170: -9.043164734e-06 | J170: 0.0001573264331 | K170: 0.004779119151 | L170: 0.0005248466003 | M170: 0.0148727253 | N170: 6.18377469e-06
A171: =IF('DF raw data'!I171="","",'DF raw data'!I171) -> -248 | B171: =IF('DF raw data'!J171="","",'DF raw data'!J171) -> -4.86742e-07 | C171: =IF('DF raw data'!K171="","",'DF raw data'!K171) -> 2.06102e-05 | D171: =IF('DF raw data'!L171="","",'DF raw data'!L171) -> -1.82017e-05 | F171: 1.154809157e-05 | G171: 1.268822478e-05 | H171: -2.440099694e-06 | J171: 0.0001631004789 | K171: 0.004860669391 | L171: 0.0005311907127 | M171: 0.01513832066 | N171: 6.33815736e-06
A172: =IF('DF raw data'!I172="","",'DF raw data'!I172) -> -247.5 | B172: =IF('DF raw data'!J172="","",'DF raw data'!J172) -> -9.97875e-06 | C172: =IF('DF raw data'!K172="","",'DF raw data'!K172) -> 2.0351e-05 | D172: =IF('DF raw data'!L172="","",'DF raw data'!L172) -> -1.141e-05 | F172: 2.004826722e-06 | G172: 1.24276251e-05 | H172: 4.388275486e-06 | J172: 0.0001641028922 | K172: 0.004942720837 | L172: 0.0005374045253 | M172: 0.01540702292 | N172: 6.496024052e-06
A173: =IF('DF raw data'!I173="","",'DF raw data'!I173) -> -247 | B173: =IF('DF raw data'!J173="","",'DF raw data'!J173) -> -1.54864e-05 | C173: =IF('DF raw data'!K173="","",'DF raw data'!K173) -> 2.46125e-05 | D173: =IF('DF raw data'!L173="","",'DF raw data'!L173) -> -1.99209e-05 | F173: -3.532564588e-06 | G173: 1.67121372e-05 | H173: -4.168583374e-06 | J173: 0.0001623366099 | K173: 0.005023889142 | L173: 0.0005457605939 | M173: 0.01567990322 | N173: 6.658127952e-06
A174: =IF('DF raw data'!I174="","",'DF raw data'!I174) -> -246.5 | B174: =IF('DF raw data'!J174="","",'DF raw data'!J174) -> -6.83499e-06 | C174: =IF('DF raw data'!K174="","",'DF raw data'!K174) -> 1.66207e-05 | D174: =IF('DF raw data'!L174="","",'DF raw data'!L174) -> -1.53395e-05 | F174: 5.165563026e-06 | G174: 8.677181478e-06 | H174: 4.37556186e-07 | J174: 0.0001649193915 | K174: 0.005106348838 | L174: 0.0005500991846 | M174: 0.01595495281 | N174: 6.823031711e-06
A175: =IF('DF raw data'!I175="","",'DF raw data'!I175) -> -246 | B175: =IF('DF raw data'!J175="","",'DF raw data'!J175) -> -1.31794e-05 | C175: =IF('DF raw data'!K175="","",'DF raw data'!K175) -> 2.06228e-05 | D175: =IF('DF raw data'!L175="","",'DF raw data'!L175) -> -1.88482e-05 | F175: -1.213106788e-06 | G175: 1.270089282e-05 | H175: -3.090090794e-06 | J175: 0.0001643128381 | K175: 0.005188505257 | L175: 0.000556449631 | M175: 0.01623317763 | N175: 6.991349161e-06
A176: =IF('DF raw data'!I176="","",'DF raw data'!I176) -> -245.5 | B176: =IF('DF raw data'!J176="","",'DF raw data'!J176) -> -1.51038e-05 | C176: =IF('DF raw data'!K176="","",'DF raw data'!K176) -> 2.03596e-05 | D176: =IF('DF raw data'!L176="","",'DF raw data'!L176) -> -1.6737e-05 | F176: -3.147898548e-06 | G176: 1.243627154e-05 | H176: -9.67490314e-07 | J176: 0.0001627388888 | K176: 0.005269874701 | L176: 0.0005626677668 | M176: 0.01651451151 | N176: 7.162888642e-06
A177: =IF('DF raw data'!I177="","",'DF raw data'!I177) -> -245 | B177: =IF('DF raw data'!J177="","",'DF raw data'!J177) -> -1.11326e-05 | C177: =IF('DF raw data'!K177="","",'DF raw data'!K177) -> 1.0626e-05 | D177: =IF('DF raw data'!L177="","",'DF raw data'!L177) -> -1.14113e-05 | F177: 8.447459324e-07 | G177: 2.650110098e-06 | H177: 4.386968466e-06 | J177: 0.0001631612618 | K177: 0.005351455332 | L177: 0.0005639928218 | M177: 0.01679650792 | N177: 7.335243393e-06
A178: =IF('DF raw data'!I178="","",'DF raw data'!I178) -> -244.5 | B178: =IF('DF raw data'!J178="","",'DF raw data'!J178) -> -1.26701e-05 | C178: =IF('DF raw data'!K178="","",'DF raw data'!K178) -> 6.05545e-06 | D178: =IF('DF raw data'!L178="","",'DF raw data'!L178) -> -1.3359e-05 | F178: -7.010565676e-07 | G178: -1.945120872e-06 | H178: 2.428750886e-06 | J178: 0.0001628107335 | K178: 0.005432860699 | L178: 0.0005630202614 | M178: 0.01707801805 | N178: 7.506992967e-06
A179: =IF('DF raw data'!I179="","",'DF raw data'!I179) -> -244 | B179: =IF('DF raw data'!J179="","",'DF raw data'!J179) -> -1.46579e-05 | C179: =IF('DF raw data'!K179="","",'DF raw data'!K179) -> 1.20049e-05 | D179: =IF('DF raw data'!L179="","",'DF raw data'!L179) -> -1.23059e-05 | F179: -2.699590688e-06 | G179: 4.036456158e-06 | H179: 3.487537626e-06 | J179: 0.0001614609381 | K179: 0.005513591168 | L179: 0.0005650384895 | M179: 0.0173605373 | N179: 7.679662032e-06
A180: =IF('DF raw data'!I180="","",'DF raw data'!I180) -> -243.5 | B180: =IF('DF raw data'!J180="","",'DF raw data'!J180) -> -9.33883e-06 | C180: =IF('DF raw data'!K180="","",'DF raw data'!K180) -> 5.32855e-06 | D180: =IF('DF raw data'!L180="","",'DF raw data'!L180) -> -9.68397e-06 | F180: 2.64820229e-06 | G180: -2.675946132e-06 | H180: 6.123626048e-06 | J180: 0.0001627850393 | K180: 0.005594983687 | L180: 0.0005637005164 | M180: 0.01764238755 | N180: 7.851790653e-06
A181: =IF('DF raw data'!I181="","",'DF raw data'!I181) -> -243 | B181: =IF('DF raw data'!J181="","",'DF raw data'!J181) -> 8.56082e-07 | C181: =IF('DF raw data'!K181="","",'DF raw data'!K181) -> 1.01286e-05 | D181: =IF('DF raw data'!L181="","",'DF raw data'!L181) -> -1.28285e-05 | F181: 1.289816682e-05 | G181: 2.150024138e-06 | H181: 2.962115586e-06 | J181: 0.0001692341227 | K181: 0.005679600749 | L181: 0.0005647755285 | M181: 0.01792477532 | N181: 8.025596446e-06
A182: =IF('DF raw data'!I182="","",'DF raw data'!I182) -> -242.5 | B182: =IF('DF raw data'!J182="","",'DF raw data'!J182) -> -3.37682e-06 | C182: =IF('DF raw data'!K182="","",'DF raw data'!K182) -> 1.2603e-05 | D182: =IF('DF raw data'!L182="","",'DF raw data'!L182) -> -1.00482e-05 | F182: 8.642407144e-06 | G182: 4.637785898e-06 | H182: 5.757429206e-06 | J182: 0.0001735553263 | K182: 0.005766378412 | L182: 0.0005670944214 | M182: 0.01820832253 | N182: 8.201455213e-06
A183: =IF('DF raw data'!I183="","",'DF raw data'!I183) -> -242 | B183: =IF('DF raw data'!J183="","",'DF raw data'!J183) -> -2.39464e-05 | C183: =IF('DF raw data'!K183="","",'DF raw data'!K183) -> 1.56132e-05 | D183: =IF('DF raw data'!L183="","",'DF raw data'!L183) -> -2.28769e-05 | F183: -1.203824859e-05 | G183: 7.664240978e-06 | H183: -7.140545774e-06 | J183: 0.000167536202 | K183: 0.005850146513 | L183: 0.0005709265419 | M183: 0.0184937858 | N183: 8.37846796e-06
A184: =IF('DF raw data'!I184="","",'DF raw data'!I184) -> -241.5 | B184: =IF('DF raw data'!J184="","",'DF raw data'!J184) -> -1.37611e-05 | C184: =IF('DF raw data'!K184="","",'DF raw data'!K184) -> 1.70403e-05 | D184: =IF('DF raw data'!L184="","",'DF raw data'!L184) -> -1.13125e-05 | F184: -1.797947968e-06 | G184: 9.099047318e-06 | H184: 4.486301986e-06 | J184: 0.000166637228 | K184: 0.005933465127 | L184: 0.0005754760656 | M184: 0.01878152383 | N184: 8.557938294e-06
A185: =IF('DF raw data'!I185="","",'DF raw data'!I185) -> -241 | B185: =IF('DF raw data'!J185="","",'DF raw data'!J185) -> -4.0174e-06 | C185: =IF('DF raw data'!K185="","",'DF raw data'!K185) -> 2.73814e-05 | D185: =IF('DF raw data'!L185="","",'DF raw data'!L185) -> -1.07602e-05 | F185: 7.998368012e-06 | G185: 1.949598926e-05 | H185: 5.041584406e-06 | J185: 0.000170636412 | K185: 0.006018783333 | L185: 0.0005852240602 | M185: 0.01907413586 | N185: 8.743740287e-06
A186: =IF('DF raw data'!I186="","",'DF raw data'!I186) -> -240.5 | B186: =IF('DF raw data'!J186="","",'DF raw data'!J186) -> -8.05362e-06 | C186: =IF('DF raw data'!K186="","",'DF raw data'!K186) -> 2.42976e-05 | D186: =IF('DF raw data'!L186="","",'DF raw data'!L186) -> -1.45068e-05 | F186: 3.940352424e-06 | G186: 1.639553674e-05 | H186: 1.274752766e-06 | J186: 0.0001726065882 | K186: 0.006105086627 | L186: 0.0005934218286 | M186: 0.01937084678 | N186: 8.934711537e-06
A187: =IF('DF raw data'!I187="","",'DF raw data'!I187) -> -240 | B187: =IF('DF raw data'!J187="","",'DF raw data'!J187) -> -7.41442e-06 | C187: =IF('DF raw data'!K187="","",'DF raw data'!K187) -> 1.81401e-05 | D187: =IF('DF raw data'!L187="","",'DF raw data'!L187) -> -1.1685e-05 | F187: 4.583004104e-06 | G187: 1.020478624e-05 | H187: 4.111790486e-06 | J187: 0.0001748980902 | K187: 0.006192535672 | L187: 0.0005985242217 | M187: 0.01967010889 | N187: 9.12912183e-06
A188: =IF('DF raw data'!I188="","",'DF raw data'!I188) -> -239.5 | B188: =IF('DF raw data'!J188="","",'DF raw data'!J188) -> -8.0454e-06 | C188: =IF('DF raw data'!K188="","",'DF raw data'!K188) -> 1.60983e-05 | D188: =IF('DF raw data'!L188="","",'DF raw data'!L188) -> -2.71876e-05 | F188: 3.948616812e-06 | G188: 8.151960518e-06 | H188: -1.147452355e-05 | J188: 0.0001768723987 | K188: 0.006280971871 | L188: 0.000602600202 | M188: 0.01997140899 | N188: 9.326327255e-06
A189: =IF('DF raw data'!I189="","",'DF raw data'!I189) -> -239 | B189: =IF('DF raw data'!J189="","",'DF raw data'!J189) -> -2.06293e-05 | C189: =IF('DF raw data'!K189="","",'DF raw data'!K189) -> 1.88364e-05 | D189: =IF('DF raw data'!L189="","",'DF raw data'!L189) -> 2.18385e-06 | F189: -8.703236248e-06 | G189: 1.090484626e-05 | H189: 1.805553228e-05 | J189: 0.0001725207805 | K189: 0.006367232262 | L189: 0.0006080526251 | M189: 0.0202754353 | N189: 9.526072962e-06
A190: =IF('DF raw data'!I190="","",'DF raw data'!I190) -> -238.5 | B190: =IF('DF raw data'!J190="","",'DF raw data'!J190) -> -3.5687e-06 | C190: =IF('DF raw data'!K190="","",'DF raw data'!K190) -> 1.23114e-05 | D190: =IF('DF raw data'!L190="","",'DF raw data'!L190) -> -1.0508e-05 | F190: 8.449490992e-06 | G190: 4.344611258e-06 | H190: 5.295146286e-06 | J190: 0.000176745526 | K190: 0.006455605025 | L190: 0.0006102249307 | M190: 0.02058054777 | N190: 9.727879686e-06
A191: =IF('DF raw data'!I191="","",'DF raw data'!I191) -> -238 | B191: =IF('DF raw data'!J191="","",'DF raw data'!J191) -> -1.59351e-05 | C191: =IF('DF raw data'!K191="","",'DF raw data'!K191) -> 1.56414e-05 | D191: =IF('DF raw data'!L191="","",'DF raw data'!L191) -> -2.01292e-05 | F191: -3.983687568e-06 | G191: 7.692593258e-06 | H191: -4.378008194e-06 | J191: 0.0001747536822 | K191: 0.006542981866 | L191: 0.0006140712274 | M191: 0.02088758338 | N191: 9.931690846e-06
A192: =IF('DF raw data'!I192="","",'DF raw data'!I192) -> -237.5 | B192: =IF('DF raw data'!J192="","",'DF raw data'!J192) -> -1.35049e-05 | C192: =IF('DF raw data'!K192="","",'DF raw data'!K192) -> 1.40049e-05 | D192: =IF('DF raw data'!L192="","",'DF raw data'!L192) -> -1.0958e-05 | F192: -1.540364488e-06 | G192: 6.047256158e-06 | H192: 4.842716286e-06 | J192: 0.0001739835 | K192: 0.006629973616 | L192: 0.0006170948554 | M192: 0.02119613081 | N192: 1.013722901e-05
A193: =IF('DF raw data'!I193="","",'DF raw data'!I193) -> -237 | B193: =IF('DF raw data'!J193="","",'DF raw data'!J193) -> -1.67061e-05 | C193: =IF('DF raw data'!K193="","",'DF raw data'!K193) -> 1.87705e-05 | D193: =IF('DF raw data'!L193="","",'DF raw data'!L193) -> -1.73965e-05 | F193: -4.758850968e-06 | G193: 1.08385904e-05 | H193: -1.630551614e-06 | J193: 0.0001716040745 | K193: 0.006715775653 | L193: 0.0006225141506 | M193: 0.02150738788 | N193: 1.034571492e-05
A194: =IF('DF raw data'!I194="","",'DF raw data'!I194) -> -236.5 | B194: =IF('DF raw data'!J194="","",'DF raw data'!J194) -> -1.66509e-05 | C194: =IF('DF raw data'!K194="","",'DF raw data'!K194) -> 1.46641e-05 | D194: =IF('DF raw data'!L194="","",'DF raw data'!L194) -> -3.50569e-06 | F194: -4.703352888e-06 | G194: 6.710015838e-06 | H194: 1.233526876e-05 | J194: 0.0001692523981 | K194: 0.006800401852 | L194: 0.0006258691585 | M194: 0.02182032246 | N194: 1.055589421e-05
A195: =IF('DF raw data'!I195="","",'DF raw data'!I195) -> -236 | B195: =IF('DF raw data'!J195="","",'DF raw data'!J195) -> -1.40848e-05 | C195: =IF('DF raw data'!K195="","",'DF raw data'!K195) -> 1.01738e-05 | D195: =IF('DF raw data'!L195="","",'DF raw data'!L195) -> -6.57667e-06 | F195: =(1-$G$1*($B$54-$G$2))*(B195-F$5) -> -2.123395948e-06 | G195: =(1-$G$1*($B$54-$G$2))*(C195-G$5) -> 2.195468218e-06 | H195: =(1-$G$1*($B$54-$G$2))*(D195-H$5) -> 9.247705468e-06 | J195: 0.0001681907001 | K195: 0.006884497202 | L195: 0.0006269668927 | M195: 0.02213380591 | N195: 1.076658201e-05
A196: =IF('DF raw data'!I196="","",'DF raw data'!I196) -> -235.5 | B196: =IF('DF raw data'!J196="","",'DF raw data'!J196) -> -3.37677e-06 | C196: =IF('DF raw data'!K196="","",'DF raw data'!K196) -> 1.12165e-05 | D196: =IF('DF raw data'!L196="","",'DF raw data'!L196) -> -1.01281e-05 | F196: 8.642457414e-06 | G196: 3.243798798e-06 | H196: 5.677097746e-06 | J196: =F196*$G$3+J195 -> 0.0001725119288 | K196: =J196*$G$3+K195 -> 0.006970753167 | L196: =G196*$G$3+L195 -> 0.0006285887921 | M196: =L196*$G$3+M195 -> 0.0224481003 | N196: =(J196^2+L196^2)*$G$3+N195 -> 1.097902412e-05
A197: =IF('DF raw data'!I197="","",'DF raw data'!I197) -> -235 | B197: =IF('DF raw data'!J197="","",'DF raw data'!J197) -> -4.78652e-06 | C197: =IF('DF raw data'!K197="","",'DF raw data'!K197) -> 1.56204e-05 | D197: =IF('DF raw data'!L197="","",'DF raw data'!L197) -> -1.09507e-05 | F197: 7.225094764e-06 | G197: 7.671479858e-06 | H197: 4.850055706e-06 | J197: 0.0001761244762 | K197: 0.007058815405 | L197: 0.000632424532 | M197: 0.02276431257 | N197: 1.119451443e-05
A198: =IF('DF raw data'!I198="","",'DF raw data'!I198) -> -234.5 | B198: =IF('DF raw data'!J198="","",'DF raw data'!J198) -> -7.09472e-06 | C198: =IF('DF raw data'!K198="","",'DF raw data'!K198) -> 1.56509e-05 | D198: =IF('DF raw data'!L198="","",'DF raw data'!L198) -> -1.02234e-05 | F198: 4.904430484e-06 | G198: 7.702144558e-06 | H198: 5.581283126e-06 | J198: 0.0001785766914 | K198: 0.00714810375 | L198: 0.0006362756043 | M198: 0.02308245037 | N198: 1.141288257e-05
A199: =IF('DF raw data'!I199="","",'DF raw data'!I199) -> -234 | B199: =IF('DF raw data'!J199="","",'DF raw data'!J199) -> -2.08679e-05 | C199: =IF('DF raw data'!K199="","",'DF raw data'!K199) -> 1.64433e-05 | D199: =IF('DF raw data'!L199="","",'DF raw data'!L199) -> -2.52114e-05 | F199: -8.943124688e-06 | G199: 8.498823518e-06 | H199: -9.487652074e-06 | J199: 0.0001741051291 | K199: 0.007235156315 | L199: 0.000640525016 | M199: 0.02340271288 | N199: 1.163317502e-05
A200: =IF('DF raw data'!I200="","",'DF raw data'!I200) -> -233.5 | B200: =IF('DF raw data'!J200="","",'DF raw data'!J200) -> -2.31844e-05 | C200: =IF('DF raw data'!K200="","",'DF raw data'!K200) -> 1.82443e-05 | D200: =IF('DF raw data'!L200="","",'DF raw data'!L200) -> -1.16515e-05 | F200: -1.127213379e-05 | G200: 1.030954892e-05 | H200: 4.145471386e-06 | J200: 0.0001684690622 | K200: 0.007319390846 | L200: 0.0006456797905 | M200: 0.02372555278 | N200: 1.185581713e-05
... 1079 more rows

Sheet 30 mm
A1: =IF('DF raw data'!M1="","",'DF raw data'!M1) -> Number of header lines | B1: =IF('DF raw data'!N1="","",'DF raw data'!N1) -> 54 | C1: =IF('DF raw data'!C1="","",'DF raw data'!C1) ->  | D1: =IF('DF raw data'!D1="","",'DF raw data'!D1) ->  | F1: T_coeff | G1: -0.001 | H1: /degC | J1: IBy total | K1: =J1267*1000 -> 2.118270252 | L1: muTm | M1: =L1267*1000 -> -11.67097829 | R1: DF ref | S1: 1
A2: =IF('DF raw data'!M2="","",'DF raw data'!M2) -> Measured by | B2: =IF('DF raw data'!N2="","",'DF raw data'!N2) -> Danfysik | C2: =IF('DF raw data'!C2="","",'DF raw data'!C2) ->  | D2: =IF('DF raw data'!D2="","",'DF raw data'!D2) ->  | F2: Tcorr | G2: 20 | H2: degC | J2: JBy total | K2: =K1267 -> -17.2489249 | L2: muTm^2 | M2: =M1267 -> -2.265481189
A3: =IF('DF raw data'!M3="","",'DF raw data'!M3) -> Operator | B3: =IF('DF raw data'!N3="","",'DF raw data'!N3) -> PMHA | C3: =IF('DF raw data'!C3="","",'DF raw data'!C3) ->  | D3: =IF('DF raw data'!D3="","",'DF raw data'!D3) ->  | F3: Step | G3: =A68-A67 -> 0.5 | H3: mm | J3: PI total | K3: =N1267 -> 2379.927824 | L3: T^2mm^3
A4: =IF('DF raw data'!M4="","",'DF raw data'!M4) -> Data-time | B4: =IF('DF raw data'!N4="","",'DF raw data'!N4) -> 02-10-2024, 15:31:17 | C4: =IF('DF raw data'!C4="","",'DF raw data'!C4) ->  | D4: =IF('DF raw data'!D4="","",'DF raw data'!D4) -> 
A5: =IF('DF raw data'!M5="","",'DF raw data'!M5) -> Project | B5: =IF('DF raw data'!N5="","",'DF raw data'!N5) -> 504314 | C5: =IF('DF raw data'!C5="","",'DF raw data'!C5) ->  | D5: Bamb avr | F5: =(AVERAGE(B67:B107) + AVERAGE(B1227:B1267))/2 -> -1.640522646e-05 | G5: =(AVERAGE(C67:C107) + AVERAGE(C1227:C1267))/2 -> 1.748865854e-05 | H5: =(AVERAGE(D67:D107) + AVERAGE(D1227:D1267))/2 -> -1.198151085e-05
A6: =IF('DF raw data'!M6="","",'DF raw data'!M6) -> Magnet type | B6: =IF('DF raw data'!N6="","",'DF raw data'!N6) -> Dipole | C6: =IF('DF raw data'!C6="","",'DF raw data'!C6) -> 
A7: =IF('DF raw data'!M7="","",'DF raw data'!M7) -> Magnet nr. | B7: =IF('DF raw data'!N7="","",'DF raw data'!N7) -> 2410109 | C7: =IF('DF raw data'!C7="","",'DF raw data'!C7) -> 
A8: =IF('DF raw data'!M8="","",'DF raw data'!M8) -> Meas. number | B8: =IF('DF raw data'!N8="","",'DF raw data'!N8) -> 961 | C8: =IF('DF raw data'!C8="","",'DF raw data'!C8) -> 
A9: =IF('DF raw data'!M9="","",'DF raw data'!M9) -> Add. info | B9: =IF('DF raw data'!N9="","",'DF raw data'!N9) -> X-alignment scan 3) | C9: =IF('DF raw data'!C9="","",'DF raw data'!C9) ->  | D9: =IF('DF raw data'!D9="","",'DF raw data'!D9) -> 
A10: =IF('DF raw data'!M10="","",'DF raw data'!M10) -> Device | B10: =IF('DF raw data'!N10="","",'DF raw data'!N10) -> (HAL) HALL-PROBE | C10: =IF('DF raw data'!C10="","",'DF raw data'!C10) ->  | D10: =IF('DF raw data'!D10="","",'DF raw data'!D10) -> 
A11: =IF('DF raw data'!M11="","",'DF raw data'!M11) -> Goal | B11: =IF('DF raw data'!N11="","",'DF raw data'!N11) -> (AXI) AXis Integral (Line, EFB) | C11: =IF('DF raw data'!C11="","",'DF raw data'!C11) ->  | D11: =IF('DF raw data'!D11="","",'DF raw data'!D11) -> 
A12: =IF('DF raw data'!M12="","",'DF raw data'!M12) -> Power supply mode | B12: =IF('DF raw data'!N12="","",'DF raw data'!N12) -> (PM) Permanent Magnet (no MPS in use) | C12: =IF('DF raw data'!C12="","",'DF raw data'!C12) ->  | D12: =IF('DF raw data'!D12="","",'DF raw data'!D12) -> 
A13: =IF('DF raw data'!M13="","",'DF raw data'!M13) -> Data format | B13: =IF('DF raw data'!N13="","",'DF raw data'!N13) -> Raw data text file | C13: =IF('DF raw data'!C13="","",'DF raw data'!C13) ->  | D13: =IF('DF raw data'!D13="","",'DF raw data'!D13) -> 
A14: =IF('DF raw data'!M14="","",'DF raw data'!M14) -> Direction of the pos. x-axis | B14: =IF('DF raw data'!N14="","",'DF raw data'!N14) -> See test program | C14: =IF('DF raw data'!C14="","",'DF raw data'!C14) ->  | D14: =IF('DF raw data'!D14="","",'DF raw data'!D14) -> 
A15: =IF('DF raw data'!M15="","",'DF raw data'!M15) -> Direction of the pos. y-axis | B15: =IF('DF raw data'!N15="","",'DF raw data'!N15) -> Vertical up | C15: =IF('DF raw data'!C15="","",'DF raw data'!C15) ->  | D15: =IF('DF raw data'!D15="","",'DF raw data'!D15) -> 
A16: =IF('DF raw data'!M16="","",'DF raw data'!M16) -> Direction of the pos. z-axis | B16: =IF('DF raw data'!N16="","",'DF raw data'!N16) -> See test program | C16: =IF('DF raw data'!C16="","",'DF raw data'!C16) ->  | D16: =IF('DF raw data'!D16="","",'DF raw data'!D16) -> 
A17: =IF('DF raw data'!M17="","",'DF raw data'!M17) -> Mapper type | B17: =IF('DF raw data'!N17="","",'DF raw data'!N17) -> Precision Hall Mapper | C17: =IF('DF raw data'!C17="","",'DF raw data'!C17) ->  | D17: =IF('DF raw data'!D17="","",'DF raw data'!D17) -> 
A18: =IF('DF raw data'!M18="","",'DF raw data'!M18) -> Mapper Danfysik Reg. Number | B18: =IF('DF raw data'!N18="","",'DF raw data'!N18) -> 2033-D (mapper 1) | C18: =IF('DF raw data'!C18="","",'DF raw data'!C18) ->  | D18: =IF('DF raw data'!D18="","",'DF raw data'!D18) -> 
A19: =IF('DF raw data'!M19="","",'DF raw data'!M19) -> Measurement consept | B19: =IF('DF raw data'!N19="","",'DF raw data'!N19) -> Square line grid | C19: =IF('DF raw data'!C19="","",'DF raw data'!C19) ->  | D19: =IF('DF raw data'!D19="","",'DF raw data'!D19) -> 
A20: =IF('DF raw data'!M20="","",'DF raw data'!M20) -> Mode | B20: =IF('DF raw data'!N20="","",'DF raw data'!N20) -> On-the-fly measurement | C20: =IF('DF raw data'!C20="","",'DF raw data'!C20) ->  | D20: =IF('DF raw data'!D20="","",'DF raw data'!D20) -> 
A21: =IF('DF raw data'!M21="","",'DF raw data'!M21) ->  | B21: =IF('DF raw data'!N21="","",'DF raw data'!N21) ->  | C21: =IF('DF raw data'!C21="","",'DF raw data'!C21) ->  | D21: =IF('DF raw data'!D21="","",'DF raw data'!D21) -> 
A22: =IF('DF raw data'!M22="","",'DF raw data'!M22) -> Probe Name | B22: =IF('DF raw data'!N22="","",'DF raw data'!N22) -> ID12_By | C22: =IF('DF raw data'!C22="","",'DF raw data'!C22) ->  | D22: =IF('DF raw data'!D22="","",'DF raw data'!D22) -> 
A23: =IF('DF raw data'!M23="","",'DF raw data'!M23) -> Probe Type | B23: =IF('DF raw data'!N23="","",'DF raw data'!N23) -> DF_ID_3D_Bxyz | C23: =IF('DF raw data'!C23="","",'DF raw data'!C23) ->  | D23: =IF('DF raw data'!D23="","",'DF raw data'!D23) -> 
A24: =IF('DF raw data'!M24="","",'DF raw data'!M24) -> Probe Danfysik Reg. Number | B24: =IF('DF raw data'!N24="","",'DF raw data'!N24) -> 2277 | C24: =IF('DF raw data'!C24="","",'DF raw data'!C24) ->  | D24: =IF('DF raw data'!D24="","",'DF raw data'!D24) -> 
A25: =IF('DF raw data'!M25="","",'DF raw data'!M25) -> Probe Axis | B25: =IF('DF raw data'!N25="","",'DF raw data'!N25) -> By | C25: =IF('DF raw data'!C25="","",'DF raw data'!C25) ->  | D25: =IF('DF raw data'!D25="","",'DF raw data'!D25) -> 
A26: =IF('DF raw data'!M26="","",'DF raw data'!M26) -> Probe Current Supply | B26: =IF('DF raw data'!N26="","",'DF raw data'!N26) -> 1825-D | C26: =IF('DF raw data'!C26="","",'DF raw data'!C26) ->  | D26: =IF('DF raw data'!D26="","",'DF raw data'!D26) -> 
A27: =IF('DF raw data'!M27="","",'DF raw data'!M27) -> Probe Gain Correction | B27: =IF('DF raw data'!N27="","",'DF raw data'!N27) -> 0.99618 | C27: =IF('DF raw data'!C27="","",'DF raw data'!C27) ->  | D27: =IF('DF raw data'!D27="","",'DF raw data'!D27) -> 
A28: =IF('DF raw data'!M28="","",'DF raw data'!M28) -> Probe Offset Correction | B28: =IF('DF raw data'!N28="","",'DF raw data'!N28) -> 0.002742 | C28: =IF('DF raw data'!C28="","",'DF raw data'!C28) ->  | D28: =IF('DF raw data'!D28="","",'DF raw data'!D28) -> 
A29: =IF('DF raw data'!M29="","",'DF raw data'!M29) -> DVM Number | B29: =IF('DF raw data'!N29="","",'DF raw data'!N29) -> 2 | C29: =IF('DF raw data'!C29="","",'DF raw data'!C29) ->  | D29: =IF('DF raw data'!D29="","",'DF raw data'!D29) -> 
A30: =IF('DF raw data'!M30="","",'DF raw data'!M30) -> DVM Type | B30: =IF('DF raw data'!N30="","",'DF raw data'!N30) -> K2701 | C30: =IF('DF raw data'!C30="","",'DF raw data'!C30) ->  | D30: =IF('DF raw data'!D30="","",'DF raw data'!D30) -> 
A31: =IF('DF raw data'!M31="","",'DF raw data'!M31) -> DVM Danfysik Reg. Number | B31: =IF('DF raw data'!N31="","",'DF raw data'!N31) -> 1743-D | C31: =IF('DF raw data'!C31="","",'DF raw data'!C31) ->  | D31: =IF('DF raw data'!D31="","",'DF raw data'!D31) -> 
A32: =IF('DF raw data'!M32="","",'DF raw data'!M32) -> Probe Name | B32: =IF('DF raw data'!N32="","",'DF raw data'!N32) -> ID12_Bx | C32: =IF('DF raw data'!C32="","",'DF raw data'!C32) ->  | D32: =IF('DF raw data'!D32="","",'DF raw data'!D32) -> 
A33: =IF('DF raw data'!M33="","",'DF raw data'!M33) -> Probe Type | B33: =IF('DF raw data'!N33="","",'DF raw data'!N33) -> DF_ID_3D_Bxyz | C33: =IF('DF raw data'!C33="","",'DF raw data'!C33) ->  | D33: =IF('DF raw data'!D33="","",'DF raw data'!D33) -> 
A34: =IF('DF raw data'!M34="","",'DF raw data'!M34) -> Probe Danfysik Reg. Number | B34: =IF('DF raw data'!N34="","",'DF raw data'!N34) -> 2277 | C34: =IF('DF raw data'!C34="","",'DF raw data'!C34) ->  | D34: =IF('DF raw data'!D34="","",'DF raw data'!D34) -> 
A35: =IF('DF raw data'!M35="","",'DF raw data'!M35) -> Probe Axis | B35: =IF('DF raw data'!N35="","",'DF raw data'!N35) -> Bx | C35: =IF('DF raw data'!C35="","",'DF raw data'!C35) ->  | D35: =IF('DF raw data'!D35="","",'DF raw data'!D35) -> 
A36: =IF('DF raw data'!M36="","",'DF raw data'!M36) -> Probe Current Supply | B36: =IF('DF raw data'!N36="","",'DF raw data'!N36) -> 1825-D | C36: =IF('DF raw data'!C36="","",'DF raw data'!C36) ->  | D36: =IF('DF raw data'!D36="","",'DF raw data'!D36) -> 
A37: =IF('DF raw data'!M37="","",'DF raw data'!M37) -> Probe Gain Correction | B37: =IF('DF raw data'!N37="","",'DF raw data'!N37) -> 1 | C37: =IF('DF raw data'!C37="","",'DF raw data'!C37) ->  | D37: =IF('DF raw data'!D37="","",'DF raw data'!D37) -> 
A38: =IF('DF raw data'!M38="","",'DF raw data'!M38) -> Probe Offset Correction | B38: =IF('DF raw data'!N38="","",'DF raw data'!N38) -> -0.17582 | C38: =IF('DF raw data'!C38="","",'DF raw data'!C38) ->  | D38: =IF('DF raw data'!D38="","",'DF raw data'!D38) -> 
A39: =IF('DF raw data'!M39="","",'DF raw data'!M39) -> DVM Number | B39: =IF('DF raw data'!N39="","",'DF raw data'!N39) -> 3 | C39: =IF('DF raw data'!C39="","",'DF raw data'!C39) ->  | D39: =IF('DF raw data'!D39="","",'DF raw data'!D39) -> 
A40: =IF('DF raw data'!M40="","",'DF raw data'!M40) -> DVM Type | B40: =IF('DF raw data'!N40="","",'DF raw data'!N40) -> K2701 | C40: =IF('DF raw data'!C40="","",'DF raw data'!C40) ->  | D40: =IF('DF raw data'!D40="","",'DF raw data'!D40) -> 
A41: =IF('DF raw data'!M41="","",'DF raw data'!M41) -> DVM Danfysik Reg. Number | B41: =IF('DF raw data'!N41="","",'DF raw data'!N41) -> 1744-D | C41: =IF('DF raw data'!C41="","",'DF raw data'!C41) ->  | D41: =IF('DF raw data'!D41="","",'DF raw data'!D41) -> 
A42: =IF('DF raw data'!M42="","",'DF raw data'!M42) -> Probe Name | B42: =IF('DF raw data'!N42="","",'DF raw data'!N42) -> ID12_Bz | C42: =IF('DF raw data'!C42="","",'DF raw data'!C42) ->  | D42: =IF('DF raw data'!D42="","",'DF raw data'!D42) -> 
A43: =IF('DF raw data'!M43="","",'DF raw data'!M43) -> Probe Type | B43: =IF('DF raw data'!N43="","",'DF raw data'!N43) -> DF_ID_3D_Bxyz | C43: =IF('DF raw data'!C43="","",'DF raw data'!C43) ->  | D43: =IF('DF raw data'!D43="","",'DF raw data'!D43) -> 
A44: =IF('DF raw data'!M44="","",'DF raw data'!M44) -> Probe Danfysik Reg. Number | B44: =IF('DF raw data'!N44="","",'DF raw data'!N44) -> 2277 | C44: =IF('DF raw data'!C44="","",'DF raw data'!C44) ->  | D44: =IF('DF raw data'!D44="","",'DF raw data'!D44) -> 
A45: =IF('DF raw data'!M45="","",'DF raw data'!M45) -> Probe Axis | B45: =IF('DF raw data'!N45="","",'DF raw data'!N45) -> Bz | C45: =IF('DF raw data'!C45="","",'DF raw data'!C45) ->  | D45: =IF('DF raw data'!D45="","",'DF raw data'!D45) -> 
A46: =IF('DF raw data'!M46="","",'DF raw data'!M46) -> Probe Current Supply | B46: =IF('DF raw data'!N46="","",'DF raw data'!N46) -> 1825-D | C46: =IF('DF raw data'!C46="","",'DF raw data'!C46) ->  | D46: =IF('DF raw data'!D46="","",'DF raw data'!D46) -> 
A47: =IF('DF raw data'!M47="","",'DF raw data'!M47) -> Probe Gain Correction | B47: =IF('DF raw data'!N47="","",'DF raw data'!N47) -> 1 | C47: =IF('DF raw data'!C47="","",'DF raw data'!C47) ->  | D47: =IF('DF raw data'!D47="","",'DF raw data'!D47) -> 
A48: =IF('DF raw data'!M48="","",'DF raw data'!M48) -> Probe Offset Correction | B48: =IF('DF raw data'!N48="","",'DF raw data'!N48) -> 0.0073653 | C48: =IF('DF raw data'!C48="","",'DF raw data'!C48) ->  | D48: =IF('DF raw data'!D48="","",'DF raw data'!D48) -> 
A49: =IF('DF raw data'!M49="","",'DF raw data'!M49) -> DVM Number | B49: =IF('DF raw data'!N49="","",'DF raw data'!N49) -> 8 | C49: =IF('DF raw data'!C49="","",'DF raw data'!C49) ->  | D49: =IF('DF raw data'!D49="","",'DF raw data'!D49) -> 
A50: =IF('DF raw data'!M50="","",'DF raw data'!M50) -> DVM Type | B50: =IF('DF raw data'!N50="","",'DF raw data'!N50) -> K2700 | C50: =IF('DF raw data'!C50="","",'DF raw data'!C50) ->  | D50: =IF('DF raw data'!D50="","",'DF raw data'!D50) -> 
A51: =IF('DF raw data'!M51="","",'DF raw data'!M51) -> DVM Danfysik Reg. Number | B51: =IF('DF raw data'!N51="","",'DF raw data'!N51) -> 1756-D | C51: =IF('DF raw data'!C51="","",'DF raw data'!C51) ->  | D51: =IF('DF raw data'!D51="","",'DF raw data'!D51) -> 
A52: =IF('DF raw data'!M52="","",'DF raw data'!M52) -> NTC voltage | B52: =IF('DF raw data'!N52="","",'DF raw data'!N52) -> 0.40108 | C52: =IF('DF raw data'!C52="","",'DF raw data'!C52) ->  | D52: =IF('DF raw data'!D52="","",'DF raw data'!D52) -> 
A53: =IF('DF raw data'!M53="","",'DF raw data'!M53) -> PS-Gap: | B53: =IF('DF raw data'!N53="","",'DF raw data'!N53) -> 30 | C53: =IF('DF raw data'!C53="","",'DF raw data'!C53) ->  | D53: =IF('DF raw data'!D53="","",'DF raw data'!D53) -> 
A54: =IF('DF raw data'!M54="","",'DF raw data'!M54) -> PS-Temperature: | B54: =IF('DF raw data'!N54="","",'DF raw data'!N54) -> 25 | C54: =IF('DF raw data'!C54="","",'DF raw data'!C54) ->  | D54: =IF('DF raw data'!D54="","",'DF raw data'!D54) -> 
A55: =IF('DF raw data'!M55="","",'DF raw data'!M55) -> PS-Encoder: | B55: =IF('DF raw data'!N55="","",'DF raw data'!N55) -> 39.8388 | C55: =IF('DF raw data'!C55="","",'DF raw data'!C55) ->  | D55: =IF('DF raw data'!D55="","",'DF raw data'!D55) -> 
A56: =IF('DF raw data'!M56="","",'DF raw data'!M56) ->  | B56: =IF('DF raw data'!N56="","",'DF raw data'!N56) -> 
A57: =IF('DF raw data'!M57="","",'DF raw data'!M57) -> Monitor-Index | B57: =IF('DF raw data'!N57="","",'DF raw data'!N57) -> [1,1,4]
A58: =IF('DF raw data'!M58="","",'DF raw data'!M58) ->  | B58: =IF('DF raw data'!N58="","",'DF raw data'!N58) -> 
A59: =IF('DF raw data'!M59="","",'DF raw data'!M59) -> Time [s] | B59: =IF('DF raw data'!N59="","",'DF raw data'!N59) -> Y [mm]
A60: =IF('DF raw data'!M60="","",'DF raw data'!M60) ->  | B60: =IF('DF raw data'!N60="","",'DF raw data'!N60) -> 
A61: =IF('DF raw data'!M61="","",'DF raw data'!M61) -> 208.7 | B61: =IF('DF raw data'!N61="","",'DF raw data'!N61) -> 31.5
A62: =IF('DF raw data'!M62="","",'DF raw data'!M62) ->  | B62: =IF('DF raw data'!N62="","",'DF raw data'!N62) -> 
A63: =IF('DF raw data'!M63="","",'DF raw data'!M63) -> Measurement-Index | B63: =IF('DF raw data'!N63="","",'DF raw data'!N63) -> [1,1,1201,2]
A64: =IF('DF raw data'!M64="","",'DF raw data'!M64) ->  | B64: =IF('DF raw data'!N64="","",'DF raw data'!N64) -> 
A65: =IF('DF raw data'!M65="","",'DF raw data'!M65) -> Z [mm] | B65: =IF('DF raw data'!N65="","",'DF raw data'!N65) -> By [T] | C65: =IF('DF raw data'!O65="","",'DF raw data'!O65) -> Bx [T] | D65: =IF('DF raw data'!P65="","",'DF raw data'!P65) -> Bz [T] | F65: By_corr | G65: Bx_corr | H65: Bz_corr | J65: Iy | K65: Jy | L65: Ix | M65: Jx | N65: PI
B66: =IF('DF raw data'!N66="","",'DF raw data'!N66) ->  | C66: =IF('DF raw data'!O66="","",'DF raw data'!O66) ->  | D66: =IF('DF raw data'!P66="","",'DF raw data'!P66) -> 
A67: =IF('DF raw data'!M67="","",'DF raw data'!M67) -> -300 | B67: =IF('DF raw data'!N67="","",'DF raw data'!N67) -> -1.565e-05 | C67: =IF('DF raw data'!O67="","",'DF raw data'!O67) -> 4.48419e-05 | D67: =IF('DF raw data'!P67="","",'DF raw data'!P67) -> -9.35342e-06 | F67: =(1-$G$1*($B$54-$G$2))*(B67-F$5) -> 7.590025957e-07 | G67: =(1-$G$1*($B$54-$G$2))*(C67-G$5) -> 2.749000767e-05 | H67: =(1-$G$1*($B$54-$G$2))*(D67-H$5) -> 2.641231308e-06 | J67: =F67*$G$3+J66 -> 3.795012979e-07 | K67: =J67*$G$3+K66 -> 1.897506489e-07 | L67: =G67*$G$3+L66 -> 1.374500384e-05 | M67: =L67*$G$3+M66 -> 6.872501918e-06 | N67: =(J67^2+L67^2)*$G$3+N66 -> 9.453457583e-11
A68: =IF('DF raw data'!M68="","",'DF raw data'!M68) -> -299.5 | B68: =IF('DF raw data'!N68="","",'DF raw data'!N68) -> -1.9689e-05 | C68: =IF('DF raw data'!O68="","",'DF raw data'!O68) -> 4.31983e-05 | D68: =IF('DF raw data'!P68="","",'DF raw data'!P68) -> -8.85455e-06 | F68: -3.300192404e-06 | G68: 2.583818967e-05 | H68: 3.142595658e-06 | J68: =F68*$G$3+J67 -> -1.270594904e-06 | K68: =J68*$G$3+K67 -> -4.455468032e-07 | L68: =G68*$G$3+L67 -> 2.666409867e-05 | M68: =L68*$G$3+M67 -> 2.020455125e-05 | N68: =(J68^2+L68^2)*$G$3+N67 -> 4.508288605e-10
A69: =IF('DF raw data'!M69="","",'DF raw data'!M69) -> -299 | B69: =IF('DF raw data'!N69="","",'DF raw data'!N69) -> -1.98814e-05 | C69: =IF('DF raw data'!O69="","",'DF raw data'!O69) -> 4.7158e-05 | D69: =IF('DF raw data'!P69="","",'DF raw data'!P69) -> -8.46829e-06 | F69: -3.493554404e-06 | G69: 2.981768817e-05 | H69: 3.530786958e-06 | J69: -3.017372106e-06 | K69: -1.954232856e-06 | L69: 4.157294276e-05 | M69: 4.099102263e-05 | N69: 1.319535912e-09
A70: =IF('DF raw data'!M70="","",'DF raw data'!M70) -> -298.5 | B70: =IF('DF raw data'!N70="","",'DF raw data'!N70) -> -1.61118e-06 | C70: =IF('DF raw data'!O70="","",'DF raw data'!O70) -> 5.30468e-05 | D70: =IF('DF raw data'!P70="","",'DF raw data'!P70) -> -8.95479e-06 | F70: 1.48680167e-05 | G70: 3.573593217e-05 | H70: 3.041854458e-06 | J70: 4.416636241e-06 | K70: 2.540852643e-07 | L70: 5.944090884e-05 | M70: 7.071147705e-05 | N70: 3.095900072e-09
A71: =IF('DF raw data'!M71="","",'DF raw data'!M71) -> -298 | B71: =IF('DF raw data'!N71="","",'DF raw data'!N71) -> -2.80867e-05 | C71: =IF('DF raw data'!O71="","",'DF raw data'!O71) -> 5.83923e-05 | D71: =IF('DF raw data'!P71="","",'DF raw data'!P71) -> -8.80644e-06 | F71: -1.17398809e-05 | G71: 4.110815967e-05 | H71: 3.190946208e-06 | J71: -1.453304211e-06 | K71: -4.72566841e-07 | L71: 7.999498868e-05 | M71: 0.0001107089714 | N71: 6.296555225e-09
A72: =IF('DF raw data'!M72="","",'DF raw data'!M72) -> -297.5 | B72: =IF('DF raw data'!N72="","",'DF raw data'!N72) -> -1.17403e-05 | C72: =IF('DF raw data'!O72="","",'DF raw data'!O72) -> 5.27258e-05 | D72: =IF('DF raw data'!P72="","",'DF raw data'!P72) -> -8.23056e-06 | F72: 4.688251096e-06 | G72: 3.541332717e-05 | H72: 3.769705608e-06 | J72: 8.908213372e-07 | K72: -2.715617241e-08 | L72: 9.770165226e-05 | M72: 0.0001595597975 | N72: 1.106975843e-08
A73: =IF('DF raw data'!M73="","",'DF raw data'!M73) -> -297 | B73: =IF('DF raw data'!N73="","",'DF raw data'!N73) -> -8.59891e-06 | C73: =IF('DF raw data'!O73="","",'DF raw data'!O73) -> 5.47042e-05 | D73: =IF('DF raw data'!P73="","",'DF raw data'!P73) -> -8.47511e-06 | F73: 7.845348046e-06 | G73: 3.740161917e-05 | H73: 3.523932858e-06 | J73: 4.81349536e-06 | K73: 2.379591508e-06 | L73: 0.0001164024618 | M73: 0.0002177610284 | N73: 1.785610987e-08
A74: =IF('DF raw data'!M74="","",'DF raw data'!M74) -> -296.5 | B74: =IF('DF raw data'!N74="","",'DF raw data'!N74) -> -9.81662e-06 | C74: =IF('DF raw data'!O74="","",'DF raw data'!O74) -> 4.69066e-05 | D74: =IF('DF raw data'!P74="","",'DF raw data'!P74) -> -9.08786e-06 | F74: 6.621549496e-06 | G74: 2.956503117e-05 | H74: 2.908119108e-06 | J74: 8.124270108e-06 | K74: 6.441726562e-06 | L74: 0.0001311849774 | M74: 0.0002833535172 | N74: 2.64938609e-08
A75: =IF('DF raw data'!M75="","",'DF raw data'!M75) -> -296 | B75: =IF('DF raw data'!N75="","",'DF raw data'!N75) -> -1.78298e-05 | C75: =IF('DF raw data'!O75="","",'DF raw data'!O75) -> 4.87444e-05 | D75: =IF('DF raw data'!P75="","",'DF raw data'!P75) -> -8.91066e-06 | F75: -1.431696404e-06 | G75: 3.141202017e-05 | H75: 3.086205108e-06 | J75: 7.408421906e-06 | K75: 1.014593751e-05 | L75: 0.0001468909875 | M75: 0.0003567990109 | N75: 3.730978436e-08
A76: =IF('DF raw data'!M76="","",'DF raw data'!M76) -> -295.5 | B76: =IF('DF raw data'!N76="","",'DF raw data'!N76) -> -8.91944e-06 | C76: =IF('DF raw data'!O76="","",'DF raw data'!O76) -> 4.47228e-05 | D76: =IF('DF raw data'!P76="","",'DF raw data'!P76) -> -8.66242e-06 | F76: 7.523215396e-06 | G76: 2.737031217e-05 | H76: 3.335686308e-06 | J76: 1.11700296e-05 | K76: 1.573095232e-05 | L76: 0.0001605761436 | M76: 0.0004370870827 | N76: 5.026451809e-08
A77: =IF('DF raw data'!M77="","",'DF raw data'!M77) -> -295 | B77: =IF('DF raw data'!N77="","",'DF raw data'!N77) -> -1.11627e-05 | C77: =IF('DF raw data'!O77="","",'DF raw data'!O77) -> 4.69356e-05 | D77: =IF('DF raw data'!P77="","",'DF raw data'!P77) -> -8.98433e-06 | F77: 5.268739096e-06 | G77: 2.959417617e-05 | H77: 3.012166758e-06 | J77: 1.380439915e-05 | K77: 2.263315189e-05 | L77: 0.0001753732317 | M77: 0.0005247736986 | N77: 6.573768401e-08
A78: =IF('DF raw data'!M78="","",'DF raw data'!M78) -> -294.5 | B78: =IF('DF raw data'!N78="","",'DF raw data'!N78) -> -8.79091e-06 | C78: =IF('DF raw data'!O78="","",'DF raw data'!O78) -> 4.78001e-05 | D78: =IF('DF raw data'!P78="","",'DF raw data'!P78) -> -9.16457e-06 | F78: 7.652388046e-06 | G78: 3.046299867e-05 | H78: 2.831025558e-06 | J78: 1.763059317e-05 | K78: 3.144844848e-05 | L78: 0.000190604731 | M78: 0.0006200760641 | N78: 8.405818466e-08
A79: =IF('DF raw data'!M79="","",'DF raw data'!M79) -> -294 | B79: =IF('DF raw data'!N79="","",'DF raw data'!N79) -> -2.14198e-05 | C79: =IF('DF raw data'!O79="","",'DF raw data'!O79) -> 4.33673e-05 | D79: =IF('DF raw data'!P79="","",'DF raw data'!P79) -> -8.61634e-06 | F79: -5.039646404e-06 | G79: 2.600803467e-05 | H79: 3.381996708e-06 | J79: 1.511076997e-05 | K79: 3.900383347e-05 | L79: 0.0002036087484 | M79: 0.0007218804383 | N79: 1.049006135e-07
A80: =IF('DF raw data'!M80="","",'DF raw data'!M80) -> -293.5 | B80: =IF('DF raw data'!N80="","",'DF raw data'!N80) -> -4.17565e-06 | C80: =IF('DF raw data'!O80="","",'DF raw data'!O80) -> 4.39006e-05 | D80: =IF('DF raw data'!P80="","",'DF raw data'!P80) -> -8.45278e-06 | F80: 1.229072435e-05 | G80: 2.654400117e-05 | H80: 3.546374508e-06 | J80: 2.125613215e-05 | K80: 4.963189954e-05 | L80: 0.0002168807489 | M80: 0.0008303208127 | N80: 1.286451548e-07
A81: =IF('DF raw data'!M81="","",'DF raw data'!M81) -> -293 | B81: =IF('DF raw data'!N81="","",'DF raw data'!N81) -> -1.07781e-05 | C81: =IF('DF raw data'!O81="","",'DF raw data'!O81) -> 4.24083e-05 | D81: =IF('DF raw data'!P81="","",'DF raw data'!P81) -> -9.06616e-06 | F81: 5.655262096e-06 | G81: 2.504423967e-05 | H81: 2.929927608e-06 | J81: 2.408376319e-05 | K81: 6.167378113e-05 | L81: 0.0002294028688 | M81: 0.0009450222471 | N81: 1.552480067e-07
A82: =IF('DF raw data'!M82="","",'DF raw data'!M82) -> -292.5 | B82: =IF('DF raw data'!N82="","",'DF raw data'!N82) -> -8.21358e-06 | C82: =IF('DF raw data'!O82="","",'DF raw data'!O82) -> 3.98378e-05 | D82: =IF('DF raw data'!P82="","",'DF raw data'!P82) -> -9.58042e-06 | F82: 8.232604696e-06 | G82: 2.246088717e-05 | H82: 2.413096308e-06 | J82: 2.820006554e-05 | K82: 7.57738139e-05 | L82: 0.0002406333124 | M82: 0.001065338903 | N82: 1.84597824e-07
A83: =IF('DF raw data'!M83="","",'DF raw data'!M83) -> -292 | B83: =IF('DF raw data'!N83="","",'DF raw data'!N83) -> -1.97527e-05 | C83: =IF('DF raw data'!O83="","",'DF raw data'!O83) -> 4.26643e-05 | D83: =IF('DF raw data'!P83="","",'DF raw data'!P83) -> -9.2639e-06 | F83: -3.364210904e-06 | G83: 2.530151967e-05 | H83: 2.731198908e-06 | J83: 2.651796009e-05 | K83: 8.903279395e-05 | L83: 0.0002532840722 | M83: 0.001191980939 | N83: 2.170258358e-07
A84: =IF('DF raw data'!M84="","",'DF raw data'!M84) -> -291.5 | B84: =IF('DF raw data'!N84="","",'DF raw data'!N84) -> -1.13512e-05 | C84: =IF('DF raw data'!O84="","",'DF raw data'!O84) -> 4.36989e-05 | D84: =IF('DF raw data'!P84="","",'DF raw data'!P84) -> -1.50942e-05 | F84: 5.079296596e-06 | G84: 2.634129267e-05 | H84: -3.128252592e-06 | J84: 2.905760839e-05 | K84: 0.0001035615981 | L84: 0.0002664547185 | M84: 0.001325208299 | N84: 2.529470666e-07
A85: =IF('DF raw data'!M85="","",'DF raw data'!M85) -> -291 | B85: =IF('DF raw data'!N85="","",'DF raw data'!N85) -> -1.42383e-05 | C85: =IF('DF raw data'!O85="","",'DF raw data'!O85) -> 4.70608e-05 | D85: =IF('DF raw data'!P85="","",'DF raw data'!P85) -> -1.16038e-05 | F85: 2.177761096e-06 | G85: 2.972000217e-05 | H85: 3.795994079e-07 | J85: 3.014648893e-05 | K85: 0.0001186348426 | L85: 0.0002813147196 | M85: 0.001465865658 | N85: 2.929704577e-07
A86: =IF('DF raw data'!M86="","",'DF raw data'!M86) -> -290.5 | B86: =IF('DF raw data'!N86="","",'DF raw data'!N86) -> -1.31402e-05 | C86: =IF('DF raw data'!O86="","",'DF raw data'!O86) -> 4.15166e-05 | D86: =IF('DF raw data'!P86="","",'DF raw data'!P86) -> -2.42198e-05 | F86: 3.281351596e-06 | G86: 2.414808117e-05 | H86: -1.229948059e-05 | J86: 3.178716473e-05 | K86: 0.000134528425 | L86: 0.0002933887602 | M86: 0.001612560039 | N86: 3.365141519e-07
A87: =IF('DF raw data'!M87="","",'DF raw data'!M87) -> -290 | B87: =IF('DF raw data'!N87="","",'DF raw data'!N87) -> -1.25666e-05 | C87: =IF('DF raw data'!O87="","",'DF raw data'!O87) -> 4.7689e-05 | D87: =IF('DF raw data'!P87="","",'DF raw data'!P87) -> -1.93503e-05 | F87: 3.857819596e-06 | G87: 3.035134317e-05 | H87: -7.405633092e-06 | J87: 3.371607453e-05 | K87: 0.0001513864622 | L87: 0.0003085644318 | M87: 0.001766842254 | N87: 3.846885431e-07
A88: =IF('DF raw data'!M88="","",'DF raw data'!M88) -> -289.5 | B88: =IF('DF raw data'!N88="","",'DF raw data'!N88) -> -1.6731e-05 | C88: =IF('DF raw data'!O88="","",'DF raw data'!O88) -> 4.44168e-05 | D88: =IF('DF raw data'!P88="","",'DF raw data'!P88) -> -2.2676e-05 | F88: -3.274024043e-07 | G88: 2.706278217e-05 | H88: -1.074796159e-05 | J88: 3.355237333e-05 | K88: 0.0001681626489 | L88: 0.0003220958229 | M88: 0.001927890166 | N88: 4.371242835e-07
A89: =IF('DF raw data'!M89="","",'DF raw data'!M89) -> -289 | B89: =IF('DF raw data'!N89="","",'DF raw data'!N89) -> -3.26796e-06 | C89: =IF('DF raw data'!O89="","",'DF raw data'!O89) -> 5.13779e-05 | D89: =IF('DF raw data'!P89="","",'DF raw data'!P89) -> -2.42449e-05 | F89: 1.32029528e-05 | G89: 3.405868767e-05 | H89: -1.232470609e-05 | J89: 4.015384973e-05 | K89: 0.0001882395738 | L89: 0.0003391251667 | M89: 0.002097452749 | N89: 4.954333887e-07
A90: =IF('DF raw data'!M90="","",'DF raw data'!M90) -> -288.5 | B90: =IF('DF raw data'!N90="","",'DF raw data'!N90) -> -1.45574e-05 | C90: =IF('DF raw data'!O90="","",'DF raw data'!O90) -> 5.15565e-05 | D90: =IF('DF raw data'!P90="","",'DF raw data'!P90) -> -1.355e-05 | F90: 1.857065596e-06 | G90: 3.423818067e-05 | H90: -1.576331592e-06 | J90: 4.108238252e-05 | K90: 0.000208780765 | L90: 0.000356244257 | M90: 0.002275574878 | N90: 5.597322551e-07
A91: =IF('DF raw data'!M91="","",'DF raw data'!M91) -> -288 | B91: =IF('DF raw data'!N91="","",'DF raw data'!N91) -> -2.44284e-05 | C91: =IF('DF raw data'!O91="","",'DF raw data'!O91) -> 4.28324e-05 | D91: =IF('DF raw data'!P91="","",'DF raw data'!P91) -> -1.54788e-05 | F91: -8.063289404e-06 | G91: 2.547046017e-05 | H91: -3.514775592e-06 | J91: 3.705073782e-05 | K91: 0.0002273061339 | L91: 0.0003689794871 | M91: 0.002460064621 | N91: 6.284915646e-07
A92: =IF('DF raw data'!M92="","",'DF raw data'!M92) -> -287.5 | B92: =IF('DF raw data'!N92="","",'DF raw data'!N92) -> -1.38502e-05 | C92: =IF('DF raw data'!O92="","",'DF raw data'!O92) -> 4.50766e-05 | D92: =IF('DF raw data'!P92="","",'DF raw data'!P92) -> -1.70086e-05 | F92: 2.567801596e-06 | G92: 2.772588117e-05 | H92: -5.052224592e-06 | J92: 3.833463862e-05 | K92: 0.0002464734533 | L92: 0.0003828424277 | M92: 0.002651485835 | N92: 7.025104991e-07
A93: =IF('DF raw data'!M93="","",'DF raw data'!M93) -> -287 | B93: =IF('DF raw data'!N93="","",'DF raw data'!N93) -> -2.46156e-05 | C93: =IF('DF raw data'!O93="","",'DF raw data'!O93) -> 4.72495e-05 | D93: =IF('DF raw data'!P93="","",'DF raw data'!P93) -> -2.35876e-05 | F93: -8.251425404e-06 | G93: 2.990964567e-05 | H93: -1.166411959e-05 | J93: 3.420892592e-05 | K93: 0.0002635779162 | L93: 0.0003977972506 | M93: 0.002850384461 | N93: 7.822169507e-07
A94: =IF('DF raw data'!M94="","",'DF raw data'!M94) -> -286.5 | B94: =IF('DF raw data'!N94="","",'DF raw data'!N94) -> -1.71823e-05 | C94: =IF('DF raw data'!O94="","",'DF raw data'!O94) -> 4.62355e-05 | D94: =IF('DF raw data'!P94="","",'DF raw data'!P94) -> -1.89796e-05 | F94: -7.809589043e-07 | G94: 2.889057567e-05 | H94: -7.033079592e-06 | J94: 3.381844647e-05 | K94: 0.0002804871394 | L94: 0.0004122425384 | M94: 0.00305650573 | N94: 8.677607496e-07
A95: =IF('DF raw data'!M95="","",'DF raw data'!M95) -> -286 | B95: =IF('DF raw data'!N95="","",'DF raw data'!N95) -> -1.09598e-05 | C95: =IF('DF raw data'!O95="","",'DF raw data'!O95) -> 4.93404e-05 | D95: =IF('DF raw data'!P95="","",'DF raw data'!P95) -> -2.55785e-05 | F95: 5.472653596e-06 | G95: 3.201100017e-05 | H95: -1.366497409e-05 | J95: 3.655477326e-05 | K95: 0.0002987645261 | L95: 0.0004282480385 | M95: 0.003270629749 | N95: 9.601270666e-07
A96: =IF('DF raw data'!M96="","",'DF raw data'!M96) -> -285.5 | B96: =IF('DF raw data'!N96="","",'DF raw data'!N96) -> -1.2312e-05 | C96: =IF('DF raw data'!O96="","",'DF raw data'!O96) -> 4.69922e-05 | D96: =IF('DF raw data'!P96="","",'DF raw data'!P96) -> -1.60846e-05 | F96: 4.113692596e-06 | G96: 2.965105917e-05 | H96: -4.123604592e-06 | J96: 3.861161956e-05 | K96: 0.0003180703359 | L96: 0.0004430735681 | M96: 0.003492166533 | N96: 1.059029588e-06
A97: =IF('DF raw data'!M97="","",'DF raw data'!M97) -> -285 | B97: =IF('DF raw data'!N97="","",'DF raw data'!N97) -> -9.87945e-06 | C97: =IF('DF raw data'!O97="","",'DF raw data'!O97) -> 5.11715e-05 | D97: =IF('DF raw data'!P97="","",'DF raw data'!P97) -> -1.08524e-05 | F97: 6.558405346e-06 | G97: 3.385125567e-05 | H97: 1.134756408e-06 | J97: 4.189082223e-05 | K97: 0.000339015747 | L97: 0.0004599991959 | M97: 0.003722166131 | N97: 1.165706639e-06
A98: =IF('DF raw data'!M98="","",'DF raw data'!M98) -> -284.5 | B98: =IF('DF raw data'!N98="","",'DF raw data'!N98) -> -2.5651e-05 | C98: =IF('DF raw data'!O98="","",'DF raw data'!O98) -> 5.41499e-05 | D98: =IF('DF raw data'!P98="","",'DF raw data'!P98) -> -8.53595e-06 | F98: -9.292002404e-06 | G98: 3.684454767e-05 | H98: 3.462788658e-06 | J98: 3.724482103e-05 | K98: 0.0003576381575 | L98: 0.0004784214697 | M98: 0.003961376866 | N98: 1.280843779e-06
A99: =IF('DF raw data'!M99="","",'DF raw data'!M99) -> -284 | B99: =IF('DF raw data'!N99="","",'DF raw data'!N99) -> -2.1866e-05 | C99: =IF('DF raw data'!O99="","",'DF raw data'!O99) -> 5.53917e-05 | D99: =IF('DF raw data'!P99="","",'DF raw data'!P99) -> -1.27426e-05 | F99: -5.488077404e-06 | G99: 3.809255667e-05 | H99: -7.648945921e-07 | J99: 3.450078233e-05 | K99: 0.0003748885487 | L99: 0.0004974677481 | M99: 0.00421011074 | N99: 1.405176011e-06
A100: =IF('DF raw data'!M100="","",'DF raw data'!M100) -> -283.5 | B100: =IF('DF raw data'!N100="","",'DF raw data'!N100) -> -2.03302e-05 | C100: =IF('DF raw data'!O100="","",'DF raw data'!O100) -> 5.05595e-05 | D100: =IF('DF raw data'!P100="","",'DF raw data'!P100) -> -8.6137e-06 | F100: -3.944598404e-06 | G100: 3.323619567e-05 | H100: 3.384649908e-06 | J100: 3.252848313e-05 | K100: 0.0003911527902 | L100: 0.0005140858459 | M100: 0.004467153663 | N100: 1.537847191e-06
A101: =IF('DF raw data'!M101="","",'DF raw data'!M101) -> -283 | B101: =IF('DF raw data'!N101="","",'DF raw data'!N101) -> -1.19964e-05 | C101: =IF('DF raw data'!O101="","",'DF raw data'!O101) -> 4.55321e-05 | D101: =IF('DF raw data'!P101="","",'DF raw data'!P101) -> -8.71507e-06 | F101: 4.430870596e-06 | G101: 2.818365867e-05 | H101: 3.282773058e-06 | J101: 3.474391843e-05 | K101: 0.0004085247494 | L101: 0.0005281776752 | M101: 0.0047312425 | N101: 1.677936589e-06
A102: =IF('DF raw data'!M102="","",'DF raw data'!M102) -> -282.5 | B102: =IF('DF raw data'!N102="","",'DF raw data'!N102) -> -5.96367e-06 | C102: =IF('DF raw data'!O102="","",'DF raw data'!O102) -> 4.3772e-05 | D102: =IF('DF raw data'!P102="","",'DF raw data'!P102) -> -1.90645e-05 | F102: 1.049376425e-05 | G102: 2.641475817e-05 | H102: -7.118404092e-06 | J102: 3.999080055e-05 | K102: 0.0004285201497 | L102: 0.0005413850543 | M102: 0.005001935028 | N102: 1.825285109e-06
A103: =IF('DF raw data'!M103="","",'DF raw data'!M103) -> -282 | B103: =IF('DF raw data'!N103="","",'DF raw data'!N103) -> -7.95726e-06 | C103: =IF('DF raw data'!O103="","",'DF raw data'!O103) -> 4.64268e-05 | D103: =IF('DF raw data'!P103="","",'DF raw data'!P103) -> -9.44762e-06 | F103: 8.490206296e-06 | G103: 2.908283217e-05 | H103: 2.546560308e-06 | J103: 4.42359037e-05 | K103: 0.0004506381015 | L103: 0.0005559264704 | M103: 0.005279898263 | N103: 1.980790637e-06
A104: =IF('DF raw data'!M104="","",'DF raw data'!M104) -> -281.5 | B104: =IF('DF raw data'!N104="","",'DF raw data'!N104) -> -7.50642e-06 | C104: =IF('DF raw data'!O104="","",'DF raw data'!O104) -> 5.09771e-05 | D104: =IF('DF raw data'!P104="","",'DF raw data'!P104) -> -1.24976e-05 | F104: 8.943300496e-06 | G104: 3.365588367e-05 | H104: -5.186695921e-07 | J104: 4.870755394e-05 | K104: 0.0004749918785 | L104: 0.0005727544122 | M104: 0.005566275469 | N104: 2.146000659e-06
A105: =IF('DF raw data'!M105="","",'DF raw data'!M105) -> -281 | B105: =IF('DF raw data'!N105="","",'DF raw data'!N105) -> -1.89092e-05 | C105: =IF('DF raw data'!O105="","",'DF raw data'!O105) -> 5.04193e-05 | D105: =IF('DF raw data'!P105="","",'DF raw data'!P105) -> -2.51778e-05 | F105: -2.516493404e-06 | G105: 3.309529467e-05 | H105: -1.326227059e-05 | J105: 4.744930724e-05 | K105: 0.0004987165321 | L105: 0.0005893020596 | M105: 0.005860926499 | N105: 2.320764836e-06
A106: =IF('DF raw data'!M106="","",'DF raw data'!M106) -> -280.5 | B106: =IF('DF raw data'!N106="","",'DF raw data'!N106) -> -1.68616e-05 | C106: =IF('DF raw data'!O106="","",'DF raw data'!O106) -> 5.36631e-05 | D106: =IF('DF raw data'!P106="","",'DF raw data'!P106) -> -1.90363e-05 | F106: -4.586554043e-07 | G106: 3.635531367e-05 | H106: -7.090063092e-06 | J106: 4.721997954e-05 | K106: 0.0005223265219 | L106: 0.0006074797164 | M106: 0.006164666357 | N106: 2.506395502e-06
A107: =IF('DF raw data'!M107="","",'DF raw data'!M107) -> -280 | B107: =IF('DF raw data'!N107="","",'DF raw data'!N107) -> -6.15552e-06 | C107: =IF('DF raw data'!O107="","",'DF raw data'!O107) -> 5.00435e-05 | D107: =IF('DF raw data'!P107="","",'DF raw data'!P107) -> -1.9996e-05 | F107: 1.0300955e-05 | G107: 3.271761567e-05 | H107: -8.054561592e-06 | J107: 5.237045704e-05 | K107: 0.0005485117504 | L107: 0.0006238385242 | M107: 0.006476585619 | N107: 2.702354086e-06
A108: =IF('DF raw data'!M108="","",'DF raw data'!M108) -> -279.5 | B108: =IF('DF raw data'!N108="","",'DF raw data'!N108) -> -1.16049e-05 | C108: =IF('DF raw data'!O108="","",'DF raw data'!O108) -> 4.42283e-05 | D108: =IF('DF raw data'!P108="","",'DF raw data'!P108) -> -1.93385e-05 | F108: 4.824328096e-06 | G108: 2.687333967e-05 | H108: -7.393774092e-06 | J108: 5.478262109e-05 | K108: 0.000575903061 | L108: 0.0006372751941 | M108: 0.006795223216 | N108: 2.906914491e-06
A109: =IF('DF raw data'!M109="","",'DF raw data'!M109) -> -279 | B109: =IF('DF raw data'!N109="","",'DF raw data'!N109) -> -1.69848e-05 | C109: =IF('DF raw data'!O109="","",'DF raw data'!O109) -> 5.17714e-05 | D109: =IF('DF raw data'!P109="","",'DF raw data'!P109) -> -2.6793e-05 | F109: -5.824714043e-07 | G109: 3.445415517e-05 | H109: -1.488554659e-05 | J109: 5.449138538e-05 | K109: 0.0006031487537 | L109: 0.0006545022717 | M109: 0.007122474352 | N109: 3.122585758e-06
A110: =IF('DF raw data'!M110="","",'DF raw data'!M110) -> -278.5 | B110: =IF('DF raw data'!N110="","",'DF raw data'!N110) -> -1.53235e-05 | C110: =IF('DF raw data'!O110="","",'DF raw data'!O110) -> 4.96659e-05 | D110: =IF('DF raw data'!P110="","",'DF raw data'!P110) -> -1.84158e-05 | F110: 1.087135096e-06 | G110: 3.233812767e-05 | H110: -6.466460592e-06 | J110: 5.503495293e-05 | K110: 0.0006306662301 | L110: 0.0006706713355 | M110: 0.00745781002 | N110: 3.349000201e-06
A111: =IF('DF raw data'!M111="","",'DF raw data'!M111) -> -278 | B111: =IF('DF raw data'!N111="","",'DF raw data'!N111) -> -6.34907e-06 | C111: =IF('DF raw data'!O111="","",'DF raw data'!O111) -> 4.88559e-05 | D111: =IF('DF raw data'!P111="","",'DF raw data'!P111) -> -1.78804e-05 | F111: 1.010643725e-05 | G111: 3.152407767e-05 | H111: -5.928383592e-06 | J111: 6.008817155e-05 | K111: 0.0006607103159 | L111: 0.0006864333743 | M111: 0.007801026707 | N111: 3.586400884e-06
A112: =IF('DF raw data'!M112="","",'DF raw data'!M112) -> -277.5 | B112: =IF('DF raw data'!N112="","",'DF raw data'!N112) -> -1.80797e-05 | C112: =IF('DF raw data'!O112="","",'DF raw data'!O112) -> 4.79811e-05 | D112: =IF('DF raw data'!P112="","",'DF raw data'!P112) -> -1.90461e-05 | F112: -1.682845904e-06 | G112: 3.064490367e-05 | H112: -7.099912092e-06 | J112: 5.92467486e-05 | K112: 0.0006903336902 | L112: 0.0007017558262 | M112: 0.00815190462 | N112: 3.834386592e-06
A113: =IF('DF raw data'!M113="","",'DF raw data'!M113) -> -277 | B113: =IF('DF raw data'!N113="","",'DF raw data'!N113) -> -4.7487e-06 | C113: =IF('DF raw data'!O113="","",'DF raw data'!O113) -> 4.56724e-05 | D113: =IF('DF raw data'!P113="","",'DF raw data'!P113) -> -1.46582e-05 | F113: 1.17148091e-05 | G113: 2.832466017e-05 | H113: -2.690072592e-06 | J113: 6.510415315e-05 | K113: 0.0007228857668 | L113: 0.0007159181563 | M113: 0.008509863698 | N113: 4.092775271e-06
A114: =IF('DF raw data'!M114="","",'DF raw data'!M114) -> -276.5 | B114: =IF('DF raw data'!N114="","",'DF raw data'!N114) -> -2.50712e-05 | C114: =IF('DF raw data'!O114="","",'DF raw data'!O114) -> 3.80252e-05 | D114: =IF('DF raw data'!P114="","",'DF raw data'!P114) -> -1.27838e-05 | F114: -8.709303404e-06 | G114: 2.063922417e-05 | H114: -8.063005921e-07 | J114: 6.074950145e-05 | K114: 0.0007532605175 | L114: 0.0007262377683 | M114: 0.008872982582 | N114: 4.35833117e-06
A115: =IF('DF raw data'!M115="","",'DF raw data'!M115) -> -276 | B115: =IF('DF raw data'!N115="","",'DF raw data'!N115) -> -2.03277e-05 | C115: =IF('DF raw data'!O115="","",'DF raw data'!O115) -> 3.47032e-05 | D115: =IF('DF raw data'!P115="","",'DF raw data'!P115) -> -1.25792e-05 | F115: -3.942085904e-06 | G115: 1.730061417e-05 | H115: -6.006775921e-07 | J115: 5.87784585e-05 | K115: 0.0007826497468 | L115: 0.0007348880754 | M115: 0.00924042662 | N115: 4.630088865e-06
A116: =IF('DF raw data'!M116="","",'DF raw data'!M116) -> -275.5 | B116: =IF('DF raw data'!N116="","",'DF raw data'!N116) -> -1.94261e-05 | C116: =IF('DF raw data'!O116="","",'DF raw data'!O116) -> 3.80821e-05 | D116: =IF('DF raw data'!P116="","",'DF raw data'!P116) -> -1.88211e-05 | F116: -3.035977904e-06 | G116: 2.069640867e-05 | H116: -6.873787092e-06 | J116: 5.726046954e-05 | K116: 0.0008112799815 | L116: 0.0007452362798 | M116: 0.00961304476 | N116: 4.909416802e-06
A117: =IF('DF raw data'!M117="","",'DF raw data'!M117) -> -275 | B117: =IF('DF raw data'!N117="","",'DF raw data'!N117) -> -6.14802e-06 | C117: =IF('DF raw data'!O117="","",'DF raw data'!O117) -> 3.91191e-05 | D117: =IF('DF raw data'!P117="","",'DF raw data'!P117) -> -3.15607e-05 | F117: 1.03084925e-05 | G117: 2.173859367e-05 | H117: -1.967708509e-05 | J117: 6.241471579e-05 | K117: 0.0008424873394 | L117: 0.0007561055766 | M117: 0.009991097548 | N117: 5.197212422e-06
A118: =IF('DF raw data'!M118="","",'DF raw data'!M118) -> -274.5 | B118: =IF('DF raw data'!N118="","",'DF raw data'!N118) -> -6.47523e-06 | C118: =IF('DF raw data'!O118="","",'DF raw data'!O118) -> 3.73545e-05 | D118: =IF('DF raw data'!P118="","",'DF raw data'!P118) -> -2.10347e-05 | F118: 9.979646446e-06 | G118: 1.996517067e-05 | H118: -9.098455092e-06 | J118: 6.740453901e-05 | K118: 0.0008761896089 | L118: 0.0007660881619 | M118: 0.01037414163 | N118: 5.492929644e-06
A119: =IF('DF raw data'!M119="","",'DF raw data'!M119) -> -274 | B119: =IF('DF raw data'!N119="","",'DF raw data'!N119) -> -8.59149e-06 | C119: =IF('DF raw data'!O119="","",'DF raw data'!O119) -> 2.99086e-05 | D119: =IF('DF raw data'!P119="","",'DF raw data'!P119) -> -1.99548e-05 | F119: 7.852805146e-06 | G119: 1.248204117e-05 | H119: -8.013155592e-06 | J119: 7.133094159e-05 | K119: 0.0009118550797 | L119: 0.0007723291825 | M119: 0.01076030622 | N119: 5.793719879e-06
A120: =IF('DF raw data'!M120="","",'DF raw data'!M120) -> -273.5 | B120: =IF('DF raw data'!N120="","",'DF raw data'!N120) -> -1.76963e-05 | C120: =IF('DF raw data'!O120="","",'DF raw data'!O120) -> 3.06383e-05 | D120: =IF('DF raw data'!P120="","",'DF raw data'!P120) -> -1.72199e-05 | F120: -1.297528904e-06 | G120: 1.321538967e-05 | H120: -5.264581092e-06 | J120: 7.068217713e-05 | K120: 0.0009471961683 | L120: 0.0007789368774 | M120: 0.01114977466 | N120: 6.099589193e-06
A121: =IF('DF raw data'!M121="","",'DF raw data'!M121) -> -273 | B121: =IF('DF raw data'!N121="","",'DF raw data'!N121) -> -5.58049e-06 | C121: =IF('DF raw data'!O121="","",'DF raw data'!O121) -> 4.17428e-05 | D121: =IF('DF raw data'!P121="","",'DF raw data'!P121) -> -1.6857e-05 | F121: 1.087886015e-05 | G121: 2.437541217e-05 | H121: -4.899866592e-06 | J121: 7.612160721e-05 | K121: 0.0009852569719 | L121: 0.0007911245834 | M121: 0.01154533695 | N121: 6.415425496e-06
A122: =IF('DF raw data'!M122="","",'DF raw data'!M122) -> -272.5 | B122: =IF('DF raw data'!N122="","",'DF raw data'!N122) -> -9.55348e-06 | C122: =IF('DF raw data'!O122="","",'DF raw data'!O122) -> 4.22977e-05 | D122: =IF('DF raw data'!P122="","",'DF raw data'!P122) -> -1.94913e-05 | F122: 6.886005196e-06 | G122: 2.493308667e-05 | H122: -7.547338092e-06 | J122: 7.956460981e-05 | K122: 0.001025039277 | L122: 0.0008035911268 | M122: 0.01194713251 | N122: 6.741470109e-06
A123: =IF('DF raw data'!M123="","",'DF raw data'!M123) -> -272 | B123: =IF('DF raw data'!N123="","",'DF raw data'!N123) -> -2.12908e-05 | C123: =IF('DF raw data'!O123="","",'DF raw data'!O123) -> 3.81159e-05 | D123: =IF('DF raw data'!P123="","",'DF raw data'!P123) -> -9.97021e-06 | F123: -4.910001404e-06 | G123: 2.073037767e-05 | H123: 2.021357358e-06 | J123: 7.71096091e-05 | K123: 0.001063594081 | L123: 0.0008139563156 | M123: 0.01235411067 | N123: 7.075705497e-06
A124: =IF('DF raw data'!M124="","",'DF raw data'!M124) -> -271.5 | B124: =IF('DF raw data'!N124="","",'DF raw data'!N124) -> -1.96819e-05 | C124: =IF('DF raw data'!O124="","",'DF raw data'!O124) -> 4.51324e-05 | D124: =IF('DF raw data'!P124="","",'DF raw data'!P124) -> -1.99003e-05 | F124: -3.293056904e-06 | G124: 2.778196017e-05 | H124: -7.958383092e-06 | J124: 7.546308065e-05 | K124: 0.001101325622 | L124: 0.0008278472957 | M124: 0.01276803432 | N124: 7.421218408e-06
A125: =IF('DF raw data'!M125="","",'DF raw data'!M125) -> -271 | B125: =IF('DF raw data'!N125="","",'DF raw data'!N125) -> -1.91835e-05 | C125: =IF('DF raw data'!O125="","",'DF raw data'!O125) -> 4.20339e-05 | D125: =IF('DF raw data'!P125="","",'DF raw data'!P125) -> 2.3735e-06 | F125: -2.792164904e-06 | G125: 2.466796767e-05 | H125: 1.442678591e-05 | J125: 7.40669982e-05 | K125: 0.001138359121 | L125: 0.0008401812795 | M125: 0.01318812496 | N125: 7.776913659e-06
A126: =IF('DF raw data'!M126="","",'DF raw data'!M126) -> -270.5 | B126: =IF('DF raw data'!N126="","",'DF raw data'!N126) -> -1.80178e-05 | C126: =IF('DF raw data'!O126="","",'DF raw data'!O126) -> 3.58418e-05 | D126: =IF('DF raw data'!P126="","",'DF raw data'!P126) -> -1.5823e-05 | F126: -1.620636404e-06 | G126: 1.844490717e-05 | H126: -3.860696592e-06 | J126: 7.325668e-05 | K126: 0.001174987461 | L126: 0.0008494037331 | M126: 0.01361282683 | N126: 8.140340281e-06
A127: =IF('DF raw data'!M127="","",'DF raw data'!M127) -> -270 | B127: =IF('DF raw data'!N127="","",'DF raw data'!N127) -> -1.33374e-05 | C127: =IF('DF raw data'!O127="","",'DF raw data'!O127) -> 3.31608e-05 | D127: =IF('DF raw data'!P127="","",'DF raw data'!P127) -> -1.69654e-05 | F127: 3.083165596e-06 | G127: 1.575050217e-05 | H127: -5.008808592e-06 | J127: 7.479826279e-05 | K127: 0.001212386592 | L127: 0.0008572789842 | M127: 0.01404146632 | N127: 8.510601299e-06
A128: =IF('DF raw data'!M128="","",'DF raw data'!M128) -> -269.5 | B128: =IF('DF raw data'!N128="","",'DF raw data'!N128) -> -8.20795e-06 | C128: =IF('DF raw data'!O128="","",'DF raw data'!O128) -> 4.24977e-05 | D128: =IF('DF raw data'!P128="","",'DF raw data'!P128) -> -1.82776e-05 | F128: 8.238262846e-06 | G128: 2.513408667e-05 | H128: -6.327569592e-06 | J128: 7.891739422e-05 | K128: 0.001251845289 | L128: 0.0008698460275 | M128: 0.01447638933 | N128: 8.892031332e-06
A129: =IF('DF raw data'!M129="","",'DF raw data'!M129) -> -269 | B129: =IF('DF raw data'!N129="","",'DF raw data'!N129) -> -2.27594e-05 | C129: =IF('DF raw data'!O129="","",'DF raw data'!O129) -> 5.11676e-05 | D129: =IF('DF raw data'!P129="","",'DF raw data'!P129) -> -1.91081e-05 | F129: -6.385944404e-06 | G129: 3.384733617e-05 | H129: -7.162222092e-06 | J129: 7.572442202e-05 | K129: 0.0012897075 | L129: 0.0008867696956 | M129: 0.01491977418 | N129: 9.288078673e-06
A130: =IF('DF raw data'!M130="","",'DF raw data'!M130) -> -268.5 | B130: =IF('DF raw data'!N130="","",'DF raw data'!N130) -> -2.05853e-05 | C130: =IF('DF raw data'!O130="","",'DF raw data'!O130) -> 4.60242e-05 | D130: =IF('DF raw data'!P130="","",'DF raw data'!P130) -> -1.07069e-05 | F130: -4.200973904e-06 | G130: 2.867821917e-05 | H130: 1.280983908e-06 | J130: 7.362393506e-05 | K130: 0.001326519468 | L130: 0.0009011088052 | M130: 0.01537032858 | N130: 9.696787454e-06
A131: =IF('DF raw data'!M131="","",'DF raw data'!M131) -> -268 | B131: =IF('DF raw data'!N131="","",'DF raw data'!N131) -> -8.91959e-06 | C131: =IF('DF raw data'!O131="","",'DF raw data'!O131) -> 3.90095e-05 | D131: =IF('DF raw data'!P131="","",'DF raw data'!P131) -> -8.4593e-06 | F131: =(1-$G$1*($B$54-$G$2))*(B131-F$5) -> 7.523064646e-06 | G131: =(1-$G$1*($B$54-$G$2))*(C131-G$5) -> 2.162844567e-05 | H131: =(1-$G$1*($B$54-$G$2))*(D131-H$5) -> 3.539821908e-06 | J131: 7.738546739e-05 | K131: 0.001365212202 | L131: 0.000911923028 | M131: 0.0158262901 | N131: 1.011558351e-05
A132: =IF('DF raw data'!M132="","",'DF raw data'!M132) -> -267.5 | B132: =IF('DF raw data'!N132="","",'DF raw data'!N132) -> -1.15459e-05 | C132: =IF('DF raw data'!O132="","",'DF raw data'!O132) -> 4.06515e-05 | D132: =IF('DF raw data'!P132="","",'DF raw data'!P132) -> -1.12281e-05 | F132: 4.883623096e-06 | G132: 2.327865567e-05 | H132: 7.571779079e-07 | J132: =F132*$G$3+J131 -> 7.982727893e-05 | K132: =J132*$G$3+K131 -> 0.001405125841 | L132: =G132*$G$3+L131 -> 0.0009235623559 | M132: =L132*$G$3+M131 -> 0.01628807127 | N132: =(J132^2+L132^2)*$G$3+N131 -> 1.054525342e-05
A133: =IF('DF raw data'!M133="","",'DF raw data'!M133) -> -267 | B133: =IF('DF raw data'!N133="","",'DF raw data'!N133) -> -3.1482e-05 | C133: =IF('DF raw data'!O133="","",'DF raw data'!O133) -> 3.76213e-05 | D133: =IF('DF raw data'!P133="","",'DF raw data'!P133) -> -1.25273e-05 | F133: -1.51521574e-05 | G133: 2.023330467e-05 | H133: -5.485180921e-07 | J133: 7.225120023e-05 | K133: 0.001441251441 | L133: 0.0009336790082 | M133: 0.01675491078 | N133: 1.098374179e-05
A134: =IF('DF raw data'!M134="","",'DF raw data'!M134) -> -266.5 | B134: =IF('DF raw data'!N134="","",'DF raw data'!N134) -> -1.52637e-05 | C134: =IF('DF raw data'!O134="","",'DF raw data'!O134) -> 4.18929e-05 | D134: =IF('DF raw data'!P134="","",'DF raw data'!P134) -> -1.19969e-05 | F134: 1.147234096e-06 | G134: 2.452626267e-05 | H134: -1.546609207e-08 | J134: 7.282481728e-05 | K134: 0.00147766385 | L134: 0.0009459421396 | M134: 0.01722788185 | N134: 1.143379678e-05
A135: =IF('DF raw data'!M135="","",'DF raw data'!M135) -> -266 | B135: =IF('DF raw data'!N135="","",'DF raw data'!N135) -> -2.66068e-05 | C135: =IF('DF raw data'!O135="","",'DF raw data'!O135) -> 4.54448e-05 | D135: =IF('DF raw data'!P135="","",'DF raw data'!P135) -> -1.76869e-05 | F135: -1.02525814e-05 | G135: 2.809592217e-05 | H135: -5.733916092e-06 | J135: 6.769852658e-05 | K135: 0.001511513113 | L135: 0.0009599901006 | M135: 0.0177078769 | N135: 1.189687882e-05
A136: =IF('DF raw data'!M136="","",'DF raw data'!M136) -> -265.5 | B136: =IF('DF raw data'!N136="","",'DF raw data'!N136) -> -1.52558e-05 | C136: =IF('DF raw data'!O136="","",'DF raw data'!O136) -> 4.6263e-05 | D136: =IF('DF raw data'!P136="","",'DF raw data'!P136) -> -2.42286e-05 | F136: 1.155173596e-06 | G136: 2.891821317e-05 | H136: -1.230832459e-05 | J136: 6.827611338e-05 | K136: 0.00154565117 | L136: 0.0009744492072 | M136: 0.0181951015 | N136: 1.237398526e-05
A137: =IF('DF raw data'!M137="","",'DF raw data'!M137) -> -265 | B137: =IF('DF raw data'!N137="","",'DF raw data'!N137) -> -2.97485e-05 | C137: =IF('DF raw data'!O137="","",'DF raw data'!O137) -> 4.33757e-05 | D137: =IF('DF raw data'!P137="","",'DF raw data'!P137) -> -1.65458e-05 | F137: -1.34099899e-05 | G137: 2.601647667e-05 | H137: -4.587110592e-06 | J137: 6.157111842e-05 | K137: 0.001576436729 | L137: 0.0009874574456 | M137: 0.01868883022 | N137: 1.286341687e-05
A138: =IF('DF raw data'!M138="","",'DF raw data'!M138) -> -264.5 | B138: =IF('DF raw data'!N138="","",'DF raw data'!N138) -> -2.92972e-05 | C138: =IF('DF raw data'!O138="","",'DF raw data'!O138) -> 4.44883e-05 | D138: =IF('DF raw data'!P138="","",'DF raw data'!P138) -> -2.0599e-05 | F138: -1.29564334e-05 | G138: 2.713463967e-05 | H138: -8.660576592e-06 | J138: 5.509290172e-05 | K138: 0.00160398318 | L138: 0.001001024765 | M138: 0.01918934261 | N138: 1.336595977e-05
A139: =IF('DF raw data'!M139="","",'DF raw data'!M139) -> -264 | B139: =IF('DF raw data'!N139="","",'DF raw data'!N139) -> -3.23106e-05 | C139: =IF('DF raw data'!O139="","",'DF raw data'!O139) -> 3.79201e-05 | D139: =IF('DF raw data'!P139="","",'DF raw data'!P139) -> -2.01404e-05 | F139: -1.59849004e-05 | G139: 2.053359867e-05 | H139: -8.199683592e-06 | J139: 4.710045152e-05 | K139: 0.001627533406 | L139: 0.001011291565 | M139: 0.01969498839 | N139: 1.387842431e-05
A140: =IF('DF raw data'!M140="","",'DF raw data'!M140) -> -263.5 | B140: =IF('DF raw data'!N140="","",'DF raw data'!N140) -> -2.32086e-05 | C140: =IF('DF raw data'!O140="","",'DF raw data'!O140) -> 4.78305e-05 | D140: =IF('DF raw data'!P140="","",'DF raw data'!P140) -> -1.84926e-05 | F140: -6.837390404e-06 | G140: 3.049355067e-05 | H140: -6.543644592e-06 | J140: 4.368175632e-05 | K140: 0.001649374284 | L140: 0.00102653834 | M140: 0.02020825756 | N140: 1.440626884e-05
A141: =IF('DF raw data'!M141="","",'DF raw data'!M141) -> -263 | B141: =IF('DF raw data'!N141="","",'DF raw data'!N141) -> -2.51308e-05 | C141: =IF('DF raw data'!O141="","",'DF raw data'!O141) -> 4.50901e-05 | D141: =IF('DF raw data'!P141="","",'DF raw data'!P141) -> -1.98851e-05 | F141: -8.769201404e-06 | G141: 2.773944867e-05 | H141: -7.943107092e-06 | J141: 3.929715561e-05 | K141: 0.001669022862 | L141: 0.001040408064 | M141: 0.02072846159 | N141: 1.494826545e-05
A142: =IF('DF raw data'!M142="","",'DF raw data'!M142) -> -262.5 | B142: =IF('DF raw data'!N142="","",'DF raw data'!N142) -> -1.5715e-05 | C142: =IF('DF raw data'!O142="","",'DF raw data'!O142) -> 4.93894e-05 | D142: =IF('DF raw data'!P142="","",'DF raw data'!P142) -> -7.75437e-06 | F142: 6.936775957e-07 | G142: 3.206024517e-05 | H142: 4.248276558e-06 | J142: 3.964399441e-05 | K142: 0.001688844859 | L142: 0.001056438187 | M142: 0.02125668069 | N142: 1.550708209e-05
A143: =IF('DF raw data'!M143="","",'DF raw data'!M143) -> -262 | B143: =IF('DF raw data'!N143="","",'DF raw data'!N143) -> -2.03164e-05 | C143: =IF('DF raw data'!O143="","",'DF raw data'!O143) -> 3.77554e-05 | D143: =IF('DF raw data'!P143="","",'DF raw data'!P143) -> -2.9881e-05 | F143: -3.930729404e-06 | G143: 2.036807517e-05 | H143: -1.798898659e-05 | J143: 3.767862971e-05 | K143: 0.001707684174 | L143: 0.001066622225 | M143: 0.0217899918 | N143: 1.607663342e-05
A144: =IF('DF raw data'!M144="","",'DF raw data'!M144) -> -261.5 | B144: =IF('DF raw data'!N144="","",'DF raw data'!N144) -> -1.67971e-05 | C144: =IF('DF raw data'!O144="","",'DF raw data'!O144) -> 4.68717e-05 | D144: =IF('DF raw data'!P144="","",'DF raw data'!P144) -> -1.98793e-05 | F144: -3.938329043e-07 | G144: 2.952995667e-05 | H144: -7.937278092e-06 | J144: 3.748171326e-05 | K144: 0.00172642503 | L144: 0.001081387203 | M144: 0.0223306854 | N144: 1.6662035e-05
A145: =IF('DF raw data'!M145="","",'DF raw data'!M145) -> -261 | B145: =IF('DF raw data'!N145="","",'DF raw data'!N145) -> -1.4176e-05 | C145: =IF('DF raw data'!O145="","",'DF raw data'!O145) -> 4.62711e-05 | D145: =IF('DF raw data'!P145="","",'DF raw data'!P145) -> -8.62644e-06 | F145: 2.240372596e-06 | G145: 2.892635367e-05 | H145: 3.371846208e-06 | J145: 3.860189956e-05 | K145: 0.00174572598 | L145: 0.00109585038 | M145: 0.02287861059 | N145: 1.726322408e-05
A146: =IF('DF raw data'!M146="","",'DF raw data'!M146) -> -260.5 | B146: =IF('DF raw data'!N146="","",'DF raw data'!N146) -> -1.48204e-05 | C146: =IF('DF raw data'!O146="","",'DF raw data'!O146) -> 4.59929e-05 | D146: =IF('DF raw data'!P146="","",'DF raw data'!P146) -> -3.37101e-06 | F146: 1.592750596e-06 | G146: 2.864676267e-05 | H146: 8.653553358e-06 | J146: 3.939827485e-05 | K146: 0.001765425117 | L146: 0.001110173761 | M146: 0.02343369747 | N146: 1.788024308e-05
A147: =IF('DF raw data'!M147="","",'DF raw data'!M147) -> -260 | B147: =IF('DF raw data'!N147="","",'DF raw data'!N147) -> -2.41766e-05 | C147: =IF('DF raw data'!O147="","",'DF raw data'!O147) -> 4.56058e-05 | D147: =IF('DF raw data'!P147="","",'DF raw data'!P147) -> -8.32203e-06 | F147: -7.810230404e-06 | G147: 2.825772717e-05 | H147: 3.677778258e-06 | J147: 3.549315965e-05 | K147: 0.001783171697 | L147: 0.001124302625 | M147: 0.02399584878 | N147: 1.851290116e-05
A148: =IF('DF raw data'!M148="","",'DF raw data'!M148) -> -259.5 | B148: =IF('DF raw data'!N148="","",'DF raw data'!N148) -> -9.49085e-06 | C148: =IF('DF raw data'!O148="","",'DF raw data'!O148) -> 5.19472e-05 | D148: =IF('DF raw data'!P148="","",'DF raw data'!P148) -> -1.70095e-05 | F148: 6.948948346e-06 | G148: 3.463083417e-05 | H148: -5.053129092e-06 | J148: 3.896763382e-05 | K148: 0.001802655514 | L148: 0.001141618042 | M148: 0.0245666578 | N148: 1.916530627e-05
A149: =IF('DF raw data'!M149="","",'DF raw data'!M149) -> -259 | B149: =IF('DF raw data'!N149="","",'DF raw data'!N149) -> -2.05137e-05 | C149: =IF('DF raw data'!O149="","",'DF raw data'!O149) -> 4.22143e-05 | D149: =IF('DF raw data'!P149="","",'DF raw data'!P149) -> -2.20911e-05 | F149: -4.129015904e-06 | G149: 2.484926967e-05 | H149: -1.016013709e-05 | J149: 3.690312587e-05 | K149: 0.001821107077 | L149: 0.001154042677 | M149: 0.02514367914 | N149: 1.983189444e-05
A150: =IF('DF raw data'!M150="","",'DF raw data'!M150) -> -258.5 | B150: =IF('DF raw data'!N150="","",'DF raw data'!N150) -> -1.44216e-05 | C150: =IF('DF raw data'!O150="","",'DF raw data'!O150) -> 4.29164e-05 | D150: =IF('DF raw data'!P150="","",'DF raw data'!P150) -> -2.52373e-05 | F150: 1.993544596e-06 | G150: 2.555488017e-05 | H150: -1.332206809e-05 | J150: 3.789989817e-05 | K150: 0.001840057026 | L150: 0.001166820117 | M150: 0.0257270892 | N150: 2.051334724e-05
A151: =IF('DF raw data'!M151="","",'DF raw data'!M151) -> -258 | B151: =IF('DF raw data'!N151="","",'DF raw data'!N151) -> -1.52527e-05 | C151: =IF('DF raw data'!O151="","",'DF raw data'!O151) -> 4.20219e-05 | D151: =IF('DF raw data'!P151="","",'DF raw data'!P151) -> -2.90116e-05 | F151: 1.158289096e-06 | G151: 2.465590767e-05 | H151: -1.711523959e-05 | J151: 3.847904272e-05 | K151: 0.001859296548 | L151: 0.001179148071 | M151: 0.02631666324 | N151: 2.120928264e-05
A152: =IF('DF raw data'!M152="","",'DF raw data'!M152) -> -257.5 | B152: =IF('DF raw data'!N152="","",'DF raw data'!N152) -> -2.2824e-05 | C152: =IF('DF raw data'!O152="","",'DF raw data'!O152) -> 4.74006e-05 | D152: =IF('DF raw data'!P152="","",'DF raw data'!P152) -> -1.84412e-05 | F152: -6.450867404e-06 | G152: 3.006150117e-05 | H152: -6.491987592e-06 | J152: 3.525360902e-05 | K152: 0.001876923352 | L152: 0.001194178821 | M152: 0.02691375265 | N152: 2.192293558e-05
A153: =IF('DF raw data'!M153="","",'DF raw data'!M153) -> -257 | B153: =IF('DF raw data'!N153="","",'DF raw data'!N153) -> -1.96883e-05 | C153: =IF('DF raw data'!O153="","",'DF raw data'!O153) -> 5.06038e-05 | D153: =IF('DF raw data'!P153="","",'DF raw data'!P153) -> -1.00504e-05 | F153: -3.299488904e-06 | G153: 3.328071717e-05 | H153: 1.940766408e-06 | J153: 3.360386456e-05 | K153: 0.001893725284 | L153: 0.00121081918 | M153: 0.02751916224 | N153: 2.265654173e-05
A154: =IF('DF raw data'!M154="","",'DF raw data'!M154) -> -256.5 | B154: =IF('DF raw data'!N154="","",'DF raw data'!N154) -> -2.02667e-05 | C154: =IF('DF raw data'!O154="","",'DF raw data'!O154) -> 4.76969e-05 | D154: =IF('DF raw data'!P154="","",'DF raw data'!P154) -> -7.51822e-06 | F154: -3.880780904e-06 | G154: 3.035928267e-05 | H154: 4.485607308e-06 | J154: 3.166347411e-05 | K154: 0.001909557021 | L154: 0.001225998821 | M154: 0.02813216165 | N154: 2.340857957e-05
A155: =IF('DF raw data'!M155="","",'DF raw data'!M155) -> -256 | B155: =IF('DF raw data'!N155="","",'DF raw data'!N155) -> -2.80268e-05 | C155: =IF('DF raw data'!O155="","",'DF raw data'!O155) -> 3.85796e-05 | D155: =IF('DF raw data'!P155="","",'DF raw data'!P155) -> -2.68653e-06 | F155: -1.16796814e-05 | G155: 2.119639617e-05 | H155: 9.341455758e-06 | J155: 2.582363341e-05 | K155: 0.001922468838 | L155: 0.001236597019 | M155: 0.02875046016 | N155: 2.41734991e-05
A156: =IF('DF raw data'!M156="","",'DF raw data'!M156) -> -255.5 | B156: =IF('DF raw data'!N156="","",'DF raw data'!N156) -> -1.68691e-05 | C156: =IF('DF raw data'!O156="","",'DF raw data'!O156) -> 4.4016e-05 | D156: =IF('DF raw data'!P156="","",'DF raw data'!P156) -> -7.471e-06 | F156: -4.661929043e-07 | G156: 2.665997817e-05 | H156: 4.533063408e-06 | J156: 2.559053696e-05 | K156: 0.001935264107 | L156: 0.001249927008 | M156: 0.02937542366 | N156: 2.49549853e-05
A157: =IF('DF raw data'!M157="","",'DF raw data'!M157) -> -255 | B157: =IF('DF raw data'!N157="","",'DF raw data'!N157) -> -2.36671e-05 | C157: =IF('DF raw data'!O157="","",'DF raw data'!O157) -> 4.66328e-05 | D157: =IF('DF raw data'!P157="","",'DF raw data'!P157) -> -3.21145e-06 | F157: -7.298182904e-06 | G157: 2.928986217e-05 | H157: 8.813911158e-06 | J157: 2.194144551e-05 | K157: 0.001946234829 | L157: 0.001264571939 | M157: 0.03000770963 | N157: 2.575479711e-05
A158: =IF('DF raw data'!M158="","",'DF raw data'!M158) -> -254.5 | B158: =IF('DF raw data'!N158="","",'DF raw data'!N158) -> -8.9798e-06 | C158: =IF('DF raw data'!O158="","",'DF raw data'!O158) -> 3.63792e-05 | D158: =IF('DF raw data'!P158="","",'DF raw data'!P158) -> -1.42623e-05 | F158: 7.462553596e-06 | G158: 1.898499417e-05 | H158: -2.292193092e-06 | J158: 2.56727223e-05 | K158: 0.00195907119 | L158: 0.001274064436 | M158: 0.03064474185 | N158: 2.656674674e-05
A159: =IF('DF raw data'!M159="","",'DF raw data'!M159) -> -254 | B159: =IF('DF raw data'!N159="","",'DF raw data'!N159) -> -3.84014e-05 | C159: =IF('DF raw data'!O159="","",'DF raw data'!O159) -> 2.93461e-05 | D159: =IF('DF raw data'!P159="","",'DF raw data'!P159) -> -1.88485e-05 | F159: -2.21061544e-05 | G159: 1.191672867e-05 | H159: -6.901324092e-06 | J159: 1.46196451e-05 | K159: 0.001966381013 | L159: 0.001280022801 | M159: 0.03128475325 | N159: 2.73860828e-05
A160: =IF('DF raw data'!M160="","",'DF raw data'!M160) -> -253.5 | B160: =IF('DF raw data'!N160="","",'DF raw data'!N160) -> -2.32092e-05 | C160: =IF('DF raw data'!O160="","",'DF raw data'!O160) -> 4.66463e-05 | D160: =IF('DF raw data'!P160="","",'DF raw data'!P160) -> -1.76523e-05 | F160: -6.837993404e-06 | G160: 2.930342967e-05 | H160: -5.699143092e-06 | J160: 1.12006484e-05 | K160: 0.001971981337 | L160: 0.001294674516 | M160: 0.03193209051 | N160: 2.822423657e-05
A161: =IF('DF raw data'!M161="","",'DF raw data'!M161) -> -253 | B161: =IF('DF raw data'!N161="","",'DF raw data'!N161) -> -3.48128e-05 | C161: =IF('DF raw data'!O161="","",'DF raw data'!O161) -> 5.10575e-05 | D161: =IF('DF raw data'!P161="","",'DF raw data'!P161) -> -1.66347e-05 | F161: -1.84996114e-05 | G161: 3.373668567e-05 | H161: -4.676455092e-06 | J161: 1.950842697e-06 | K161: 0.001972956759 | L161: 0.001311542858 | M161: 0.03258786193 | N161: 2.908431081e-05
A162: =IF('DF raw data'!M162="","",'DF raw data'!M162) -> -252.5 | B162: =IF('DF raw data'!N162="","",'DF raw data'!N162) -> -1.83351e-05 | C162: =IF('DF raw data'!O162="","",'DF raw data'!O162) -> 4.51245e-05 | D162: =IF('DF raw data'!P162="","",'DF raw data'!P162) -> -2.06466e-05 | F162: -1.939522904e-06 | G162: 2.777402067e-05 | H162: -8.708414592e-06 | J162: 9.810812451e-07 | K162: 0.001973447299 | L162: 0.001325429869 | M162: 0.03325057687 | N162: 2.996269346e-05
